Workbook

Sheet TEJ子產業評估
B2: =TEXT(TEJdata!$B$2,"YYYY/MM")&"月營收" -> 2023/10月營收 | G2: 股價表現 | I2: 籌碼面
A3: TEJ子產業名稱 | B3: 產業 家數 | C3: 合併月營收 YoY(%) | D3: 合併月營收 MoM(%) | E3: 合併累計營收 YoY(%) | F3: 合併單月營收 (百萬元) | G3: 平均週報酬率(%) | H3: 平均月報酬率(%) | I3: 近5日外資 持股增減(%) | J3: 近5日投信 持股增減(%) | K3: 近5日融資 增減(%) | L3: 本表為TEJ自行分類的子產業資料，左表僅列出包含5間以上公司的產業
C4: ▼ | D4: ▼ | E4: ▼ | F4: ▼ | G4: ▼ | H4: ▼ | I4: ▼ | J4: ▼ | K4: ▼
C5: ▲ | D5: ▲ | E5: ▲ | F5: ▲ | G5: ▲ | H5: ▲ | I5: ▲ | J5: ▲ | K5: ▲
A6: M28L 金融控股 | B6: =COUNTIF(TEJdata!$P:$P,$A6) -> 14 | C6: =IF(SUMIF(TEJdata!$P:$P,$A6,TEJdata!$B:$B)=0,"",IF(AND(SUMIF(TEJdata!$P:$P,$A6,TEJdata!$B:$B)>0,SUMIF(TEJdata!$P:$P,$A6,TEJdata!$D:$D)<0),(SUMIF(TEJdata!$P:$P,$A6,TEJdata!$B:$B)/ABS(SUMIF(TEJdata!$P:$P,$A6,TEJdata!$D:$D)-1))*100,(SUMIF(TEJdata!$P:$P,$A6,TEJdata!$B:$B)/SUMIF(TEJdata!$P:$P,$A6,TEJdata!$D:$D)-1)*100)) -> 64.56756016 | D6: =IF(SUMIF(TEJdata!$P:$P,$A6,TEJdata!$B:$B)=0,"",(SUMIF(TEJdata!$P:$P,$A6,TEJdata!$B:$B)/SUMIF(TEJdata!$P:$P,$A6,TEJdata!$C:$C)-1)*100) -> 8.012889791 | E6: =IF(SUMIF(TEJdata!$P:$P,$A6,TEJdata!$E:$E)=0,"",(SUMIF(TEJdata!$P:$P,$A6,TEJdata!$E:$E)/SUMIF(TEJdata!$P:$P,$A6,TEJdata!$F:$F)-1)*100) -> -20.78138658 | F6: =SUMIF(TEJdata!$P:$P,$A6,TEJdata!$B:$B)/1000 -> 94631.215 | G6: =SUMIF(TEJdata!$P:$P,$A6,TEJdata!$G:$G)/$B6 -> -0.002228571429 | H6: =SUMIF(TEJdata!$P:$P,$A6,TEJdata!$H:$H)/$B6 -> 1.0092 | I6: =IF(SUMIF(TEJdata!$P:$P,$A6,TEJdata!$I:$I)=0,0,IFERROR((SUMIF(TEJdata!$P:$P,$A6,TEJdata!$I:$I)/SUMIF(TEJdata!$P:$P,$A6,TEJdata!$J:$J)-1)*100,"-")) -> 0.1040381944 | J6: =IF(SUMIF(TEJdata!$P:$P,$A6,TEJdata!$K:$K)=0,0,IFERROR((SUMIF(TEJdata!$P:$P,$A6,TEJdata!$K:$K)/SUMIF(TEJdata!$P:$P,$A6,TEJdata!$L:$L)-1)*100,"-")) -> 0.1038838769 | K6: =IF(SUMIF(TEJdata!$P:$P,$A6,TEJdata!$M:$M)=0,0,IFERROR((SUMIF(TEJdata!$P:$P,$A6,TEJdata!$M:$M)/SUMIF(TEJdata!$P:$P,$A6,TEJdata!$N:$N)-1)*100,"-")) -> -0.1699982131
A7: M23B4A 繪圖運算 | B7: =COUNTIF(TEJdata!$P:$P,$A7) -> 5 | C7: =IF(SUMIF(TEJdata!$P:$P,$A7,TEJdata!$B:$B)=0,"",IF(AND(SUMIF(TEJdata!$P:$P,$A7,TEJdata!$B:$B)>0,SUMIF(TEJdata!$P:$P,$A7,TEJdata!$D:$D)<0),(SUMIF(TEJdata!$P:$P,$A7,TEJdata!$B:$B)/ABS(SUMIF(TEJdata!$P:$P,$A7,TEJdata!$D:$D)-1))*100,(SUMIF(TEJdata!$P:$P,$A7,TEJdata!$B:$B)/SUMIF(TEJdata!$P:$P,$A7,TEJdata!$D:$D)-1)*100)) -> 63.20752572 | D7: =IF(SUMIF(TEJdata!$P:$P,$A7,TEJdata!$B:$B)=0,"",(SUMIF(TEJdata!$P:$P,$A7,TEJdata!$B:$B)/SUMIF(TEJdata!$P:$P,$A7,TEJdata!$C:$C)-1)*100) -> -17.09113528 | E7: =IF(SUMIF(TEJdata!$P:$P,$A7,TEJdata!$E:$E)=0,"",(SUMIF(TEJdata!$P:$P,$A7,TEJdata!$E:$E)/SUMIF(TEJdata!$P:$P,$A7,TEJdata!$F:$F)-1)*100) -> -13.018066 | F7: =SUMIF(TEJdata!$P:$P,$A7,TEJdata!$B:$B)/1000 -> 1866.092 | G7: =SUMIF(TEJdata!$P:$P,$A7,TEJdata!$G:$G)/$B7 -> 5.40526 | H7: =SUMIF(TEJdata!$P:$P,$A7,TEJdata!$H:$H)/$B7 -> 9.26258 | I7: =IF(SUMIF(TEJdata!$P:$P,$A7,TEJdata!$I:$I)=0,0,IFERROR((SUMIF(TEJdata!$P:$P,$A7,TEJdata!$I:$I)/SUMIF(TEJdata!$P:$P,$A7,TEJdata!$J:$J)-1)*100,"-")) -> 2.042825498 | J7: =IF(SUMIF(TEJdata!$P:$P,$A7,TEJdata!$K:$K)=0,0,IFERROR((SUMIF(TEJdata!$P:$P,$A7,TEJdata!$K:$K)/SUMIF(TEJdata!$P:$P,$A7,TEJdata!$L:$L)-1)*100,"-")) -> 0 | K7: =IF(SUMIF(TEJdata!$P:$P,$A7,TEJdata!$M:$M)=0,0,IFERROR((SUMIF(TEJdata!$P:$P,$A7,TEJdata!$M:$M)/SUMIF(TEJdata!$P:$P,$A7,TEJdata!$N:$N)-1)*100,"-")) -> -0.03616200579
A8: M25A 建設 | B8: =COUNTIF(TEJdata!$P:$P,$A8) -> 68 | C8: =IF(SUMIF(TEJdata!$P:$P,$A8,TEJdata!$B:$B)=0,"",IF(AND(SUMIF(TEJdata!$P:$P,$A8,TEJdata!$B:$B)>0,SUMIF(TEJdata!$P:$P,$A8,TEJdata!$D:$D)<0),(SUMIF(TEJdata!$P:$P,$A8,TEJdata!$B:$B)/ABS(SUMIF(TEJdata!$P:$P,$A8,TEJdata!$D:$D)-1))*100,(SUMIF(TEJdata!$P:$P,$A8,TEJdata!$B:$B)/SUMIF(TEJdata!$P:$P,$A8,TEJdata!$D:$D)-1)*100)) -> 57.44246282 | D8: =IF(SUMIF(TEJdata!$P:$P,$A8,TEJdata!$B:$B)=0,"",(SUMIF(TEJdata!$P:$P,$A8,TEJdata!$B:$B)/SUMIF(TEJdata!$P:$P,$A8,TEJdata!$C:$C)-1)*100) -> 2.790375381 | E8: =IF(SUMIF(TEJdata!$P:$P,$A8,TEJdata!$E:$E)=0,"",(SUMIF(TEJdata!$P:$P,$A8,TEJdata!$E:$E)/SUMIF(TEJdata!$P:$P,$A8,TEJdata!$F:$F)-1)*100) -> 15.48150678 | F8: =SUMIF(TEJdata!$P:$P,$A8,TEJdata!$B:$B)/1000 -> 39326.838 | G8: =SUMIF(TEJdata!$P:$P,$A8,TEJdata!$G:$G)/$B8 -> 1.042701471 | H8: =SUMIF(TEJdata!$P:$P,$A8,TEJdata!$H:$H)/$B8 -> 1.450911765 | I8: =IF(SUMIF(TEJdata!$P:$P,$A8,TEJdata!$I:$I)=0,0,IFERROR((SUMIF(TEJdata!$P:$P,$A8,TEJdata!$I:$I)/SUMIF(TEJdata!$P:$P,$A8,TEJdata!$J:$J)-1)*100,"-")) -> -0.006288984558 | J8: =IF(SUMIF(TEJdata!$P:$P,$A8,TEJdata!$K:$K)=0,0,IFERROR((SUMIF(TEJdata!$P:$P,$A8,TEJdata!$K:$K)/SUMIF(TEJdata!$P:$P,$A8,TEJdata!$L:$L)-1)*100,"-")) -> 0.01711083544 | K8: =IF(SUMIF(TEJdata!$P:$P,$A8,TEJdata!$M:$M)=0,0,IFERROR((SUMIF(TEJdata!$P:$P,$A8,TEJdata!$M:$M)/SUMIF(TEJdata!$P:$P,$A8,TEJdata!$N:$N)-1)*100,"-")) -> 1.111131826
A9: M23B1 主機板 | B9: =COUNTIF(TEJdata!$P:$P,$A9) -> 6 | C9: =IF(SUMIF(TEJdata!$P:$P,$A9,TEJdata!$B:$B)=0,"",IF(AND(SUMIF(TEJdata!$P:$P,$A9,TEJdata!$B:$B)>0,SUMIF(TEJdata!$P:$P,$A9,TEJdata!$D:$D)<0),(SUMIF(TEJdata!$P:$P,$A9,TEJdata!$B:$B)/ABS(SUMIF(TEJdata!$P:$P,$A9,TEJdata!$D:$D)-1))*100,(SUMIF(TEJdata!$P:$P,$A9,TEJdata!$B:$B)/SUMIF(TEJdata!$P:$P,$A9,TEJdata!$D:$D)-1)*100)) -> 53.29713326 | D9: =IF(SUMIF(TEJdata!$P:$P,$A9,TEJdata!$B:$B)=0,"",(SUMIF(TEJdata!$P:$P,$A9,TEJdata!$B:$B)/SUMIF(TEJdata!$P:$P,$A9,TEJdata!$C:$C)-1)*100) -> 2.840805685 | E9: =IF(SUMIF(TEJdata!$P:$P,$A9,TEJdata!$E:$E)=0,"",(SUMIF(TEJdata!$P:$P,$A9,TEJdata!$E:$E)/SUMIF(TEJdata!$P:$P,$A9,TEJdata!$F:$F)-1)*100) -> 4.414627276 | F9: =SUMIF(TEJdata!$P:$P,$A9,TEJdata!$B:$B)/1000 -> 39651.372 | G9: =SUMIF(TEJdata!$P:$P,$A9,TEJdata!$G:$G)/$B9 -> 0.5128 | H9: =SUMIF(TEJdata!$P:$P,$A9,TEJdata!$H:$H)/$B9 -> -9.1324 | I9: =IF(SUMIF(TEJdata!$P:$P,$A9,TEJdata!$I:$I)=0,0,IFERROR((SUMIF(TEJdata!$P:$P,$A9,TEJdata!$I:$I)/SUMIF(TEJdata!$P:$P,$A9,TEJdata!$J:$J)-1)*100,"-")) -> -2.466329799 | J9: =IF(SUMIF(TEJdata!$P:$P,$A9,TEJdata!$K:$K)=0,0,IFERROR((SUMIF(TEJdata!$P:$P,$A9,TEJdata!$K:$K)/SUMIF(TEJdata!$P:$P,$A9,TEJdata!$L:$L)-1)*100,"-")) -> -1.364803905 | K9: =IF(SUMIF(TEJdata!$P:$P,$A9,TEJdata!$M:$M)=0,0,IFERROR((SUMIF(TEJdata!$P:$P,$A9,TEJdata!$M:$M)/SUMIF(TEJdata!$P:$P,$A9,TEJdata!$N:$N)-1)*100,"-")) -> 5.296765414
A10: M23K5 導航定位 | B10: =COUNTIF(TEJdata!$P:$P,$A10) -> 6 | C10: =IF(SUMIF(TEJdata!$P:$P,$A10,TEJdata!$B:$B)=0,"",IF(AND(SUMIF(TEJdata!$P:$P,$A10,TEJdata!$B:$B)>0,SUMIF(TEJdata!$P:$P,$A10,TEJdata!$D:$D)<0),(SUMIF(TEJdata!$P:$P,$A10,TEJdata!$B:$B)/ABS(SUMIF(TEJdata!$P:$P,$A10,TEJdata!$D:$D)-1))*100,(SUMIF(TEJdata!$P:$P,$A10,TEJdata!$B:$B)/SUMIF(TEJdata!$P:$P,$A10,TEJdata!$D:$D)-1)*100)) -> 47.12536829 | D10: =IF(SUMIF(TEJdata!$P:$P,$A10,TEJdata!$B:$B)=0,"",(SUMIF(TEJdata!$P:$P,$A10,TEJdata!$B:$B)/SUMIF(TEJdata!$P:$P,$A10,TEJdata!$C:$C)-1)*100) -> 4.613436999 | E10: =IF(SUMIF(TEJdata!$P:$P,$A10,TEJdata!$E:$E)=0,"",(SUMIF(TEJdata!$P:$P,$A10,TEJdata!$E:$E)/SUMIF(TEJdata!$P:$P,$A10,TEJdata!$F:$F)-1)*100) -> 7.41005925 | F10: =SUMIF(TEJdata!$P:$P,$A10,TEJdata!$B:$B)/1000 -> 280.137 | G10: =SUMIF(TEJdata!$P:$P,$A10,TEJdata!$G:$G)/$B10 -> -0.20895 | H10: =SUMIF(TEJdata!$P:$P,$A10,TEJdata!$H:$H)/$B10 -> -2.341066667 | I10: =IF(SUMIF(TEJdata!$P:$P,$A10,TEJdata!$I:$I)=0,0,IFERROR((SUMIF(TEJdata!$P:$P,$A10,TEJdata!$I:$I)/SUMIF(TEJdata!$P:$P,$A10,TEJdata!$J:$J)-1)*100,"-")) -> -28.52277565 | J10: =IF(SUMIF(TEJdata!$P:$P,$A10,TEJdata!$K:$K)=0,0,IFERROR((SUMIF(TEJdata!$P:$P,$A10,TEJdata!$K:$K)/SUMIF(TEJdata!$P:$P,$A10,TEJdata!$L:$L)-1)*100,"-")) -> 0 | K10: =IF(SUMIF(TEJdata!$P:$P,$A10,TEJdata!$M:$M)=0,0,IFERROR((SUMIF(TEJdata!$P:$P,$A10,TEJdata!$M:$M)/SUMIF(TEJdata!$P:$P,$A10,TEJdata!$N:$N)-1)*100,"-")) -> -4.192943583
A11: M23G3B 記憶體模組 | B11: =COUNTIF(TEJdata!$P:$P,$A11) -> 8 | C11: =IF(SUMIF(TEJdata!$P:$P,$A11,TEJdata!$B:$B)=0,"",IF(AND(SUMIF(TEJdata!$P:$P,$A11,TEJdata!$B:$B)>0,SUMIF(TEJdata!$P:$P,$A11,TEJdata!$D:$D)<0),(SUMIF(TEJdata!$P:$P,$A11,TEJdata!$B:$B)/ABS(SUMIF(TEJdata!$P:$P,$A11,TEJdata!$D:$D)-1))*100,(SUMIF(TEJdata!$P:$P,$A11,TEJdata!$B:$B)/SUMIF(TEJdata!$P:$P,$A11,TEJdata!$D:$D)-1)*100)) -> 31.402972 | D11: =IF(SUMIF(TEJdata!$P:$P,$A11,TEJdata!$B:$B)=0,"",(SUMIF(TEJdata!$P:$P,$A11,TEJdata!$B:$B)/SUMIF(TEJdata!$P:$P,$A11,TEJdata!$C:$C)-1)*100) -> 6.518966238 | E11: =IF(SUMIF(TEJdata!$P:$P,$A11,TEJdata!$E:$E)=0,"",(SUMIF(TEJdata!$P:$P,$A11,TEJdata!$E:$E)/SUMIF(TEJdata!$P:$P,$A11,TEJdata!$F:$F)-1)*100) -> -2.254177024 | F11: =SUMIF(TEJdata!$P:$P,$A11,TEJdata!$B:$B)/1000 -> 8344.274 | G11: =SUMIF(TEJdata!$P:$P,$A11,TEJdata!$G:$G)/$B11 -> 0.810125 | H11: =SUMIF(TEJdata!$P:$P,$A11,TEJdata!$H:$H)/$B11 -> 4.09125 | I11: =IF(SUMIF(TEJdata!$P:$P,$A11,TEJdata!$I:$I)=0,0,IFERROR((SUMIF(TEJdata!$P:$P,$A11,TEJdata!$I:$I)/SUMIF(TEJdata!$P:$P,$A11,TEJdata!$J:$J)-1)*100,"-")) -> 2.112646678 | J11: =IF(SUMIF(TEJdata!$P:$P,$A11,TEJdata!$K:$K)=0,0,IFERROR((SUMIF(TEJdata!$P:$P,$A11,TEJdata!$K:$K)/SUMIF(TEJdata!$P:$P,$A11,TEJdata!$L:$L)-1)*100,"-")) -> -0.4439265302 | K11: =IF(SUMIF(TEJdata!$P:$P,$A11,TEJdata!$M:$M)=0,0,IFERROR((SUMIF(TEJdata!$P:$P,$A11,TEJdata!$M:$M)/SUMIF(TEJdata!$P:$P,$A11,TEJdata!$N:$N)-1)*100,"-")) -> 5.289049689
A12: M23G3A 化合物SEMI | B12: =COUNTIF(TEJdata!$P:$P,$A12) -> 6 | C12: =IF(SUMIF(TEJdata!$P:$P,$A12,TEJdata!$B:$B)=0,"",IF(AND(SUMIF(TEJdata!$P:$P,$A12,TEJdata!$B:$B)>0,SUMIF(TEJdata!$P:$P,$A12,TEJdata!$D:$D)<0),(SUMIF(TEJdata!$P:$P,$A12,TEJdata!$B:$B)/ABS(SUMIF(TEJdata!$P:$P,$A12,TEJdata!$D:$D)-1))*100,(SUMIF(TEJdata!$P:$P,$A12,TEJdata!$B:$B)/SUMIF(TEJdata!$P:$P,$A12,TEJdata!$D:$D)-1)*100)) -> 29.92094888 | D12: =IF(SUMIF(TEJdata!$P:$P,$A12,TEJdata!$B:$B)=0,"",(SUMIF(TEJdata!$P:$P,$A12,TEJdata!$B:$B)/SUMIF(TEJdata!$P:$P,$A12,TEJdata!$C:$C)-1)*100) -> 11.42007298 | E12: =IF(SUMIF(TEJdata!$P:$P,$A12,TEJdata!$E:$E)=0,"",(SUMIF(TEJdata!$P:$P,$A12,TEJdata!$E:$E)/SUMIF(TEJdata!$P:$P,$A12,TEJdata!$F:$F)-1)*100) -> -20.46475523 | F12: =SUMIF(TEJdata!$P:$P,$A12,TEJdata!$B:$B)/1000 -> 2510.126 | G12: =SUMIF(TEJdata!$P:$P,$A12,TEJdata!$G:$G)/$B12 -> 5.25585 | H12: =SUMIF(TEJdata!$P:$P,$A12,TEJdata!$H:$H)/$B12 -> 5.214633333 | I12: =IF(SUMIF(TEJdata!$P:$P,$A12,TEJdata!$I:$I)=0,0,IFERROR((SUMIF(TEJdata!$P:$P,$A12,TEJdata!$I:$I)/SUMIF(TEJdata!$P:$P,$A12,TEJdata!$J:$J)-1)*100,"-")) -> 3.86887127 | J12: =IF(SUMIF(TEJdata!$P:$P,$A12,TEJdata!$K:$K)=0,0,IFERROR((SUMIF(TEJdata!$P:$P,$A12,TEJdata!$K:$K)/SUMIF(TEJdata!$P:$P,$A12,TEJdata!$L:$L)-1)*100,"-")) -> 4.627322745 | K12: =IF(SUMIF(TEJdata!$P:$P,$A12,TEJdata!$M:$M)=0,0,IFERROR((SUMIF(TEJdata!$P:$P,$A12,TEJdata!$M:$M)/SUMIF(TEJdata!$P:$P,$A12,TEJdata!$N:$N)-1)*100,"-")) -> -9.418877399
A13: M30A 證券 | B13: =COUNTIF(TEJdata!$P:$P,$A13) -> 8 | C13: =IF(SUMIF(TEJdata!$P:$P,$A13,TEJdata!$B:$B)=0,"",IF(AND(SUMIF(TEJdata!$P:$P,$A13,TEJdata!$B:$B)>0,SUMIF(TEJdata!$P:$P,$A13,TEJdata!$D:$D)<0),(SUMIF(TEJdata!$P:$P,$A13,TEJdata!$B:$B)/ABS(SUMIF(TEJdata!$P:$P,$A13,TEJdata!$D:$D)-1))*100,(SUMIF(TEJdata!$P:$P,$A13,TEJdata!$B:$B)/SUMIF(TEJdata!$P:$P,$A13,TEJdata!$D:$D)-1)*100)) -> 24.94261547 | D13: =IF(SUMIF(TEJdata!$P:$P,$A13,TEJdata!$B:$B)=0,"",(SUMIF(TEJdata!$P:$P,$A13,TEJdata!$B:$B)/SUMIF(TEJdata!$P:$P,$A13,TEJdata!$C:$C)-1)*100) -> -50.79914164 | E13: =IF(SUMIF(TEJdata!$P:$P,$A13,TEJdata!$E:$E)=0,"",(SUMIF(TEJdata!$P:$P,$A13,TEJdata!$E:$E)/SUMIF(TEJdata!$P:$P,$A13,TEJdata!$F:$F)-1)*100) -> 75.70065255 | F13: =SUMIF(TEJdata!$P:$P,$A13,TEJdata!$B:$B)/1000 -> 793.077 | G13: =SUMIF(TEJdata!$P:$P,$A13,TEJdata!$G:$G)/$B13 -> -1.230875 | H13: =SUMIF(TEJdata!$P:$P,$A13,TEJdata!$H:$H)/$B13 -> -2.593425 | I13: =IF(SUMIF(TEJdata!$P:$P,$A13,TEJdata!$I:$I)=0,0,IFERROR((SUMIF(TEJdata!$P:$P,$A13,TEJdata!$I:$I)/SUMIF(TEJdata!$P:$P,$A13,TEJdata!$J:$J)-1)*100,"-")) -> -0.5532187108 | J13: =IF(SUMIF(TEJdata!$P:$P,$A13,TEJdata!$K:$K)=0,0,IFERROR((SUMIF(TEJdata!$P:$P,$A13,TEJdata!$K:$K)/SUMIF(TEJdata!$P:$P,$A13,TEJdata!$L:$L)-1)*100,"-")) -> 0.6300630063 | K13: =IF(SUMIF(TEJdata!$P:$P,$A13,TEJdata!$M:$M)=0,0,IFERROR((SUMIF(TEJdata!$P:$P,$A13,TEJdata!$M:$M)/SUMIF(TEJdata!$P:$P,$A13,TEJdata!$N:$N)-1)*100,"-")) -> 1.193479263
A14: M23B3A 銅箔基板 | B14: =COUNTIF(TEJdata!$P:$P,$A14) -> 6 | C14: =IF(SUMIF(TEJdata!$P:$P,$A14,TEJdata!$B:$B)=0,"",IF(AND(SUMIF(TEJdata!$P:$P,$A14,TEJdata!$B:$B)>0,SUMIF(TEJdata!$P:$P,$A14,TEJdata!$D:$D)<0),(SUMIF(TEJdata!$P:$P,$A14,TEJdata!$B:$B)/ABS(SUMIF(TEJdata!$P:$P,$A14,TEJdata!$D:$D)-1))*100,(SUMIF(TEJdata!$P:$P,$A14,TEJdata!$B:$B)/SUMIF(TEJdata!$P:$P,$A14,TEJdata!$D:$D)-1)*100)) -> 21.96226547 | D14: =IF(SUMIF(TEJdata!$P:$P,$A14,TEJdata!$B:$B)=0,"",(SUMIF(TEJdata!$P:$P,$A14,TEJdata!$B:$B)/SUMIF(TEJdata!$P:$P,$A14,TEJdata!$C:$C)-1)*100) -> -0.3045766214 | E14: =IF(SUMIF(TEJdata!$P:$P,$A14,TEJdata!$E:$E)=0,"",(SUMIF(TEJdata!$P:$P,$A14,TEJdata!$E:$E)/SUMIF(TEJdata!$P:$P,$A14,TEJdata!$F:$F)-1)*100) -> -8.501980695 | F14: =SUMIF(TEJdata!$P:$P,$A14,TEJdata!$B:$B)/1000 -> 8528.77 | G14: =SUMIF(TEJdata!$P:$P,$A14,TEJdata!$G:$G)/$B14 -> 2.146316667 | H14: =SUMIF(TEJdata!$P:$P,$A14,TEJdata!$H:$H)/$B14 -> -8.06835 | I14: =IF(SUMIF(TEJdata!$P:$P,$A14,TEJdata!$I:$I)=0,0,IFERROR((SUMIF(TEJdata!$P:$P,$A14,TEJdata!$I:$I)/SUMIF(TEJdata!$P:$P,$A14,TEJdata!$J:$J)-1)*100,"-")) -> -0.3205162989 | J14: =IF(SUMIF(TEJdata!$P:$P,$A14,TEJdata!$K:$K)=0,0,IFERROR((SUMIF(TEJdata!$P:$P,$A14,TEJdata!$K:$K)/SUMIF(TEJdata!$P:$P,$A14,TEJdata!$L:$L)-1)*100,"-")) -> -1.054061704 | K14: =IF(SUMIF(TEJdata!$P:$P,$A14,TEJdata!$M:$M)=0,0,IFERROR((SUMIF(TEJdata!$P:$P,$A14,TEJdata!$M:$M)/SUMIF(TEJdata!$P:$P,$A14,TEJdata!$N:$N)-1)*100,"-")) -> 6.332713167
A15: M23C2 影像掃描 | B15: =COUNTIF(TEJdata!$P:$P,$A15) -> 7 | C15: =IF(SUMIF(TEJdata!$P:$P,$A15,TEJdata!$B:$B)=0,"",IF(AND(SUMIF(TEJdata!$P:$P,$A15,TEJdata!$B:$B)>0,SUMIF(TEJdata!$P:$P,$A15,TEJdata!$D:$D)<0),(SUMIF(TEJdata!$P:$P,$A15,TEJdata!$B:$B)/ABS(SUMIF(TEJdata!$P:$P,$A15,TEJdata!$D:$D)-1))*100,(SUMIF(TEJdata!$P:$P,$A15,TEJdata!$B:$B)/SUMIF(TEJdata!$P:$P,$A15,TEJdata!$D:$D)-1)*100)) -> 21.80644026 | D15: =IF(SUMIF(TEJdata!$P:$P,$A15,TEJdata!$B:$B)=0,"",(SUMIF(TEJdata!$P:$P,$A15,TEJdata!$B:$B)/SUMIF(TEJdata!$P:$P,$A15,TEJdata!$C:$C)-1)*100) -> 8.719980648 | E15: =IF(SUMIF(TEJdata!$P:$P,$A15,TEJdata!$E:$E)=0,"",(SUMIF(TEJdata!$P:$P,$A15,TEJdata!$E:$E)/SUMIF(TEJdata!$P:$P,$A15,TEJdata!$F:$F)-1)*100) -> 1.395828965 | F15: =SUMIF(TEJdata!$P:$P,$A15,TEJdata!$B:$B)/1000 -> 2755.135 | G15: =SUMIF(TEJdata!$P:$P,$A15,TEJdata!$G:$G)/$B15 -> 1.938328571 | H15: =SUMIF(TEJdata!$P:$P,$A15,TEJdata!$H:$H)/$B15 -> 3.713071429 | I15: =IF(SUMIF(TEJdata!$P:$P,$A15,TEJdata!$I:$I)=0,0,IFERROR((SUMIF(TEJdata!$P:$P,$A15,TEJdata!$I:$I)/SUMIF(TEJdata!$P:$P,$A15,TEJdata!$J:$J)-1)*100,"-")) -> -4.236300039 | J15: =IF(SUMIF(TEJdata!$P:$P,$A15,TEJdata!$K:$K)=0,0,IFERROR((SUMIF(TEJdata!$P:$P,$A15,TEJdata!$K:$K)/SUMIF(TEJdata!$P:$P,$A15,TEJdata!$L:$L)-1)*100,"-")) -> 0 | K15: =IF(SUMIF(TEJdata!$P:$P,$A15,TEJdata!$M:$M)=0,0,IFERROR((SUMIF(TEJdata!$P:$P,$A15,TEJdata!$M:$M)/SUMIF(TEJdata!$P:$P,$A15,TEJdata!$N:$N)-1)*100,"-")) -> 0.5521721478
A16: M23G5 IC設計 | B16: =COUNTIF(TEJdata!$P:$P,$A16) -> 93 | C16: =IF(SUMIF(TEJdata!$P:$P,$A16,TEJdata!$B:$B)=0,"",IF(AND(SUMIF(TEJdata!$P:$P,$A16,TEJdata!$B:$B)>0,SUMIF(TEJdata!$P:$P,$A16,TEJdata!$D:$D)<0),(SUMIF(TEJdata!$P:$P,$A16,TEJdata!$B:$B)/ABS(SUMIF(TEJdata!$P:$P,$A16,TEJdata!$D:$D)-1))*100,(SUMIF(TEJdata!$P:$P,$A16,TEJdata!$B:$B)/SUMIF(TEJdata!$P:$P,$A16,TEJdata!$D:$D)-1)*100)) -> 19.15869702 | D16: =IF(SUMIF(TEJdata!$P:$P,$A16,TEJdata!$B:$B)=0,"",(SUMIF(TEJdata!$P:$P,$A16,TEJdata!$B:$B)/SUMIF(TEJdata!$P:$P,$A16,TEJdata!$C:$C)-1)*100) -> 4.249939465 | E16: =IF(SUMIF(TEJdata!$P:$P,$A16,TEJdata!$E:$E)=0,"",(SUMIF(TEJdata!$P:$P,$A16,TEJdata!$E:$E)/SUMIF(TEJdata!$P:$P,$A16,TEJdata!$F:$F)-1)*100) -> -19.50166684 | F16: =SUMIF(TEJdata!$P:$P,$A16,TEJdata!$B:$B)/1000 -> 98842.051 | G16: =SUMIF(TEJdata!$P:$P,$A16,TEJdata!$G:$G)/$B16 -> 0.8354376344 | H16: =SUMIF(TEJdata!$P:$P,$A16,TEJdata!$H:$H)/$B16 -> 4.181764516 | I16: =IF(SUMIF(TEJdata!$P:$P,$A16,TEJdata!$I:$I)=0,0,IFERROR((SUMIF(TEJdata!$P:$P,$A16,TEJdata!$I:$I)/SUMIF(TEJdata!$P:$P,$A16,TEJdata!$J:$J)-1)*100,"-")) -> -0.8457693522 | J16: =IF(SUMIF(TEJdata!$P:$P,$A16,TEJdata!$K:$K)=0,0,IFERROR((SUMIF(TEJdata!$P:$P,$A16,TEJdata!$K:$K)/SUMIF(TEJdata!$P:$P,$A16,TEJdata!$L:$L)-1)*100,"-")) -> -0.4012707699 | K16: =IF(SUMIF(TEJdata!$P:$P,$A16,TEJdata!$M:$M)=0,0,IFERROR((SUMIF(TEJdata!$P:$P,$A16,TEJdata!$M:$M)/SUMIF(TEJdata!$P:$P,$A16,TEJdata!$N:$N)-1)*100,"-")) -> -1.053353008
A17: M14Z 其他紡織 | B17: =COUNTIF(TEJdata!$P:$P,$A17) -> 5 | C17: =IF(SUMIF(TEJdata!$P:$P,$A17,TEJdata!$B:$B)=0,"",IF(AND(SUMIF(TEJdata!$P:$P,$A17,TEJdata!$B:$B)>0,SUMIF(TEJdata!$P:$P,$A17,TEJdata!$D:$D)<0),(SUMIF(TEJdata!$P:$P,$A17,TEJdata!$B:$B)/ABS(SUMIF(TEJdata!$P:$P,$A17,TEJdata!$D:$D)-1))*100,(SUMIF(TEJdata!$P:$P,$A17,TEJdata!$B:$B)/SUMIF(TEJdata!$P:$P,$A17,TEJdata!$D:$D)-1)*100)) -> -9.891401265 | D17: =IF(SUMIF(TEJdata!$P:$P,$A17,TEJdata!$B:$B)=0,"",(SUMIF(TEJdata!$P:$P,$A17,TEJdata!$B:$B)/SUMIF(TEJdata!$P:$P,$A17,TEJdata!$C:$C)-1)*100) -> -8.97275568 | E17: =IF(SUMIF(TEJdata!$P:$P,$A17,TEJdata!$E:$E)=0,"",(SUMIF(TEJdata!$P:$P,$A17,TEJdata!$E:$E)/SUMIF(TEJdata!$P:$P,$A17,TEJdata!$F:$F)-1)*100) -> -26.93865805 | F17: =SUMIF(TEJdata!$P:$P,$A17,TEJdata!$B:$B)/1000 -> 1951.463 | G17: =SUMIF(TEJdata!$P:$P,$A17,TEJdata!$G:$G)/$B17 -> 0.19774 | H17: =SUMIF(TEJdata!$P:$P,$A17,TEJdata!$H:$H)/$B17 -> 1.7102 | I17: =IF(SUMIF(TEJdata!$P:$P,$A17,TEJdata!$I:$I)=0,0,IFERROR((SUMIF(TEJdata!$P:$P,$A17,TEJdata!$I:$I)/SUMIF(TEJdata!$P:$P,$A17,TEJdata!$J:$J)-1)*100,"-")) -> -0.5134703621 | J17: =IF(SUMIF(TEJdata!$P:$P,$A17,TEJdata!$K:$K)=0,0,IFERROR((SUMIF(TEJdata!$P:$P,$A17,TEJdata!$K:$K)/SUMIF(TEJdata!$P:$P,$A17,TEJdata!$L:$L)-1)*100,"-")) -> 46.60670482 | K17: =IF(SUMIF(TEJdata!$P:$P,$A17,TEJdata!$M:$M)=0,0,IFERROR((SUMIF(TEJdata!$P:$P,$A17,TEJdata!$M:$M)/SUMIF(TEJdata!$P:$P,$A17,TEJdata!$N:$N)-1)*100,"-")) -> -0.4081077404
A18: M13A9 膠帶 | B18: =COUNTIF(TEJdata!$P:$P,$A18) -> 4 | C18: =IF(SUMIF(TEJdata!$P:$P,$A18,TEJdata!$B:$B)=0,"",IF(AND(SUMIF(TEJdata!$P:$P,$A18,TEJdata!$B:$B)>0,SUMIF(TEJdata!$P:$P,$A18,TEJdata!$D:$D)<0),(SUMIF(TEJdata!$P:$P,$A18,TEJdata!$B:$B)/ABS(SUMIF(TEJdata!$P:$P,$A18,TEJdata!$D:$D)-1))*100,(SUMIF(TEJdata!$P:$P,$A18,TEJdata!$B:$B)/SUMIF(TEJdata!$P:$P,$A18,TEJdata!$D:$D)-1)*100)) -> 18.7464941 | D18: =IF(SUMIF(TEJdata!$P:$P,$A18,TEJdata!$B:$B)=0,"",(SUMIF(TEJdata!$P:$P,$A18,TEJdata!$B:$B)/SUMIF(TEJdata!$P:$P,$A18,TEJdata!$C:$C)-1)*100) -> 17.78488652 | E18: =IF(SUMIF(TEJdata!$P:$P,$A18,TEJdata!$E:$E)=0,"",(SUMIF(TEJdata!$P:$P,$A18,TEJdata!$E:$E)/SUMIF(TEJdata!$P:$P,$A18,TEJdata!$F:$F)-1)*100) -> -15.79042321 | F18: =SUMIF(TEJdata!$P:$P,$A18,TEJdata!$B:$B)/1000 -> 1562.274 | G18: =SUMIF(TEJdata!$P:$P,$A18,TEJdata!$G:$G)/$B18 -> -0.42705 | H18: =SUMIF(TEJdata!$P:$P,$A18,TEJdata!$H:$H)/$B18 -> 2.73185 | I18: =IF(SUMIF(TEJdata!$P:$P,$A18,TEJdata!$I:$I)=0,0,IFERROR((SUMIF(TEJdata!$P:$P,$A18,TEJdata!$I:$I)/SUMIF(TEJdata!$P:$P,$A18,TEJdata!$J:$J)-1)*100,"-")) -> -0.6135815236 | J18: =IF(SUMIF(TEJdata!$P:$P,$A18,TEJdata!$K:$K)=0,0,IFERROR((SUMIF(TEJdata!$P:$P,$A18,TEJdata!$K:$K)/SUMIF(TEJdata!$P:$P,$A18,TEJdata!$L:$L)-1)*100,"-")) -> 0 | K18: =IF(SUMIF(TEJdata!$P:$P,$A18,TEJdata!$M:$M)=0,0,IFERROR((SUMIF(TEJdata!$P:$P,$A18,TEJdata!$M:$M)/SUMIF(TEJdata!$P:$P,$A18,TEJdata!$N:$N)-1)*100,"-")) -> -5.522051878
A19: M22A 汽車製造 | B19: =COUNTIF(TEJdata!$P:$P,$A19) -> 5 | C19: =IF(SUMIF(TEJdata!$P:$P,$A19,TEJdata!$B:$B)=0,"",IF(AND(SUMIF(TEJdata!$P:$P,$A19,TEJdata!$B:$B)>0,SUMIF(TEJdata!$P:$P,$A19,TEJdata!$D:$D)<0),(SUMIF(TEJdata!$P:$P,$A19,TEJdata!$B:$B)/ABS(SUMIF(TEJdata!$P:$P,$A19,TEJdata!$D:$D)-1))*100,(SUMIF(TEJdata!$P:$P,$A19,TEJdata!$B:$B)/SUMIF(TEJdata!$P:$P,$A19,TEJdata!$D:$D)-1)*100)) -> 17.66341708 | D19: =IF(SUMIF(TEJdata!$P:$P,$A19,TEJdata!$B:$B)=0,"",(SUMIF(TEJdata!$P:$P,$A19,TEJdata!$B:$B)/SUMIF(TEJdata!$P:$P,$A19,TEJdata!$C:$C)-1)*100) -> 4.396216409 | E19: =IF(SUMIF(TEJdata!$P:$P,$A19,TEJdata!$E:$E)=0,"",(SUMIF(TEJdata!$P:$P,$A19,TEJdata!$E:$E)/SUMIF(TEJdata!$P:$P,$A19,TEJdata!$F:$F)-1)*100) -> 10.47831437 | F19: =SUMIF(TEJdata!$P:$P,$A19,TEJdata!$B:$B)/1000 -> 11419.377 | G19: =SUMIF(TEJdata!$P:$P,$A19,TEJdata!$G:$G)/$B19 -> 1.27658 | H19: =SUMIF(TEJdata!$P:$P,$A19,TEJdata!$H:$H)/$B19 -> 1.15204 | I19: =IF(SUMIF(TEJdata!$P:$P,$A19,TEJdata!$I:$I)=0,0,IFERROR((SUMIF(TEJdata!$P:$P,$A19,TEJdata!$I:$I)/SUMIF(TEJdata!$P:$P,$A19,TEJdata!$J:$J)-1)*100,"-")) -> 0.2005088837 | J19: =IF(SUMIF(TEJdata!$P:$P,$A19,TEJdata!$K:$K)=0,0,IFERROR((SUMIF(TEJdata!$P:$P,$A19,TEJdata!$K:$K)/SUMIF(TEJdata!$P:$P,$A19,TEJdata!$L:$L)-1)*100,"-")) -> 15.16998996 | K19: =IF(SUMIF(TEJdata!$P:$P,$A19,TEJdata!$M:$M)=0,0,IFERROR((SUMIF(TEJdata!$P:$P,$A19,TEJdata!$M:$M)/SUMIF(TEJdata!$P:$P,$A19,TEJdata!$N:$N)-1)*100,"-")) -> 0.496991354
A20: M12C 飲料乳品 | B20: =COUNTIF(TEJdata!$P:$P,$A20) -> 6 | C20: =IF(SUMIF(TEJdata!$P:$P,$A20,TEJdata!$B:$B)=0,"",IF(AND(SUMIF(TEJdata!$P:$P,$A20,TEJdata!$B:$B)>0,SUMIF(TEJdata!$P:$P,$A20,TEJdata!$D:$D)<0),(SUMIF(TEJdata!$P:$P,$A20,TEJdata!$B:$B)/ABS(SUMIF(TEJdata!$P:$P,$A20,TEJdata!$D:$D)-1))*100,(SUMIF(TEJdata!$P:$P,$A20,TEJdata!$B:$B)/SUMIF(TEJdata!$P:$P,$A20,TEJdata!$D:$D)-1)*100)) -> 15.83381732 | D20: =IF(SUMIF(TEJdata!$P:$P,$A20,TEJdata!$B:$B)=0,"",(SUMIF(TEJdata!$P:$P,$A20,TEJdata!$B:$B)/SUMIF(TEJdata!$P:$P,$A20,TEJdata!$C:$C)-1)*100) -> -6.848652599 | E20: =IF(SUMIF(TEJdata!$P:$P,$A20,TEJdata!$E:$E)=0,"",(SUMIF(TEJdata!$P:$P,$A20,TEJdata!$E:$E)/SUMIF(TEJdata!$P:$P,$A20,TEJdata!$F:$F)-1)*100) -> 9.941302716 | F20: =SUMIF(TEJdata!$P:$P,$A20,TEJdata!$B:$B)/1000 -> 52914.499 | G20: =SUMIF(TEJdata!$P:$P,$A20,TEJdata!$G:$G)/$B20 -> 1.4931 | H20: =SUMIF(TEJdata!$P:$P,$A20,TEJdata!$H:$H)/$B20 -> 0.05946666667 | I20: =IF(SUMIF(TEJdata!$P:$P,$A20,TEJdata!$I:$I)=0,0,IFERROR((SUMIF(TEJdata!$P:$P,$A20,TEJdata!$I:$I)/SUMIF(TEJdata!$P:$P,$A20,TEJdata!$J:$J)-1)*100,"-")) -> -0.04066772874 | J20: =IF(SUMIF(TEJdata!$P:$P,$A20,TEJdata!$K:$K)=0,0,IFERROR((SUMIF(TEJdata!$P:$P,$A20,TEJdata!$K:$K)/SUMIF(TEJdata!$P:$P,$A20,TEJdata!$L:$L)-1)*100,"-")) -> 0.3138117398 | K20: =IF(SUMIF(TEJdata!$P:$P,$A20,TEJdata!$M:$M)=0,0,IFERROR((SUMIF(TEJdata!$P:$P,$A20,TEJdata!$M:$M)/SUMIF(TEJdata!$P:$P,$A20,TEJdata!$N:$N)-1)*100,"-")) -> -0.1043115438
A21: M23D9D 其他零組件 | B21: =COUNTIF(TEJdata!$P:$P,$A21) -> 3 | C21: =IF(SUMIF(TEJdata!$P:$P,$A21,TEJdata!$B:$B)=0,"",IF(AND(SUMIF(TEJdata!$P:$P,$A21,TEJdata!$B:$B)>0,SUMIF(TEJdata!$P:$P,$A21,TEJdata!$D:$D)<0),(SUMIF(TEJdata!$P:$P,$A21,TEJdata!$B:$B)/ABS(SUMIF(TEJdata!$P:$P,$A21,TEJdata!$D:$D)-1))*100,(SUMIF(TEJdata!$P:$P,$A21,TEJdata!$B:$B)/SUMIF(TEJdata!$P:$P,$A21,TEJdata!$D:$D)-1)*100)) -> 14.45982261 | D21: =IF(SUMIF(TEJdata!$P:$P,$A21,TEJdata!$B:$B)=0,"",(SUMIF(TEJdata!$P:$P,$A21,TEJdata!$B:$B)/SUMIF(TEJdata!$P:$P,$A21,TEJdata!$C:$C)-1)*100) -> -4.209842206 | E21: =IF(SUMIF(TEJdata!$P:$P,$A21,TEJdata!$E:$E)=0,"",(SUMIF(TEJdata!$P:$P,$A21,TEJdata!$E:$E)/SUMIF(TEJdata!$P:$P,$A21,TEJdata!$F:$F)-1)*100) -> -7.344438589 | F21: =SUMIF(TEJdata!$P:$P,$A21,TEJdata!$B:$B)/1000 -> 448.069 | G21: =SUMIF(TEJdata!$P:$P,$A21,TEJdata!$G:$G)/$B21 -> -1.338766667 | H21: =SUMIF(TEJdata!$P:$P,$A21,TEJdata!$H:$H)/$B21 -> 3.6776 | I21: =IF(SUMIF(TEJdata!$P:$P,$A21,TEJdata!$I:$I)=0,0,IFERROR((SUMIF(TEJdata!$P:$P,$A21,TEJdata!$I:$I)/SUMIF(TEJdata!$P:$P,$A21,TEJdata!$J:$J)-1)*100,"-")) -> -0.2258521981 | J21: =IF(SUMIF(TEJdata!$P:$P,$A21,TEJdata!$K:$K)=0,0,IFERROR((SUMIF(TEJdata!$P:$P,$A21,TEJdata!$K:$K)/SUMIF(TEJdata!$P:$P,$A21,TEJdata!$L:$L)-1)*100,"-")) -> 0 | K21: =IF(SUMIF(TEJdata!$P:$P,$A21,TEJdata!$M:$M)=0,0,IFERROR((SUMIF(TEJdata!$P:$P,$A21,TEJdata!$M:$M)/SUMIF(TEJdata!$P:$P,$A21,TEJdata!$N:$N)-1)*100,"-")) -> -0.3129825147
A22: M23U1 光學鏡頭 | B22: =COUNTIF(TEJdata!$P:$P,$A22) -> 11 | C22: =IF(SUMIF(TEJdata!$P:$P,$A22,TEJdata!$B:$B)=0,"",IF(AND(SUMIF(TEJdata!$P:$P,$A22,TEJdata!$B:$B)>0,SUMIF(TEJdata!$P:$P,$A22,TEJdata!$D:$D)<0),(SUMIF(TEJdata!$P:$P,$A22,TEJdata!$B:$B)/ABS(SUMIF(TEJdata!$P:$P,$A22,TEJdata!$D:$D)-1))*100,(SUMIF(TEJdata!$P:$P,$A22,TEJdata!$B:$B)/SUMIF(TEJdata!$P:$P,$A22,TEJdata!$D:$D)-1)*100)) -> 13.89235566 | D22: =IF(SUMIF(TEJdata!$P:$P,$A22,TEJdata!$B:$B)=0,"",(SUMIF(TEJdata!$P:$P,$A22,TEJdata!$B:$B)/SUMIF(TEJdata!$P:$P,$A22,TEJdata!$C:$C)-1)*100) -> -2.215749974 | E22: =IF(SUMIF(TEJdata!$P:$P,$A22,TEJdata!$E:$E)=0,"",(SUMIF(TEJdata!$P:$P,$A22,TEJdata!$E:$E)/SUMIF(TEJdata!$P:$P,$A22,TEJdata!$F:$F)-1)*100) -> -2.90548768 | F22: =SUMIF(TEJdata!$P:$P,$A22,TEJdata!$B:$B)/1000 -> 11378.852 | G22: =SUMIF(TEJdata!$P:$P,$A22,TEJdata!$G:$G)/$B22 -> -1.196454545 | H22: =SUMIF(TEJdata!$P:$P,$A22,TEJdata!$H:$H)/$B22 -> -5.947227273 | I22: =IF(SUMIF(TEJdata!$P:$P,$A22,TEJdata!$I:$I)=0,0,IFERROR((SUMIF(TEJdata!$P:$P,$A22,TEJdata!$I:$I)/SUMIF(TEJdata!$P:$P,$A22,TEJdata!$J:$J)-1)*100,"-")) -> 0.1506175825 | J22: =IF(SUMIF(TEJdata!$P:$P,$A22,TEJdata!$K:$K)=0,0,IFERROR((SUMIF(TEJdata!$P:$P,$A22,TEJdata!$K:$K)/SUMIF(TEJdata!$P:$P,$A22,TEJdata!$L:$L)-1)*100,"-")) -> -2.771855011 | K22: =IF(SUMIF(TEJdata!$P:$P,$A22,TEJdata!$M:$M)=0,0,IFERROR((SUMIF(TEJdata!$P:$P,$A22,TEJdata!$M:$M)/SUMIF(TEJdata!$P:$P,$A22,TEJdata!$N:$N)-1)*100,"-")) -> -0.9703645424
A23: M99ZX 其他服務業 | B23: =COUNTIF(TEJdata!$P:$P,$A23) -> 9 | C23: =IF(SUMIF(TEJdata!$P:$P,$A23,TEJdata!$B:$B)=0,"",IF(AND(SUMIF(TEJdata!$P:$P,$A23,TEJdata!$B:$B)>0,SUMIF(TEJdata!$P:$P,$A23,TEJdata!$D:$D)<0),(SUMIF(TEJdata!$P:$P,$A23,TEJdata!$B:$B)/ABS(SUMIF(TEJdata!$P:$P,$A23,TEJdata!$D:$D)-1))*100,(SUMIF(TEJdata!$P:$P,$A23,TEJdata!$B:$B)/SUMIF(TEJdata!$P:$P,$A23,TEJdata!$D:$D)-1)*100)) -> 13.65818701 | D23: =IF(SUMIF(TEJdata!$P:$P,$A23,TEJdata!$B:$B)=0,"",(SUMIF(TEJdata!$P:$P,$A23,TEJdata!$B:$B)/SUMIF(TEJdata!$P:$P,$A23,TEJdata!$C:$C)-1)*100) -> 0.9008133052 | E23: =IF(SUMIF(TEJdata!$P:$P,$A23,TEJdata!$E:$E)=0,"",(SUMIF(TEJdata!$P:$P,$A23,TEJdata!$E:$E)/SUMIF(TEJdata!$P:$P,$A23,TEJdata!$F:$F)-1)*100) -> 10.72783117 | F23: =SUMIF(TEJdata!$P:$P,$A23,TEJdata!$B:$B)/1000 -> 1203.78 | G23: =SUMIF(TEJdata!$P:$P,$A23,TEJdata!$G:$G)/$B23 -> 0.2700111111 | H23: =SUMIF(TEJdata!$P:$P,$A23,TEJdata!$H:$H)/$B23 -> -4.483144444 | I23: =IF(SUMIF(TEJdata!$P:$P,$A23,TEJdata!$I:$I)=0,0,IFERROR((SUMIF(TEJdata!$P:$P,$A23,TEJdata!$I:$I)/SUMIF(TEJdata!$P:$P,$A23,TEJdata!$J:$J)-1)*100,"-")) -> -0.02198006577 | J23: =IF(SUMIF(TEJdata!$P:$P,$A23,TEJdata!$K:$K)=0,0,IFERROR((SUMIF(TEJdata!$P:$P,$A23,TEJdata!$K:$K)/SUMIF(TEJdata!$P:$P,$A23,TEJdata!$L:$L)-1)*100,"-")) -> 0 | K23: =IF(SUMIF(TEJdata!$P:$P,$A23,TEJdata!$M:$M)=0,0,IFERROR((SUMIF(TEJdata!$P:$P,$A23,TEJdata!$M:$M)/SUMIF(TEJdata!$P:$P,$A23,TEJdata!$N:$N)-1)*100,"-")) -> 0.405904059
A24: M23C8A LCD 面板 | B24: =COUNTIF(TEJdata!$P:$P,$A24) -> 6 | C24: =IF(SUMIF(TEJdata!$P:$P,$A24,TEJdata!$B:$B)=0,"",IF(AND(SUMIF(TEJdata!$P:$P,$A24,TEJdata!$B:$B)>0,SUMIF(TEJdata!$P:$P,$A24,TEJdata!$D:$D)<0),(SUMIF(TEJdata!$P:$P,$A24,TEJdata!$B:$B)/ABS(SUMIF(TEJdata!$P:$P,$A24,TEJdata!$D:$D)-1))*100,(SUMIF(TEJdata!$P:$P,$A24,TEJdata!$B:$B)/SUMIF(TEJdata!$P:$P,$A24,TEJdata!$D:$D)-1)*100)) -> 12.32256868 | D24: =IF(SUMIF(TEJdata!$P:$P,$A24,TEJdata!$B:$B)=0,"",(SUMIF(TEJdata!$P:$P,$A24,TEJdata!$B:$B)/SUMIF(TEJdata!$P:$P,$A24,TEJdata!$C:$C)-1)*100) -> -13.78185518 | E24: =IF(SUMIF(TEJdata!$P:$P,$A24,TEJdata!$E:$E)=0,"",(SUMIF(TEJdata!$P:$P,$A24,TEJdata!$E:$E)/SUMIF(TEJdata!$P:$P,$A24,TEJdata!$F:$F)-1)*100) -> -6.060822553 | F24: =SUMIF(TEJdata!$P:$P,$A24,TEJdata!$B:$B)/1000 -> 41619.197 | G24: =SUMIF(TEJdata!$P:$P,$A24,TEJdata!$G:$G)/$B24 -> -1.45865 | H24: =SUMIF(TEJdata!$P:$P,$A24,TEJdata!$H:$H)/$B24 -> -2.570333333 | I24: =IF(SUMIF(TEJdata!$P:$P,$A24,TEJdata!$I:$I)=0,0,IFERROR((SUMIF(TEJdata!$P:$P,$A24,TEJdata!$I:$I)/SUMIF(TEJdata!$P:$P,$A24,TEJdata!$J:$J)-1)*100,"-")) -> -0.352836769 | J24: =IF(SUMIF(TEJdata!$P:$P,$A24,TEJdata!$K:$K)=0,0,IFERROR((SUMIF(TEJdata!$P:$P,$A24,TEJdata!$K:$K)/SUMIF(TEJdata!$P:$P,$A24,TEJdata!$L:$L)-1)*100,"-")) -> -0.3293076765 | K24: =IF(SUMIF(TEJdata!$P:$P,$A24,TEJdata!$M:$M)=0,0,IFERROR((SUMIF(TEJdata!$P:$P,$A24,TEJdata!$M:$M)/SUMIF(TEJdata!$P:$P,$A24,TEJdata!$N:$N)-1)*100,"-")) -> -0.3401694416
A25: M29B 貿易業 | B25: =COUNTIF(TEJdata!$P:$P,$A25) -> 8 | C25: =IF(SUMIF(TEJdata!$P:$P,$A25,TEJdata!$B:$B)=0,"",IF(AND(SUMIF(TEJdata!$P:$P,$A25,TEJdata!$B:$B)>0,SUMIF(TEJdata!$P:$P,$A25,TEJdata!$D:$D)<0),(SUMIF(TEJdata!$P:$P,$A25,TEJdata!$B:$B)/ABS(SUMIF(TEJdata!$P:$P,$A25,TEJdata!$D:$D)-1))*100,(SUMIF(TEJdata!$P:$P,$A25,TEJdata!$B:$B)/SUMIF(TEJdata!$P:$P,$A25,TEJdata!$D:$D)-1)*100)) -> 12.22994874 | D25: =IF(SUMIF(TEJdata!$P:$P,$A25,TEJdata!$B:$B)=0,"",(SUMIF(TEJdata!$P:$P,$A25,TEJdata!$B:$B)/SUMIF(TEJdata!$P:$P,$A25,TEJdata!$C:$C)-1)*100) -> -12.88469649 | E25: =IF(SUMIF(TEJdata!$P:$P,$A25,TEJdata!$E:$E)=0,"",(SUMIF(TEJdata!$P:$P,$A25,TEJdata!$E:$E)/SUMIF(TEJdata!$P:$P,$A25,TEJdata!$F:$F)-1)*100) -> -6.550650299 | F25: =SUMIF(TEJdata!$P:$P,$A25,TEJdata!$B:$B)/1000 -> 3893.588 | G25: =SUMIF(TEJdata!$P:$P,$A25,TEJdata!$G:$G)/$B25 -> 2.868625 | H25: =SUMIF(TEJdata!$P:$P,$A25,TEJdata!$H:$H)/$B25 -> 1.06405 | I25: =IF(SUMIF(TEJdata!$P:$P,$A25,TEJdata!$I:$I)=0,0,IFERROR((SUMIF(TEJdata!$P:$P,$A25,TEJdata!$I:$I)/SUMIF(TEJdata!$P:$P,$A25,TEJdata!$J:$J)-1)*100,"-")) -> -0.4373757455 | J25: =IF(SUMIF(TEJdata!$P:$P,$A25,TEJdata!$K:$K)=0,0,IFERROR((SUMIF(TEJdata!$P:$P,$A25,TEJdata!$K:$K)/SUMIF(TEJdata!$P:$P,$A25,TEJdata!$L:$L)-1)*100,"-")) -> 0 | K25: =IF(SUMIF(TEJdata!$P:$P,$A25,TEJdata!$M:$M)=0,0,IFERROR((SUMIF(TEJdata!$P:$P,$A25,TEJdata!$M:$M)/SUMIF(TEJdata!$P:$P,$A25,TEJdata!$N:$N)-1)*100,"-")) -> 0.2667981324
A26: M23G1A 晶圓代工 | B26: =COUNTIF(TEJdata!$P:$P,$A26) -> 7 | C26: =IF(SUMIF(TEJdata!$P:$P,$A26,TEJdata!$B:$B)=0,"",IF(AND(SUMIF(TEJdata!$P:$P,$A26,TEJdata!$B:$B)>0,SUMIF(TEJdata!$P:$P,$A26,TEJdata!$D:$D)<0),(SUMIF(TEJdata!$P:$P,$A26,TEJdata!$B:$B)/ABS(SUMIF(TEJdata!$P:$P,$A26,TEJdata!$D:$D)-1))*100,(SUMIF(TEJdata!$P:$P,$A26,TEJdata!$B:$B)/SUMIF(TEJdata!$P:$P,$A26,TEJdata!$D:$D)-1)*100)) -> 10.31410473 | D26: =IF(SUMIF(TEJdata!$P:$P,$A26,TEJdata!$B:$B)=0,"",(SUMIF(TEJdata!$P:$P,$A26,TEJdata!$B:$B)/SUMIF(TEJdata!$P:$P,$A26,TEJdata!$C:$C)-1)*100) -> 30.42267574 | E26: =IF(SUMIF(TEJdata!$P:$P,$A26,TEJdata!$E:$E)=0,"",(SUMIF(TEJdata!$P:$P,$A26,TEJdata!$E:$E)/SUMIF(TEJdata!$P:$P,$A26,TEJdata!$F:$F)-1)*100) -> -7.474891656 | F26: =SUMIF(TEJdata!$P:$P,$A26,TEJdata!$B:$B)/1000 -> 270207.292 | G26: =SUMIF(TEJdata!$P:$P,$A26,TEJdata!$G:$G)/$B26 -> -1.923614286 | H26: =SUMIF(TEJdata!$P:$P,$A26,TEJdata!$H:$H)/$B26 -> -2.2371 | I26: =IF(SUMIF(TEJdata!$P:$P,$A26,TEJdata!$I:$I)=0,0,IFERROR((SUMIF(TEJdata!$P:$P,$A26,TEJdata!$I:$I)/SUMIF(TEJdata!$P:$P,$A26,TEJdata!$J:$J)-1)*100,"-")) -> -0.08137532324 | J26: =IF(SUMIF(TEJdata!$P:$P,$A26,TEJdata!$K:$K)=0,0,IFERROR((SUMIF(TEJdata!$P:$P,$A26,TEJdata!$K:$K)/SUMIF(TEJdata!$P:$P,$A26,TEJdata!$L:$L)-1)*100,"-")) -> -0.4012547234 | K26: =IF(SUMIF(TEJdata!$P:$P,$A26,TEJdata!$M:$M)=0,0,IFERROR((SUMIF(TEJdata!$P:$P,$A26,TEJdata!$M:$M)/SUMIF(TEJdata!$P:$P,$A26,TEJdata!$N:$N)-1)*100,"-")) -> 0.4918846668
A27: M14B1 聚酯紗棉紗 | B27: =COUNTIF(TEJdata!$P:$P,$A27) -> 2 | C27: =IF(SUMIF(TEJdata!$P:$P,$A27,TEJdata!$B:$B)=0,"",IF(AND(SUMIF(TEJdata!$P:$P,$A27,TEJdata!$B:$B)>0,SUMIF(TEJdata!$P:$P,$A27,TEJdata!$D:$D)<0),(SUMIF(TEJdata!$P:$P,$A27,TEJdata!$B:$B)/ABS(SUMIF(TEJdata!$P:$P,$A27,TEJdata!$D:$D)-1))*100,(SUMIF(TEJdata!$P:$P,$A27,TEJdata!$B:$B)/SUMIF(TEJdata!$P:$P,$A27,TEJdata!$D:$D)-1)*100)) -> 10.03155387 | D27: =IF(SUMIF(TEJdata!$P:$P,$A27,TEJdata!$B:$B)=0,"",(SUMIF(TEJdata!$P:$P,$A27,TEJdata!$B:$B)/SUMIF(TEJdata!$P:$P,$A27,TEJdata!$C:$C)-1)*100) -> 45.55073735 | E27: =IF(SUMIF(TEJdata!$P:$P,$A27,TEJdata!$E:$E)=0,"",(SUMIF(TEJdata!$P:$P,$A27,TEJdata!$E:$E)/SUMIF(TEJdata!$P:$P,$A27,TEJdata!$F:$F)-1)*100) -> -23.97005019 | F27: =SUMIF(TEJdata!$P:$P,$A27,TEJdata!$B:$B)/1000 -> 179.237 | G27: =SUMIF(TEJdata!$P:$P,$A27,TEJdata!$G:$G)/$B27 -> 1.1944 | H27: =SUMIF(TEJdata!$P:$P,$A27,TEJdata!$H:$H)/$B27 -> -0.4543 | I27: =IF(SUMIF(TEJdata!$P:$P,$A27,TEJdata!$I:$I)=0,0,IFERROR((SUMIF(TEJdata!$P:$P,$A27,TEJdata!$I:$I)/SUMIF(TEJdata!$P:$P,$A27,TEJdata!$J:$J)-1)*100,"-")) -> -1.254390366 | J27: =IF(SUMIF(TEJdata!$P:$P,$A27,TEJdata!$K:$K)=0,0,IFERROR((SUMIF(TEJdata!$P:$P,$A27,TEJdata!$K:$K)/SUMIF(TEJdata!$P:$P,$A27,TEJdata!$L:$L)-1)*100,"-")) -> 0 | K27: =IF(SUMIF(TEJdata!$P:$P,$A27,TEJdata!$M:$M)=0,0,IFERROR((SUMIF(TEJdata!$P:$P,$A27,TEJdata!$M:$M)/SUMIF(TEJdata!$P:$P,$A27,TEJdata!$N:$N)-1)*100,"-")) -> 0.1733102253
A28: M28J 產險業 | B28: =COUNTIF(TEJdata!$P:$P,$A28) -> 5 | C28: =IF(SUMIF(TEJdata!$P:$P,$A28,TEJdata!$B:$B)=0,"",IF(AND(SUMIF(TEJdata!$P:$P,$A28,TEJdata!$B:$B)>0,SUMIF(TEJdata!$P:$P,$A28,TEJdata!$D:$D)<0),(SUMIF(TEJdata!$P:$P,$A28,TEJdata!$B:$B)/ABS(SUMIF(TEJdata!$P:$P,$A28,TEJdata!$D:$D)-1))*100,(SUMIF(TEJdata!$P:$P,$A28,TEJdata!$B:$B)/SUMIF(TEJdata!$P:$P,$A28,TEJdata!$D:$D)-1)*100)) -> 9.953382486 | D28: =IF(SUMIF(TEJdata!$P:$P,$A28,TEJdata!$B:$B)=0,"",(SUMIF(TEJdata!$P:$P,$A28,TEJdata!$B:$B)/SUMIF(TEJdata!$P:$P,$A28,TEJdata!$C:$C)-1)*100) -> 0.2203680415 | E28: =IF(SUMIF(TEJdata!$P:$P,$A28,TEJdata!$E:$E)=0,"",(SUMIF(TEJdata!$P:$P,$A28,TEJdata!$E:$E)/SUMIF(TEJdata!$P:$P,$A28,TEJdata!$F:$F)-1)*100) -> 7.260309308 | F28: =SUMIF(TEJdata!$P:$P,$A28,TEJdata!$B:$B)/1000 -> 5414.231 | G28: =SUMIF(TEJdata!$P:$P,$A28,TEJdata!$G:$G)/$B28 -> 0.8658 | H28: =SUMIF(TEJdata!$P:$P,$A28,TEJdata!$H:$H)/$B28 -> 11.0301 | I28: =IF(SUMIF(TEJdata!$P:$P,$A28,TEJdata!$I:$I)=0,0,IFERROR((SUMIF(TEJdata!$P:$P,$A28,TEJdata!$I:$I)/SUMIF(TEJdata!$P:$P,$A28,TEJdata!$J:$J)-1)*100,"-")) -> -2.321517435 | J28: =IF(SUMIF(TEJdata!$P:$P,$A28,TEJdata!$K:$K)=0,0,IFERROR((SUMIF(TEJdata!$P:$P,$A28,TEJdata!$K:$K)/SUMIF(TEJdata!$P:$P,$A28,TEJdata!$L:$L)-1)*100,"-")) -> 0 | K28: =IF(SUMIF(TEJdata!$P:$P,$A28,TEJdata!$M:$M)=0,0,IFERROR((SUMIF(TEJdata!$P:$P,$A28,TEJdata!$M:$M)/SUMIF(TEJdata!$P:$P,$A28,TEJdata!$N:$N)-1)*100,"-")) -> 1.614780332
A29: M13B 塑膠製品 | B29: =COUNTIF(TEJdata!$P:$P,$A29) -> 8 | C29: =IF(SUMIF(TEJdata!$P:$P,$A29,TEJdata!$B:$B)=0,"",IF(AND(SUMIF(TEJdata!$P:$P,$A29,TEJdata!$B:$B)>0,SUMIF(TEJdata!$P:$P,$A29,TEJdata!$D:$D)<0),(SUMIF(TEJdata!$P:$P,$A29,TEJdata!$B:$B)/ABS(SUMIF(TEJdata!$P:$P,$A29,TEJdata!$D:$D)-1))*100,(SUMIF(TEJdata!$P:$P,$A29,TEJdata!$B:$B)/SUMIF(TEJdata!$P:$P,$A29,TEJdata!$D:$D)-1)*100)) -> 9.344189637 | D29: =IF(SUMIF(TEJdata!$P:$P,$A29,TEJdata!$B:$B)=0,"",(SUMIF(TEJdata!$P:$P,$A29,TEJdata!$B:$B)/SUMIF(TEJdata!$P:$P,$A29,TEJdata!$C:$C)-1)*100) -> -6.954622876 | E29: =IF(SUMIF(TEJdata!$P:$P,$A29,TEJdata!$E:$E)=0,"",(SUMIF(TEJdata!$P:$P,$A29,TEJdata!$E:$E)/SUMIF(TEJdata!$P:$P,$A29,TEJdata!$F:$F)-1)*100) -> -0.1181683531 | F29: =SUMIF(TEJdata!$P:$P,$A29,TEJdata!$B:$B)/1000 -> 2901.26 | G29: =SUMIF(TEJdata!$P:$P,$A29,TEJdata!$G:$G)/$B29 -> -0.0154125 | H29: =SUMIF(TEJdata!$P:$P,$A29,TEJdata!$H:$H)/$B29 -> -0.52105 | I29: =IF(SUMIF(TEJdata!$P:$P,$A29,TEJdata!$I:$I)=0,0,IFERROR((SUMIF(TEJdata!$P:$P,$A29,TEJdata!$I:$I)/SUMIF(TEJdata!$P:$P,$A29,TEJdata!$J:$J)-1)*100,"-")) -> -0.03039153773 | J29: =IF(SUMIF(TEJdata!$P:$P,$A29,TEJdata!$K:$K)=0,0,IFERROR((SUMIF(TEJdata!$P:$P,$A29,TEJdata!$K:$K)/SUMIF(TEJdata!$P:$P,$A29,TEJdata!$L:$L)-1)*100,"-")) -> 2.231133795 | K29: =IF(SUMIF(TEJdata!$P:$P,$A29,TEJdata!$M:$M)=0,0,IFERROR((SUMIF(TEJdata!$P:$P,$A29,TEJdata!$M:$M)/SUMIF(TEJdata!$P:$P,$A29,TEJdata!$N:$N)-1)*100,"-")) -> 0.1851522165
A30: M27A1 飯店業 | B30: =COUNTIF(TEJdata!$P:$P,$A30) -> 18 | C30: =IF(SUMIF(TEJdata!$P:$P,$A30,TEJdata!$B:$B)=0,"",IF(AND(SUMIF(TEJdata!$P:$P,$A30,TEJdata!$B:$B)>0,SUMIF(TEJdata!$P:$P,$A30,TEJdata!$D:$D)<0),(SUMIF(TEJdata!$P:$P,$A30,TEJdata!$B:$B)/ABS(SUMIF(TEJdata!$P:$P,$A30,TEJdata!$D:$D)-1))*100,(SUMIF(TEJdata!$P:$P,$A30,TEJdata!$B:$B)/SUMIF(TEJdata!$P:$P,$A30,TEJdata!$D:$D)-1)*100)) -> 9.038327415 | D30: =IF(SUMIF(TEJdata!$P:$P,$A30,TEJdata!$B:$B)=0,"",(SUMIF(TEJdata!$P:$P,$A30,TEJdata!$B:$B)/SUMIF(TEJdata!$P:$P,$A30,TEJdata!$C:$C)-1)*100) -> 7.869626058 | E30: =IF(SUMIF(TEJdata!$P:$P,$A30,TEJdata!$E:$E)=0,"",(SUMIF(TEJdata!$P:$P,$A30,TEJdata!$E:$E)/SUMIF(TEJdata!$P:$P,$A30,TEJdata!$F:$F)-1)*100) -> 23.09237281 | F30: =SUMIF(TEJdata!$P:$P,$A30,TEJdata!$B:$B)/1000 -> 2112.152 | G30: =SUMIF(TEJdata!$P:$P,$A30,TEJdata!$G:$G)/$B30 -> 5.927611111 | H30: =SUMIF(TEJdata!$P:$P,$A30,TEJdata!$H:$H)/$B30 -> 5.266427778 | I30: =IF(SUMIF(TEJdata!$P:$P,$A30,TEJdata!$I:$I)=0,0,IFERROR((SUMIF(TEJdata!$P:$P,$A30,TEJdata!$I:$I)/SUMIF(TEJdata!$P:$P,$A30,TEJdata!$J:$J)-1)*100,"-")) -> -2.154244335 | J30: =IF(SUMIF(TEJdata!$P:$P,$A30,TEJdata!$K:$K)=0,0,IFERROR((SUMIF(TEJdata!$P:$P,$A30,TEJdata!$K:$K)/SUMIF(TEJdata!$P:$P,$A30,TEJdata!$L:$L)-1)*100,"-")) -> 12.01970443 | K30: =IF(SUMIF(TEJdata!$P:$P,$A30,TEJdata!$M:$M)=0,0,IFERROR((SUMIF(TEJdata!$P:$P,$A30,TEJdata!$M:$M)/SUMIF(TEJdata!$P:$P,$A30,TEJdata!$N:$N)-1)*100,"-")) -> 3.58184228
A31: M18 玻璃陶瓷 | B31: =COUNTIF(TEJdata!$P:$P,$A31) -> 6 | C31: =IF(SUMIF(TEJdata!$P:$P,$A31,TEJdata!$B:$B)=0,"",IF(AND(SUMIF(TEJdata!$P:$P,$A31,TEJdata!$B:$B)>0,SUMIF(TEJdata!$P:$P,$A31,TEJdata!$D:$D)<0),(SUMIF(TEJdata!$P:$P,$A31,TEJdata!$B:$B)/ABS(SUMIF(TEJdata!$P:$P,$A31,TEJdata!$D:$D)-1))*100,(SUMIF(TEJdata!$P:$P,$A31,TEJdata!$B:$B)/SUMIF(TEJdata!$P:$P,$A31,TEJdata!$D:$D)-1)*100)) -> 8.701155061 | D31: =IF(SUMIF(TEJdata!$P:$P,$A31,TEJdata!$B:$B)=0,"",(SUMIF(TEJdata!$P:$P,$A31,TEJdata!$B:$B)/SUMIF(TEJdata!$P:$P,$A31,TEJdata!$C:$C)-1)*100) -> 1.244061527 | E31: =IF(SUMIF(TEJdata!$P:$P,$A31,TEJdata!$E:$E)=0,"",(SUMIF(TEJdata!$P:$P,$A31,TEJdata!$E:$E)/SUMIF(TEJdata!$P:$P,$A31,TEJdata!$F:$F)-1)*100) -> 1.921089646 | F31: =SUMIF(TEJdata!$P:$P,$A31,TEJdata!$B:$B)/1000 -> 5229.518 | G31: =SUMIF(TEJdata!$P:$P,$A31,TEJdata!$G:$G)/$B31 -> 1.143466667 | H31: =SUMIF(TEJdata!$P:$P,$A31,TEJdata!$H:$H)/$B31 -> 0.6150333333 | I31: =IF(SUMIF(TEJdata!$P:$P,$A31,TEJdata!$I:$I)=0,0,IFERROR((SUMIF(TEJdata!$P:$P,$A31,TEJdata!$I:$I)/SUMIF(TEJdata!$P:$P,$A31,TEJdata!$J:$J)-1)*100,"-")) -> 0.7591462897 | J31: =IF(SUMIF(TEJdata!$P:$P,$A31,TEJdata!$K:$K)=0,0,IFERROR((SUMIF(TEJdata!$P:$P,$A31,TEJdata!$K:$K)/SUMIF(TEJdata!$P:$P,$A31,TEJdata!$L:$L)-1)*100,"-")) -> 0 | K31: =IF(SUMIF(TEJdata!$P:$P,$A31,TEJdata!$M:$M)=0,0,IFERROR((SUMIF(TEJdata!$P:$P,$A31,TEJdata!$M:$M)/SUMIF(TEJdata!$P:$P,$A31,TEJdata!$N:$N)-1)*100,"-")) -> -3.997327015
A32: M23X2 遊戲軟體 | B32: =COUNTIF(TEJdata!$P:$P,$A32) -> 13 | C32: =IF(SUMIF(TEJdata!$P:$P,$A32,TEJdata!$B:$B)=0,"",IF(AND(SUMIF(TEJdata!$P:$P,$A32,TEJdata!$B:$B)>0,SUMIF(TEJdata!$P:$P,$A32,TEJdata!$D:$D)<0),(SUMIF(TEJdata!$P:$P,$A32,TEJdata!$B:$B)/ABS(SUMIF(TEJdata!$P:$P,$A32,TEJdata!$D:$D)-1))*100,(SUMIF(TEJdata!$P:$P,$A32,TEJdata!$B:$B)/SUMIF(TEJdata!$P:$P,$A32,TEJdata!$D:$D)-1)*100)) -> 8.141641479 | D32: =IF(SUMIF(TEJdata!$P:$P,$A32,TEJdata!$B:$B)=0,"",(SUMIF(TEJdata!$P:$P,$A32,TEJdata!$B:$B)/SUMIF(TEJdata!$P:$P,$A32,TEJdata!$C:$C)-1)*100) -> 1.94915928 | E32: =IF(SUMIF(TEJdata!$P:$P,$A32,TEJdata!$E:$E)=0,"",(SUMIF(TEJdata!$P:$P,$A32,TEJdata!$E:$E)/SUMIF(TEJdata!$P:$P,$A32,TEJdata!$F:$F)-1)*100) -> 1.642368243 | F32: =SUMIF(TEJdata!$P:$P,$A32,TEJdata!$B:$B)/1000 -> 3090.235 | G32: =SUMIF(TEJdata!$P:$P,$A32,TEJdata!$G:$G)/$B32 -> 1.005876923 | H32: =SUMIF(TEJdata!$P:$P,$A32,TEJdata!$H:$H)/$B32 -> 7.484853846 | I32: =IF(SUMIF(TEJdata!$P:$P,$A32,TEJdata!$I:$I)=0,0,IFERROR((SUMIF(TEJdata!$P:$P,$A32,TEJdata!$I:$I)/SUMIF(TEJdata!$P:$P,$A32,TEJdata!$J:$J)-1)*100,"-")) -> 0.7572368312 | J32: =IF(SUMIF(TEJdata!$P:$P,$A32,TEJdata!$K:$K)=0,0,IFERROR((SUMIF(TEJdata!$P:$P,$A32,TEJdata!$K:$K)/SUMIF(TEJdata!$P:$P,$A32,TEJdata!$L:$L)-1)*100,"-")) -> 0.5788712012 | K32: =IF(SUMIF(TEJdata!$P:$P,$A32,TEJdata!$M:$M)=0,0,IFERROR((SUMIF(TEJdata!$P:$P,$A32,TEJdata!$M:$M)/SUMIF(TEJdata!$P:$P,$A32,TEJdata!$N:$N)-1)*100,"-")) -> 3.988439306
A33: M23X1 系統整合 | B33: =COUNTIF(TEJdata!$P:$P,$A33) -> 25 | C33: =IF(SUMIF(TEJdata!$P:$P,$A33,TEJdata!$B:$B)=0,"",IF(AND(SUMIF(TEJdata!$P:$P,$A33,TEJdata!$B:$B)>0,SUMIF(TEJdata!$P:$P,$A33,TEJdata!$D:$D)<0),(SUMIF(TEJdata!$P:$P,$A33,TEJdata!$B:$B)/ABS(SUMIF(TEJdata!$P:$P,$A33,TEJdata!$D:$D)-1))*100,(SUMIF(TEJdata!$P:$P,$A33,TEJdata!$B:$B)/SUMIF(TEJdata!$P:$P,$A33,TEJdata!$D:$D)-1)*100)) -> 7.759346855 | D33: =IF(SUMIF(TEJdata!$P:$P,$A33,TEJdata!$B:$B)=0,"",(SUMIF(TEJdata!$P:$P,$A33,TEJdata!$B:$B)/SUMIF(TEJdata!$P:$P,$A33,TEJdata!$C:$C)-1)*100) -> 1.080356099 | E33: =IF(SUMIF(TEJdata!$P:$P,$A33,TEJdata!$E:$E)=0,"",(SUMIF(TEJdata!$P:$P,$A33,TEJdata!$E:$E)/SUMIF(TEJdata!$P:$P,$A33,TEJdata!$F:$F)-1)*100) -> 7.818338556 | F33: =SUMIF(TEJdata!$P:$P,$A33,TEJdata!$B:$B)/1000 -> 9187.702 | G33: =SUMIF(TEJdata!$P:$P,$A33,TEJdata!$G:$G)/$B33 -> -0.743912 | H33: =SUMIF(TEJdata!$P:$P,$A33,TEJdata!$H:$H)/$B33 -> -3.807964 | I33: =IF(SUMIF(TEJdata!$P:$P,$A33,TEJdata!$I:$I)=0,0,IFERROR((SUMIF(TEJdata!$P:$P,$A33,TEJdata!$I:$I)/SUMIF(TEJdata!$P:$P,$A33,TEJdata!$J:$J)-1)*100,"-")) -> -3.968067622 | J33: =IF(SUMIF(TEJdata!$P:$P,$A33,TEJdata!$K:$K)=0,0,IFERROR((SUMIF(TEJdata!$P:$P,$A33,TEJdata!$K:$K)/SUMIF(TEJdata!$P:$P,$A33,TEJdata!$L:$L)-1)*100,"-")) -> -0.0406504065 | K33: =IF(SUMIF(TEJdata!$P:$P,$A33,TEJdata!$M:$M)=0,0,IFERROR((SUMIF(TEJdata!$P:$P,$A33,TEJdata!$M:$M)/SUMIF(TEJdata!$P:$P,$A33,TEJdata!$N:$N)-1)*100,"-")) -> -2.254724847
A34: M20A2 鋼筋 | B34: =COUNTIF(TEJdata!$P:$P,$A34) -> 8 | C34: =IF(SUMIF(TEJdata!$P:$P,$A34,TEJdata!$B:$B)=0,"",IF(AND(SUMIF(TEJdata!$P:$P,$A34,TEJdata!$B:$B)>0,SUMIF(TEJdata!$P:$P,$A34,TEJdata!$D:$D)<0),(SUMIF(TEJdata!$P:$P,$A34,TEJdata!$B:$B)/ABS(SUMIF(TEJdata!$P:$P,$A34,TEJdata!$D:$D)-1))*100,(SUMIF(TEJdata!$P:$P,$A34,TEJdata!$B:$B)/SUMIF(TEJdata!$P:$P,$A34,TEJdata!$D:$D)-1)*100)) -> 7.519219432 | D34: =IF(SUMIF(TEJdata!$P:$P,$A34,TEJdata!$B:$B)=0,"",(SUMIF(TEJdata!$P:$P,$A34,TEJdata!$B:$B)/SUMIF(TEJdata!$P:$P,$A34,TEJdata!$C:$C)-1)*100) -> 4.088773224 | E34: =IF(SUMIF(TEJdata!$P:$P,$A34,TEJdata!$E:$E)=0,"",(SUMIF(TEJdata!$P:$P,$A34,TEJdata!$E:$E)/SUMIF(TEJdata!$P:$P,$A34,TEJdata!$F:$F)-1)*100) -> -2.099226311 | F34: =SUMIF(TEJdata!$P:$P,$A34,TEJdata!$B:$B)/1000 -> 13925.885 | G34: =SUMIF(TEJdata!$P:$P,$A34,TEJdata!$G:$G)/$B34 -> 2.2860375 | H34: =SUMIF(TEJdata!$P:$P,$A34,TEJdata!$H:$H)/$B34 -> -0.1913625 | I34: =IF(SUMIF(TEJdata!$P:$P,$A34,TEJdata!$I:$I)=0,0,IFERROR((SUMIF(TEJdata!$P:$P,$A34,TEJdata!$I:$I)/SUMIF(TEJdata!$P:$P,$A34,TEJdata!$J:$J)-1)*100,"-")) -> -0.9371363091 | J34: =IF(SUMIF(TEJdata!$P:$P,$A34,TEJdata!$K:$K)=0,0,IFERROR((SUMIF(TEJdata!$P:$P,$A34,TEJdata!$K:$K)/SUMIF(TEJdata!$P:$P,$A34,TEJdata!$L:$L)-1)*100,"-")) -> 3.47392013 | K34: =IF(SUMIF(TEJdata!$P:$P,$A34,TEJdata!$M:$M)=0,0,IFERROR((SUMIF(TEJdata!$P:$P,$A34,TEJdata!$M:$M)/SUMIF(TEJdata!$P:$P,$A34,TEJdata!$N:$N)-1)*100,"-")) -> 9.002284354
A35: M23T2 零組件代理 | B35: =COUNTIF(TEJdata!$P:$P,$A35) -> 34 | C35: =IF(SUMIF(TEJdata!$P:$P,$A35,TEJdata!$B:$B)=0,"",IF(AND(SUMIF(TEJdata!$P:$P,$A35,TEJdata!$B:$B)>0,SUMIF(TEJdata!$P:$P,$A35,TEJdata!$D:$D)<0),(SUMIF(TEJdata!$P:$P,$A35,TEJdata!$B:$B)/ABS(SUMIF(TEJdata!$P:$P,$A35,TEJdata!$D:$D)-1))*100,(SUMIF(TEJdata!$P:$P,$A35,TEJdata!$B:$B)/SUMIF(TEJdata!$P:$P,$A35,TEJdata!$D:$D)-1)*100)) -> 6.995808506 | D35: =IF(SUMIF(TEJdata!$P:$P,$A35,TEJdata!$B:$B)=0,"",(SUMIF(TEJdata!$P:$P,$A35,TEJdata!$B:$B)/SUMIF(TEJdata!$P:$P,$A35,TEJdata!$C:$C)-1)*100) -> -1.796235022 | E35: =IF(SUMIF(TEJdata!$P:$P,$A35,TEJdata!$E:$E)=0,"",(SUMIF(TEJdata!$P:$P,$A35,TEJdata!$E:$E)/SUMIF(TEJdata!$P:$P,$A35,TEJdata!$F:$F)-1)*100) -> -10.89605661 | F35: =SUMIF(TEJdata!$P:$P,$A35,TEJdata!$B:$B)/1000 -> 195500.519 | G35: =SUMIF(TEJdata!$P:$P,$A35,TEJdata!$G:$G)/$B35 -> 0.8360617647 | H35: =SUMIF(TEJdata!$P:$P,$A35,TEJdata!$H:$H)/$B35 -> 2.223952941 | I35: =IF(SUMIF(TEJdata!$P:$P,$A35,TEJdata!$I:$I)=0,0,IFERROR((SUMIF(TEJdata!$P:$P,$A35,TEJdata!$I:$I)/SUMIF(TEJdata!$P:$P,$A35,TEJdata!$J:$J)-1)*100,"-")) -> 0.2679548931 | J35: =IF(SUMIF(TEJdata!$P:$P,$A35,TEJdata!$K:$K)=0,0,IFERROR((SUMIF(TEJdata!$P:$P,$A35,TEJdata!$K:$K)/SUMIF(TEJdata!$P:$P,$A35,TEJdata!$L:$L)-1)*100,"-")) -> 0.503141528 | K35: =IF(SUMIF(TEJdata!$P:$P,$A35,TEJdata!$M:$M)=0,0,IFERROR((SUMIF(TEJdata!$P:$P,$A35,TEJdata!$M:$M)/SUMIF(TEJdata!$P:$P,$A35,TEJdata!$N:$N)-1)*100,"-")) -> -0.004347952115
A36: M99B 五金及家具 | B36: =COUNTIF(TEJdata!$P:$P,$A36) -> 16 | C36: =IF(SUMIF(TEJdata!$P:$P,$A36,TEJdata!$B:$B)=0,"",IF(AND(SUMIF(TEJdata!$P:$P,$A36,TEJdata!$B:$B)>0,SUMIF(TEJdata!$P:$P,$A36,TEJdata!$D:$D)<0),(SUMIF(TEJdata!$P:$P,$A36,TEJdata!$B:$B)/ABS(SUMIF(TEJdata!$P:$P,$A36,TEJdata!$D:$D)-1))*100,(SUMIF(TEJdata!$P:$P,$A36,TEJdata!$B:$B)/SUMIF(TEJdata!$P:$P,$A36,TEJdata!$D:$D)-1)*100)) -> 6.133775283 | D36: =IF(SUMIF(TEJdata!$P:$P,$A36,TEJdata!$B:$B)=0,"",(SUMIF(TEJdata!$P:$P,$A36,TEJdata!$B:$B)/SUMIF(TEJdata!$P:$P,$A36,TEJdata!$C:$C)-1)*100) -> -0.7690562126 | E36: =IF(SUMIF(TEJdata!$P:$P,$A36,TEJdata!$E:$E)=0,"",(SUMIF(TEJdata!$P:$P,$A36,TEJdata!$E:$E)/SUMIF(TEJdata!$P:$P,$A36,TEJdata!$F:$F)-1)*100) -> -9.362395136 | F36: =SUMIF(TEJdata!$P:$P,$A36,TEJdata!$B:$B)/1000 -> 9427.928 | G36: =SUMIF(TEJdata!$P:$P,$A36,TEJdata!$G:$G)/$B36 -> 0.80794375 | H36: =SUMIF(TEJdata!$P:$P,$A36,TEJdata!$H:$H)/$B36 -> 2.754175 | I36: =IF(SUMIF(TEJdata!$P:$P,$A36,TEJdata!$I:$I)=0,0,IFERROR((SUMIF(TEJdata!$P:$P,$A36,TEJdata!$I:$I)/SUMIF(TEJdata!$P:$P,$A36,TEJdata!$J:$J)-1)*100,"-")) -> 0.474821521 | J36: =IF(SUMIF(TEJdata!$P:$P,$A36,TEJdata!$K:$K)=0,0,IFERROR((SUMIF(TEJdata!$P:$P,$A36,TEJdata!$K:$K)/SUMIF(TEJdata!$P:$P,$A36,TEJdata!$L:$L)-1)*100,"-")) -> 7.217610971 | K36: =IF(SUMIF(TEJdata!$P:$P,$A36,TEJdata!$M:$M)=0,0,IFERROR((SUMIF(TEJdata!$P:$P,$A36,TEJdata!$M:$M)/SUMIF(TEJdata!$P:$P,$A36,TEJdata!$N:$N)-1)*100,"-")) -> 1.293961513
A37: M23C6C 封裝及模組 | B37: =COUNTIF(TEJdata!$P:$P,$A37) -> 15 | C37: =IF(SUMIF(TEJdata!$P:$P,$A37,TEJdata!$B:$B)=0,"",IF(AND(SUMIF(TEJdata!$P:$P,$A37,TEJdata!$B:$B)>0,SUMIF(TEJdata!$P:$P,$A37,TEJdata!$D:$D)<0),(SUMIF(TEJdata!$P:$P,$A37,TEJdata!$B:$B)/ABS(SUMIF(TEJdata!$P:$P,$A37,TEJdata!$D:$D)-1))*100,(SUMIF(TEJdata!$P:$P,$A37,TEJdata!$B:$B)/SUMIF(TEJdata!$P:$P,$A37,TEJdata!$D:$D)-1)*100)) -> 6.092810433 | D37: =IF(SUMIF(TEJdata!$P:$P,$A37,TEJdata!$B:$B)=0,"",(SUMIF(TEJdata!$P:$P,$A37,TEJdata!$B:$B)/SUMIF(TEJdata!$P:$P,$A37,TEJdata!$C:$C)-1)*100) -> -5.754692552 | E37: =IF(SUMIF(TEJdata!$P:$P,$A37,TEJdata!$E:$E)=0,"",(SUMIF(TEJdata!$P:$P,$A37,TEJdata!$E:$E)/SUMIF(TEJdata!$P:$P,$A37,TEJdata!$F:$F)-1)*100) -> -4.169081583 | F37: =SUMIF(TEJdata!$P:$P,$A37,TEJdata!$B:$B)/1000 -> 3774.239 | G37: =SUMIF(TEJdata!$P:$P,$A37,TEJdata!$G:$G)/$B37 -> 0.5136933333 | H37: =SUMIF(TEJdata!$P:$P,$A37,TEJdata!$H:$H)/$B37 -> -0.8884333333 | I37: =IF(SUMIF(TEJdata!$P:$P,$A37,TEJdata!$I:$I)=0,0,IFERROR((SUMIF(TEJdata!$P:$P,$A37,TEJdata!$I:$I)/SUMIF(TEJdata!$P:$P,$A37,TEJdata!$J:$J)-1)*100,"-")) -> -2.763504532 | J37: =IF(SUMIF(TEJdata!$P:$P,$A37,TEJdata!$K:$K)=0,0,IFERROR((SUMIF(TEJdata!$P:$P,$A37,TEJdata!$K:$K)/SUMIF(TEJdata!$P:$P,$A37,TEJdata!$L:$L)-1)*100,"-")) -> 0 | K37: =IF(SUMIF(TEJdata!$P:$P,$A37,TEJdata!$M:$M)=0,0,IFERROR((SUMIF(TEJdata!$P:$P,$A37,TEJdata!$M:$M)/SUMIF(TEJdata!$P:$P,$A37,TEJdata!$N:$N)-1)*100,"-")) -> 2.133677584
A38: M16 電線 | B38: =COUNTIF(TEJdata!$P:$P,$A38) -> 10 | C38: =IF(SUMIF(TEJdata!$P:$P,$A38,TEJdata!$B:$B)=0,"",IF(AND(SUMIF(TEJdata!$P:$P,$A38,TEJdata!$B:$B)>0,SUMIF(TEJdata!$P:$P,$A38,TEJdata!$D:$D)<0),(SUMIF(TEJdata!$P:$P,$A38,TEJdata!$B:$B)/ABS(SUMIF(TEJdata!$P:$P,$A38,TEJdata!$D:$D)-1))*100,(SUMIF(TEJdata!$P:$P,$A38,TEJdata!$B:$B)/SUMIF(TEJdata!$P:$P,$A38,TEJdata!$D:$D)-1)*100)) -> 5.732684562 | D38: =IF(SUMIF(TEJdata!$P:$P,$A38,TEJdata!$B:$B)=0,"",(SUMIF(TEJdata!$P:$P,$A38,TEJdata!$B:$B)/SUMIF(TEJdata!$P:$P,$A38,TEJdata!$C:$C)-1)*100) -> -10.22519315 | E38: =IF(SUMIF(TEJdata!$P:$P,$A38,TEJdata!$E:$E)=0,"",(SUMIF(TEJdata!$P:$P,$A38,TEJdata!$E:$E)/SUMIF(TEJdata!$P:$P,$A38,TEJdata!$F:$F)-1)*100) -> 5.206554442 | F38: =SUMIF(TEJdata!$P:$P,$A38,TEJdata!$B:$B)/1000 -> 20215.254 | G38: =SUMIF(TEJdata!$P:$P,$A38,TEJdata!$G:$G)/$B38 -> -0.6098 | H38: =SUMIF(TEJdata!$P:$P,$A38,TEJdata!$H:$H)/$B38 -> -6.20712 | I38: =IF(SUMIF(TEJdata!$P:$P,$A38,TEJdata!$I:$I)=0,0,IFERROR((SUMIF(TEJdata!$P:$P,$A38,TEJdata!$I:$I)/SUMIF(TEJdata!$P:$P,$A38,TEJdata!$J:$J)-1)*100,"-")) -> -0.1215548212 | J38: =IF(SUMIF(TEJdata!$P:$P,$A38,TEJdata!$K:$K)=0,0,IFERROR((SUMIF(TEJdata!$P:$P,$A38,TEJdata!$K:$K)/SUMIF(TEJdata!$P:$P,$A38,TEJdata!$L:$L)-1)*100,"-")) -> 11.3564923 | K38: =IF(SUMIF(TEJdata!$P:$P,$A38,TEJdata!$M:$M)=0,0,IFERROR((SUMIF(TEJdata!$P:$P,$A38,TEJdata!$M:$M)/SUMIF(TEJdata!$P:$P,$A38,TEJdata!$N:$N)-1)*100,"-")) -> -0.0741147406
A39: M27A2 餐飲業 | B39: =COUNTIF(TEJdata!$P:$P,$A39) -> 18 | C39: =IF(SUMIF(TEJdata!$P:$P,$A39,TEJdata!$B:$B)=0,"",IF(AND(SUMIF(TEJdata!$P:$P,$A39,TEJdata!$B:$B)>0,SUMIF(TEJdata!$P:$P,$A39,TEJdata!$D:$D)<0),(SUMIF(TEJdata!$P:$P,$A39,TEJdata!$B:$B)/ABS(SUMIF(TEJdata!$P:$P,$A39,TEJdata!$D:$D)-1))*100,(SUMIF(TEJdata!$P:$P,$A39,TEJdata!$B:$B)/SUMIF(TEJdata!$P:$P,$A39,TEJdata!$D:$D)-1)*100)) -> 5.235185676 | D39: =IF(SUMIF(TEJdata!$P:$P,$A39,TEJdata!$B:$B)=0,"",(SUMIF(TEJdata!$P:$P,$A39,TEJdata!$B:$B)/SUMIF(TEJdata!$P:$P,$A39,TEJdata!$C:$C)-1)*100) -> 1.734402276 | E39: =IF(SUMIF(TEJdata!$P:$P,$A39,TEJdata!$E:$E)=0,"",(SUMIF(TEJdata!$P:$P,$A39,TEJdata!$E:$E)/SUMIF(TEJdata!$P:$P,$A39,TEJdata!$F:$F)-1)*100) -> 15.91538578 | F39: =SUMIF(TEJdata!$P:$P,$A39,TEJdata!$B:$B)/1000 -> 7110.43 | G39: =SUMIF(TEJdata!$P:$P,$A39,TEJdata!$G:$G)/$B39 -> -0.05628888889 | H39: =SUMIF(TEJdata!$P:$P,$A39,TEJdata!$H:$H)/$B39 -> -0.4626166667 | I39: =IF(SUMIF(TEJdata!$P:$P,$A39,TEJdata!$I:$I)=0,0,IFERROR((SUMIF(TEJdata!$P:$P,$A39,TEJdata!$I:$I)/SUMIF(TEJdata!$P:$P,$A39,TEJdata!$J:$J)-1)*100,"-")) -> -0.9985667408 | J39: =IF(SUMIF(TEJdata!$P:$P,$A39,TEJdata!$K:$K)=0,0,IFERROR((SUMIF(TEJdata!$P:$P,$A39,TEJdata!$K:$K)/SUMIF(TEJdata!$P:$P,$A39,TEJdata!$L:$L)-1)*100,"-")) -> 1.314025208 | K39: =IF(SUMIF(TEJdata!$P:$P,$A39,TEJdata!$M:$M)=0,0,IFERROR((SUMIF(TEJdata!$P:$P,$A39,TEJdata!$M:$M)/SUMIF(TEJdata!$P:$P,$A39,TEJdata!$N:$N)-1)*100,"-")) -> 1.978525757
A40: M23C4A 光碟 | B40: =COUNTIF(TEJdata!$P:$P,$A40) -> 4 | C40: =IF(SUMIF(TEJdata!$P:$P,$A40,TEJdata!$B:$B)=0,"",IF(AND(SUMIF(TEJdata!$P:$P,$A40,TEJdata!$B:$B)>0,SUMIF(TEJdata!$P:$P,$A40,TEJdata!$D:$D)<0),(SUMIF(TEJdata!$P:$P,$A40,TEJdata!$B:$B)/ABS(SUMIF(TEJdata!$P:$P,$A40,TEJdata!$D:$D)-1))*100,(SUMIF(TEJdata!$P:$P,$A40,TEJdata!$B:$B)/SUMIF(TEJdata!$P:$P,$A40,TEJdata!$D:$D)-1)*100)) -> 5.203977779 | D40: =IF(SUMIF(TEJdata!$P:$P,$A40,TEJdata!$B:$B)=0,"",(SUMIF(TEJdata!$P:$P,$A40,TEJdata!$B:$B)/SUMIF(TEJdata!$P:$P,$A40,TEJdata!$C:$C)-1)*100) -> -0.6333212281 | E40: =IF(SUMIF(TEJdata!$P:$P,$A40,TEJdata!$E:$E)=0,"",(SUMIF(TEJdata!$P:$P,$A40,TEJdata!$E:$E)/SUMIF(TEJdata!$P:$P,$A40,TEJdata!$F:$F)-1)*100) -> -1.845634368 | F40: =SUMIF(TEJdata!$P:$P,$A40,TEJdata!$B:$B)/1000 -> 1488.489 | G40: =SUMIF(TEJdata!$P:$P,$A40,TEJdata!$G:$G)/$B40 -> -0.233725 | H40: =SUMIF(TEJdata!$P:$P,$A40,TEJdata!$H:$H)/$B40 -> -2.14935 | I40: =IF(SUMIF(TEJdata!$P:$P,$A40,TEJdata!$I:$I)=0,0,IFERROR((SUMIF(TEJdata!$P:$P,$A40,TEJdata!$I:$I)/SUMIF(TEJdata!$P:$P,$A40,TEJdata!$J:$J)-1)*100,"-")) -> -0.09100444225 | J40: =IF(SUMIF(TEJdata!$P:$P,$A40,TEJdata!$K:$K)=0,0,IFERROR((SUMIF(TEJdata!$P:$P,$A40,TEJdata!$K:$K)/SUMIF(TEJdata!$P:$P,$A40,TEJdata!$L:$L)-1)*100,"-")) -> 0 | K40: =IF(SUMIF(TEJdata!$P:$P,$A40,TEJdata!$M:$M)=0,0,IFERROR((SUMIF(TEJdata!$P:$P,$A40,TEJdata!$M:$M)/SUMIF(TEJdata!$P:$P,$A40,TEJdata!$N:$N)-1)*100,"-")) -> 1.402871761
A41: M23C8C LCD 原料 | B41: =COUNTIF(TEJdata!$P:$P,$A41) -> 12 | C41: =IF(SUMIF(TEJdata!$P:$P,$A41,TEJdata!$B:$B)=0,"",IF(AND(SUMIF(TEJdata!$P:$P,$A41,TEJdata!$B:$B)>0,SUMIF(TEJdata!$P:$P,$A41,TEJdata!$D:$D)<0),(SUMIF(TEJdata!$P:$P,$A41,TEJdata!$B:$B)/ABS(SUMIF(TEJdata!$P:$P,$A41,TEJdata!$D:$D)-1))*100,(SUMIF(TEJdata!$P:$P,$A41,TEJdata!$B:$B)/SUMIF(TEJdata!$P:$P,$A41,TEJdata!$D:$D)-1)*100)) -> 5.123470235 | D41: =IF(SUMIF(TEJdata!$P:$P,$A41,TEJdata!$B:$B)=0,"",(SUMIF(TEJdata!$P:$P,$A41,TEJdata!$B:$B)/SUMIF(TEJdata!$P:$P,$A41,TEJdata!$C:$C)-1)*100) -> -4.43565061 | E41: =IF(SUMIF(TEJdata!$P:$P,$A41,TEJdata!$E:$E)=0,"",(SUMIF(TEJdata!$P:$P,$A41,TEJdata!$E:$E)/SUMIF(TEJdata!$P:$P,$A41,TEJdata!$F:$F)-1)*100) -> -9.772381785 | F41: =SUMIF(TEJdata!$P:$P,$A41,TEJdata!$B:$B)/1000 -> 4421.018 | G41: =SUMIF(TEJdata!$P:$P,$A41,TEJdata!$G:$G)/$B41 -> -2.425366667 | H41: =SUMIF(TEJdata!$P:$P,$A41,TEJdata!$H:$H)/$B41 -> -3.910058333 | I41: =IF(SUMIF(TEJdata!$P:$P,$A41,TEJdata!$I:$I)=0,0,IFERROR((SUMIF(TEJdata!$P:$P,$A41,TEJdata!$I:$I)/SUMIF(TEJdata!$P:$P,$A41,TEJdata!$J:$J)-1)*100,"-")) -> -6.524162202 | J41: =IF(SUMIF(TEJdata!$P:$P,$A41,TEJdata!$K:$K)=0,0,IFERROR((SUMIF(TEJdata!$P:$P,$A41,TEJdata!$K:$K)/SUMIF(TEJdata!$P:$P,$A41,TEJdata!$L:$L)-1)*100,"-")) -> 0 | K41: =IF(SUMIF(TEJdata!$P:$P,$A41,TEJdata!$M:$M)=0,0,IFERROR((SUMIF(TEJdata!$P:$P,$A41,TEJdata!$M:$M)/SUMIF(TEJdata!$P:$P,$A41,TEJdata!$N:$N)-1)*100,"-")) -> 0.8417536816
A42: M14A7 尼龍絲 | B42: =COUNTIF(TEJdata!$P:$P,$A42) -> 5 | C42: =IF(SUMIF(TEJdata!$P:$P,$A42,TEJdata!$B:$B)=0,"",IF(AND(SUMIF(TEJdata!$P:$P,$A42,TEJdata!$B:$B)>0,SUMIF(TEJdata!$P:$P,$A42,TEJdata!$D:$D)<0),(SUMIF(TEJdata!$P:$P,$A42,TEJdata!$B:$B)/ABS(SUMIF(TEJdata!$P:$P,$A42,TEJdata!$D:$D)-1))*100,(SUMIF(TEJdata!$P:$P,$A42,TEJdata!$B:$B)/SUMIF(TEJdata!$P:$P,$A42,TEJdata!$D:$D)-1)*100)) -> 5.020416225 | D42: =IF(SUMIF(TEJdata!$P:$P,$A42,TEJdata!$B:$B)=0,"",(SUMIF(TEJdata!$P:$P,$A42,TEJdata!$B:$B)/SUMIF(TEJdata!$P:$P,$A42,TEJdata!$C:$C)-1)*100) -> 54.32452005 | E42: =IF(SUMIF(TEJdata!$P:$P,$A42,TEJdata!$E:$E)=0,"",(SUMIF(TEJdata!$P:$P,$A42,TEJdata!$E:$E)/SUMIF(TEJdata!$P:$P,$A42,TEJdata!$F:$F)-1)*100) -> -6.814507267 | F42: =SUMIF(TEJdata!$P:$P,$A42,TEJdata!$B:$B)/1000 -> 3950.825 | G42: =SUMIF(TEJdata!$P:$P,$A42,TEJdata!$G:$G)/$B42 -> 2.19708 | H42: =SUMIF(TEJdata!$P:$P,$A42,TEJdata!$H:$H)/$B42 -> 7.37592 | I42: =IF(SUMIF(TEJdata!$P:$P,$A42,TEJdata!$I:$I)=0,0,IFERROR((SUMIF(TEJdata!$P:$P,$A42,TEJdata!$I:$I)/SUMIF(TEJdata!$P:$P,$A42,TEJdata!$J:$J)-1)*100,"-")) -> 1.859889378 | J42: =IF(SUMIF(TEJdata!$P:$P,$A42,TEJdata!$K:$K)=0,0,IFERROR((SUMIF(TEJdata!$P:$P,$A42,TEJdata!$K:$K)/SUMIF(TEJdata!$P:$P,$A42,TEJdata!$L:$L)-1)*100,"-")) -> 0 | K42: =IF(SUMIF(TEJdata!$P:$P,$A42,TEJdata!$M:$M)=0,0,IFERROR((SUMIF(TEJdata!$P:$P,$A42,TEJdata!$M:$M)/SUMIF(TEJdata!$P:$P,$A42,TEJdata!$N:$N)-1)*100,"-")) -> 4.185712085
A43: M15Z 其他電製品 | B43: =COUNTIF(TEJdata!$P:$P,$A43) -> 10 | C43: =IF(SUMIF(TEJdata!$P:$P,$A43,TEJdata!$B:$B)=0,"",IF(AND(SUMIF(TEJdata!$P:$P,$A43,TEJdata!$B:$B)>0,SUMIF(TEJdata!$P:$P,$A43,TEJdata!$D:$D)<0),(SUMIF(TEJdata!$P:$P,$A43,TEJdata!$B:$B)/ABS(SUMIF(TEJdata!$P:$P,$A43,TEJdata!$D:$D)-1))*100,(SUMIF(TEJdata!$P:$P,$A43,TEJdata!$B:$B)/SUMIF(TEJdata!$P:$P,$A43,TEJdata!$D:$D)-1)*100)) -> 4.461864633 | D43: =IF(SUMIF(TEJdata!$P:$P,$A43,TEJdata!$B:$B)=0,"",(SUMIF(TEJdata!$P:$P,$A43,TEJdata!$B:$B)/SUMIF(TEJdata!$P:$P,$A43,TEJdata!$C:$C)-1)*100) -> -14.51345918 | E43: =IF(SUMIF(TEJdata!$P:$P,$A43,TEJdata!$E:$E)=0,"",(SUMIF(TEJdata!$P:$P,$A43,TEJdata!$E:$E)/SUMIF(TEJdata!$P:$P,$A43,TEJdata!$F:$F)-1)*100) -> 9.44217577 | F43: =SUMIF(TEJdata!$P:$P,$A43,TEJdata!$B:$B)/1000 -> 1737.814 | G43: =SUMIF(TEJdata!$P:$P,$A43,TEJdata!$G:$G)/$B43 -> -1.09714 | H43: =SUMIF(TEJdata!$P:$P,$A43,TEJdata!$H:$H)/$B43 -> -4.85067 | I43: =IF(SUMIF(TEJdata!$P:$P,$A43,TEJdata!$I:$I)=0,0,IFERROR((SUMIF(TEJdata!$P:$P,$A43,TEJdata!$I:$I)/SUMIF(TEJdata!$P:$P,$A43,TEJdata!$J:$J)-1)*100,"-")) -> -2.774836883 | J43: =IF(SUMIF(TEJdata!$P:$P,$A43,TEJdata!$K:$K)=0,0,IFERROR((SUMIF(TEJdata!$P:$P,$A43,TEJdata!$K:$K)/SUMIF(TEJdata!$P:$P,$A43,TEJdata!$L:$L)-1)*100,"-")) -> -33.21266968 | K43: =IF(SUMIF(TEJdata!$P:$P,$A43,TEJdata!$M:$M)=0,0,IFERROR((SUMIF(TEJdata!$P:$P,$A43,TEJdata!$M:$M)/SUMIF(TEJdata!$P:$P,$A43,TEJdata!$N:$N)-1)*100,"-")) -> 1.213336147
A44: M17B 染料及顏料 | B44: =COUNTIF(TEJdata!$P:$P,$A44) -> 6 | C44: =IF(SUMIF(TEJdata!$P:$P,$A44,TEJdata!$B:$B)=0,"",IF(AND(SUMIF(TEJdata!$P:$P,$A44,TEJdata!$B:$B)>0,SUMIF(TEJdata!$P:$P,$A44,TEJdata!$D:$D)<0),(SUMIF(TEJdata!$P:$P,$A44,TEJdata!$B:$B)/ABS(SUMIF(TEJdata!$P:$P,$A44,TEJdata!$D:$D)-1))*100,(SUMIF(TEJdata!$P:$P,$A44,TEJdata!$B:$B)/SUMIF(TEJdata!$P:$P,$A44,TEJdata!$D:$D)-1)*100)) -> 3.163469494 | D44: =IF(SUMIF(TEJdata!$P:$P,$A44,TEJdata!$B:$B)=0,"",(SUMIF(TEJdata!$P:$P,$A44,TEJdata!$B:$B)/SUMIF(TEJdata!$P:$P,$A44,TEJdata!$C:$C)-1)*100) -> 2.419635486 | E44: =IF(SUMIF(TEJdata!$P:$P,$A44,TEJdata!$E:$E)=0,"",(SUMIF(TEJdata!$P:$P,$A44,TEJdata!$E:$E)/SUMIF(TEJdata!$P:$P,$A44,TEJdata!$F:$F)-1)*100) -> -11.05737305 | F44: =SUMIF(TEJdata!$P:$P,$A44,TEJdata!$B:$B)/1000 -> 1706.983 | G44: =SUMIF(TEJdata!$P:$P,$A44,TEJdata!$G:$G)/$B44 -> 0.903 | H44: =SUMIF(TEJdata!$P:$P,$A44,TEJdata!$H:$H)/$B44 -> 0.06276666667 | I44: =IF(SUMIF(TEJdata!$P:$P,$A44,TEJdata!$I:$I)=0,0,IFERROR((SUMIF(TEJdata!$P:$P,$A44,TEJdata!$I:$I)/SUMIF(TEJdata!$P:$P,$A44,TEJdata!$J:$J)-1)*100,"-")) -> -0.01348938703 | J44: =IF(SUMIF(TEJdata!$P:$P,$A44,TEJdata!$K:$K)=0,0,IFERROR((SUMIF(TEJdata!$P:$P,$A44,TEJdata!$K:$K)/SUMIF(TEJdata!$P:$P,$A44,TEJdata!$L:$L)-1)*100,"-")) -> 0 | K44: =IF(SUMIF(TEJdata!$P:$P,$A44,TEJdata!$M:$M)=0,0,IFERROR((SUMIF(TEJdata!$P:$P,$A44,TEJdata!$M:$M)/SUMIF(TEJdata!$P:$P,$A44,TEJdata!$N:$N)-1)*100,"-")) -> 0.2126453076
A45: M23U2 聲學產品 | B45: =COUNTIF(TEJdata!$P:$P,$A45) -> 11 | C45: =IF(SUMIF(TEJdata!$P:$P,$A45,TEJdata!$B:$B)=0,"",IF(AND(SUMIF(TEJdata!$P:$P,$A45,TEJdata!$B:$B)>0,SUMIF(TEJdata!$P:$P,$A45,TEJdata!$D:$D)<0),(SUMIF(TEJdata!$P:$P,$A45,TEJdata!$B:$B)/ABS(SUMIF(TEJdata!$P:$P,$A45,TEJdata!$D:$D)-1))*100,(SUMIF(TEJdata!$P:$P,$A45,TEJdata!$B:$B)/SUMIF(TEJdata!$P:$P,$A45,TEJdata!$D:$D)-1)*100)) -> 2.689628592 | D45: =IF(SUMIF(TEJdata!$P:$P,$A45,TEJdata!$B:$B)=0,"",(SUMIF(TEJdata!$P:$P,$A45,TEJdata!$B:$B)/SUMIF(TEJdata!$P:$P,$A45,TEJdata!$C:$C)-1)*100) -> -9.695679765 | E45: =IF(SUMIF(TEJdata!$P:$P,$A45,TEJdata!$E:$E)=0,"",(SUMIF(TEJdata!$P:$P,$A45,TEJdata!$E:$E)/SUMIF(TEJdata!$P:$P,$A45,TEJdata!$F:$F)-1)*100) -> -8.984844466 | F45: =SUMIF(TEJdata!$P:$P,$A45,TEJdata!$B:$B)/1000 -> 7116.534 | G45: =SUMIF(TEJdata!$P:$P,$A45,TEJdata!$G:$G)/$B45 -> 2.597172727 | H45: =SUMIF(TEJdata!$P:$P,$A45,TEJdata!$H:$H)/$B45 -> 1.778481818 | I45: =IF(SUMIF(TEJdata!$P:$P,$A45,TEJdata!$I:$I)=0,0,IFERROR((SUMIF(TEJdata!$P:$P,$A45,TEJdata!$I:$I)/SUMIF(TEJdata!$P:$P,$A45,TEJdata!$J:$J)-1)*100,"-")) -> 1.880062077 | J45: =IF(SUMIF(TEJdata!$P:$P,$A45,TEJdata!$K:$K)=0,0,IFERROR((SUMIF(TEJdata!$P:$P,$A45,TEJdata!$K:$K)/SUMIF(TEJdata!$P:$P,$A45,TEJdata!$L:$L)-1)*100,"-")) -> -2.06185567 | K45: =IF(SUMIF(TEJdata!$P:$P,$A45,TEJdata!$M:$M)=0,0,IFERROR((SUMIF(TEJdata!$P:$P,$A45,TEJdata!$M:$M)/SUMIF(TEJdata!$P:$P,$A45,TEJdata!$N:$N)-1)*100,"-")) -> 6.693644686
A46: M25B 營造 | B46: =COUNTIF(TEJdata!$P:$P,$A46) -> 14 | C46: =IF(SUMIF(TEJdata!$P:$P,$A46,TEJdata!$B:$B)=0,"",IF(AND(SUMIF(TEJdata!$P:$P,$A46,TEJdata!$B:$B)>0,SUMIF(TEJdata!$P:$P,$A46,TEJdata!$D:$D)<0),(SUMIF(TEJdata!$P:$P,$A46,TEJdata!$B:$B)/ABS(SUMIF(TEJdata!$P:$P,$A46,TEJdata!$D:$D)-1))*100,(SUMIF(TEJdata!$P:$P,$A46,TEJdata!$B:$B)/SUMIF(TEJdata!$P:$P,$A46,TEJdata!$D:$D)-1)*100)) -> 2.400918075 | D46: =IF(SUMIF(TEJdata!$P:$P,$A46,TEJdata!$B:$B)=0,"",(SUMIF(TEJdata!$P:$P,$A46,TEJdata!$B:$B)/SUMIF(TEJdata!$P:$P,$A46,TEJdata!$C:$C)-1)*100) -> -0.707224343 | E46: =IF(SUMIF(TEJdata!$P:$P,$A46,TEJdata!$E:$E)=0,"",(SUMIF(TEJdata!$P:$P,$A46,TEJdata!$E:$E)/SUMIF(TEJdata!$P:$P,$A46,TEJdata!$F:$F)-1)*100) -> 5.933496684 | F46: =SUMIF(TEJdata!$P:$P,$A46,TEJdata!$B:$B)/1000 -> 13438.18 | G46: =SUMIF(TEJdata!$P:$P,$A46,TEJdata!$G:$G)/$B46 -> 3.655964286 | H46: =SUMIF(TEJdata!$P:$P,$A46,TEJdata!$H:$H)/$B46 -> 8.601185714 | I46: =IF(SUMIF(TEJdata!$P:$P,$A46,TEJdata!$I:$I)=0,0,IFERROR((SUMIF(TEJdata!$P:$P,$A46,TEJdata!$I:$I)/SUMIF(TEJdata!$P:$P,$A46,TEJdata!$J:$J)-1)*100,"-")) -> -0.7344215558 | J46: =IF(SUMIF(TEJdata!$P:$P,$A46,TEJdata!$K:$K)=0,0,IFERROR((SUMIF(TEJdata!$P:$P,$A46,TEJdata!$K:$K)/SUMIF(TEJdata!$P:$P,$A46,TEJdata!$L:$L)-1)*100,"-")) -> -2.516586593 | K46: =IF(SUMIF(TEJdata!$P:$P,$A46,TEJdata!$M:$M)=0,0,IFERROR((SUMIF(TEJdata!$P:$P,$A46,TEJdata!$M:$M)/SUMIF(TEJdata!$P:$P,$A46,TEJdata!$N:$N)-1)*100,"-")) -> 9.633743409
A47: M28A 本國銀行 | B47: =COUNTIF(TEJdata!$P:$P,$A47) -> 10 | C47: =IF(SUMIF(TEJdata!$P:$P,$A47,TEJdata!$B:$B)=0,"",IF(AND(SUMIF(TEJdata!$P:$P,$A47,TEJdata!$B:$B)>0,SUMIF(TEJdata!$P:$P,$A47,TEJdata!$D:$D)<0),(SUMIF(TEJdata!$P:$P,$A47,TEJdata!$B:$B)/ABS(SUMIF(TEJdata!$P:$P,$A47,TEJdata!$D:$D)-1))*100,(SUMIF(TEJdata!$P:$P,$A47,TEJdata!$B:$B)/SUMIF(TEJdata!$P:$P,$A47,TEJdata!$D:$D)-1)*100)) -> 1.971497583 | D47: =IF(SUMIF(TEJdata!$P:$P,$A47,TEJdata!$B:$B)=0,"",(SUMIF(TEJdata!$P:$P,$A47,TEJdata!$B:$B)/SUMIF(TEJdata!$P:$P,$A47,TEJdata!$C:$C)-1)*100) -> -3.797717861 | E47: =IF(SUMIF(TEJdata!$P:$P,$A47,TEJdata!$E:$E)=0,"",(SUMIF(TEJdata!$P:$P,$A47,TEJdata!$E:$E)/SUMIF(TEJdata!$P:$P,$A47,TEJdata!$F:$F)-1)*100) -> 16.02192694 | F47: =SUMIF(TEJdata!$P:$P,$A47,TEJdata!$B:$B)/1000 -> 15178.798 | G47: =SUMIF(TEJdata!$P:$P,$A47,TEJdata!$G:$G)/$B47 -> 0.20849 | H47: =SUMIF(TEJdata!$P:$P,$A47,TEJdata!$H:$H)/$B47 -> 0.70168 | I47: =IF(SUMIF(TEJdata!$P:$P,$A47,TEJdata!$I:$I)=0,0,IFERROR((SUMIF(TEJdata!$P:$P,$A47,TEJdata!$I:$I)/SUMIF(TEJdata!$P:$P,$A47,TEJdata!$J:$J)-1)*100,"-")) -> -0.004447726204 | J47: =IF(SUMIF(TEJdata!$P:$P,$A47,TEJdata!$K:$K)=0,0,IFERROR((SUMIF(TEJdata!$P:$P,$A47,TEJdata!$K:$K)/SUMIF(TEJdata!$P:$P,$A47,TEJdata!$L:$L)-1)*100,"-")) -> 1.020501188 | K47: =IF(SUMIF(TEJdata!$P:$P,$A47,TEJdata!$M:$M)=0,0,IFERROR((SUMIF(TEJdata!$P:$P,$A47,TEJdata!$M:$M)/SUMIF(TEJdata!$P:$P,$A47,TEJdata!$N:$N)-1)*100,"-")) -> -2.393543
A48: M15C1 家電 | B48: =COUNTIF(TEJdata!$P:$P,$A48) -> 8 | C48: =IF(SUMIF(TEJdata!$P:$P,$A48,TEJdata!$B:$B)=0,"",IF(AND(SUMIF(TEJdata!$P:$P,$A48,TEJdata!$B:$B)>0,SUMIF(TEJdata!$P:$P,$A48,TEJdata!$D:$D)<0),(SUMIF(TEJdata!$P:$P,$A48,TEJdata!$B:$B)/ABS(SUMIF(TEJdata!$P:$P,$A48,TEJdata!$D:$D)-1))*100,(SUMIF(TEJdata!$P:$P,$A48,TEJdata!$B:$B)/SUMIF(TEJdata!$P:$P,$A48,TEJdata!$D:$D)-1)*100)) -> 1.830246847 | D48: =IF(SUMIF(TEJdata!$P:$P,$A48,TEJdata!$B:$B)=0,"",(SUMIF(TEJdata!$P:$P,$A48,TEJdata!$B:$B)/SUMIF(TEJdata!$P:$P,$A48,TEJdata!$C:$C)-1)*100) -> -5.318916676 | E48: =IF(SUMIF(TEJdata!$P:$P,$A48,TEJdata!$E:$E)=0,"",(SUMIF(TEJdata!$P:$P,$A48,TEJdata!$E:$E)/SUMIF(TEJdata!$P:$P,$A48,TEJdata!$F:$F)-1)*100) -> -7.234703867 | F48: =SUMIF(TEJdata!$P:$P,$A48,TEJdata!$B:$B)/1000 -> 2883.911 | G48: =SUMIF(TEJdata!$P:$P,$A48,TEJdata!$G:$G)/$B48 -> 0.3617875 | H48: =SUMIF(TEJdata!$P:$P,$A48,TEJdata!$H:$H)/$B48 -> -0.1772625 | I48: =IF(SUMIF(TEJdata!$P:$P,$A48,TEJdata!$I:$I)=0,0,IFERROR((SUMIF(TEJdata!$P:$P,$A48,TEJdata!$I:$I)/SUMIF(TEJdata!$P:$P,$A48,TEJdata!$J:$J)-1)*100,"-")) -> -0.03991516072 | J48: =IF(SUMIF(TEJdata!$P:$P,$A48,TEJdata!$K:$K)=0,0,IFERROR((SUMIF(TEJdata!$P:$P,$A48,TEJdata!$K:$K)/SUMIF(TEJdata!$P:$P,$A48,TEJdata!$L:$L)-1)*100,"-")) -> 0 | K48: =IF(SUMIF(TEJdata!$P:$P,$A48,TEJdata!$M:$M)=0,0,IFERROR((SUMIF(TEJdata!$P:$P,$A48,TEJdata!$M:$M)/SUMIF(TEJdata!$P:$P,$A48,TEJdata!$N:$N)-1)*100,"-")) -> 3.4783641
A49: M17C1 製藥 | B49: =COUNTIF(TEJdata!$P:$P,$A49) -> 52 | C49: =IF(SUMIF(TEJdata!$P:$P,$A49,TEJdata!$B:$B)=0,"",IF(AND(SUMIF(TEJdata!$P:$P,$A49,TEJdata!$B:$B)>0,SUMIF(TEJdata!$P:$P,$A49,TEJdata!$D:$D)<0),(SUMIF(TEJdata!$P:$P,$A49,TEJdata!$B:$B)/ABS(SUMIF(TEJdata!$P:$P,$A49,TEJdata!$D:$D)-1))*100,(SUMIF(TEJdata!$P:$P,$A49,TEJdata!$B:$B)/SUMIF(TEJdata!$P:$P,$A49,TEJdata!$D:$D)-1)*100)) -> 1.636390547 | D49: =IF(SUMIF(TEJdata!$P:$P,$A49,TEJdata!$B:$B)=0,"",(SUMIF(TEJdata!$P:$P,$A49,TEJdata!$B:$B)/SUMIF(TEJdata!$P:$P,$A49,TEJdata!$C:$C)-1)*100) -> 5.156739179 | E49: =IF(SUMIF(TEJdata!$P:$P,$A49,TEJdata!$E:$E)=0,"",(SUMIF(TEJdata!$P:$P,$A49,TEJdata!$E:$E)/SUMIF(TEJdata!$P:$P,$A49,TEJdata!$F:$F)-1)*100) -> 11.88122741 | F49: =SUMIF(TEJdata!$P:$P,$A49,TEJdata!$B:$B)/1000 -> 9503.84 | G49: =SUMIF(TEJdata!$P:$P,$A49,TEJdata!$G:$G)/$B49 -> 0.9465826923 | H49: =SUMIF(TEJdata!$P:$P,$A49,TEJdata!$H:$H)/$B49 -> 3.272228846 | I49: =IF(SUMIF(TEJdata!$P:$P,$A49,TEJdata!$I:$I)=0,0,IFERROR((SUMIF(TEJdata!$P:$P,$A49,TEJdata!$I:$I)/SUMIF(TEJdata!$P:$P,$A49,TEJdata!$J:$J)-1)*100,"-")) -> -0.5889672623 | J49: =IF(SUMIF(TEJdata!$P:$P,$A49,TEJdata!$K:$K)=0,0,IFERROR((SUMIF(TEJdata!$P:$P,$A49,TEJdata!$K:$K)/SUMIF(TEJdata!$P:$P,$A49,TEJdata!$L:$L)-1)*100,"-")) -> -3.191033258 | K49: =IF(SUMIF(TEJdata!$P:$P,$A49,TEJdata!$M:$M)=0,0,IFERROR((SUMIF(TEJdata!$P:$P,$A49,TEJdata!$M:$M)/SUMIF(TEJdata!$P:$P,$A49,TEJdata!$N:$N)-1)*100,"-")) -> 2.416214551
A50: M15B1 電機 | B50: =COUNTIF(TEJdata!$P:$P,$A50) -> 7 | C50: =IF(SUMIF(TEJdata!$P:$P,$A50,TEJdata!$B:$B)=0,"",IF(AND(SUMIF(TEJdata!$P:$P,$A50,TEJdata!$B:$B)>0,SUMIF(TEJdata!$P:$P,$A50,TEJdata!$D:$D)<0),(SUMIF(TEJdata!$P:$P,$A50,TEJdata!$B:$B)/ABS(SUMIF(TEJdata!$P:$P,$A50,TEJdata!$D:$D)-1))*100,(SUMIF(TEJdata!$P:$P,$A50,TEJdata!$B:$B)/SUMIF(TEJdata!$P:$P,$A50,TEJdata!$D:$D)-1)*100)) -> 1.236325752 | D50: =IF(SUMIF(TEJdata!$P:$P,$A50,TEJdata!$B:$B)=0,"",(SUMIF(TEJdata!$P:$P,$A50,TEJdata!$B:$B)/SUMIF(TEJdata!$P:$P,$A50,TEJdata!$C:$C)-1)*100) -> -3.940578697 | E50: =IF(SUMIF(TEJdata!$P:$P,$A50,TEJdata!$E:$E)=0,"",(SUMIF(TEJdata!$P:$P,$A50,TEJdata!$E:$E)/SUMIF(TEJdata!$P:$P,$A50,TEJdata!$F:$F)-1)*100) -> 19.40796161 | F50: =SUMIF(TEJdata!$P:$P,$A50,TEJdata!$B:$B)/1000 -> 14873.397 | G50: =SUMIF(TEJdata!$P:$P,$A50,TEJdata!$G:$G)/$B50 -> 0.8024714286 | H50: =SUMIF(TEJdata!$P:$P,$A50,TEJdata!$H:$H)/$B50 -> -11.45808571 | I50: =IF(SUMIF(TEJdata!$P:$P,$A50,TEJdata!$I:$I)=0,0,IFERROR((SUMIF(TEJdata!$P:$P,$A50,TEJdata!$I:$I)/SUMIF(TEJdata!$P:$P,$A50,TEJdata!$J:$J)-1)*100,"-")) -> -1.036822475 | J50: =IF(SUMIF(TEJdata!$P:$P,$A50,TEJdata!$K:$K)=0,0,IFERROR((SUMIF(TEJdata!$P:$P,$A50,TEJdata!$K:$K)/SUMIF(TEJdata!$P:$P,$A50,TEJdata!$L:$L)-1)*100,"-")) -> 3.148113029 | K50: =IF(SUMIF(TEJdata!$P:$P,$A50,TEJdata!$M:$M)=0,0,IFERROR((SUMIF(TEJdata!$P:$P,$A50,TEJdata!$M:$M)/SUMIF(TEJdata!$P:$P,$A50,TEJdata!$N:$N)-1)*100,"-")) -> 0.290499246
A51: M23K4 電商及XaaS | B51: =COUNTIF(TEJdata!$P:$P,$A51) -> 16 | C51: =IF(SUMIF(TEJdata!$P:$P,$A51,TEJdata!$B:$B)=0,"",IF(AND(SUMIF(TEJdata!$P:$P,$A51,TEJdata!$B:$B)>0,SUMIF(TEJdata!$P:$P,$A51,TEJdata!$D:$D)<0),(SUMIF(TEJdata!$P:$P,$A51,TEJdata!$B:$B)/ABS(SUMIF(TEJdata!$P:$P,$A51,TEJdata!$D:$D)-1))*100,(SUMIF(TEJdata!$P:$P,$A51,TEJdata!$B:$B)/SUMIF(TEJdata!$P:$P,$A51,TEJdata!$D:$D)-1)*100)) -> 0.9711515384 | D51: =IF(SUMIF(TEJdata!$P:$P,$A51,TEJdata!$B:$B)=0,"",(SUMIF(TEJdata!$P:$P,$A51,TEJdata!$B:$B)/SUMIF(TEJdata!$P:$P,$A51,TEJdata!$C:$C)-1)*100) -> 0.8265861633 | E51: =IF(SUMIF(TEJdata!$P:$P,$A51,TEJdata!$E:$E)=0,"",(SUMIF(TEJdata!$P:$P,$A51,TEJdata!$E:$E)/SUMIF(TEJdata!$P:$P,$A51,TEJdata!$F:$F)-1)*100) -> 0.3720494763 | F51: =SUMIF(TEJdata!$P:$P,$A51,TEJdata!$B:$B)/1000 -> 13147.075 | G51: =SUMIF(TEJdata!$P:$P,$A51,TEJdata!$G:$G)/$B51 -> 0.00263125 | H51: =SUMIF(TEJdata!$P:$P,$A51,TEJdata!$H:$H)/$B51 -> -5.20126875 | I51: =IF(SUMIF(TEJdata!$P:$P,$A51,TEJdata!$I:$I)=0,0,IFERROR((SUMIF(TEJdata!$P:$P,$A51,TEJdata!$I:$I)/SUMIF(TEJdata!$P:$P,$A51,TEJdata!$J:$J)-1)*100,"-")) -> -1.501366133 | J51: =IF(SUMIF(TEJdata!$P:$P,$A51,TEJdata!$K:$K)=0,0,IFERROR((SUMIF(TEJdata!$P:$P,$A51,TEJdata!$K:$K)/SUMIF(TEJdata!$P:$P,$A51,TEJdata!$L:$L)-1)*100,"-")) -> 0.5617977528 | K51: =IF(SUMIF(TEJdata!$P:$P,$A51,TEJdata!$M:$M)=0,0,IFERROR((SUMIF(TEJdata!$P:$P,$A51,TEJdata!$M:$M)/SUMIF(TEJdata!$P:$P,$A51,TEJdata!$N:$N)-1)*100,"-")) -> 3.134567721
A52: M15D 汽車組件 | B52: =COUNTIF(TEJdata!$P:$P,$A52) -> 48 | C52: =IF(SUMIF(TEJdata!$P:$P,$A52,TEJdata!$B:$B)=0,"",IF(AND(SUMIF(TEJdata!$P:$P,$A52,TEJdata!$B:$B)>0,SUMIF(TEJdata!$P:$P,$A52,TEJdata!$D:$D)<0),(SUMIF(TEJdata!$P:$P,$A52,TEJdata!$B:$B)/ABS(SUMIF(TEJdata!$P:$P,$A52,TEJdata!$D:$D)-1))*100,(SUMIF(TEJdata!$P:$P,$A52,TEJdata!$B:$B)/SUMIF(TEJdata!$P:$P,$A52,TEJdata!$D:$D)-1)*100)) -> 0.8550117633 | D52: =IF(SUMIF(TEJdata!$P:$P,$A52,TEJdata!$B:$B)=0,"",(SUMIF(TEJdata!$P:$P,$A52,TEJdata!$B:$B)/SUMIF(TEJdata!$P:$P,$A52,TEJdata!$C:$C)-1)*100) -> -1.119683495 | E52: =IF(SUMIF(TEJdata!$P:$P,$A52,TEJdata!$E:$E)=0,"",(SUMIF(TEJdata!$P:$P,$A52,TEJdata!$E:$E)/SUMIF(TEJdata!$P:$P,$A52,TEJdata!$F:$F)-1)*100) -> 0.69469584 | F52: =SUMIF(TEJdata!$P:$P,$A52,TEJdata!$B:$B)/1000 -> 19141.664 | G52: =SUMIF(TEJdata!$P:$P,$A52,TEJdata!$G:$G)/$B52 -> 0.6095979167 | H52: =SUMIF(TEJdata!$P:$P,$A52,TEJdata!$H:$H)/$B52 -> -1.813410417 | I52: =IF(SUMIF(TEJdata!$P:$P,$A52,TEJdata!$I:$I)=0,0,IFERROR((SUMIF(TEJdata!$P:$P,$A52,TEJdata!$I:$I)/SUMIF(TEJdata!$P:$P,$A52,TEJdata!$J:$J)-1)*100,"-")) -> -1.590874586 | J52: =IF(SUMIF(TEJdata!$P:$P,$A52,TEJdata!$K:$K)=0,0,IFERROR((SUMIF(TEJdata!$P:$P,$A52,TEJdata!$K:$K)/SUMIF(TEJdata!$P:$P,$A52,TEJdata!$L:$L)-1)*100,"-")) -> 11.56115452 | K52: =IF(SUMIF(TEJdata!$P:$P,$A52,TEJdata!$M:$M)=0,0,IFERROR((SUMIF(TEJdata!$P:$P,$A52,TEJdata!$M:$M)/SUMIF(TEJdata!$P:$P,$A52,TEJdata!$N:$N)-1)*100,"-")) -> 1.436320892
A53: M29A1 百貨及Mall | B53: =COUNTIF(TEJdata!$P:$P,$A53) -> 7 | C53: =IF(SUMIF(TEJdata!$P:$P,$A53,TEJdata!$B:$B)=0,"",IF(AND(SUMIF(TEJdata!$P:$P,$A53,TEJdata!$B:$B)>0,SUMIF(TEJdata!$P:$P,$A53,TEJdata!$D:$D)<0),(SUMIF(TEJdata!$P:$P,$A53,TEJdata!$B:$B)/ABS(SUMIF(TEJdata!$P:$P,$A53,TEJdata!$D:$D)-1))*100,(SUMIF(TEJdata!$P:$P,$A53,TEJdata!$B:$B)/SUMIF(TEJdata!$P:$P,$A53,TEJdata!$D:$D)-1)*100)) -> 0.7951342513 | D53: =IF(SUMIF(TEJdata!$P:$P,$A53,TEJdata!$B:$B)=0,"",(SUMIF(TEJdata!$P:$P,$A53,TEJdata!$B:$B)/SUMIF(TEJdata!$P:$P,$A53,TEJdata!$C:$C)-1)*100) -> 29.24599551 | E53: =IF(SUMIF(TEJdata!$P:$P,$A53,TEJdata!$E:$E)=0,"",(SUMIF(TEJdata!$P:$P,$A53,TEJdata!$E:$E)/SUMIF(TEJdata!$P:$P,$A53,TEJdata!$F:$F)-1)*100) -> 3.923736205 | F53: =SUMIF(TEJdata!$P:$P,$A53,TEJdata!$B:$B)/1000 -> 5089.485 | G53: =SUMIF(TEJdata!$P:$P,$A53,TEJdata!$G:$G)/$B53 -> 1.413157143 | H53: =SUMIF(TEJdata!$P:$P,$A53,TEJdata!$H:$H)/$B53 -> -0.5494857143 | I53: =IF(SUMIF(TEJdata!$P:$P,$A53,TEJdata!$I:$I)=0,0,IFERROR((SUMIF(TEJdata!$P:$P,$A53,TEJdata!$I:$I)/SUMIF(TEJdata!$P:$P,$A53,TEJdata!$J:$J)-1)*100,"-")) -> -0.5454305885 | J53: =IF(SUMIF(TEJdata!$P:$P,$A53,TEJdata!$K:$K)=0,0,IFERROR((SUMIF(TEJdata!$P:$P,$A53,TEJdata!$K:$K)/SUMIF(TEJdata!$P:$P,$A53,TEJdata!$L:$L)-1)*100,"-")) -> 7.669125456 | K53: =IF(SUMIF(TEJdata!$P:$P,$A53,TEJdata!$M:$M)=0,0,IFERROR((SUMIF(TEJdata!$P:$P,$A53,TEJdata!$M:$M)/SUMIF(TEJdata!$P:$P,$A53,TEJdata!$N:$N)-1)*100,"-")) -> 1.68768546
A54: M23D9B 散熱零組件 | B54: =COUNTIF(TEJdata!$P:$P,$A54) -> 12 | C54: =IF(SUMIF(TEJdata!$P:$P,$A54,TEJdata!$B:$B)=0,"",IF(AND(SUMIF(TEJdata!$P:$P,$A54,TEJdata!$B:$B)>0,SUMIF(TEJdata!$P:$P,$A54,TEJdata!$D:$D)<0),(SUMIF(TEJdata!$P:$P,$A54,TEJdata!$B:$B)/ABS(SUMIF(TEJdata!$P:$P,$A54,TEJdata!$D:$D)-1))*100,(SUMIF(TEJdata!$P:$P,$A54,TEJdata!$B:$B)/SUMIF(TEJdata!$P:$P,$A54,TEJdata!$D:$D)-1)*100)) -> 0.4486434725 | D54: =IF(SUMIF(TEJdata!$P:$P,$A54,TEJdata!$B:$B)=0,"",(SUMIF(TEJdata!$P:$P,$A54,TEJdata!$B:$B)/SUMIF(TEJdata!$P:$P,$A54,TEJdata!$C:$C)-1)*100) -> -1.302576173 | E54: =IF(SUMIF(TEJdata!$P:$P,$A54,TEJdata!$E:$E)=0,"",(SUMIF(TEJdata!$P:$P,$A54,TEJdata!$E:$E)/SUMIF(TEJdata!$P:$P,$A54,TEJdata!$F:$F)-1)*100) -> -1.185116916 | F54: =SUMIF(TEJdata!$P:$P,$A54,TEJdata!$B:$B)/1000 -> 11606.896 | G54: =SUMIF(TEJdata!$P:$P,$A54,TEJdata!$G:$G)/$B54 -> 1.567758333 | H54: =SUMIF(TEJdata!$P:$P,$A54,TEJdata!$H:$H)/$B54 -> -7.558558333 | I54: =IF(SUMIF(TEJdata!$P:$P,$A54,TEJdata!$I:$I)=0,0,IFERROR((SUMIF(TEJdata!$P:$P,$A54,TEJdata!$I:$I)/SUMIF(TEJdata!$P:$P,$A54,TEJdata!$J:$J)-1)*100,"-")) -> -1.099226738 | J54: =IF(SUMIF(TEJdata!$P:$P,$A54,TEJdata!$K:$K)=0,0,IFERROR((SUMIF(TEJdata!$P:$P,$A54,TEJdata!$K:$K)/SUMIF(TEJdata!$P:$P,$A54,TEJdata!$L:$L)-1)*100,"-")) -> 0.2252578252 | K54: =IF(SUMIF(TEJdata!$P:$P,$A54,TEJdata!$M:$M)=0,0,IFERROR((SUMIF(TEJdata!$P:$P,$A54,TEJdata!$M:$M)/SUMIF(TEJdata!$P:$P,$A54,TEJdata!$N:$N)-1)*100,"-")) -> 3.676716358
A55: M99D2 天然氣 | B55: =COUNTIF(TEJdata!$P:$P,$A55) -> 6 | C55: =IF(SUMIF(TEJdata!$P:$P,$A55,TEJdata!$B:$B)=0,"",IF(AND(SUMIF(TEJdata!$P:$P,$A55,TEJdata!$B:$B)>0,SUMIF(TEJdata!$P:$P,$A55,TEJdata!$D:$D)<0),(SUMIF(TEJdata!$P:$P,$A55,TEJdata!$B:$B)/ABS(SUMIF(TEJdata!$P:$P,$A55,TEJdata!$D:$D)-1))*100,(SUMIF(TEJdata!$P:$P,$A55,TEJdata!$B:$B)/SUMIF(TEJdata!$P:$P,$A55,TEJdata!$D:$D)-1)*100)) -> 0.3468419004 | D55: =IF(SUMIF(TEJdata!$P:$P,$A55,TEJdata!$B:$B)=0,"",(SUMIF(TEJdata!$P:$P,$A55,TEJdata!$B:$B)/SUMIF(TEJdata!$P:$P,$A55,TEJdata!$C:$C)-1)*100) -> 4.721500986 | E55: =IF(SUMIF(TEJdata!$P:$P,$A55,TEJdata!$E:$E)=0,"",(SUMIF(TEJdata!$P:$P,$A55,TEJdata!$E:$E)/SUMIF(TEJdata!$P:$P,$A55,TEJdata!$F:$F)-1)*100) -> -0.6055264535 | F55: =SUMIF(TEJdata!$P:$P,$A55,TEJdata!$B:$B)/1000 -> 1441.082 | G55: =SUMIF(TEJdata!$P:$P,$A55,TEJdata!$G:$G)/$B55 -> -0.3930833333 | H55: =SUMIF(TEJdata!$P:$P,$A55,TEJdata!$H:$H)/$B55 -> -1.5669 | I55: =IF(SUMIF(TEJdata!$P:$P,$A55,TEJdata!$I:$I)=0,0,IFERROR((SUMIF(TEJdata!$P:$P,$A55,TEJdata!$I:$I)/SUMIF(TEJdata!$P:$P,$A55,TEJdata!$J:$J)-1)*100,"-")) -> 0.0441769286 | J55: =IF(SUMIF(TEJdata!$P:$P,$A55,TEJdata!$K:$K)=0,0,IFERROR((SUMIF(TEJdata!$P:$P,$A55,TEJdata!$K:$K)/SUMIF(TEJdata!$P:$P,$A55,TEJdata!$L:$L)-1)*100,"-")) -> 0 | K55: =IF(SUMIF(TEJdata!$P:$P,$A55,TEJdata!$M:$M)=0,0,IFERROR((SUMIF(TEJdata!$P:$P,$A55,TEJdata!$M:$M)/SUMIF(TEJdata!$P:$P,$A55,TEJdata!$N:$N)-1)*100,"-")) -> 1.123595506
A56: M17C2 機能性食品 | B56: =COUNTIF(TEJdata!$P:$P,$A56) -> 12 | C56: =IF(SUMIF(TEJdata!$P:$P,$A56,TEJdata!$B:$B)=0,"",IF(AND(SUMIF(TEJdata!$P:$P,$A56,TEJdata!$B:$B)>0,SUMIF(TEJdata!$P:$P,$A56,TEJdata!$D:$D)<0),(SUMIF(TEJdata!$P:$P,$A56,TEJdata!$B:$B)/ABS(SUMIF(TEJdata!$P:$P,$A56,TEJdata!$D:$D)-1))*100,(SUMIF(TEJdata!$P:$P,$A56,TEJdata!$B:$B)/SUMIF(TEJdata!$P:$P,$A56,TEJdata!$D:$D)-1)*100)) -> -0.4588044003 | D56: =IF(SUMIF(TEJdata!$P:$P,$A56,TEJdata!$B:$B)=0,"",(SUMIF(TEJdata!$P:$P,$A56,TEJdata!$B:$B)/SUMIF(TEJdata!$P:$P,$A56,TEJdata!$C:$C)-1)*100) -> 1.661340778 | E56: =IF(SUMIF(TEJdata!$P:$P,$A56,TEJdata!$E:$E)=0,"",(SUMIF(TEJdata!$P:$P,$A56,TEJdata!$E:$E)/SUMIF(TEJdata!$P:$P,$A56,TEJdata!$F:$F)-1)*100) -> 3.977328404 | F56: =SUMIF(TEJdata!$P:$P,$A56,TEJdata!$B:$B)/1000 -> 1933.311 | G56: =SUMIF(TEJdata!$P:$P,$A56,TEJdata!$G:$G)/$B56 -> 1.595908333 | H56: =SUMIF(TEJdata!$P:$P,$A56,TEJdata!$H:$H)/$B56 -> -3.911025 | I56: =IF(SUMIF(TEJdata!$P:$P,$A56,TEJdata!$I:$I)=0,0,IFERROR((SUMIF(TEJdata!$P:$P,$A56,TEJdata!$I:$I)/SUMIF(TEJdata!$P:$P,$A56,TEJdata!$J:$J)-1)*100,"-")) -> -0.2833203766 | J56: =IF(SUMIF(TEJdata!$P:$P,$A56,TEJdata!$K:$K)=0,0,IFERROR((SUMIF(TEJdata!$P:$P,$A56,TEJdata!$K:$K)/SUMIF(TEJdata!$P:$P,$A56,TEJdata!$L:$L)-1)*100,"-")) -> -0.8223684211 | K56: =IF(SUMIF(TEJdata!$P:$P,$A56,TEJdata!$M:$M)=0,0,IFERROR((SUMIF(TEJdata!$P:$P,$A56,TEJdata!$M:$M)/SUMIF(TEJdata!$P:$P,$A56,TEJdata!$N:$N)-1)*100,"-")) -> 1.322154144
A57: M23D9A 沖壓零組件 | B57: =COUNTIF(TEJdata!$P:$P,$A57) -> 22 | C57: =IF(SUMIF(TEJdata!$P:$P,$A57,TEJdata!$B:$B)=0,"",IF(AND(SUMIF(TEJdata!$P:$P,$A57,TEJdata!$B:$B)>0,SUMIF(TEJdata!$P:$P,$A57,TEJdata!$D:$D)<0),(SUMIF(TEJdata!$P:$P,$A57,TEJdata!$B:$B)/ABS(SUMIF(TEJdata!$P:$P,$A57,TEJdata!$D:$D)-1))*100,(SUMIF(TEJdata!$P:$P,$A57,TEJdata!$B:$B)/SUMIF(TEJdata!$P:$P,$A57,TEJdata!$D:$D)-1)*100)) -> -0.7120299851 | D57: =IF(SUMIF(TEJdata!$P:$P,$A57,TEJdata!$B:$B)=0,"",(SUMIF(TEJdata!$P:$P,$A57,TEJdata!$B:$B)/SUMIF(TEJdata!$P:$P,$A57,TEJdata!$C:$C)-1)*100) -> -4.337942074 | E57: =IF(SUMIF(TEJdata!$P:$P,$A57,TEJdata!$E:$E)=0,"",(SUMIF(TEJdata!$P:$P,$A57,TEJdata!$E:$E)/SUMIF(TEJdata!$P:$P,$A57,TEJdata!$F:$F)-1)*100) -> -12.15682844 | F57: =SUMIF(TEJdata!$P:$P,$A57,TEJdata!$B:$B)/1000 -> 7975.054 | G57: =SUMIF(TEJdata!$P:$P,$A57,TEJdata!$G:$G)/$B57 -> 5.3432 | H57: =SUMIF(TEJdata!$P:$P,$A57,TEJdata!$H:$H)/$B57 -> 5.235840909 | I57: =IF(SUMIF(TEJdata!$P:$P,$A57,TEJdata!$I:$I)=0,0,IFERROR((SUMIF(TEJdata!$P:$P,$A57,TEJdata!$I:$I)/SUMIF(TEJdata!$P:$P,$A57,TEJdata!$J:$J)-1)*100,"-")) -> -0.1647112651 | J57: =IF(SUMIF(TEJdata!$P:$P,$A57,TEJdata!$K:$K)=0,0,IFERROR((SUMIF(TEJdata!$P:$P,$A57,TEJdata!$K:$K)/SUMIF(TEJdata!$P:$P,$A57,TEJdata!$L:$L)-1)*100,"-")) -> 89.04680983 | K57: =IF(SUMIF(TEJdata!$P:$P,$A57,TEJdata!$M:$M)=0,0,IFERROR((SUMIF(TEJdata!$P:$P,$A57,TEJdata!$M:$M)/SUMIF(TEJdata!$P:$P,$A57,TEJdata!$N:$N)-1)*100,"-")) -> 1.875881155
A58: M17G 醫療耗材 | B58: =COUNTIF(TEJdata!$P:$P,$A58) -> 52 | C58: =IF(SUMIF(TEJdata!$P:$P,$A58,TEJdata!$B:$B)=0,"",IF(AND(SUMIF(TEJdata!$P:$P,$A58,TEJdata!$B:$B)>0,SUMIF(TEJdata!$P:$P,$A58,TEJdata!$D:$D)<0),(SUMIF(TEJdata!$P:$P,$A58,TEJdata!$B:$B)/ABS(SUMIF(TEJdata!$P:$P,$A58,TEJdata!$D:$D)-1))*100,(SUMIF(TEJdata!$P:$P,$A58,TEJdata!$B:$B)/SUMIF(TEJdata!$P:$P,$A58,TEJdata!$D:$D)-1)*100)) -> -0.9033926047 | D58: =IF(SUMIF(TEJdata!$P:$P,$A58,TEJdata!$B:$B)=0,"",(SUMIF(TEJdata!$P:$P,$A58,TEJdata!$B:$B)/SUMIF(TEJdata!$P:$P,$A58,TEJdata!$C:$C)-1)*100) -> 9.142685035 | E58: =IF(SUMIF(TEJdata!$P:$P,$A58,TEJdata!$E:$E)=0,"",(SUMIF(TEJdata!$P:$P,$A58,TEJdata!$E:$E)/SUMIF(TEJdata!$P:$P,$A58,TEJdata!$F:$F)-1)*100) -> -5.769388799 | F58: =SUMIF(TEJdata!$P:$P,$A58,TEJdata!$B:$B)/1000 -> 7859.893 | G58: =SUMIF(TEJdata!$P:$P,$A58,TEJdata!$G:$G)/$B58 -> 0.8851384615 | H58: =SUMIF(TEJdata!$P:$P,$A58,TEJdata!$H:$H)/$B58 -> -1.435161538 | I58: =IF(SUMIF(TEJdata!$P:$P,$A58,TEJdata!$I:$I)=0,0,IFERROR((SUMIF(TEJdata!$P:$P,$A58,TEJdata!$I:$I)/SUMIF(TEJdata!$P:$P,$A58,TEJdata!$J:$J)-1)*100,"-")) -> -0.54981014 | J58: =IF(SUMIF(TEJdata!$P:$P,$A58,TEJdata!$K:$K)=0,0,IFERROR((SUMIF(TEJdata!$P:$P,$A58,TEJdata!$K:$K)/SUMIF(TEJdata!$P:$P,$A58,TEJdata!$L:$L)-1)*100,"-")) -> 7.31361785 | K58: =IF(SUMIF(TEJdata!$P:$P,$A58,TEJdata!$M:$M)=0,0,IFERROR((SUMIF(TEJdata!$P:$P,$A58,TEJdata!$M:$M)/SUMIF(TEJdata!$P:$P,$A58,TEJdata!$N:$N)-1)*100,"-")) -> 7.602370787
A59: M23K6 光元件模組 | B59: =COUNTIF(TEJdata!$P:$P,$A59) -> 14 | C59: =IF(SUMIF(TEJdata!$P:$P,$A59,TEJdata!$B:$B)=0,"",IF(AND(SUMIF(TEJdata!$P:$P,$A59,TEJdata!$B:$B)>0,SUMIF(TEJdata!$P:$P,$A59,TEJdata!$D:$D)<0),(SUMIF(TEJdata!$P:$P,$A59,TEJdata!$B:$B)/ABS(SUMIF(TEJdata!$P:$P,$A59,TEJdata!$D:$D)-1))*100,(SUMIF(TEJdata!$P:$P,$A59,TEJdata!$B:$B)/SUMIF(TEJdata!$P:$P,$A59,TEJdata!$D:$D)-1)*100)) -> -1.539929966 | D59: =IF(SUMIF(TEJdata!$P:$P,$A59,TEJdata!$B:$B)=0,"",(SUMIF(TEJdata!$P:$P,$A59,TEJdata!$B:$B)/SUMIF(TEJdata!$P:$P,$A59,TEJdata!$C:$C)-1)*100) -> 4.305799009 | E59: =IF(SUMIF(TEJdata!$P:$P,$A59,TEJdata!$E:$E)=0,"",(SUMIF(TEJdata!$P:$P,$A59,TEJdata!$E:$E)/SUMIF(TEJdata!$P:$P,$A59,TEJdata!$F:$F)-1)*100) -> -14.12118785 | F59: =SUMIF(TEJdata!$P:$P,$A59,TEJdata!$B:$B)/1000 -> 2005.352 | G59: =SUMIF(TEJdata!$P:$P,$A59,TEJdata!$G:$G)/$B59 -> -3.192707143 | H59: =SUMIF(TEJdata!$P:$P,$A59,TEJdata!$H:$H)/$B59 -> -2.3955 | I59: =IF(SUMIF(TEJdata!$P:$P,$A59,TEJdata!$I:$I)=0,0,IFERROR((SUMIF(TEJdata!$P:$P,$A59,TEJdata!$I:$I)/SUMIF(TEJdata!$P:$P,$A59,TEJdata!$J:$J)-1)*100,"-")) -> -4.517707049 | J59: =IF(SUMIF(TEJdata!$P:$P,$A59,TEJdata!$K:$K)=0,0,IFERROR((SUMIF(TEJdata!$P:$P,$A59,TEJdata!$K:$K)/SUMIF(TEJdata!$P:$P,$A59,TEJdata!$L:$L)-1)*100,"-")) -> -7.671448565 | K59: =IF(SUMIF(TEJdata!$P:$P,$A59,TEJdata!$M:$M)=0,0,IFERROR((SUMIF(TEJdata!$P:$P,$A59,TEJdata!$M:$M)/SUMIF(TEJdata!$P:$P,$A59,TEJdata!$N:$N)-1)*100,"-")) -> -0.393687615
A60: M23Z 其他電子 | B60: =COUNTIF(TEJdata!$P:$P,$A60) -> 12 | C60: =IF(SUMIF(TEJdata!$P:$P,$A60,TEJdata!$B:$B)=0,"",IF(AND(SUMIF(TEJdata!$P:$P,$A60,TEJdata!$B:$B)>0,SUMIF(TEJdata!$P:$P,$A60,TEJdata!$D:$D)<0),(SUMIF(TEJdata!$P:$P,$A60,TEJdata!$B:$B)/ABS(SUMIF(TEJdata!$P:$P,$A60,TEJdata!$D:$D)-1))*100,(SUMIF(TEJdata!$P:$P,$A60,TEJdata!$B:$B)/SUMIF(TEJdata!$P:$P,$A60,TEJdata!$D:$D)-1)*100)) -> -2.107160409 | D60: =IF(SUMIF(TEJdata!$P:$P,$A60,TEJdata!$B:$B)=0,"",(SUMIF(TEJdata!$P:$P,$A60,TEJdata!$B:$B)/SUMIF(TEJdata!$P:$P,$A60,TEJdata!$C:$C)-1)*100) -> -6.865473931 | E60: =IF(SUMIF(TEJdata!$P:$P,$A60,TEJdata!$E:$E)=0,"",(SUMIF(TEJdata!$P:$P,$A60,TEJdata!$E:$E)/SUMIF(TEJdata!$P:$P,$A60,TEJdata!$F:$F)-1)*100) -> 0.4043087306 | F60: =SUMIF(TEJdata!$P:$P,$A60,TEJdata!$B:$B)/1000 -> 1611.462 | G60: =SUMIF(TEJdata!$P:$P,$A60,TEJdata!$G:$G)/$B60 -> 0.1898833333 | H60: =SUMIF(TEJdata!$P:$P,$A60,TEJdata!$H:$H)/$B60 -> 4.442716667 | I60: =IF(SUMIF(TEJdata!$P:$P,$A60,TEJdata!$I:$I)=0,0,IFERROR((SUMIF(TEJdata!$P:$P,$A60,TEJdata!$I:$I)/SUMIF(TEJdata!$P:$P,$A60,TEJdata!$J:$J)-1)*100,"-")) -> -0.3938680156 | J60: =IF(SUMIF(TEJdata!$P:$P,$A60,TEJdata!$K:$K)=0,0,IFERROR((SUMIF(TEJdata!$P:$P,$A60,TEJdata!$K:$K)/SUMIF(TEJdata!$P:$P,$A60,TEJdata!$L:$L)-1)*100,"-")) -> -6.562828141 | K60: =IF(SUMIF(TEJdata!$P:$P,$A60,TEJdata!$M:$M)=0,0,IFERROR((SUMIF(TEJdata!$P:$P,$A60,TEJdata!$M:$M)/SUMIF(TEJdata!$P:$P,$A60,TEJdata!$N:$N)-1)*100,"-")) -> 0.560966903
A61: M12Z 其他食品 | B61: =COUNTIF(TEJdata!$P:$P,$A61) -> 10 | C61: =IF(SUMIF(TEJdata!$P:$P,$A61,TEJdata!$B:$B)=0,"",IF(AND(SUMIF(TEJdata!$P:$P,$A61,TEJdata!$B:$B)>0,SUMIF(TEJdata!$P:$P,$A61,TEJdata!$D:$D)<0),(SUMIF(TEJdata!$P:$P,$A61,TEJdata!$B:$B)/ABS(SUMIF(TEJdata!$P:$P,$A61,TEJdata!$D:$D)-1))*100,(SUMIF(TEJdata!$P:$P,$A61,TEJdata!$B:$B)/SUMIF(TEJdata!$P:$P,$A61,TEJdata!$D:$D)-1)*100)) -> -2.379429491 | D61: =IF(SUMIF(TEJdata!$P:$P,$A61,TEJdata!$B:$B)=0,"",(SUMIF(TEJdata!$P:$P,$A61,TEJdata!$B:$B)/SUMIF(TEJdata!$P:$P,$A61,TEJdata!$C:$C)-1)*100) -> -19.85637534 | E61: =IF(SUMIF(TEJdata!$P:$P,$A61,TEJdata!$E:$E)=0,"",(SUMIF(TEJdata!$P:$P,$A61,TEJdata!$E:$E)/SUMIF(TEJdata!$P:$P,$A61,TEJdata!$F:$F)-1)*100) -> 1.338371619 | F61: =SUMIF(TEJdata!$P:$P,$A61,TEJdata!$B:$B)/1000 -> 5056.44 | G61: =SUMIF(TEJdata!$P:$P,$A61,TEJdata!$G:$G)/$B61 -> 0.53442 | H61: =SUMIF(TEJdata!$P:$P,$A61,TEJdata!$H:$H)/$B61 -> 1.0076 | I61: =IF(SUMIF(TEJdata!$P:$P,$A61,TEJdata!$I:$I)=0,0,IFERROR((SUMIF(TEJdata!$P:$P,$A61,TEJdata!$I:$I)/SUMIF(TEJdata!$P:$P,$A61,TEJdata!$J:$J)-1)*100,"-")) -> 0.2812894393 | J61: =IF(SUMIF(TEJdata!$P:$P,$A61,TEJdata!$K:$K)=0,0,IFERROR((SUMIF(TEJdata!$P:$P,$A61,TEJdata!$K:$K)/SUMIF(TEJdata!$P:$P,$A61,TEJdata!$L:$L)-1)*100,"-")) -> 0 | K61: =IF(SUMIF(TEJdata!$P:$P,$A61,TEJdata!$M:$M)=0,0,IFERROR((SUMIF(TEJdata!$P:$P,$A61,TEJdata!$M:$M)/SUMIF(TEJdata!$P:$P,$A61,TEJdata!$N:$N)-1)*100,"-")) -> 0.9057971014
A62: M23C4B 硬碟磁碟 | B62: =COUNTIF(TEJdata!$P:$P,$A62) -> 4 | C62: =IF(SUMIF(TEJdata!$P:$P,$A62,TEJdata!$B:$B)=0,"",IF(AND(SUMIF(TEJdata!$P:$P,$A62,TEJdata!$B:$B)>0,SUMIF(TEJdata!$P:$P,$A62,TEJdata!$D:$D)<0),(SUMIF(TEJdata!$P:$P,$A62,TEJdata!$B:$B)/ABS(SUMIF(TEJdata!$P:$P,$A62,TEJdata!$D:$D)-1))*100,(SUMIF(TEJdata!$P:$P,$A62,TEJdata!$B:$B)/SUMIF(TEJdata!$P:$P,$A62,TEJdata!$D:$D)-1)*100)) -> -2.38091752 | D62: =IF(SUMIF(TEJdata!$P:$P,$A62,TEJdata!$B:$B)=0,"",(SUMIF(TEJdata!$P:$P,$A62,TEJdata!$B:$B)/SUMIF(TEJdata!$P:$P,$A62,TEJdata!$C:$C)-1)*100) -> -5.420889869 | E62: =IF(SUMIF(TEJdata!$P:$P,$A62,TEJdata!$E:$E)=0,"",(SUMIF(TEJdata!$P:$P,$A62,TEJdata!$E:$E)/SUMIF(TEJdata!$P:$P,$A62,TEJdata!$F:$F)-1)*100) -> -21.19371041 | F62: =SUMIF(TEJdata!$P:$P,$A62,TEJdata!$B:$B)/1000 -> 533.377 | G62: =SUMIF(TEJdata!$P:$P,$A62,TEJdata!$G:$G)/$B62 -> 1.102925 | H62: =SUMIF(TEJdata!$P:$P,$A62,TEJdata!$H:$H)/$B62 -> -2.319625 | I62: =IF(SUMIF(TEJdata!$P:$P,$A62,TEJdata!$I:$I)=0,0,IFERROR((SUMIF(TEJdata!$P:$P,$A62,TEJdata!$I:$I)/SUMIF(TEJdata!$P:$P,$A62,TEJdata!$J:$J)-1)*100,"-")) -> -0.02573133272 | J62: =IF(SUMIF(TEJdata!$P:$P,$A62,TEJdata!$K:$K)=0,0,IFERROR((SUMIF(TEJdata!$P:$P,$A62,TEJdata!$K:$K)/SUMIF(TEJdata!$P:$P,$A62,TEJdata!$L:$L)-1)*100,"-")) -> 0 | K62: =IF(SUMIF(TEJdata!$P:$P,$A62,TEJdata!$M:$M)=0,0,IFERROR((SUMIF(TEJdata!$P:$P,$A62,TEJdata!$M:$M)/SUMIF(TEJdata!$P:$P,$A62,TEJdata!$N:$N)-1)*100,"-")) -> 2.134069797
A63: M19A 造紙 | B63: =COUNTIF(TEJdata!$P:$P,$A63) -> 6 | C63: =IF(SUMIF(TEJdata!$P:$P,$A63,TEJdata!$B:$B)=0,"",IF(AND(SUMIF(TEJdata!$P:$P,$A63,TEJdata!$B:$B)>0,SUMIF(TEJdata!$P:$P,$A63,TEJdata!$D:$D)<0),(SUMIF(TEJdata!$P:$P,$A63,TEJdata!$B:$B)/ABS(SUMIF(TEJdata!$P:$P,$A63,TEJdata!$D:$D)-1))*100,(SUMIF(TEJdata!$P:$P,$A63,TEJdata!$B:$B)/SUMIF(TEJdata!$P:$P,$A63,TEJdata!$D:$D)-1)*100)) -> -2.501060827 | D63: =IF(SUMIF(TEJdata!$P:$P,$A63,TEJdata!$B:$B)=0,"",(SUMIF(TEJdata!$P:$P,$A63,TEJdata!$B:$B)/SUMIF(TEJdata!$P:$P,$A63,TEJdata!$C:$C)-1)*100) -> 2.916208936 | E63: =IF(SUMIF(TEJdata!$P:$P,$A63,TEJdata!$E:$E)=0,"",(SUMIF(TEJdata!$P:$P,$A63,TEJdata!$E:$E)/SUMIF(TEJdata!$P:$P,$A63,TEJdata!$F:$F)-1)*100) -> -9.413290875 | F63: =SUMIF(TEJdata!$P:$P,$A63,TEJdata!$B:$B)/1000 -> 15619.839 | G63: =SUMIF(TEJdata!$P:$P,$A63,TEJdata!$G:$G)/$B63 -> 0.7495166667 | H63: =SUMIF(TEJdata!$P:$P,$A63,TEJdata!$H:$H)/$B63 -> -2.713916667 | I63: =IF(SUMIF(TEJdata!$P:$P,$A63,TEJdata!$I:$I)=0,0,IFERROR((SUMIF(TEJdata!$P:$P,$A63,TEJdata!$I:$I)/SUMIF(TEJdata!$P:$P,$A63,TEJdata!$J:$J)-1)*100,"-")) -> -0.2933496045 | J63: =IF(SUMIF(TEJdata!$P:$P,$A63,TEJdata!$K:$K)=0,0,IFERROR((SUMIF(TEJdata!$P:$P,$A63,TEJdata!$K:$K)/SUMIF(TEJdata!$P:$P,$A63,TEJdata!$L:$L)-1)*100,"-")) -> -0.0128584287 | K63: =IF(SUMIF(TEJdata!$P:$P,$A63,TEJdata!$M:$M)=0,0,IFERROR((SUMIF(TEJdata!$P:$P,$A63,TEJdata!$M:$M)/SUMIF(TEJdata!$P:$P,$A63,TEJdata!$N:$N)-1)*100,"-")) -> -0.03048780488
A64: M23D3 電源供應器 | B64: =COUNTIF(TEJdata!$P:$P,$A64) -> 27 | C64: =IF(SUMIF(TEJdata!$P:$P,$A64,TEJdata!$B:$B)=0,"",IF(AND(SUMIF(TEJdata!$P:$P,$A64,TEJdata!$B:$B)>0,SUMIF(TEJdata!$P:$P,$A64,TEJdata!$D:$D)<0),(SUMIF(TEJdata!$P:$P,$A64,TEJdata!$B:$B)/ABS(SUMIF(TEJdata!$P:$P,$A64,TEJdata!$D:$D)-1))*100,(SUMIF(TEJdata!$P:$P,$A64,TEJdata!$B:$B)/SUMIF(TEJdata!$P:$P,$A64,TEJdata!$D:$D)-1)*100)) -> -3.126195955 | D64: =IF(SUMIF(TEJdata!$P:$P,$A64,TEJdata!$B:$B)=0,"",(SUMIF(TEJdata!$P:$P,$A64,TEJdata!$B:$B)/SUMIF(TEJdata!$P:$P,$A64,TEJdata!$C:$C)-1)*100) -> -5.020725933 | E64: =IF(SUMIF(TEJdata!$P:$P,$A64,TEJdata!$E:$E)=0,"",(SUMIF(TEJdata!$P:$P,$A64,TEJdata!$E:$E)/SUMIF(TEJdata!$P:$P,$A64,TEJdata!$F:$F)-1)*100) -> 3.582315456 | F64: =SUMIF(TEJdata!$P:$P,$A64,TEJdata!$B:$B)/1000 -> 48198.266 | G64: =SUMIF(TEJdata!$P:$P,$A64,TEJdata!$G:$G)/$B64 -> 1.021277778 | H64: =SUMIF(TEJdata!$P:$P,$A64,TEJdata!$H:$H)/$B64 -> -3.754485185 | I64: =IF(SUMIF(TEJdata!$P:$P,$A64,TEJdata!$I:$I)=0,0,IFERROR((SUMIF(TEJdata!$P:$P,$A64,TEJdata!$I:$I)/SUMIF(TEJdata!$P:$P,$A64,TEJdata!$J:$J)-1)*100,"-")) -> -0.1832912751 | J64: =IF(SUMIF(TEJdata!$P:$P,$A64,TEJdata!$K:$K)=0,0,IFERROR((SUMIF(TEJdata!$P:$P,$A64,TEJdata!$K:$K)/SUMIF(TEJdata!$P:$P,$A64,TEJdata!$L:$L)-1)*100,"-")) -> -1.166323489 | K64: =IF(SUMIF(TEJdata!$P:$P,$A64,TEJdata!$M:$M)=0,0,IFERROR((SUMIF(TEJdata!$P:$P,$A64,TEJdata!$M:$M)/SUMIF(TEJdata!$P:$P,$A64,TEJdata!$N:$N)-1)*100,"-")) -> 0.808155085
A65: M23D1 分離式元件 | B65: =COUNTIF(TEJdata!$P:$P,$A65) -> 7 | C65: =IF(SUMIF(TEJdata!$P:$P,$A65,TEJdata!$B:$B)=0,"",IF(AND(SUMIF(TEJdata!$P:$P,$A65,TEJdata!$B:$B)>0,SUMIF(TEJdata!$P:$P,$A65,TEJdata!$D:$D)<0),(SUMIF(TEJdata!$P:$P,$A65,TEJdata!$B:$B)/ABS(SUMIF(TEJdata!$P:$P,$A65,TEJdata!$D:$D)-1))*100,(SUMIF(TEJdata!$P:$P,$A65,TEJdata!$B:$B)/SUMIF(TEJdata!$P:$P,$A65,TEJdata!$D:$D)-1)*100)) -> -3.134486152 | D65: =IF(SUMIF(TEJdata!$P:$P,$A65,TEJdata!$B:$B)=0,"",(SUMIF(TEJdata!$P:$P,$A65,TEJdata!$B:$B)/SUMIF(TEJdata!$P:$P,$A65,TEJdata!$C:$C)-1)*100) -> -6.894214958 | E65: =IF(SUMIF(TEJdata!$P:$P,$A65,TEJdata!$E:$E)=0,"",(SUMIF(TEJdata!$P:$P,$A65,TEJdata!$E:$E)/SUMIF(TEJdata!$P:$P,$A65,TEJdata!$F:$F)-1)*100) -> -2.959969075 | F65: =SUMIF(TEJdata!$P:$P,$A65,TEJdata!$B:$B)/1000 -> 2989.664 | G65: =SUMIF(TEJdata!$P:$P,$A65,TEJdata!$G:$G)/$B65 -> -0.8384142857 | H65: =SUMIF(TEJdata!$P:$P,$A65,TEJdata!$H:$H)/$B65 -> -5.7299 | I65: =IF(SUMIF(TEJdata!$P:$P,$A65,TEJdata!$I:$I)=0,0,IFERROR((SUMIF(TEJdata!$P:$P,$A65,TEJdata!$I:$I)/SUMIF(TEJdata!$P:$P,$A65,TEJdata!$J:$J)-1)*100,"-")) -> 0.212563491 | J65: =IF(SUMIF(TEJdata!$P:$P,$A65,TEJdata!$K:$K)=0,0,IFERROR((SUMIF(TEJdata!$P:$P,$A65,TEJdata!$K:$K)/SUMIF(TEJdata!$P:$P,$A65,TEJdata!$L:$L)-1)*100,"-")) -> -3.310238645 | K65: =IF(SUMIF(TEJdata!$P:$P,$A65,TEJdata!$M:$M)=0,0,IFERROR((SUMIF(TEJdata!$P:$P,$A65,TEJdata!$M:$M)/SUMIF(TEJdata!$P:$P,$A65,TEJdata!$N:$N)-1)*100,"-")) -> -2.125140762
A66: M15A2 模具零件 | B66: =COUNTIF(TEJdata!$P:$P,$A66) -> 15 | C66: =IF(SUMIF(TEJdata!$P:$P,$A66,TEJdata!$B:$B)=0,"",IF(AND(SUMIF(TEJdata!$P:$P,$A66,TEJdata!$B:$B)>0,SUMIF(TEJdata!$P:$P,$A66,TEJdata!$D:$D)<0),(SUMIF(TEJdata!$P:$P,$A66,TEJdata!$B:$B)/ABS(SUMIF(TEJdata!$P:$P,$A66,TEJdata!$D:$D)-1))*100,(SUMIF(TEJdata!$P:$P,$A66,TEJdata!$B:$B)/SUMIF(TEJdata!$P:$P,$A66,TEJdata!$D:$D)-1)*100)) -> -3.316458016 | D66: =IF(SUMIF(TEJdata!$P:$P,$A66,TEJdata!$B:$B)=0,"",(SUMIF(TEJdata!$P:$P,$A66,TEJdata!$B:$B)/SUMIF(TEJdata!$P:$P,$A66,TEJdata!$C:$C)-1)*100) -> -8.208231232 | E66: =IF(SUMIF(TEJdata!$P:$P,$A66,TEJdata!$E:$E)=0,"",(SUMIF(TEJdata!$P:$P,$A66,TEJdata!$E:$E)/SUMIF(TEJdata!$P:$P,$A66,TEJdata!$F:$F)-1)*100) -> -5.629810611 | F66: =SUMIF(TEJdata!$P:$P,$A66,TEJdata!$B:$B)/1000 -> 7418.854 | G66: =SUMIF(TEJdata!$P:$P,$A66,TEJdata!$G:$G)/$B66 -> 0.9755266667 | H66: =SUMIF(TEJdata!$P:$P,$A66,TEJdata!$H:$H)/$B66 -> 0.06801333333 | I66: =IF(SUMIF(TEJdata!$P:$P,$A66,TEJdata!$I:$I)=0,0,IFERROR((SUMIF(TEJdata!$P:$P,$A66,TEJdata!$I:$I)/SUMIF(TEJdata!$P:$P,$A66,TEJdata!$J:$J)-1)*100,"-")) -> 0.2815109967 | J66: =IF(SUMIF(TEJdata!$P:$P,$A66,TEJdata!$K:$K)=0,0,IFERROR((SUMIF(TEJdata!$P:$P,$A66,TEJdata!$K:$K)/SUMIF(TEJdata!$P:$P,$A66,TEJdata!$L:$L)-1)*100,"-")) -> -2.205882353 | K66: =IF(SUMIF(TEJdata!$P:$P,$A66,TEJdata!$M:$M)=0,0,IFERROR((SUMIF(TEJdata!$P:$P,$A66,TEJdata!$M:$M)/SUMIF(TEJdata!$P:$P,$A66,TEJdata!$N:$N)-1)*100,"-")) -> -0.5266206751
A67: M21A 輪胎 | B67: =COUNTIF(TEJdata!$P:$P,$A67) -> 5 | C67: =IF(SUMIF(TEJdata!$P:$P,$A67,TEJdata!$B:$B)=0,"",IF(AND(SUMIF(TEJdata!$P:$P,$A67,TEJdata!$B:$B)>0,SUMIF(TEJdata!$P:$P,$A67,TEJdata!$D:$D)<0),(SUMIF(TEJdata!$P:$P,$A67,TEJdata!$B:$B)/ABS(SUMIF(TEJdata!$P:$P,$A67,TEJdata!$D:$D)-1))*100,(SUMIF(TEJdata!$P:$P,$A67,TEJdata!$B:$B)/SUMIF(TEJdata!$P:$P,$A67,TEJdata!$D:$D)-1)*100)) -> -3.408558709 | D67: =IF(SUMIF(TEJdata!$P:$P,$A67,TEJdata!$B:$B)=0,"",(SUMIF(TEJdata!$P:$P,$A67,TEJdata!$B:$B)/SUMIF(TEJdata!$P:$P,$A67,TEJdata!$C:$C)-1)*100) -> -6.737506119 | E67: =IF(SUMIF(TEJdata!$P:$P,$A67,TEJdata!$E:$E)=0,"",(SUMIF(TEJdata!$P:$P,$A67,TEJdata!$E:$E)/SUMIF(TEJdata!$P:$P,$A67,TEJdata!$F:$F)-1)*100) -> -6.424478079 | F67: =SUMIF(TEJdata!$P:$P,$A67,TEJdata!$B:$B)/1000 -> 11716.707 | G67: =SUMIF(TEJdata!$P:$P,$A67,TEJdata!$G:$G)/$B67 -> 0.91908 | H67: =SUMIF(TEJdata!$P:$P,$A67,TEJdata!$H:$H)/$B67 -> -0.17416 | I67: =IF(SUMIF(TEJdata!$P:$P,$A67,TEJdata!$I:$I)=0,0,IFERROR((SUMIF(TEJdata!$P:$P,$A67,TEJdata!$I:$I)/SUMIF(TEJdata!$P:$P,$A67,TEJdata!$J:$J)-1)*100,"-")) -> 0.9593193745 | J67: =IF(SUMIF(TEJdata!$P:$P,$A67,TEJdata!$K:$K)=0,0,IFERROR((SUMIF(TEJdata!$P:$P,$A67,TEJdata!$K:$K)/SUMIF(TEJdata!$P:$P,$A67,TEJdata!$L:$L)-1)*100,"-")) -> -1.660059465 | K67: =IF(SUMIF(TEJdata!$P:$P,$A67,TEJdata!$M:$M)=0,0,IFERROR((SUMIF(TEJdata!$P:$P,$A67,TEJdata!$M:$M)/SUMIF(TEJdata!$P:$P,$A67,TEJdata!$N:$N)-1)*100,"-")) -> -0.8121158911
A68: M23D5 被動元件 | B68: =COUNTIF(TEJdata!$P:$P,$A68) -> 29 | C68: =IF(SUMIF(TEJdata!$P:$P,$A68,TEJdata!$B:$B)=0,"",IF(AND(SUMIF(TEJdata!$P:$P,$A68,TEJdata!$B:$B)>0,SUMIF(TEJdata!$P:$P,$A68,TEJdata!$D:$D)<0),(SUMIF(TEJdata!$P:$P,$A68,TEJdata!$B:$B)/ABS(SUMIF(TEJdata!$P:$P,$A68,TEJdata!$D:$D)-1))*100,(SUMIF(TEJdata!$P:$P,$A68,TEJdata!$B:$B)/SUMIF(TEJdata!$P:$P,$A68,TEJdata!$D:$D)-1)*100)) -> -3.736510539 | D68: =IF(SUMIF(TEJdata!$P:$P,$A68,TEJdata!$B:$B)=0,"",(SUMIF(TEJdata!$P:$P,$A68,TEJdata!$B:$B)/SUMIF(TEJdata!$P:$P,$A68,TEJdata!$C:$C)-1)*100) -> -5.447145467 | E68: =IF(SUMIF(TEJdata!$P:$P,$A68,TEJdata!$E:$E)=0,"",(SUMIF(TEJdata!$P:$P,$A68,TEJdata!$E:$E)/SUMIF(TEJdata!$P:$P,$A68,TEJdata!$F:$F)-1)*100) -> -11.60214688 | F68: =SUMIF(TEJdata!$P:$P,$A68,TEJdata!$B:$B)/1000 -> 18584.894 | G68: =SUMIF(TEJdata!$P:$P,$A68,TEJdata!$G:$G)/$B68 -> -1.000217241 | H68: =SUMIF(TEJdata!$P:$P,$A68,TEJdata!$H:$H)/$B68 -> -1.474427586 | I68: =IF(SUMIF(TEJdata!$P:$P,$A68,TEJdata!$I:$I)=0,0,IFERROR((SUMIF(TEJdata!$P:$P,$A68,TEJdata!$I:$I)/SUMIF(TEJdata!$P:$P,$A68,TEJdata!$J:$J)-1)*100,"-")) -> -0.5091514335 | J68: =IF(SUMIF(TEJdata!$P:$P,$A68,TEJdata!$K:$K)=0,0,IFERROR((SUMIF(TEJdata!$P:$P,$A68,TEJdata!$K:$K)/SUMIF(TEJdata!$P:$P,$A68,TEJdata!$L:$L)-1)*100,"-")) -> 1.095940733 | K68: =IF(SUMIF(TEJdata!$P:$P,$A68,TEJdata!$M:$M)=0,0,IFERROR((SUMIF(TEJdata!$P:$P,$A68,TEJdata!$M:$M)/SUMIF(TEJdata!$P:$P,$A68,TEJdata!$N:$N)-1)*100,"-")) -> 6.268127004
A69: M23C6B 磊晶及晶粒 | B69: =COUNTIF(TEJdata!$P:$P,$A69) -> 5 | C69: =IF(SUMIF(TEJdata!$P:$P,$A69,TEJdata!$B:$B)=0,"",IF(AND(SUMIF(TEJdata!$P:$P,$A69,TEJdata!$B:$B)>0,SUMIF(TEJdata!$P:$P,$A69,TEJdata!$D:$D)<0),(SUMIF(TEJdata!$P:$P,$A69,TEJdata!$B:$B)/ABS(SUMIF(TEJdata!$P:$P,$A69,TEJdata!$D:$D)-1))*100,(SUMIF(TEJdata!$P:$P,$A69,TEJdata!$B:$B)/SUMIF(TEJdata!$P:$P,$A69,TEJdata!$D:$D)-1)*100)) -> -4.011915011 | D69: =IF(SUMIF(TEJdata!$P:$P,$A69,TEJdata!$B:$B)=0,"",(SUMIF(TEJdata!$P:$P,$A69,TEJdata!$B:$B)/SUMIF(TEJdata!$P:$P,$A69,TEJdata!$C:$C)-1)*100) -> -5.495010779 | E69: =IF(SUMIF(TEJdata!$P:$P,$A69,TEJdata!$E:$E)=0,"",(SUMIF(TEJdata!$P:$P,$A69,TEJdata!$E:$E)/SUMIF(TEJdata!$P:$P,$A69,TEJdata!$F:$F)-1)*100) -> -22.81496168 | F69: =SUMIF(TEJdata!$P:$P,$A69,TEJdata!$B:$B)/1000 -> 2690.403 | G69: =SUMIF(TEJdata!$P:$P,$A69,TEJdata!$G:$G)/$B69 -> -2.53298 | H69: =SUMIF(TEJdata!$P:$P,$A69,TEJdata!$H:$H)/$B69 -> -2.22296 | I69: =IF(SUMIF(TEJdata!$P:$P,$A69,TEJdata!$I:$I)=0,0,IFERROR((SUMIF(TEJdata!$P:$P,$A69,TEJdata!$I:$I)/SUMIF(TEJdata!$P:$P,$A69,TEJdata!$J:$J)-1)*100,"-")) -> -0.5738216739 | J69: =IF(SUMIF(TEJdata!$P:$P,$A69,TEJdata!$K:$K)=0,0,IFERROR((SUMIF(TEJdata!$P:$P,$A69,TEJdata!$K:$K)/SUMIF(TEJdata!$P:$P,$A69,TEJdata!$L:$L)-1)*100,"-")) -> 0 | K69: =IF(SUMIF(TEJdata!$P:$P,$A69,TEJdata!$M:$M)=0,0,IFERROR((SUMIF(TEJdata!$P:$P,$A69,TEJdata!$M:$M)/SUMIF(TEJdata!$P:$P,$A69,TEJdata!$N:$N)-1)*100,"-")) -> -1.187168477
A70: M20A7 鋼管 | B70: =COUNTIF(TEJdata!$P:$P,$A70) -> 5 | C70: =IF(SUMIF(TEJdata!$P:$P,$A70,TEJdata!$B:$B)=0,"",IF(AND(SUMIF(TEJdata!$P:$P,$A70,TEJdata!$B:$B)>0,SUMIF(TEJdata!$P:$P,$A70,TEJdata!$D:$D)<0),(SUMIF(TEJdata!$P:$P,$A70,TEJdata!$B:$B)/ABS(SUMIF(TEJdata!$P:$P,$A70,TEJdata!$D:$D)-1))*100,(SUMIF(TEJdata!$P:$P,$A70,TEJdata!$B:$B)/SUMIF(TEJdata!$P:$P,$A70,TEJdata!$D:$D)-1)*100)) -> -5.522974586 | D70: =IF(SUMIF(TEJdata!$P:$P,$A70,TEJdata!$B:$B)=0,"",(SUMIF(TEJdata!$P:$P,$A70,TEJdata!$B:$B)/SUMIF(TEJdata!$P:$P,$A70,TEJdata!$C:$C)-1)*100) -> -3.511913155 | E70: =IF(SUMIF(TEJdata!$P:$P,$A70,TEJdata!$E:$E)=0,"",(SUMIF(TEJdata!$P:$P,$A70,TEJdata!$E:$E)/SUMIF(TEJdata!$P:$P,$A70,TEJdata!$F:$F)-1)*100) -> -13.80021205 | F70: =SUMIF(TEJdata!$P:$P,$A70,TEJdata!$B:$B)/1000 -> 2990.298 | G70: =SUMIF(TEJdata!$P:$P,$A70,TEJdata!$G:$G)/$B70 -> 0.11298 | H70: =SUMIF(TEJdata!$P:$P,$A70,TEJdata!$H:$H)/$B70 -> 0.13828 | I70: =IF(SUMIF(TEJdata!$P:$P,$A70,TEJdata!$I:$I)=0,0,IFERROR((SUMIF(TEJdata!$P:$P,$A70,TEJdata!$I:$I)/SUMIF(TEJdata!$P:$P,$A70,TEJdata!$J:$J)-1)*100,"-")) -> 1.2190351 | J70: =IF(SUMIF(TEJdata!$P:$P,$A70,TEJdata!$K:$K)=0,0,IFERROR((SUMIF(TEJdata!$P:$P,$A70,TEJdata!$K:$K)/SUMIF(TEJdata!$P:$P,$A70,TEJdata!$L:$L)-1)*100,"-")) -> 0 | K70: =IF(SUMIF(TEJdata!$P:$P,$A70,TEJdata!$M:$M)=0,0,IFERROR((SUMIF(TEJdata!$P:$P,$A70,TEJdata!$M:$M)/SUMIF(TEJdata!$P:$P,$A70,TEJdata!$N:$N)-1)*100,"-")) -> -3.172496984
A71: M12B 油脂飼料 | B71: =COUNTIF(TEJdata!$P:$P,$A71) -> 13 | C71: =IF(SUMIF(TEJdata!$P:$P,$A71,TEJdata!$B:$B)=0,"",IF(AND(SUMIF(TEJdata!$P:$P,$A71,TEJdata!$B:$B)>0,SUMIF(TEJdata!$P:$P,$A71,TEJdata!$D:$D)<0),(SUMIF(TEJdata!$P:$P,$A71,TEJdata!$B:$B)/ABS(SUMIF(TEJdata!$P:$P,$A71,TEJdata!$D:$D)-1))*100,(SUMIF(TEJdata!$P:$P,$A71,TEJdata!$B:$B)/SUMIF(TEJdata!$P:$P,$A71,TEJdata!$D:$D)-1)*100)) -> -5.717425941 | D71: =IF(SUMIF(TEJdata!$P:$P,$A71,TEJdata!$B:$B)=0,"",(SUMIF(TEJdata!$P:$P,$A71,TEJdata!$B:$B)/SUMIF(TEJdata!$P:$P,$A71,TEJdata!$C:$C)-1)*100) -> -1.873236936 | E71: =IF(SUMIF(TEJdata!$P:$P,$A71,TEJdata!$E:$E)=0,"",(SUMIF(TEJdata!$P:$P,$A71,TEJdata!$E:$E)/SUMIF(TEJdata!$P:$P,$A71,TEJdata!$F:$F)-1)*100) -> 0.3479770946 | F71: =SUMIF(TEJdata!$P:$P,$A71,TEJdata!$B:$B)/1000 -> 20268.864 | G71: =SUMIF(TEJdata!$P:$P,$A71,TEJdata!$G:$G)/$B71 -> 0.6489307692 | H71: =SUMIF(TEJdata!$P:$P,$A71,TEJdata!$H:$H)/$B71 -> -1.029923077 | I71: =IF(SUMIF(TEJdata!$P:$P,$A71,TEJdata!$I:$I)=0,0,IFERROR((SUMIF(TEJdata!$P:$P,$A71,TEJdata!$I:$I)/SUMIF(TEJdata!$P:$P,$A71,TEJdata!$J:$J)-1)*100,"-")) -> -0.1443854177 | J71: =IF(SUMIF(TEJdata!$P:$P,$A71,TEJdata!$K:$K)=0,0,IFERROR((SUMIF(TEJdata!$P:$P,$A71,TEJdata!$K:$K)/SUMIF(TEJdata!$P:$P,$A71,TEJdata!$L:$L)-1)*100,"-")) -> -3.942590351 | K71: =IF(SUMIF(TEJdata!$P:$P,$A71,TEJdata!$M:$M)=0,0,IFERROR((SUMIF(TEJdata!$P:$P,$A71,TEJdata!$M:$M)/SUMIF(TEJdata!$P:$P,$A71,TEJdata!$N:$N)-1)*100,"-")) -> 0.6226000075
A72: M17Z 其他化學 | B72: =COUNTIF(TEJdata!$P:$P,$A72) -> 16 | C72: =IF(SUMIF(TEJdata!$P:$P,$A72,TEJdata!$B:$B)=0,"",IF(AND(SUMIF(TEJdata!$P:$P,$A72,TEJdata!$B:$B)>0,SUMIF(TEJdata!$P:$P,$A72,TEJdata!$D:$D)<0),(SUMIF(TEJdata!$P:$P,$A72,TEJdata!$B:$B)/ABS(SUMIF(TEJdata!$P:$P,$A72,TEJdata!$D:$D)-1))*100,(SUMIF(TEJdata!$P:$P,$A72,TEJdata!$B:$B)/SUMIF(TEJdata!$P:$P,$A72,TEJdata!$D:$D)-1)*100)) -> -5.80656984 | D72: =IF(SUMIF(TEJdata!$P:$P,$A72,TEJdata!$B:$B)=0,"",(SUMIF(TEJdata!$P:$P,$A72,TEJdata!$B:$B)/SUMIF(TEJdata!$P:$P,$A72,TEJdata!$C:$C)-1)*100) -> 1.332206518 | E72: =IF(SUMIF(TEJdata!$P:$P,$A72,TEJdata!$E:$E)=0,"",(SUMIF(TEJdata!$P:$P,$A72,TEJdata!$E:$E)/SUMIF(TEJdata!$P:$P,$A72,TEJdata!$F:$F)-1)*100) -> -17.44750814 | F72: =SUMIF(TEJdata!$P:$P,$A72,TEJdata!$B:$B)/1000 -> 5895.677 | G72: =SUMIF(TEJdata!$P:$P,$A72,TEJdata!$G:$G)/$B72 -> -0.04358125 | H72: =SUMIF(TEJdata!$P:$P,$A72,TEJdata!$H:$H)/$B72 -> -2.319725 | I72: =IF(SUMIF(TEJdata!$P:$P,$A72,TEJdata!$I:$I)=0,0,IFERROR((SUMIF(TEJdata!$P:$P,$A72,TEJdata!$I:$I)/SUMIF(TEJdata!$P:$P,$A72,TEJdata!$J:$J)-1)*100,"-")) -> -0.8959699417 | J72: =IF(SUMIF(TEJdata!$P:$P,$A72,TEJdata!$K:$K)=0,0,IFERROR((SUMIF(TEJdata!$P:$P,$A72,TEJdata!$K:$K)/SUMIF(TEJdata!$P:$P,$A72,TEJdata!$L:$L)-1)*100,"-")) -> -0.4640610498 | K72: =IF(SUMIF(TEJdata!$P:$P,$A72,TEJdata!$M:$M)=0,0,IFERROR((SUMIF(TEJdata!$P:$P,$A72,TEJdata!$M:$M)/SUMIF(TEJdata!$P:$P,$A72,TEJdata!$N:$N)-1)*100,"-")) -> 0.07692110459
A73: M23B2C 軟板 | B73: =COUNTIF(TEJdata!$P:$P,$A73) -> 10 | C73: =IF(SUMIF(TEJdata!$P:$P,$A73,TEJdata!$B:$B)=0,"",IF(AND(SUMIF(TEJdata!$P:$P,$A73,TEJdata!$B:$B)>0,SUMIF(TEJdata!$P:$P,$A73,TEJdata!$D:$D)<0),(SUMIF(TEJdata!$P:$P,$A73,TEJdata!$B:$B)/ABS(SUMIF(TEJdata!$P:$P,$A73,TEJdata!$D:$D)-1))*100,(SUMIF(TEJdata!$P:$P,$A73,TEJdata!$B:$B)/SUMIF(TEJdata!$P:$P,$A73,TEJdata!$D:$D)-1)*100)) -> -6.554575118 | D73: =IF(SUMIF(TEJdata!$P:$P,$A73,TEJdata!$B:$B)=0,"",(SUMIF(TEJdata!$P:$P,$A73,TEJdata!$B:$B)/SUMIF(TEJdata!$P:$P,$A73,TEJdata!$C:$C)-1)*100) -> 13.6415913 | E73: =IF(SUMIF(TEJdata!$P:$P,$A73,TEJdata!$E:$E)=0,"",(SUMIF(TEJdata!$P:$P,$A73,TEJdata!$E:$E)/SUMIF(TEJdata!$P:$P,$A73,TEJdata!$F:$F)-1)*100) -> -16.21956266 | F73: =SUMIF(TEJdata!$P:$P,$A73,TEJdata!$B:$B)/1000 -> 26657.324 | G73: =SUMIF(TEJdata!$P:$P,$A73,TEJdata!$G:$G)/$B73 -> 0.68881 | H73: =SUMIF(TEJdata!$P:$P,$A73,TEJdata!$H:$H)/$B73 -> -1.10433 | I73: =IF(SUMIF(TEJdata!$P:$P,$A73,TEJdata!$I:$I)=0,0,IFERROR((SUMIF(TEJdata!$P:$P,$A73,TEJdata!$I:$I)/SUMIF(TEJdata!$P:$P,$A73,TEJdata!$J:$J)-1)*100,"-")) -> -0.3052616923 | J73: =IF(SUMIF(TEJdata!$P:$P,$A73,TEJdata!$K:$K)=0,0,IFERROR((SUMIF(TEJdata!$P:$P,$A73,TEJdata!$K:$K)/SUMIF(TEJdata!$P:$P,$A73,TEJdata!$L:$L)-1)*100,"-")) -> 0.6983174026 | K73: =IF(SUMIF(TEJdata!$P:$P,$A73,TEJdata!$M:$M)=0,0,IFERROR((SUMIF(TEJdata!$P:$P,$A73,TEJdata!$M:$M)/SUMIF(TEJdata!$P:$P,$A73,TEJdata!$N:$N)-1)*100,"-")) -> -1.621486362
A74: M23D6 石英元件 | B74: =COUNTIF(TEJdata!$P:$P,$A74) -> 6 | C74: =IF(SUMIF(TEJdata!$P:$P,$A74,TEJdata!$B:$B)=0,"",IF(AND(SUMIF(TEJdata!$P:$P,$A74,TEJdata!$B:$B)>0,SUMIF(TEJdata!$P:$P,$A74,TEJdata!$D:$D)<0),(SUMIF(TEJdata!$P:$P,$A74,TEJdata!$B:$B)/ABS(SUMIF(TEJdata!$P:$P,$A74,TEJdata!$D:$D)-1))*100,(SUMIF(TEJdata!$P:$P,$A74,TEJdata!$B:$B)/SUMIF(TEJdata!$P:$P,$A74,TEJdata!$D:$D)-1)*100)) -> -6.735874202 | D74: =IF(SUMIF(TEJdata!$P:$P,$A74,TEJdata!$B:$B)=0,"",(SUMIF(TEJdata!$P:$P,$A74,TEJdata!$B:$B)/SUMIF(TEJdata!$P:$P,$A74,TEJdata!$C:$C)-1)*100) -> -4.579835868 | E74: =IF(SUMIF(TEJdata!$P:$P,$A74,TEJdata!$E:$E)=0,"",(SUMIF(TEJdata!$P:$P,$A74,TEJdata!$E:$E)/SUMIF(TEJdata!$P:$P,$A74,TEJdata!$F:$F)-1)*100) -> -25.0092084 | F74: =SUMIF(TEJdata!$P:$P,$A74,TEJdata!$B:$B)/1000 -> 1843.967 | G74: =SUMIF(TEJdata!$P:$P,$A74,TEJdata!$G:$G)/$B74 -> 1.246633333 | H74: =SUMIF(TEJdata!$P:$P,$A74,TEJdata!$H:$H)/$B74 -> -1.39965 | I74: =IF(SUMIF(TEJdata!$P:$P,$A74,TEJdata!$I:$I)=0,0,IFERROR((SUMIF(TEJdata!$P:$P,$A74,TEJdata!$I:$I)/SUMIF(TEJdata!$P:$P,$A74,TEJdata!$J:$J)-1)*100,"-")) -> -0.1919549216 | J74: =IF(SUMIF(TEJdata!$P:$P,$A74,TEJdata!$K:$K)=0,0,IFERROR((SUMIF(TEJdata!$P:$P,$A74,TEJdata!$K:$K)/SUMIF(TEJdata!$P:$P,$A74,TEJdata!$L:$L)-1)*100,"-")) -> -0.3123779774 | K74: =IF(SUMIF(TEJdata!$P:$P,$A74,TEJdata!$M:$M)=0,0,IFERROR((SUMIF(TEJdata!$P:$P,$A74,TEJdata!$M:$M)/SUMIF(TEJdata!$P:$P,$A74,TEJdata!$N:$N)-1)*100,"-")) -> -1.355826951
A75: M23C1 顯示器 | B75: =COUNTIF(TEJdata!$P:$P,$A75) -> 6 | C75: =IF(SUMIF(TEJdata!$P:$P,$A75,TEJdata!$B:$B)=0,"",IF(AND(SUMIF(TEJdata!$P:$P,$A75,TEJdata!$B:$B)>0,SUMIF(TEJdata!$P:$P,$A75,TEJdata!$D:$D)<0),(SUMIF(TEJdata!$P:$P,$A75,TEJdata!$B:$B)/ABS(SUMIF(TEJdata!$P:$P,$A75,TEJdata!$D:$D)-1))*100,(SUMIF(TEJdata!$P:$P,$A75,TEJdata!$B:$B)/SUMIF(TEJdata!$P:$P,$A75,TEJdata!$D:$D)-1)*100)) -> -7.190623629 | D75: =IF(SUMIF(TEJdata!$P:$P,$A75,TEJdata!$B:$B)=0,"",(SUMIF(TEJdata!$P:$P,$A75,TEJdata!$B:$B)/SUMIF(TEJdata!$P:$P,$A75,TEJdata!$C:$C)-1)*100) -> -5.518188648 | E75: =IF(SUMIF(TEJdata!$P:$P,$A75,TEJdata!$E:$E)=0,"",(SUMIF(TEJdata!$P:$P,$A75,TEJdata!$E:$E)/SUMIF(TEJdata!$P:$P,$A75,TEJdata!$F:$F)-1)*100) -> -15.12863286 | F75: =SUMIF(TEJdata!$P:$P,$A75,TEJdata!$B:$B)/1000 -> 18995.554 | G75: =SUMIF(TEJdata!$P:$P,$A75,TEJdata!$G:$G)/$B75 -> -0.3338833333 | H75: =SUMIF(TEJdata!$P:$P,$A75,TEJdata!$H:$H)/$B75 -> -0.9287 | I75: =IF(SUMIF(TEJdata!$P:$P,$A75,TEJdata!$I:$I)=0,0,IFERROR((SUMIF(TEJdata!$P:$P,$A75,TEJdata!$I:$I)/SUMIF(TEJdata!$P:$P,$A75,TEJdata!$J:$J)-1)*100,"-")) -> 0.6141109163 | J75: =IF(SUMIF(TEJdata!$P:$P,$A75,TEJdata!$K:$K)=0,0,IFERROR((SUMIF(TEJdata!$P:$P,$A75,TEJdata!$K:$K)/SUMIF(TEJdata!$P:$P,$A75,TEJdata!$L:$L)-1)*100,"-")) -> 1.808388338 | K75: =IF(SUMIF(TEJdata!$P:$P,$A75,TEJdata!$M:$M)=0,0,IFERROR((SUMIF(TEJdata!$P:$P,$A75,TEJdata!$M:$M)/SUMIF(TEJdata!$P:$P,$A75,TEJdata!$N:$N)-1)*100,"-")) -> 5.113777999
A76: M15A1 工具機 | B76: =COUNTIF(TEJdata!$P:$P,$A76) -> 21 | C76: =IF(SUMIF(TEJdata!$P:$P,$A76,TEJdata!$B:$B)=0,"",IF(AND(SUMIF(TEJdata!$P:$P,$A76,TEJdata!$B:$B)>0,SUMIF(TEJdata!$P:$P,$A76,TEJdata!$D:$D)<0),(SUMIF(TEJdata!$P:$P,$A76,TEJdata!$B:$B)/ABS(SUMIF(TEJdata!$P:$P,$A76,TEJdata!$D:$D)-1))*100,(SUMIF(TEJdata!$P:$P,$A76,TEJdata!$B:$B)/SUMIF(TEJdata!$P:$P,$A76,TEJdata!$D:$D)-1)*100)) -> -7.247860808 | D76: =IF(SUMIF(TEJdata!$P:$P,$A76,TEJdata!$B:$B)=0,"",(SUMIF(TEJdata!$P:$P,$A76,TEJdata!$B:$B)/SUMIF(TEJdata!$P:$P,$A76,TEJdata!$C:$C)-1)*100) -> -6.794238071 | E76: =IF(SUMIF(TEJdata!$P:$P,$A76,TEJdata!$E:$E)=0,"",(SUMIF(TEJdata!$P:$P,$A76,TEJdata!$E:$E)/SUMIF(TEJdata!$P:$P,$A76,TEJdata!$F:$F)-1)*100) -> -16.43613717 | F76: =SUMIF(TEJdata!$P:$P,$A76,TEJdata!$B:$B)/1000 -> 4041.77 | G76: =SUMIF(TEJdata!$P:$P,$A76,TEJdata!$G:$G)/$B76 -> 2.749780952 | H76: =SUMIF(TEJdata!$P:$P,$A76,TEJdata!$H:$H)/$B76 -> 0.5746809524 | I76: =IF(SUMIF(TEJdata!$P:$P,$A76,TEJdata!$I:$I)=0,0,IFERROR((SUMIF(TEJdata!$P:$P,$A76,TEJdata!$I:$I)/SUMIF(TEJdata!$P:$P,$A76,TEJdata!$J:$J)-1)*100,"-")) -> -0.8615642653 | J76: =IF(SUMIF(TEJdata!$P:$P,$A76,TEJdata!$K:$K)=0,0,IFERROR((SUMIF(TEJdata!$P:$P,$A76,TEJdata!$K:$K)/SUMIF(TEJdata!$P:$P,$A76,TEJdata!$L:$L)-1)*100,"-")) -> 0 | K76: =IF(SUMIF(TEJdata!$P:$P,$A76,TEJdata!$M:$M)=0,0,IFERROR((SUMIF(TEJdata!$P:$P,$A76,TEJdata!$M:$M)/SUMIF(TEJdata!$P:$P,$A76,TEJdata!$N:$N)-1)*100,"-")) -> 7.551010966
A77: M23D2 連接器 | B77: =COUNTIF(TEJdata!$P:$P,$A77) -> 47 | C77: =IF(SUMIF(TEJdata!$P:$P,$A77,TEJdata!$B:$B)=0,"",IF(AND(SUMIF(TEJdata!$P:$P,$A77,TEJdata!$B:$B)>0,SUMIF(TEJdata!$P:$P,$A77,TEJdata!$D:$D)<0),(SUMIF(TEJdata!$P:$P,$A77,TEJdata!$B:$B)/ABS(SUMIF(TEJdata!$P:$P,$A77,TEJdata!$D:$D)-1))*100,(SUMIF(TEJdata!$P:$P,$A77,TEJdata!$B:$B)/SUMIF(TEJdata!$P:$P,$A77,TEJdata!$D:$D)-1)*100)) -> -7.599004755 | D77: =IF(SUMIF(TEJdata!$P:$P,$A77,TEJdata!$B:$B)=0,"",(SUMIF(TEJdata!$P:$P,$A77,TEJdata!$B:$B)/SUMIF(TEJdata!$P:$P,$A77,TEJdata!$C:$C)-1)*100) -> -3.483459388 | E77: =IF(SUMIF(TEJdata!$P:$P,$A77,TEJdata!$E:$E)=0,"",(SUMIF(TEJdata!$P:$P,$A77,TEJdata!$E:$E)/SUMIF(TEJdata!$P:$P,$A77,TEJdata!$F:$F)-1)*100) -> -9.298794131 | F77: =SUMIF(TEJdata!$P:$P,$A77,TEJdata!$B:$B)/1000 -> 32778.962 | G77: =SUMIF(TEJdata!$P:$P,$A77,TEJdata!$G:$G)/$B77 -> 0.8097021277 | H77: =SUMIF(TEJdata!$P:$P,$A77,TEJdata!$H:$H)/$B77 -> -1.605297872 | I77: =IF(SUMIF(TEJdata!$P:$P,$A77,TEJdata!$I:$I)=0,0,IFERROR((SUMIF(TEJdata!$P:$P,$A77,TEJdata!$I:$I)/SUMIF(TEJdata!$P:$P,$A77,TEJdata!$J:$J)-1)*100,"-")) -> 0.04982052234 | J77: =IF(SUMIF(TEJdata!$P:$P,$A77,TEJdata!$K:$K)=0,0,IFERROR((SUMIF(TEJdata!$P:$P,$A77,TEJdata!$K:$K)/SUMIF(TEJdata!$P:$P,$A77,TEJdata!$L:$L)-1)*100,"-")) -> 18.4593272 | K77: =IF(SUMIF(TEJdata!$P:$P,$A77,TEJdata!$M:$M)=0,0,IFERROR((SUMIF(TEJdata!$P:$P,$A77,TEJdata!$M:$M)/SUMIF(TEJdata!$P:$P,$A77,TEJdata!$N:$N)-1)*100,"-")) -> -1.053920055
A78: M20A3 鋼板 | B78: =COUNTIF(TEJdata!$P:$P,$A78) -> 6 | C78: =IF(SUMIF(TEJdata!$P:$P,$A78,TEJdata!$B:$B)=0,"",IF(AND(SUMIF(TEJdata!$P:$P,$A78,TEJdata!$B:$B)>0,SUMIF(TEJdata!$P:$P,$A78,TEJdata!$D:$D)<0),(SUMIF(TEJdata!$P:$P,$A78,TEJdata!$B:$B)/ABS(SUMIF(TEJdata!$P:$P,$A78,TEJdata!$D:$D)-1))*100,(SUMIF(TEJdata!$P:$P,$A78,TEJdata!$B:$B)/SUMIF(TEJdata!$P:$P,$A78,TEJdata!$D:$D)-1)*100)) -> -7.685606688 | D78: =IF(SUMIF(TEJdata!$P:$P,$A78,TEJdata!$B:$B)=0,"",(SUMIF(TEJdata!$P:$P,$A78,TEJdata!$B:$B)/SUMIF(TEJdata!$P:$P,$A78,TEJdata!$C:$C)-1)*100) -> -2.885885084 | E78: =IF(SUMIF(TEJdata!$P:$P,$A78,TEJdata!$E:$E)=0,"",(SUMIF(TEJdata!$P:$P,$A78,TEJdata!$E:$E)/SUMIF(TEJdata!$P:$P,$A78,TEJdata!$F:$F)-1)*100) -> -19.75294698 | F78: =SUMIF(TEJdata!$P:$P,$A78,TEJdata!$B:$B)/1000 -> 42326.85 | G78: =SUMIF(TEJdata!$P:$P,$A78,TEJdata!$G:$G)/$B78 -> 0.5481333333 | H78: =SUMIF(TEJdata!$P:$P,$A78,TEJdata!$H:$H)/$B78 -> -0.1886 | I78: =IF(SUMIF(TEJdata!$P:$P,$A78,TEJdata!$I:$I)=0,0,IFERROR((SUMIF(TEJdata!$P:$P,$A78,TEJdata!$I:$I)/SUMIF(TEJdata!$P:$P,$A78,TEJdata!$J:$J)-1)*100,"-")) -> -0.9255613885 | J78: =IF(SUMIF(TEJdata!$P:$P,$A78,TEJdata!$K:$K)=0,0,IFERROR((SUMIF(TEJdata!$P:$P,$A78,TEJdata!$K:$K)/SUMIF(TEJdata!$P:$P,$A78,TEJdata!$L:$L)-1)*100,"-")) -> -0.1794734293 | K78: =IF(SUMIF(TEJdata!$P:$P,$A78,TEJdata!$M:$M)=0,0,IFERROR((SUMIF(TEJdata!$P:$P,$A78,TEJdata!$M:$M)/SUMIF(TEJdata!$P:$P,$A78,TEJdata!$N:$N)-1)*100,"-")) -> 2.474592151
A79: M13A1 泛用塑膠 | B79: =COUNTIF(TEJdata!$P:$P,$A79) -> 9 | C79: =IF(SUMIF(TEJdata!$P:$P,$A79,TEJdata!$B:$B)=0,"",IF(AND(SUMIF(TEJdata!$P:$P,$A79,TEJdata!$B:$B)>0,SUMIF(TEJdata!$P:$P,$A79,TEJdata!$D:$D)<0),(SUMIF(TEJdata!$P:$P,$A79,TEJdata!$B:$B)/ABS(SUMIF(TEJdata!$P:$P,$A79,TEJdata!$D:$D)-1))*100,(SUMIF(TEJdata!$P:$P,$A79,TEJdata!$B:$B)/SUMIF(TEJdata!$P:$P,$A79,TEJdata!$D:$D)-1)*100)) -> -8.134847678 | D79: =IF(SUMIF(TEJdata!$P:$P,$A79,TEJdata!$B:$B)=0,"",(SUMIF(TEJdata!$P:$P,$A79,TEJdata!$B:$B)/SUMIF(TEJdata!$P:$P,$A79,TEJdata!$C:$C)-1)*100) -> -2.161960783 | E79: =IF(SUMIF(TEJdata!$P:$P,$A79,TEJdata!$E:$E)=0,"",(SUMIF(TEJdata!$P:$P,$A79,TEJdata!$E:$E)/SUMIF(TEJdata!$P:$P,$A79,TEJdata!$F:$F)-1)*100) -> -22.07850716 | F79: =SUMIF(TEJdata!$P:$P,$A79,TEJdata!$B:$B)/1000 -> 77718.753 | G79: =SUMIF(TEJdata!$P:$P,$A79,TEJdata!$G:$G)/$B79 -> -0.9777 | H79: =SUMIF(TEJdata!$P:$P,$A79,TEJdata!$H:$H)/$B79 -> -2.447211111 | I79: =IF(SUMIF(TEJdata!$P:$P,$A79,TEJdata!$I:$I)=0,0,IFERROR((SUMIF(TEJdata!$P:$P,$A79,TEJdata!$I:$I)/SUMIF(TEJdata!$P:$P,$A79,TEJdata!$J:$J)-1)*100,"-")) -> 8.703872918e-05 | J79: =IF(SUMIF(TEJdata!$P:$P,$A79,TEJdata!$K:$K)=0,0,IFERROR((SUMIF(TEJdata!$P:$P,$A79,TEJdata!$K:$K)/SUMIF(TEJdata!$P:$P,$A79,TEJdata!$L:$L)-1)*100,"-")) -> 0.03029729218 | K79: =IF(SUMIF(TEJdata!$P:$P,$A79,TEJdata!$M:$M)=0,0,IFERROR((SUMIF(TEJdata!$P:$P,$A79,TEJdata!$M:$M)/SUMIF(TEJdata!$P:$P,$A79,TEJdata!$N:$N)-1)*100,"-")) -> -3.0863662
A80: M20A6 不鏽鋼 | B80: =COUNTIF(TEJdata!$P:$P,$A80) -> 9 | C80: =IF(SUMIF(TEJdata!$P:$P,$A80,TEJdata!$B:$B)=0,"",IF(AND(SUMIF(TEJdata!$P:$P,$A80,TEJdata!$B:$B)>0,SUMIF(TEJdata!$P:$P,$A80,TEJdata!$D:$D)<0),(SUMIF(TEJdata!$P:$P,$A80,TEJdata!$B:$B)/ABS(SUMIF(TEJdata!$P:$P,$A80,TEJdata!$D:$D)-1))*100,(SUMIF(TEJdata!$P:$P,$A80,TEJdata!$B:$B)/SUMIF(TEJdata!$P:$P,$A80,TEJdata!$D:$D)-1)*100)) -> -8.512410155 | D80: =IF(SUMIF(TEJdata!$P:$P,$A80,TEJdata!$B:$B)=0,"",(SUMIF(TEJdata!$P:$P,$A80,TEJdata!$B:$B)/SUMIF(TEJdata!$P:$P,$A80,TEJdata!$C:$C)-1)*100) -> 0.2328856757 | E80: =IF(SUMIF(TEJdata!$P:$P,$A80,TEJdata!$E:$E)=0,"",(SUMIF(TEJdata!$P:$P,$A80,TEJdata!$E:$E)/SUMIF(TEJdata!$P:$P,$A80,TEJdata!$F:$F)-1)*100) -> -11.64386066 | F80: =SUMIF(TEJdata!$P:$P,$A80,TEJdata!$B:$B)/1000 -> 13284.149 | G80: =SUMIF(TEJdata!$P:$P,$A80,TEJdata!$G:$G)/$B80 -> -0.1137333333 | H80: =SUMIF(TEJdata!$P:$P,$A80,TEJdata!$H:$H)/$B80 -> -0.2198333333 | I80: =IF(SUMIF(TEJdata!$P:$P,$A80,TEJdata!$I:$I)=0,0,IFERROR((SUMIF(TEJdata!$P:$P,$A80,TEJdata!$I:$I)/SUMIF(TEJdata!$P:$P,$A80,TEJdata!$J:$J)-1)*100,"-")) -> -0.07844016136 | J80: =IF(SUMIF(TEJdata!$P:$P,$A80,TEJdata!$K:$K)=0,0,IFERROR((SUMIF(TEJdata!$P:$P,$A80,TEJdata!$K:$K)/SUMIF(TEJdata!$P:$P,$A80,TEJdata!$L:$L)-1)*100,"-")) -> -0.3752920002 | K80: =IF(SUMIF(TEJdata!$P:$P,$A80,TEJdata!$M:$M)=0,0,IFERROR((SUMIF(TEJdata!$P:$P,$A80,TEJdata!$M:$M)/SUMIF(TEJdata!$P:$P,$A80,TEJdata!$N:$N)-1)*100,"-")) -> 1.359466354
A81: M14F 不織布 | B81: =COUNTIF(TEJdata!$P:$P,$A81) -> 5 | C81: =IF(SUMIF(TEJdata!$P:$P,$A81,TEJdata!$B:$B)=0,"",IF(AND(SUMIF(TEJdata!$P:$P,$A81,TEJdata!$B:$B)>0,SUMIF(TEJdata!$P:$P,$A81,TEJdata!$D:$D)<0),(SUMIF(TEJdata!$P:$P,$A81,TEJdata!$B:$B)/ABS(SUMIF(TEJdata!$P:$P,$A81,TEJdata!$D:$D)-1))*100,(SUMIF(TEJdata!$P:$P,$A81,TEJdata!$B:$B)/SUMIF(TEJdata!$P:$P,$A81,TEJdata!$D:$D)-1)*100)) -> -8.540202729 | D81: =IF(SUMIF(TEJdata!$P:$P,$A81,TEJdata!$B:$B)=0,"",(SUMIF(TEJdata!$P:$P,$A81,TEJdata!$B:$B)/SUMIF(TEJdata!$P:$P,$A81,TEJdata!$C:$C)-1)*100) -> 5.13814377 | E81: =IF(SUMIF(TEJdata!$P:$P,$A81,TEJdata!$E:$E)=0,"",(SUMIF(TEJdata!$P:$P,$A81,TEJdata!$E:$E)/SUMIF(TEJdata!$P:$P,$A81,TEJdata!$F:$F)-1)*100) -> -6.862789318 | F81: =SUMIF(TEJdata!$P:$P,$A81,TEJdata!$B:$B)/1000 -> 1084.726 | G81: =SUMIF(TEJdata!$P:$P,$A81,TEJdata!$G:$G)/$B81 -> -0.10244 | H81: =SUMIF(TEJdata!$P:$P,$A81,TEJdata!$H:$H)/$B81 -> -2.62366 | I81: =IF(SUMIF(TEJdata!$P:$P,$A81,TEJdata!$I:$I)=0,0,IFERROR((SUMIF(TEJdata!$P:$P,$A81,TEJdata!$I:$I)/SUMIF(TEJdata!$P:$P,$A81,TEJdata!$J:$J)-1)*100,"-")) -> 1.69926784 | J81: =IF(SUMIF(TEJdata!$P:$P,$A81,TEJdata!$K:$K)=0,0,IFERROR((SUMIF(TEJdata!$P:$P,$A81,TEJdata!$K:$K)/SUMIF(TEJdata!$P:$P,$A81,TEJdata!$L:$L)-1)*100,"-")) -> 0 | K81: =IF(SUMIF(TEJdata!$P:$P,$A81,TEJdata!$M:$M)=0,0,IFERROR((SUMIF(TEJdata!$P:$P,$A81,TEJdata!$M:$M)/SUMIF(TEJdata!$P:$P,$A81,TEJdata!$N:$N)-1)*100,"-")) -> 1.203999728
A82: M26A1 散裝輪 | B82: =COUNTIF(TEJdata!$P:$P,$A82) -> 8 | C82: =IF(SUMIF(TEJdata!$P:$P,$A82,TEJdata!$B:$B)=0,"",IF(AND(SUMIF(TEJdata!$P:$P,$A82,TEJdata!$B:$B)>0,SUMIF(TEJdata!$P:$P,$A82,TEJdata!$D:$D)<0),(SUMIF(TEJdata!$P:$P,$A82,TEJdata!$B:$B)/ABS(SUMIF(TEJdata!$P:$P,$A82,TEJdata!$D:$D)-1))*100,(SUMIF(TEJdata!$P:$P,$A82,TEJdata!$B:$B)/SUMIF(TEJdata!$P:$P,$A82,TEJdata!$D:$D)-1)*100)) -> -8.583446724 | D82: =IF(SUMIF(TEJdata!$P:$P,$A82,TEJdata!$B:$B)=0,"",(SUMIF(TEJdata!$P:$P,$A82,TEJdata!$B:$B)/SUMIF(TEJdata!$P:$P,$A82,TEJdata!$C:$C)-1)*100) -> 18.87789204 | E82: =IF(SUMIF(TEJdata!$P:$P,$A82,TEJdata!$E:$E)=0,"",(SUMIF(TEJdata!$P:$P,$A82,TEJdata!$E:$E)/SUMIF(TEJdata!$P:$P,$A82,TEJdata!$F:$F)-1)*100) -> -21.95772661 | F82: =SUMIF(TEJdata!$P:$P,$A82,TEJdata!$B:$B)/1000 -> 4891.005 | G82: =SUMIF(TEJdata!$P:$P,$A82,TEJdata!$G:$G)/$B82 -> -2.0222625 | H82: =SUMIF(TEJdata!$P:$P,$A82,TEJdata!$H:$H)/$B82 -> -8.6803125 | I82: =IF(SUMIF(TEJdata!$P:$P,$A82,TEJdata!$I:$I)=0,0,IFERROR((SUMIF(TEJdata!$P:$P,$A82,TEJdata!$I:$I)/SUMIF(TEJdata!$P:$P,$A82,TEJdata!$J:$J)-1)*100,"-")) -> -2.043676998 | J82: =IF(SUMIF(TEJdata!$P:$P,$A82,TEJdata!$K:$K)=0,0,IFERROR((SUMIF(TEJdata!$P:$P,$A82,TEJdata!$K:$K)/SUMIF(TEJdata!$P:$P,$A82,TEJdata!$L:$L)-1)*100,"-")) -> -1.580831532 | K82: =IF(SUMIF(TEJdata!$P:$P,$A82,TEJdata!$M:$M)=0,0,IFERROR((SUMIF(TEJdata!$P:$P,$A82,TEJdata!$M:$M)/SUMIF(TEJdata!$P:$P,$A82,TEJdata!$N:$N)-1)*100,"-")) -> -0.7345199298
A83: M23B5B 工業電腦 | B83: =COUNTIF(TEJdata!$P:$P,$A83) -> 23 | C83: =IF(SUMIF(TEJdata!$P:$P,$A83,TEJdata!$B:$B)=0,"",IF(AND(SUMIF(TEJdata!$P:$P,$A83,TEJdata!$B:$B)>0,SUMIF(TEJdata!$P:$P,$A83,TEJdata!$D:$D)<0),(SUMIF(TEJdata!$P:$P,$A83,TEJdata!$B:$B)/ABS(SUMIF(TEJdata!$P:$P,$A83,TEJdata!$D:$D)-1))*100,(SUMIF(TEJdata!$P:$P,$A83,TEJdata!$B:$B)/SUMIF(TEJdata!$P:$P,$A83,TEJdata!$D:$D)-1)*100)) -> -8.689120346 | D83: =IF(SUMIF(TEJdata!$P:$P,$A83,TEJdata!$B:$B)=0,"",(SUMIF(TEJdata!$P:$P,$A83,TEJdata!$B:$B)/SUMIF(TEJdata!$P:$P,$A83,TEJdata!$C:$C)-1)*100) -> -6.776907099 | E83: =IF(SUMIF(TEJdata!$P:$P,$A83,TEJdata!$E:$E)=0,"",(SUMIF(TEJdata!$P:$P,$A83,TEJdata!$E:$E)/SUMIF(TEJdata!$P:$P,$A83,TEJdata!$F:$F)-1)*100) -> 3.505529324 | F83: =SUMIF(TEJdata!$P:$P,$A83,TEJdata!$B:$B)/1000 -> 22274.008 | G83: =SUMIF(TEJdata!$P:$P,$A83,TEJdata!$G:$G)/$B83 -> 1.518691304 | H83: =SUMIF(TEJdata!$P:$P,$A83,TEJdata!$H:$H)/$B83 -> -3.095813043 | I83: =IF(SUMIF(TEJdata!$P:$P,$A83,TEJdata!$I:$I)=0,0,IFERROR((SUMIF(TEJdata!$P:$P,$A83,TEJdata!$I:$I)/SUMIF(TEJdata!$P:$P,$A83,TEJdata!$J:$J)-1)*100,"-")) -> -0.3708694086 | J83: =IF(SUMIF(TEJdata!$P:$P,$A83,TEJdata!$K:$K)=0,0,IFERROR((SUMIF(TEJdata!$P:$P,$A83,TEJdata!$K:$K)/SUMIF(TEJdata!$P:$P,$A83,TEJdata!$L:$L)-1)*100,"-")) -> -0.4840324914 | K83: =IF(SUMIF(TEJdata!$P:$P,$A83,TEJdata!$M:$M)=0,0,IFERROR((SUMIF(TEJdata!$P:$P,$A83,TEJdata!$M:$M)/SUMIF(TEJdata!$P:$P,$A83,TEJdata!$N:$N)-1)*100,"-")) -> -0.5191008219
A84: M23H1 廠辦機電 | B84: =COUNTIF(TEJdata!$P:$P,$A84) -> 9 | C84: =IF(SUMIF(TEJdata!$P:$P,$A84,TEJdata!$B:$B)=0,"",IF(AND(SUMIF(TEJdata!$P:$P,$A84,TEJdata!$B:$B)>0,SUMIF(TEJdata!$P:$P,$A84,TEJdata!$D:$D)<0),(SUMIF(TEJdata!$P:$P,$A84,TEJdata!$B:$B)/ABS(SUMIF(TEJdata!$P:$P,$A84,TEJdata!$D:$D)-1))*100,(SUMIF(TEJdata!$P:$P,$A84,TEJdata!$B:$B)/SUMIF(TEJdata!$P:$P,$A84,TEJdata!$D:$D)-1)*100)) -> -9.244252069 | D84: =IF(SUMIF(TEJdata!$P:$P,$A84,TEJdata!$B:$B)=0,"",(SUMIF(TEJdata!$P:$P,$A84,TEJdata!$B:$B)/SUMIF(TEJdata!$P:$P,$A84,TEJdata!$C:$C)-1)*100) -> -24.71535072 | E84: =IF(SUMIF(TEJdata!$P:$P,$A84,TEJdata!$E:$E)=0,"",(SUMIF(TEJdata!$P:$P,$A84,TEJdata!$E:$E)/SUMIF(TEJdata!$P:$P,$A84,TEJdata!$F:$F)-1)*100) -> 16.59441607 | F84: =SUMIF(TEJdata!$P:$P,$A84,TEJdata!$B:$B)/1000 -> 15720.884 | G84: =SUMIF(TEJdata!$P:$P,$A84,TEJdata!$G:$G)/$B84 -> 1.924266667 | H84: =SUMIF(TEJdata!$P:$P,$A84,TEJdata!$H:$H)/$B84 -> 2.400333333 | I84: =IF(SUMIF(TEJdata!$P:$P,$A84,TEJdata!$I:$I)=0,0,IFERROR((SUMIF(TEJdata!$P:$P,$A84,TEJdata!$I:$I)/SUMIF(TEJdata!$P:$P,$A84,TEJdata!$J:$J)-1)*100,"-")) -> 0.2256099014 | J84: =IF(SUMIF(TEJdata!$P:$P,$A84,TEJdata!$K:$K)=0,0,IFERROR((SUMIF(TEJdata!$P:$P,$A84,TEJdata!$K:$K)/SUMIF(TEJdata!$P:$P,$A84,TEJdata!$L:$L)-1)*100,"-")) -> 0.9987750872 | K84: =IF(SUMIF(TEJdata!$P:$P,$A84,TEJdata!$M:$M)=0,0,IFERROR((SUMIF(TEJdata!$P:$P,$A84,TEJdata!$M:$M)/SUMIF(TEJdata!$P:$P,$A84,TEJdata!$N:$N)-1)*100,"-")) -> -1.557006529
A85: M23K2 衛星微波 | B85: =COUNTIF(TEJdata!$P:$P,$A85) -> 15 | C85: =IF(SUMIF(TEJdata!$P:$P,$A85,TEJdata!$B:$B)=0,"",IF(AND(SUMIF(TEJdata!$P:$P,$A85,TEJdata!$B:$B)>0,SUMIF(TEJdata!$P:$P,$A85,TEJdata!$D:$D)<0),(SUMIF(TEJdata!$P:$P,$A85,TEJdata!$B:$B)/ABS(SUMIF(TEJdata!$P:$P,$A85,TEJdata!$D:$D)-1))*100,(SUMIF(TEJdata!$P:$P,$A85,TEJdata!$B:$B)/SUMIF(TEJdata!$P:$P,$A85,TEJdata!$D:$D)-1)*100)) -> -9.498415021 | D85: =IF(SUMIF(TEJdata!$P:$P,$A85,TEJdata!$B:$B)=0,"",(SUMIF(TEJdata!$P:$P,$A85,TEJdata!$B:$B)/SUMIF(TEJdata!$P:$P,$A85,TEJdata!$C:$C)-1)*100) -> 3.952485164 | E85: =IF(SUMIF(TEJdata!$P:$P,$A85,TEJdata!$E:$E)=0,"",(SUMIF(TEJdata!$P:$P,$A85,TEJdata!$E:$E)/SUMIF(TEJdata!$P:$P,$A85,TEJdata!$F:$F)-1)*100) -> 8.829122637 | F85: =SUMIF(TEJdata!$P:$P,$A85,TEJdata!$B:$B)/1000 -> 12618.998 | G85: =SUMIF(TEJdata!$P:$P,$A85,TEJdata!$G:$G)/$B85 -> -1.08456 | H85: =SUMIF(TEJdata!$P:$P,$A85,TEJdata!$H:$H)/$B85 -> -1.586106667 | I85: =IF(SUMIF(TEJdata!$P:$P,$A85,TEJdata!$I:$I)=0,0,IFERROR((SUMIF(TEJdata!$P:$P,$A85,TEJdata!$I:$I)/SUMIF(TEJdata!$P:$P,$A85,TEJdata!$J:$J)-1)*100,"-")) -> -1.203429895 | J85: =IF(SUMIF(TEJdata!$P:$P,$A85,TEJdata!$K:$K)=0,0,IFERROR((SUMIF(TEJdata!$P:$P,$A85,TEJdata!$K:$K)/SUMIF(TEJdata!$P:$P,$A85,TEJdata!$L:$L)-1)*100,"-")) -> 8.554156366 | K85: =IF(SUMIF(TEJdata!$P:$P,$A85,TEJdata!$M:$M)=0,0,IFERROR((SUMIF(TEJdata!$P:$P,$A85,TEJdata!$M:$M)/SUMIF(TEJdata!$P:$P,$A85,TEJdata!$N:$N)-1)*100,"-")) -> -0.6609190418
A86: M13A8 塑膠加工 | B86: =COUNTIF(TEJdata!$P:$P,$A86) -> 9 | C86: =IF(SUMIF(TEJdata!$P:$P,$A86,TEJdata!$B:$B)=0,"",IF(AND(SUMIF(TEJdata!$P:$P,$A86,TEJdata!$B:$B)>0,SUMIF(TEJdata!$P:$P,$A86,TEJdata!$D:$D)<0),(SUMIF(TEJdata!$P:$P,$A86,TEJdata!$B:$B)/ABS(SUMIF(TEJdata!$P:$P,$A86,TEJdata!$D:$D)-1))*100,(SUMIF(TEJdata!$P:$P,$A86,TEJdata!$B:$B)/SUMIF(TEJdata!$P:$P,$A86,TEJdata!$D:$D)-1)*100)) -> -9.598008786 | D86: =IF(SUMIF(TEJdata!$P:$P,$A86,TEJdata!$B:$B)=0,"",(SUMIF(TEJdata!$P:$P,$A86,TEJdata!$B:$B)/SUMIF(TEJdata!$P:$P,$A86,TEJdata!$C:$C)-1)*100) -> -3.391603104 | E86: =IF(SUMIF(TEJdata!$P:$P,$A86,TEJdata!$E:$E)=0,"",(SUMIF(TEJdata!$P:$P,$A86,TEJdata!$E:$E)/SUMIF(TEJdata!$P:$P,$A86,TEJdata!$F:$F)-1)*100) -> -14.11642629 | F86: =SUMIF(TEJdata!$P:$P,$A86,TEJdata!$B:$B)/1000 -> 2057.185 | G86: =SUMIF(TEJdata!$P:$P,$A86,TEJdata!$G:$G)/$B86 -> 1.687088889 | H86: =SUMIF(TEJdata!$P:$P,$A86,TEJdata!$H:$H)/$B86 -> 1.228333333 | I86: =IF(SUMIF(TEJdata!$P:$P,$A86,TEJdata!$I:$I)=0,0,IFERROR((SUMIF(TEJdata!$P:$P,$A86,TEJdata!$I:$I)/SUMIF(TEJdata!$P:$P,$A86,TEJdata!$J:$J)-1)*100,"-")) -> -0.09902509101 | J86: =IF(SUMIF(TEJdata!$P:$P,$A86,TEJdata!$K:$K)=0,0,IFERROR((SUMIF(TEJdata!$P:$P,$A86,TEJdata!$K:$K)/SUMIF(TEJdata!$P:$P,$A86,TEJdata!$L:$L)-1)*100,"-")) -> -1.612903226 | K86: =IF(SUMIF(TEJdata!$P:$P,$A86,TEJdata!$M:$M)=0,0,IFERROR((SUMIF(TEJdata!$P:$P,$A86,TEJdata!$M:$M)/SUMIF(TEJdata!$P:$P,$A86,TEJdata!$N:$N)-1)*100,"-")) -> 1.719400173
A87: M23G2 IC封測 | B87: =COUNTIF(TEJdata!$P:$P,$A87) -> 20 | C87: =IF(SUMIF(TEJdata!$P:$P,$A87,TEJdata!$B:$B)=0,"",IF(AND(SUMIF(TEJdata!$P:$P,$A87,TEJdata!$B:$B)>0,SUMIF(TEJdata!$P:$P,$A87,TEJdata!$D:$D)<0),(SUMIF(TEJdata!$P:$P,$A87,TEJdata!$B:$B)/ABS(SUMIF(TEJdata!$P:$P,$A87,TEJdata!$D:$D)-1))*100,(SUMIF(TEJdata!$P:$P,$A87,TEJdata!$B:$B)/SUMIF(TEJdata!$P:$P,$A87,TEJdata!$D:$D)-1)*100)) -> -9.683416401 | D87: =IF(SUMIF(TEJdata!$P:$P,$A87,TEJdata!$B:$B)=0,"",(SUMIF(TEJdata!$P:$P,$A87,TEJdata!$B:$B)/SUMIF(TEJdata!$P:$P,$A87,TEJdata!$C:$C)-1)*100) -> 3.770403156 | E87: =IF(SUMIF(TEJdata!$P:$P,$A87,TEJdata!$E:$E)=0,"",(SUMIF(TEJdata!$P:$P,$A87,TEJdata!$E:$E)/SUMIF(TEJdata!$P:$P,$A87,TEJdata!$F:$F)-1)*100) -> -14.86176505 | F87: =SUMIF(TEJdata!$P:$P,$A87,TEJdata!$B:$B)/1000 -> 78132.685 | G87: =SUMIF(TEJdata!$P:$P,$A87,TEJdata!$G:$G)/$B87 -> -0.133195 | H87: =SUMIF(TEJdata!$P:$P,$A87,TEJdata!$H:$H)/$B87 -> 1.832145 | I87: =IF(SUMIF(TEJdata!$P:$P,$A87,TEJdata!$I:$I)=0,0,IFERROR((SUMIF(TEJdata!$P:$P,$A87,TEJdata!$I:$I)/SUMIF(TEJdata!$P:$P,$A87,TEJdata!$J:$J)-1)*100,"-")) -> -0.1428520843 | J87: =IF(SUMIF(TEJdata!$P:$P,$A87,TEJdata!$K:$K)=0,0,IFERROR((SUMIF(TEJdata!$P:$P,$A87,TEJdata!$K:$K)/SUMIF(TEJdata!$P:$P,$A87,TEJdata!$L:$L)-1)*100,"-")) -> 0.3086547656 | K87: =IF(SUMIF(TEJdata!$P:$P,$A87,TEJdata!$M:$M)=0,0,IFERROR((SUMIF(TEJdata!$P:$P,$A87,TEJdata!$M:$M)/SUMIF(TEJdata!$P:$P,$A87,TEJdata!$N:$N)-1)*100,"-")) -> 0.3101579164
A88: M17F 樹脂 | B88: =COUNTIF(TEJdata!$P:$P,$A88) -> 15 | C88: =IF(SUMIF(TEJdata!$P:$P,$A88,TEJdata!$B:$B)=0,"",IF(AND(SUMIF(TEJdata!$P:$P,$A88,TEJdata!$B:$B)>0,SUMIF(TEJdata!$P:$P,$A88,TEJdata!$D:$D)<0),(SUMIF(TEJdata!$P:$P,$A88,TEJdata!$B:$B)/ABS(SUMIF(TEJdata!$P:$P,$A88,TEJdata!$D:$D)-1))*100,(SUMIF(TEJdata!$P:$P,$A88,TEJdata!$B:$B)/SUMIF(TEJdata!$P:$P,$A88,TEJdata!$D:$D)-1)*100)) -> -10.16435329 | D88: =IF(SUMIF(TEJdata!$P:$P,$A88,TEJdata!$B:$B)=0,"",(SUMIF(TEJdata!$P:$P,$A88,TEJdata!$B:$B)/SUMIF(TEJdata!$P:$P,$A88,TEJdata!$C:$C)-1)*100) -> -5.17213831 | E88: =IF(SUMIF(TEJdata!$P:$P,$A88,TEJdata!$E:$E)=0,"",(SUMIF(TEJdata!$P:$P,$A88,TEJdata!$E:$E)/SUMIF(TEJdata!$P:$P,$A88,TEJdata!$F:$F)-1)*100) -> -15.31843237 | F88: =SUMIF(TEJdata!$P:$P,$A88,TEJdata!$B:$B)/1000 -> 8148.616 | G88: =SUMIF(TEJdata!$P:$P,$A88,TEJdata!$G:$G)/$B88 -> 1.22796 | H88: =SUMIF(TEJdata!$P:$P,$A88,TEJdata!$H:$H)/$B88 -> 3.158413333 | I88: =IF(SUMIF(TEJdata!$P:$P,$A88,TEJdata!$I:$I)=0,0,IFERROR((SUMIF(TEJdata!$P:$P,$A88,TEJdata!$I:$I)/SUMIF(TEJdata!$P:$P,$A88,TEJdata!$J:$J)-1)*100,"-")) -> 0.3579691001 | J88: =IF(SUMIF(TEJdata!$P:$P,$A88,TEJdata!$K:$K)=0,0,IFERROR((SUMIF(TEJdata!$P:$P,$A88,TEJdata!$K:$K)/SUMIF(TEJdata!$P:$P,$A88,TEJdata!$L:$L)-1)*100,"-")) -> 32.45901639 | K88: =IF(SUMIF(TEJdata!$P:$P,$A88,TEJdata!$M:$M)=0,0,IFERROR((SUMIF(TEJdata!$P:$P,$A88,TEJdata!$M:$M)/SUMIF(TEJdata!$P:$P,$A88,TEJdata!$N:$N)-1)*100,"-")) -> 1.81637448
A89: M20A1 線材 | B89: =COUNTIF(TEJdata!$P:$P,$A89) -> 18 | C89: =IF(SUMIF(TEJdata!$P:$P,$A89,TEJdata!$B:$B)=0,"",IF(AND(SUMIF(TEJdata!$P:$P,$A89,TEJdata!$B:$B)>0,SUMIF(TEJdata!$P:$P,$A89,TEJdata!$D:$D)<0),(SUMIF(TEJdata!$P:$P,$A89,TEJdata!$B:$B)/ABS(SUMIF(TEJdata!$P:$P,$A89,TEJdata!$D:$D)-1))*100,(SUMIF(TEJdata!$P:$P,$A89,TEJdata!$B:$B)/SUMIF(TEJdata!$P:$P,$A89,TEJdata!$D:$D)-1)*100)) -> -10.17735262 | D89: =IF(SUMIF(TEJdata!$P:$P,$A89,TEJdata!$B:$B)=0,"",(SUMIF(TEJdata!$P:$P,$A89,TEJdata!$B:$B)/SUMIF(TEJdata!$P:$P,$A89,TEJdata!$C:$C)-1)*100) -> 2.170880763 | E89: =IF(SUMIF(TEJdata!$P:$P,$A89,TEJdata!$E:$E)=0,"",(SUMIF(TEJdata!$P:$P,$A89,TEJdata!$E:$E)/SUMIF(TEJdata!$P:$P,$A89,TEJdata!$F:$F)-1)*100) -> -14.23840679 | F89: =SUMIF(TEJdata!$P:$P,$A89,TEJdata!$B:$B)/1000 -> 8678.507 | G89: =SUMIF(TEJdata!$P:$P,$A89,TEJdata!$G:$G)/$B89 -> 0.8766444444 | H89: =SUMIF(TEJdata!$P:$P,$A89,TEJdata!$H:$H)/$B89 -> 0.8928666667 | I89: =IF(SUMIF(TEJdata!$P:$P,$A89,TEJdata!$I:$I)=0,0,IFERROR((SUMIF(TEJdata!$P:$P,$A89,TEJdata!$I:$I)/SUMIF(TEJdata!$P:$P,$A89,TEJdata!$J:$J)-1)*100,"-")) -> -0.1240053003 | J89: =IF(SUMIF(TEJdata!$P:$P,$A89,TEJdata!$K:$K)=0,0,IFERROR((SUMIF(TEJdata!$P:$P,$A89,TEJdata!$K:$K)/SUMIF(TEJdata!$P:$P,$A89,TEJdata!$L:$L)-1)*100,"-")) -> -6.362773029 | K89: =IF(SUMIF(TEJdata!$P:$P,$A89,TEJdata!$M:$M)=0,0,IFERROR((SUMIF(TEJdata!$P:$P,$A89,TEJdata!$M:$M)/SUMIF(TEJdata!$P:$P,$A89,TEJdata!$N:$N)-1)*100,"-")) -> -0.7297357982
A90: M26C 貨運倉儲業 | B90: =COUNTIF(TEJdata!$P:$P,$A90) -> 14 | C90: =IF(SUMIF(TEJdata!$P:$P,$A90,TEJdata!$B:$B)=0,"",IF(AND(SUMIF(TEJdata!$P:$P,$A90,TEJdata!$B:$B)>0,SUMIF(TEJdata!$P:$P,$A90,TEJdata!$D:$D)<0),(SUMIF(TEJdata!$P:$P,$A90,TEJdata!$B:$B)/ABS(SUMIF(TEJdata!$P:$P,$A90,TEJdata!$D:$D)-1))*100,(SUMIF(TEJdata!$P:$P,$A90,TEJdata!$B:$B)/SUMIF(TEJdata!$P:$P,$A90,TEJdata!$D:$D)-1)*100)) -> -10.53071906 | D90: =IF(SUMIF(TEJdata!$P:$P,$A90,TEJdata!$B:$B)=0,"",(SUMIF(TEJdata!$P:$P,$A90,TEJdata!$B:$B)/SUMIF(TEJdata!$P:$P,$A90,TEJdata!$C:$C)-1)*100) -> 0.9155609906 | E90: =IF(SUMIF(TEJdata!$P:$P,$A90,TEJdata!$E:$E)=0,"",(SUMIF(TEJdata!$P:$P,$A90,TEJdata!$E:$E)/SUMIF(TEJdata!$P:$P,$A90,TEJdata!$F:$F)-1)*100) -> -35.19848008 | F90: =SUMIF(TEJdata!$P:$P,$A90,TEJdata!$B:$B)/1000 -> 7654.853 | G90: =SUMIF(TEJdata!$P:$P,$A90,TEJdata!$G:$G)/$B90 -> 1.094135714 | H90: =SUMIF(TEJdata!$P:$P,$A90,TEJdata!$H:$H)/$B90 -> -0.05937857143 | I90: =IF(SUMIF(TEJdata!$P:$P,$A90,TEJdata!$I:$I)=0,0,IFERROR((SUMIF(TEJdata!$P:$P,$A90,TEJdata!$I:$I)/SUMIF(TEJdata!$P:$P,$A90,TEJdata!$J:$J)-1)*100,"-")) -> -0.1745890332 | J90: =IF(SUMIF(TEJdata!$P:$P,$A90,TEJdata!$K:$K)=0,0,IFERROR((SUMIF(TEJdata!$P:$P,$A90,TEJdata!$K:$K)/SUMIF(TEJdata!$P:$P,$A90,TEJdata!$L:$L)-1)*100,"-")) -> 101.8089316 | K90: =IF(SUMIF(TEJdata!$P:$P,$A90,TEJdata!$M:$M)=0,0,IFERROR((SUMIF(TEJdata!$P:$P,$A90,TEJdata!$M:$M)/SUMIF(TEJdata!$P:$P,$A90,TEJdata!$N:$N)-1)*100,"-")) -> 3.527353539
A91: M23T1 3C通路 | B91: =COUNTIF(TEJdata!$P:$P,$A91) -> 16 | C91: =IF(SUMIF(TEJdata!$P:$P,$A91,TEJdata!$B:$B)=0,"",IF(AND(SUMIF(TEJdata!$P:$P,$A91,TEJdata!$B:$B)>0,SUMIF(TEJdata!$P:$P,$A91,TEJdata!$D:$D)<0),(SUMIF(TEJdata!$P:$P,$A91,TEJdata!$B:$B)/ABS(SUMIF(TEJdata!$P:$P,$A91,TEJdata!$D:$D)-1))*100,(SUMIF(TEJdata!$P:$P,$A91,TEJdata!$B:$B)/SUMIF(TEJdata!$P:$P,$A91,TEJdata!$D:$D)-1)*100)) -> -10.6712247 | D91: =IF(SUMIF(TEJdata!$P:$P,$A91,TEJdata!$B:$B)=0,"",(SUMIF(TEJdata!$P:$P,$A91,TEJdata!$B:$B)/SUMIF(TEJdata!$P:$P,$A91,TEJdata!$C:$C)-1)*100) -> -2.482374684 | E91: =IF(SUMIF(TEJdata!$P:$P,$A91,TEJdata!$E:$E)=0,"",(SUMIF(TEJdata!$P:$P,$A91,TEJdata!$E:$E)/SUMIF(TEJdata!$P:$P,$A91,TEJdata!$F:$F)-1)*100) -> -8.66676189 | F91: =SUMIF(TEJdata!$P:$P,$A91,TEJdata!$B:$B)/1000 -> 47728.144 | G91: =SUMIF(TEJdata!$P:$P,$A91,TEJdata!$G:$G)/$B91 -> -0.4485875 | H91: =SUMIF(TEJdata!$P:$P,$A91,TEJdata!$H:$H)/$B91 -> -1.96376875 | I91: =IF(SUMIF(TEJdata!$P:$P,$A91,TEJdata!$I:$I)=0,0,IFERROR((SUMIF(TEJdata!$P:$P,$A91,TEJdata!$I:$I)/SUMIF(TEJdata!$P:$P,$A91,TEJdata!$J:$J)-1)*100,"-")) -> 0.5391524682 | J91: =IF(SUMIF(TEJdata!$P:$P,$A91,TEJdata!$K:$K)=0,0,IFERROR((SUMIF(TEJdata!$P:$P,$A91,TEJdata!$K:$K)/SUMIF(TEJdata!$P:$P,$A91,TEJdata!$L:$L)-1)*100,"-")) -> 0.4449789537 | K91: =IF(SUMIF(TEJdata!$P:$P,$A91,TEJdata!$M:$M)=0,0,IFERROR((SUMIF(TEJdata!$P:$P,$A91,TEJdata!$M:$M)/SUMIF(TEJdata!$P:$P,$A91,TEJdata!$N:$N)-1)*100,"-")) -> -2.817252555
A92: M14C1 成衣製造 | B92: =COUNTIF(TEJdata!$P:$P,$A92) -> 10 | C92: =IF(SUMIF(TEJdata!$P:$P,$A92,TEJdata!$B:$B)=0,"",IF(AND(SUMIF(TEJdata!$P:$P,$A92,TEJdata!$B:$B)>0,SUMIF(TEJdata!$P:$P,$A92,TEJdata!$D:$D)<0),(SUMIF(TEJdata!$P:$P,$A92,TEJdata!$B:$B)/ABS(SUMIF(TEJdata!$P:$P,$A92,TEJdata!$D:$D)-1))*100,(SUMIF(TEJdata!$P:$P,$A92,TEJdata!$B:$B)/SUMIF(TEJdata!$P:$P,$A92,TEJdata!$D:$D)-1)*100)) -> -10.83838228 | D92: =IF(SUMIF(TEJdata!$P:$P,$A92,TEJdata!$B:$B)=0,"",(SUMIF(TEJdata!$P:$P,$A92,TEJdata!$B:$B)/SUMIF(TEJdata!$P:$P,$A92,TEJdata!$C:$C)-1)*100) -> -14.31827407 | E92: =IF(SUMIF(TEJdata!$P:$P,$A92,TEJdata!$E:$E)=0,"",(SUMIF(TEJdata!$P:$P,$A92,TEJdata!$E:$E)/SUMIF(TEJdata!$P:$P,$A92,TEJdata!$F:$F)-1)*100) -> -17.58525254 | F92: =SUMIF(TEJdata!$P:$P,$A92,TEJdata!$B:$B)/1000 -> 9195.284 | G92: =SUMIF(TEJdata!$P:$P,$A92,TEJdata!$G:$G)/$B92 -> 0.57002 | H92: =SUMIF(TEJdata!$P:$P,$A92,TEJdata!$H:$H)/$B92 -> 2.77301 | I92: =IF(SUMIF(TEJdata!$P:$P,$A92,TEJdata!$I:$I)=0,0,IFERROR((SUMIF(TEJdata!$P:$P,$A92,TEJdata!$I:$I)/SUMIF(TEJdata!$P:$P,$A92,TEJdata!$J:$J)-1)*100,"-")) -> -0.291609648 | J92: =IF(SUMIF(TEJdata!$P:$P,$A92,TEJdata!$K:$K)=0,0,IFERROR((SUMIF(TEJdata!$P:$P,$A92,TEJdata!$K:$K)/SUMIF(TEJdata!$P:$P,$A92,TEJdata!$L:$L)-1)*100,"-")) -> 2.274428514 | K92: =IF(SUMIF(TEJdata!$P:$P,$A92,TEJdata!$M:$M)=0,0,IFERROR((SUMIF(TEJdata!$P:$P,$A92,TEJdata!$M:$M)/SUMIF(TEJdata!$P:$P,$A92,TEJdata!$N:$N)-1)*100,"-")) -> 0.5722775546
A93: M14C2 織布 | B93: =COUNTIF(TEJdata!$P:$P,$A93) -> 18 | C93: =IF(SUMIF(TEJdata!$P:$P,$A93,TEJdata!$B:$B)=0,"",IF(AND(SUMIF(TEJdata!$P:$P,$A93,TEJdata!$B:$B)>0,SUMIF(TEJdata!$P:$P,$A93,TEJdata!$D:$D)<0),(SUMIF(TEJdata!$P:$P,$A93,TEJdata!$B:$B)/ABS(SUMIF(TEJdata!$P:$P,$A93,TEJdata!$D:$D)-1))*100,(SUMIF(TEJdata!$P:$P,$A93,TEJdata!$B:$B)/SUMIF(TEJdata!$P:$P,$A93,TEJdata!$D:$D)-1)*100)) -> -11.04091408 | D93: =IF(SUMIF(TEJdata!$P:$P,$A93,TEJdata!$B:$B)=0,"",(SUMIF(TEJdata!$P:$P,$A93,TEJdata!$B:$B)/SUMIF(TEJdata!$P:$P,$A93,TEJdata!$C:$C)-1)*100) -> -7.198445619 | E93: =IF(SUMIF(TEJdata!$P:$P,$A93,TEJdata!$E:$E)=0,"",(SUMIF(TEJdata!$P:$P,$A93,TEJdata!$E:$E)/SUMIF(TEJdata!$P:$P,$A93,TEJdata!$F:$F)-1)*100) -> -18.71575531 | F93: =SUMIF(TEJdata!$P:$P,$A93,TEJdata!$B:$B)/1000 -> 5843.274 | G93: =SUMIF(TEJdata!$P:$P,$A93,TEJdata!$G:$G)/$B93 -> 1.459238889 | H93: =SUMIF(TEJdata!$P:$P,$A93,TEJdata!$H:$H)/$B93 -> 1.415305556 | I93: =IF(SUMIF(TEJdata!$P:$P,$A93,TEJdata!$I:$I)=0,0,IFERROR((SUMIF(TEJdata!$P:$P,$A93,TEJdata!$I:$I)/SUMIF(TEJdata!$P:$P,$A93,TEJdata!$J:$J)-1)*100,"-")) -> -0.3924086069 | J93: =IF(SUMIF(TEJdata!$P:$P,$A93,TEJdata!$K:$K)=0,0,IFERROR((SUMIF(TEJdata!$P:$P,$A93,TEJdata!$K:$K)/SUMIF(TEJdata!$P:$P,$A93,TEJdata!$L:$L)-1)*100,"-")) -> 137.8902045 | K93: =IF(SUMIF(TEJdata!$P:$P,$A93,TEJdata!$M:$M)=0,0,IFERROR((SUMIF(TEJdata!$P:$P,$A93,TEJdata!$M:$M)/SUMIF(TEJdata!$P:$P,$A93,TEJdata!$N:$N)-1)*100,"-")) -> -0.1946373065
A94: M99C 印刷 | B94: =COUNTIF(TEJdata!$P:$P,$A94) -> 6 | C94: =IF(SUMIF(TEJdata!$P:$P,$A94,TEJdata!$B:$B)=0,"",IF(AND(SUMIF(TEJdata!$P:$P,$A94,TEJdata!$B:$B)>0,SUMIF(TEJdata!$P:$P,$A94,TEJdata!$D:$D)<0),(SUMIF(TEJdata!$P:$P,$A94,TEJdata!$B:$B)/ABS(SUMIF(TEJdata!$P:$P,$A94,TEJdata!$D:$D)-1))*100,(SUMIF(TEJdata!$P:$P,$A94,TEJdata!$B:$B)/SUMIF(TEJdata!$P:$P,$A94,TEJdata!$D:$D)-1)*100)) -> -12.0783961 | D94: =IF(SUMIF(TEJdata!$P:$P,$A94,TEJdata!$B:$B)=0,"",(SUMIF(TEJdata!$P:$P,$A94,TEJdata!$B:$B)/SUMIF(TEJdata!$P:$P,$A94,TEJdata!$C:$C)-1)*100) -> 1.993501254 | E94: =IF(SUMIF(TEJdata!$P:$P,$A94,TEJdata!$E:$E)=0,"",(SUMIF(TEJdata!$P:$P,$A94,TEJdata!$E:$E)/SUMIF(TEJdata!$P:$P,$A94,TEJdata!$F:$F)-1)*100) -> -9.771764747 | F94: =SUMIF(TEJdata!$P:$P,$A94,TEJdata!$B:$B)/1000 -> 418.411 | G94: =SUMIF(TEJdata!$P:$P,$A94,TEJdata!$G:$G)/$B94 -> 0.02536666667 | H94: =SUMIF(TEJdata!$P:$P,$A94,TEJdata!$H:$H)/$B94 -> -1.464383333 | I94: =IF(SUMIF(TEJdata!$P:$P,$A94,TEJdata!$I:$I)=0,0,IFERROR((SUMIF(TEJdata!$P:$P,$A94,TEJdata!$I:$I)/SUMIF(TEJdata!$P:$P,$A94,TEJdata!$J:$J)-1)*100,"-")) -> 1.413427562 | J94: =IF(SUMIF(TEJdata!$P:$P,$A94,TEJdata!$K:$K)=0,0,IFERROR((SUMIF(TEJdata!$P:$P,$A94,TEJdata!$K:$K)/SUMIF(TEJdata!$P:$P,$A94,TEJdata!$L:$L)-1)*100,"-")) -> 0 | K94: =IF(SUMIF(TEJdata!$P:$P,$A94,TEJdata!$M:$M)=0,0,IFERROR((SUMIF(TEJdata!$P:$P,$A94,TEJdata!$M:$M)/SUMIF(TEJdata!$P:$P,$A94,TEJdata!$N:$N)-1)*100,"-")) -> 0.1070663812
A95: M23C3 3C週邊 | B95: =COUNTIF(TEJdata!$P:$P,$A95) -> 19 | C95: =IF(SUMIF(TEJdata!$P:$P,$A95,TEJdata!$B:$B)=0,"",IF(AND(SUMIF(TEJdata!$P:$P,$A95,TEJdata!$B:$B)>0,SUMIF(TEJdata!$P:$P,$A95,TEJdata!$D:$D)<0),(SUMIF(TEJdata!$P:$P,$A95,TEJdata!$B:$B)/ABS(SUMIF(TEJdata!$P:$P,$A95,TEJdata!$D:$D)-1))*100,(SUMIF(TEJdata!$P:$P,$A95,TEJdata!$B:$B)/SUMIF(TEJdata!$P:$P,$A95,TEJdata!$D:$D)-1)*100)) -> -12.55231918 | D95: =IF(SUMIF(TEJdata!$P:$P,$A95,TEJdata!$B:$B)=0,"",(SUMIF(TEJdata!$P:$P,$A95,TEJdata!$B:$B)/SUMIF(TEJdata!$P:$P,$A95,TEJdata!$C:$C)-1)*100) -> -6.989956598 | E95: =IF(SUMIF(TEJdata!$P:$P,$A95,TEJdata!$E:$E)=0,"",(SUMIF(TEJdata!$P:$P,$A95,TEJdata!$E:$E)/SUMIF(TEJdata!$P:$P,$A95,TEJdata!$F:$F)-1)*100) -> -13.79071771 | F95: =SUMIF(TEJdata!$P:$P,$A95,TEJdata!$B:$B)/1000 -> 45487.25 | G95: =SUMIF(TEJdata!$P:$P,$A95,TEJdata!$G:$G)/$B95 -> 1.354226316 | H95: =SUMIF(TEJdata!$P:$P,$A95,TEJdata!$H:$H)/$B95 -> -0.4825 | I95: =IF(SUMIF(TEJdata!$P:$P,$A95,TEJdata!$I:$I)=0,0,IFERROR((SUMIF(TEJdata!$P:$P,$A95,TEJdata!$I:$I)/SUMIF(TEJdata!$P:$P,$A95,TEJdata!$J:$J)-1)*100,"-")) -> -0.5891002331 | J95: =IF(SUMIF(TEJdata!$P:$P,$A95,TEJdata!$K:$K)=0,0,IFERROR((SUMIF(TEJdata!$P:$P,$A95,TEJdata!$K:$K)/SUMIF(TEJdata!$P:$P,$A95,TEJdata!$L:$L)-1)*100,"-")) -> 1.31853379 | K95: =IF(SUMIF(TEJdata!$P:$P,$A95,TEJdata!$M:$M)=0,0,IFERROR((SUMIF(TEJdata!$P:$P,$A95,TEJdata!$M:$M)/SUMIF(TEJdata!$P:$P,$A95,TEJdata!$N:$N)-1)*100,"-")) -> -2.861413184
A96: M23D7 二次電池 | B96: =COUNTIF(TEJdata!$P:$P,$A96) -> 12 | C96: =IF(SUMIF(TEJdata!$P:$P,$A96,TEJdata!$B:$B)=0,"",IF(AND(SUMIF(TEJdata!$P:$P,$A96,TEJdata!$B:$B)>0,SUMIF(TEJdata!$P:$P,$A96,TEJdata!$D:$D)<0),(SUMIF(TEJdata!$P:$P,$A96,TEJdata!$B:$B)/ABS(SUMIF(TEJdata!$P:$P,$A96,TEJdata!$D:$D)-1))*100,(SUMIF(TEJdata!$P:$P,$A96,TEJdata!$B:$B)/SUMIF(TEJdata!$P:$P,$A96,TEJdata!$D:$D)-1)*100)) -> -12.70193684 | D96: =IF(SUMIF(TEJdata!$P:$P,$A96,TEJdata!$B:$B)=0,"",(SUMIF(TEJdata!$P:$P,$A96,TEJdata!$B:$B)/SUMIF(TEJdata!$P:$P,$A96,TEJdata!$C:$C)-1)*100) -> 1.065368192 | E96: =IF(SUMIF(TEJdata!$P:$P,$A96,TEJdata!$E:$E)=0,"",(SUMIF(TEJdata!$P:$P,$A96,TEJdata!$E:$E)/SUMIF(TEJdata!$P:$P,$A96,TEJdata!$F:$F)-1)*100) -> -16.14315029 | F96: =SUMIF(TEJdata!$P:$P,$A96,TEJdata!$B:$B)/1000 -> 11941.798 | G96: =SUMIF(TEJdata!$P:$P,$A96,TEJdata!$G:$G)/$B96 -> -0.07853333333 | H96: =SUMIF(TEJdata!$P:$P,$A96,TEJdata!$H:$H)/$B96 -> -2.177458333 | I96: =IF(SUMIF(TEJdata!$P:$P,$A96,TEJdata!$I:$I)=0,0,IFERROR((SUMIF(TEJdata!$P:$P,$A96,TEJdata!$I:$I)/SUMIF(TEJdata!$P:$P,$A96,TEJdata!$J:$J)-1)*100,"-")) -> -0.09184470082 | J96: =IF(SUMIF(TEJdata!$P:$P,$A96,TEJdata!$K:$K)=0,0,IFERROR((SUMIF(TEJdata!$P:$P,$A96,TEJdata!$K:$K)/SUMIF(TEJdata!$P:$P,$A96,TEJdata!$L:$L)-1)*100,"-")) -> -0.1979952976 | K96: =IF(SUMIF(TEJdata!$P:$P,$A96,TEJdata!$M:$M)=0,0,IFERROR((SUMIF(TEJdata!$P:$P,$A96,TEJdata!$M:$M)/SUMIF(TEJdata!$P:$P,$A96,TEJdata!$N:$N)-1)*100,"-")) -> 1.611803662
A97: M11A 水泥製造 | B97: =COUNTIF(TEJdata!$P:$P,$A97) -> 8 | C97: =IF(SUMIF(TEJdata!$P:$P,$A97,TEJdata!$B:$B)=0,"",IF(AND(SUMIF(TEJdata!$P:$P,$A97,TEJdata!$B:$B)>0,SUMIF(TEJdata!$P:$P,$A97,TEJdata!$D:$D)<0),(SUMIF(TEJdata!$P:$P,$A97,TEJdata!$B:$B)/ABS(SUMIF(TEJdata!$P:$P,$A97,TEJdata!$D:$D)-1))*100,(SUMIF(TEJdata!$P:$P,$A97,TEJdata!$B:$B)/SUMIF(TEJdata!$P:$P,$A97,TEJdata!$D:$D)-1)*100)) -> -12.84687574 | D97: =IF(SUMIF(TEJdata!$P:$P,$A97,TEJdata!$B:$B)=0,"",(SUMIF(TEJdata!$P:$P,$A97,TEJdata!$B:$B)/SUMIF(TEJdata!$P:$P,$A97,TEJdata!$C:$C)-1)*100) -> 4.49394712 | E97: =IF(SUMIF(TEJdata!$P:$P,$A97,TEJdata!$E:$E)=0,"",(SUMIF(TEJdata!$P:$P,$A97,TEJdata!$E:$E)/SUMIF(TEJdata!$P:$P,$A97,TEJdata!$F:$F)-1)*100) -> -2.047826938 | F97: =SUMIF(TEJdata!$P:$P,$A97,TEJdata!$B:$B)/1000 -> 18630.346 | G97: =SUMIF(TEJdata!$P:$P,$A97,TEJdata!$G:$G)/$B97 -> 0.8498 | H97: =SUMIF(TEJdata!$P:$P,$A97,TEJdata!$H:$H)/$B97 -> 0.2066 | I97: =IF(SUMIF(TEJdata!$P:$P,$A97,TEJdata!$I:$I)=0,0,IFERROR((SUMIF(TEJdata!$P:$P,$A97,TEJdata!$I:$I)/SUMIF(TEJdata!$P:$P,$A97,TEJdata!$J:$J)-1)*100,"-")) -> -4.401738231 | J97: =IF(SUMIF(TEJdata!$P:$P,$A97,TEJdata!$K:$K)=0,0,IFERROR((SUMIF(TEJdata!$P:$P,$A97,TEJdata!$K:$K)/SUMIF(TEJdata!$P:$P,$A97,TEJdata!$L:$L)-1)*100,"-")) -> 0.2976566832 | K97: =IF(SUMIF(TEJdata!$P:$P,$A97,TEJdata!$M:$M)=0,0,IFERROR((SUMIF(TEJdata!$P:$P,$A97,TEJdata!$M:$M)/SUMIF(TEJdata!$P:$P,$A97,TEJdata!$N:$N)-1)*100,"-")) -> -1.204092102
A98: M20B 金屬製品 | B98: =COUNTIF(TEJdata!$P:$P,$A98) -> 13 | C98: =IF(SUMIF(TEJdata!$P:$P,$A98,TEJdata!$B:$B)=0,"",IF(AND(SUMIF(TEJdata!$P:$P,$A98,TEJdata!$B:$B)>0,SUMIF(TEJdata!$P:$P,$A98,TEJdata!$D:$D)<0),(SUMIF(TEJdata!$P:$P,$A98,TEJdata!$B:$B)/ABS(SUMIF(TEJdata!$P:$P,$A98,TEJdata!$D:$D)-1))*100,(SUMIF(TEJdata!$P:$P,$A98,TEJdata!$B:$B)/SUMIF(TEJdata!$P:$P,$A98,TEJdata!$D:$D)-1)*100)) -> -13.07218631 | D98: =IF(SUMIF(TEJdata!$P:$P,$A98,TEJdata!$B:$B)=0,"",(SUMIF(TEJdata!$P:$P,$A98,TEJdata!$B:$B)/SUMIF(TEJdata!$P:$P,$A98,TEJdata!$C:$C)-1)*100) -> -7.710256628 | E98: =IF(SUMIF(TEJdata!$P:$P,$A98,TEJdata!$E:$E)=0,"",(SUMIF(TEJdata!$P:$P,$A98,TEJdata!$E:$E)/SUMIF(TEJdata!$P:$P,$A98,TEJdata!$F:$F)-1)*100) -> -16.85499364 | F98: =SUMIF(TEJdata!$P:$P,$A98,TEJdata!$B:$B)/1000 -> 5512.004 | G98: =SUMIF(TEJdata!$P:$P,$A98,TEJdata!$G:$G)/$B98 -> 0.7168 | H98: =SUMIF(TEJdata!$P:$P,$A98,TEJdata!$H:$H)/$B98 -> -1.078438462 | I98: =IF(SUMIF(TEJdata!$P:$P,$A98,TEJdata!$I:$I)=0,0,IFERROR((SUMIF(TEJdata!$P:$P,$A98,TEJdata!$I:$I)/SUMIF(TEJdata!$P:$P,$A98,TEJdata!$J:$J)-1)*100,"-")) -> 0.4465595233 | J98: =IF(SUMIF(TEJdata!$P:$P,$A98,TEJdata!$K:$K)=0,0,IFERROR((SUMIF(TEJdata!$P:$P,$A98,TEJdata!$K:$K)/SUMIF(TEJdata!$P:$P,$A98,TEJdata!$L:$L)-1)*100,"-")) -> 9.090909091 | K98: =IF(SUMIF(TEJdata!$P:$P,$A98,TEJdata!$M:$M)=0,0,IFERROR((SUMIF(TEJdata!$P:$P,$A98,TEJdata!$M:$M)/SUMIF(TEJdata!$P:$P,$A98,TEJdata!$N:$N)-1)*100,"-")) -> 1.398487829
A99: M99K 鞋及旅行箱 | B99: =COUNTIF(TEJdata!$P:$P,$A99) -> 8 | C99: =IF(SUMIF(TEJdata!$P:$P,$A99,TEJdata!$B:$B)=0,"",IF(AND(SUMIF(TEJdata!$P:$P,$A99,TEJdata!$B:$B)>0,SUMIF(TEJdata!$P:$P,$A99,TEJdata!$D:$D)<0),(SUMIF(TEJdata!$P:$P,$A99,TEJdata!$B:$B)/ABS(SUMIF(TEJdata!$P:$P,$A99,TEJdata!$D:$D)-1))*100,(SUMIF(TEJdata!$P:$P,$A99,TEJdata!$B:$B)/SUMIF(TEJdata!$P:$P,$A99,TEJdata!$D:$D)-1)*100)) -> -13.26396289 | D99: =IF(SUMIF(TEJdata!$P:$P,$A99,TEJdata!$B:$B)=0,"",(SUMIF(TEJdata!$P:$P,$A99,TEJdata!$B:$B)/SUMIF(TEJdata!$P:$P,$A99,TEJdata!$C:$C)-1)*100) -> 11.10521828 | E99: =IF(SUMIF(TEJdata!$P:$P,$A99,TEJdata!$E:$E)=0,"",(SUMIF(TEJdata!$P:$P,$A99,TEJdata!$E:$E)/SUMIF(TEJdata!$P:$P,$A99,TEJdata!$F:$F)-1)*100) -> -11.73816197 | F99: =SUMIF(TEJdata!$P:$P,$A99,TEJdata!$B:$B)/1000 -> 31993.642 | G99: =SUMIF(TEJdata!$P:$P,$A99,TEJdata!$G:$G)/$B99 -> -2.1445125 | H99: =SUMIF(TEJdata!$P:$P,$A99,TEJdata!$H:$H)/$B99 -> 0.5847125 | I99: =IF(SUMIF(TEJdata!$P:$P,$A99,TEJdata!$I:$I)=0,0,IFERROR((SUMIF(TEJdata!$P:$P,$A99,TEJdata!$I:$I)/SUMIF(TEJdata!$P:$P,$A99,TEJdata!$J:$J)-1)*100,"-")) -> -0.1017977737 | J99: =IF(SUMIF(TEJdata!$P:$P,$A99,TEJdata!$K:$K)=0,0,IFERROR((SUMIF(TEJdata!$P:$P,$A99,TEJdata!$K:$K)/SUMIF(TEJdata!$P:$P,$A99,TEJdata!$L:$L)-1)*100,"-")) -> 0.5513269793 | K99: =IF(SUMIF(TEJdata!$P:$P,$A99,TEJdata!$M:$M)=0,0,IFERROR((SUMIF(TEJdata!$P:$P,$A99,TEJdata!$M:$M)/SUMIF(TEJdata!$P:$P,$A99,TEJdata!$N:$N)-1)*100,"-")) -> -0.4422054296
A100: M23B5A POS | B100: =COUNTIF(TEJdata!$P:$P,$A100) -> 9 | C100: =IF(SUMIF(TEJdata!$P:$P,$A100,TEJdata!$B:$B)=0,"",IF(AND(SUMIF(TEJdata!$P:$P,$A100,TEJdata!$B:$B)>0,SUMIF(TEJdata!$P:$P,$A100,TEJdata!$D:$D)<0),(SUMIF(TEJdata!$P:$P,$A100,TEJdata!$B:$B)/ABS(SUMIF(TEJdata!$P:$P,$A100,TEJdata!$D:$D)-1))*100,(SUMIF(TEJdata!$P:$P,$A100,TEJdata!$B:$B)/SUMIF(TEJdata!$P:$P,$A100,TEJdata!$D:$D)-1)*100)) -> -13.58564855 | D100: =IF(SUMIF(TEJdata!$P:$P,$A100,TEJdata!$B:$B)=0,"",(SUMIF(TEJdata!$P:$P,$A100,TEJdata!$B:$B)/SUMIF(TEJdata!$P:$P,$A100,TEJdata!$C:$C)-1)*100) -> -4.532353675 | E100: =IF(SUMIF(TEJdata!$P:$P,$A100,TEJdata!$E:$E)=0,"",(SUMIF(TEJdata!$P:$P,$A100,TEJdata!$E:$E)/SUMIF(TEJdata!$P:$P,$A100,TEJdata!$F:$F)-1)*100) -> -11.2390216 | F100: =SUMIF(TEJdata!$P:$P,$A100,TEJdata!$B:$B)/1000 -> 3217.927 | G100: =SUMIF(TEJdata!$P:$P,$A100,TEJdata!$G:$G)/$B100 -> -0.3432777778 | H100: =SUMIF(TEJdata!$P:$P,$A100,TEJdata!$H:$H)/$B100 -> -1.242788889 | I100: =IF(SUMIF(TEJdata!$P:$P,$A100,TEJdata!$I:$I)=0,0,IFERROR((SUMIF(TEJdata!$P:$P,$A100,TEJdata!$I:$I)/SUMIF(TEJdata!$P:$P,$A100,TEJdata!$J:$J)-1)*100,"-")) -> 4.87005692 | J100: =IF(SUMIF(TEJdata!$P:$P,$A100,TEJdata!$K:$K)=0,0,IFERROR((SUMIF(TEJdata!$P:$P,$A100,TEJdata!$K:$K)/SUMIF(TEJdata!$P:$P,$A100,TEJdata!$L:$L)-1)*100,"-")) -> 3.369516056 | K100: =IF(SUMIF(TEJdata!$P:$P,$A100,TEJdata!$M:$M)=0,0,IFERROR((SUMIF(TEJdata!$P:$P,$A100,TEJdata!$M:$M)/SUMIF(TEJdata!$P:$P,$A100,TEJdata!$N:$N)-1)*100,"-")) -> 0.0310587943
A101: M23B2D 硬板及其他 | B101: =COUNTIF(TEJdata!$P:$P,$A101) -> 26 | C101: =IF(SUMIF(TEJdata!$P:$P,$A101,TEJdata!$B:$B)=0,"",IF(AND(SUMIF(TEJdata!$P:$P,$A101,TEJdata!$B:$B)>0,SUMIF(TEJdata!$P:$P,$A101,TEJdata!$D:$D)<0),(SUMIF(TEJdata!$P:$P,$A101,TEJdata!$B:$B)/ABS(SUMIF(TEJdata!$P:$P,$A101,TEJdata!$D:$D)-1))*100,(SUMIF(TEJdata!$P:$P,$A101,TEJdata!$B:$B)/SUMIF(TEJdata!$P:$P,$A101,TEJdata!$D:$D)-1)*100)) -> -14.42010415 | D101: =IF(SUMIF(TEJdata!$P:$P,$A101,TEJdata!$B:$B)=0,"",(SUMIF(TEJdata!$P:$P,$A101,TEJdata!$B:$B)/SUMIF(TEJdata!$P:$P,$A101,TEJdata!$C:$C)-1)*100) -> -1.540308262 | E101: =IF(SUMIF(TEJdata!$P:$P,$A101,TEJdata!$E:$E)=0,"",(SUMIF(TEJdata!$P:$P,$A101,TEJdata!$E:$E)/SUMIF(TEJdata!$P:$P,$A101,TEJdata!$F:$F)-1)*100) -> -14.03077399 | F101: =SUMIF(TEJdata!$P:$P,$A101,TEJdata!$B:$B)/1000 -> 37772.254 | G101: =SUMIF(TEJdata!$P:$P,$A101,TEJdata!$G:$G)/$B101 -> 1.385153846 | H101: =SUMIF(TEJdata!$P:$P,$A101,TEJdata!$H:$H)/$B101 -> -1.423173077 | I101: =IF(SUMIF(TEJdata!$P:$P,$A101,TEJdata!$I:$I)=0,0,IFERROR((SUMIF(TEJdata!$P:$P,$A101,TEJdata!$I:$I)/SUMIF(TEJdata!$P:$P,$A101,TEJdata!$J:$J)-1)*100,"-")) -> 1.560161808 | J101: =IF(SUMIF(TEJdata!$P:$P,$A101,TEJdata!$K:$K)=0,0,IFERROR((SUMIF(TEJdata!$P:$P,$A101,TEJdata!$K:$K)/SUMIF(TEJdata!$P:$P,$A101,TEJdata!$L:$L)-1)*100,"-")) -> 0.1733757841 | K101: =IF(SUMIF(TEJdata!$P:$P,$A101,TEJdata!$M:$M)=0,0,IFERROR((SUMIF(TEJdata!$P:$P,$A101,TEJdata!$M:$M)/SUMIF(TEJdata!$P:$P,$A101,TEJdata!$N:$N)-1)*100,"-")) -> -3.990075398
A102: M23A2 泛用電腦 | B102: =COUNTIF(TEJdata!$P:$P,$A102) -> 6 | C102: =IF(SUMIF(TEJdata!$P:$P,$A102,TEJdata!$B:$B)=0,"",IF(AND(SUMIF(TEJdata!$P:$P,$A102,TEJdata!$B:$B)>0,SUMIF(TEJdata!$P:$P,$A102,TEJdata!$D:$D)<0),(SUMIF(TEJdata!$P:$P,$A102,TEJdata!$B:$B)/ABS(SUMIF(TEJdata!$P:$P,$A102,TEJdata!$D:$D)-1))*100,(SUMIF(TEJdata!$P:$P,$A102,TEJdata!$B:$B)/SUMIF(TEJdata!$P:$P,$A102,TEJdata!$D:$D)-1)*100)) -> -15.69956693 | D102: =IF(SUMIF(TEJdata!$P:$P,$A102,TEJdata!$B:$B)=0,"",(SUMIF(TEJdata!$P:$P,$A102,TEJdata!$B:$B)/SUMIF(TEJdata!$P:$P,$A102,TEJdata!$C:$C)-1)*100) -> 15.05406355 | E102: =IF(SUMIF(TEJdata!$P:$P,$A102,TEJdata!$E:$E)=0,"",(SUMIF(TEJdata!$P:$P,$A102,TEJdata!$E:$E)/SUMIF(TEJdata!$P:$P,$A102,TEJdata!$F:$F)-1)*100) -> -10.02532849 | F102: =SUMIF(TEJdata!$P:$P,$A102,TEJdata!$B:$B)/1000 -> 22343.093 | G102: =SUMIF(TEJdata!$P:$P,$A102,TEJdata!$G:$G)/$B102 -> 20.34853333 | H102: =SUMIF(TEJdata!$P:$P,$A102,TEJdata!$H:$H)/$B102 -> 22.02375 | I102: =IF(SUMIF(TEJdata!$P:$P,$A102,TEJdata!$I:$I)=0,0,IFERROR((SUMIF(TEJdata!$P:$P,$A102,TEJdata!$I:$I)/SUMIF(TEJdata!$P:$P,$A102,TEJdata!$J:$J)-1)*100,"-")) -> 10.05125671 | J102: =IF(SUMIF(TEJdata!$P:$P,$A102,TEJdata!$K:$K)=0,0,IFERROR((SUMIF(TEJdata!$P:$P,$A102,TEJdata!$K:$K)/SUMIF(TEJdata!$P:$P,$A102,TEJdata!$L:$L)-1)*100,"-")) -> 0.2913871383 | K102: =IF(SUMIF(TEJdata!$P:$P,$A102,TEJdata!$M:$M)=0,0,IFERROR((SUMIF(TEJdata!$P:$P,$A102,TEJdata!$M:$M)/SUMIF(TEJdata!$P:$P,$A102,TEJdata!$N:$N)-1)*100,"-")) -> 2.269927855
A103: M23E2 網路卡 | B103: =COUNTIF(TEJdata!$P:$P,$A103) -> 10 | C103: =IF(SUMIF(TEJdata!$P:$P,$A103,TEJdata!$B:$B)=0,"",IF(AND(SUMIF(TEJdata!$P:$P,$A103,TEJdata!$B:$B)>0,SUMIF(TEJdata!$P:$P,$A103,TEJdata!$D:$D)<0),(SUMIF(TEJdata!$P:$P,$A103,TEJdata!$B:$B)/ABS(SUMIF(TEJdata!$P:$P,$A103,TEJdata!$D:$D)-1))*100,(SUMIF(TEJdata!$P:$P,$A103,TEJdata!$B:$B)/SUMIF(TEJdata!$P:$P,$A103,TEJdata!$D:$D)-1)*100)) -> -15.81816313 | D103: =IF(SUMIF(TEJdata!$P:$P,$A103,TEJdata!$B:$B)=0,"",(SUMIF(TEJdata!$P:$P,$A103,TEJdata!$B:$B)/SUMIF(TEJdata!$P:$P,$A103,TEJdata!$C:$C)-1)*100) -> -11.02774733 | E103: =IF(SUMIF(TEJdata!$P:$P,$A103,TEJdata!$E:$E)=0,"",(SUMIF(TEJdata!$P:$P,$A103,TEJdata!$E:$E)/SUMIF(TEJdata!$P:$P,$A103,TEJdata!$F:$F)-1)*100) -> 1.05600693 | F103: =SUMIF(TEJdata!$P:$P,$A103,TEJdata!$B:$B)/1000 -> 17682.527 | G103: =SUMIF(TEJdata!$P:$P,$A103,TEJdata!$G:$G)/$B103 -> -1.58423 | H103: =SUMIF(TEJdata!$P:$P,$A103,TEJdata!$H:$H)/$B103 -> -2.72902 | I103: =IF(SUMIF(TEJdata!$P:$P,$A103,TEJdata!$I:$I)=0,0,IFERROR((SUMIF(TEJdata!$P:$P,$A103,TEJdata!$I:$I)/SUMIF(TEJdata!$P:$P,$A103,TEJdata!$J:$J)-1)*100,"-")) -> -1.527109837 | J103: =IF(SUMIF(TEJdata!$P:$P,$A103,TEJdata!$K:$K)=0,0,IFERROR((SUMIF(TEJdata!$P:$P,$A103,TEJdata!$K:$K)/SUMIF(TEJdata!$P:$P,$A103,TEJdata!$L:$L)-1)*100,"-")) -> 0.2519810927 | K103: =IF(SUMIF(TEJdata!$P:$P,$A103,TEJdata!$M:$M)=0,0,IFERROR((SUMIF(TEJdata!$P:$P,$A103,TEJdata!$M:$M)/SUMIF(TEJdata!$P:$P,$A103,TEJdata!$N:$N)-1)*100,"-")) -> 0.08592588551
A104: M23E1 數據機 | B104: =COUNTIF(TEJdata!$P:$P,$A104) -> 18 | C104: =IF(SUMIF(TEJdata!$P:$P,$A104,TEJdata!$B:$B)=0,"",IF(AND(SUMIF(TEJdata!$P:$P,$A104,TEJdata!$B:$B)>0,SUMIF(TEJdata!$P:$P,$A104,TEJdata!$D:$D)<0),(SUMIF(TEJdata!$P:$P,$A104,TEJdata!$B:$B)/ABS(SUMIF(TEJdata!$P:$P,$A104,TEJdata!$D:$D)-1))*100,(SUMIF(TEJdata!$P:$P,$A104,TEJdata!$B:$B)/SUMIF(TEJdata!$P:$P,$A104,TEJdata!$D:$D)-1)*100)) -> -15.90476084 | D104: =IF(SUMIF(TEJdata!$P:$P,$A104,TEJdata!$B:$B)=0,"",(SUMIF(TEJdata!$P:$P,$A104,TEJdata!$B:$B)/SUMIF(TEJdata!$P:$P,$A104,TEJdata!$C:$C)-1)*100) -> -4.93359052 | E104: =IF(SUMIF(TEJdata!$P:$P,$A104,TEJdata!$E:$E)=0,"",(SUMIF(TEJdata!$P:$P,$A104,TEJdata!$E:$E)/SUMIF(TEJdata!$P:$P,$A104,TEJdata!$F:$F)-1)*100) -> -3.615598025 | F104: =SUMIF(TEJdata!$P:$P,$A104,TEJdata!$B:$B)/1000 -> 10741.257 | G104: =SUMIF(TEJdata!$P:$P,$A104,TEJdata!$G:$G)/$B104 -> -1.869094444 | H104: =SUMIF(TEJdata!$P:$P,$A104,TEJdata!$H:$H)/$B104 -> -0.8758444444 | I104: =IF(SUMIF(TEJdata!$P:$P,$A104,TEJdata!$I:$I)=0,0,IFERROR((SUMIF(TEJdata!$P:$P,$A104,TEJdata!$I:$I)/SUMIF(TEJdata!$P:$P,$A104,TEJdata!$J:$J)-1)*100,"-")) -> 0.2036273093 | J104: =IF(SUMIF(TEJdata!$P:$P,$A104,TEJdata!$K:$K)=0,0,IFERROR((SUMIF(TEJdata!$P:$P,$A104,TEJdata!$K:$K)/SUMIF(TEJdata!$P:$P,$A104,TEJdata!$L:$L)-1)*100,"-")) -> -17.69650159 | K104: =IF(SUMIF(TEJdata!$P:$P,$A104,TEJdata!$M:$M)=0,0,IFERROR((SUMIF(TEJdata!$P:$P,$A104,TEJdata!$M:$M)/SUMIF(TEJdata!$P:$P,$A104,TEJdata!$N:$N)-1)*100,"-")) -> -1.610298456
A105: M23D4 機殼 | B105: =COUNTIF(TEJdata!$P:$P,$A105) -> 23 | C105: =IF(SUMIF(TEJdata!$P:$P,$A105,TEJdata!$B:$B)=0,"",IF(AND(SUMIF(TEJdata!$P:$P,$A105,TEJdata!$B:$B)>0,SUMIF(TEJdata!$P:$P,$A105,TEJdata!$D:$D)<0),(SUMIF(TEJdata!$P:$P,$A105,TEJdata!$B:$B)/ABS(SUMIF(TEJdata!$P:$P,$A105,TEJdata!$D:$D)-1))*100,(SUMIF(TEJdata!$P:$P,$A105,TEJdata!$B:$B)/SUMIF(TEJdata!$P:$P,$A105,TEJdata!$D:$D)-1)*100)) -> -16.6278998 | D105: =IF(SUMIF(TEJdata!$P:$P,$A105,TEJdata!$B:$B)=0,"",(SUMIF(TEJdata!$P:$P,$A105,TEJdata!$B:$B)/SUMIF(TEJdata!$P:$P,$A105,TEJdata!$C:$C)-1)*100) -> -7.056442992 | E105: =IF(SUMIF(TEJdata!$P:$P,$A105,TEJdata!$E:$E)=0,"",(SUMIF(TEJdata!$P:$P,$A105,TEJdata!$E:$E)/SUMIF(TEJdata!$P:$P,$A105,TEJdata!$F:$F)-1)*100) -> -1.942372585 | F105: =SUMIF(TEJdata!$P:$P,$A105,TEJdata!$B:$B)/1000 -> 17042.086 | G105: =SUMIF(TEJdata!$P:$P,$A105,TEJdata!$G:$G)/$B105 -> 2.541621739 | H105: =SUMIF(TEJdata!$P:$P,$A105,TEJdata!$H:$H)/$B105 -> -5.617934783 | I105: =IF(SUMIF(TEJdata!$P:$P,$A105,TEJdata!$I:$I)=0,0,IFERROR((SUMIF(TEJdata!$P:$P,$A105,TEJdata!$I:$I)/SUMIF(TEJdata!$P:$P,$A105,TEJdata!$J:$J)-1)*100,"-")) -> -0.2146974628 | J105: =IF(SUMIF(TEJdata!$P:$P,$A105,TEJdata!$K:$K)=0,0,IFERROR((SUMIF(TEJdata!$P:$P,$A105,TEJdata!$K:$K)/SUMIF(TEJdata!$P:$P,$A105,TEJdata!$L:$L)-1)*100,"-")) -> -0.2700877785 | K105: =IF(SUMIF(TEJdata!$P:$P,$A105,TEJdata!$M:$M)=0,0,IFERROR((SUMIF(TEJdata!$P:$P,$A105,TEJdata!$M:$M)/SUMIF(TEJdata!$P:$P,$A105,TEJdata!$N:$N)-1)*100,"-")) -> -0.6516553209
A106: M23B3X PCB材-其他 | B106: =COUNTIF(TEJdata!$P:$P,$A106) -> 10 | C106: =IF(SUMIF(TEJdata!$P:$P,$A106,TEJdata!$B:$B)=0,"",IF(AND(SUMIF(TEJdata!$P:$P,$A106,TEJdata!$B:$B)>0,SUMIF(TEJdata!$P:$P,$A106,TEJdata!$D:$D)<0),(SUMIF(TEJdata!$P:$P,$A106,TEJdata!$B:$B)/ABS(SUMIF(TEJdata!$P:$P,$A106,TEJdata!$D:$D)-1))*100,(SUMIF(TEJdata!$P:$P,$A106,TEJdata!$B:$B)/SUMIF(TEJdata!$P:$P,$A106,TEJdata!$D:$D)-1)*100)) -> -16.96669802 | D106: =IF(SUMIF(TEJdata!$P:$P,$A106,TEJdata!$B:$B)=0,"",(SUMIF(TEJdata!$P:$P,$A106,TEJdata!$B:$B)/SUMIF(TEJdata!$P:$P,$A106,TEJdata!$C:$C)-1)*100) -> -13.48472143 | E106: =IF(SUMIF(TEJdata!$P:$P,$A106,TEJdata!$E:$E)=0,"",(SUMIF(TEJdata!$P:$P,$A106,TEJdata!$E:$E)/SUMIF(TEJdata!$P:$P,$A106,TEJdata!$F:$F)-1)*100) -> -22.2488359 | F106: =SUMIF(TEJdata!$P:$P,$A106,TEJdata!$B:$B)/1000 -> 2213.99 | G106: =SUMIF(TEJdata!$P:$P,$A106,TEJdata!$G:$G)/$B106 -> -0.65463 | H106: =SUMIF(TEJdata!$P:$P,$A106,TEJdata!$H:$H)/$B106 -> -3.74913 | I106: =IF(SUMIF(TEJdata!$P:$P,$A106,TEJdata!$I:$I)=0,0,IFERROR((SUMIF(TEJdata!$P:$P,$A106,TEJdata!$I:$I)/SUMIF(TEJdata!$P:$P,$A106,TEJdata!$J:$J)-1)*100,"-")) -> -3.515011165 | J106: =IF(SUMIF(TEJdata!$P:$P,$A106,TEJdata!$K:$K)=0,0,IFERROR((SUMIF(TEJdata!$P:$P,$A106,TEJdata!$K:$K)/SUMIF(TEJdata!$P:$P,$A106,TEJdata!$L:$L)-1)*100,"-")) -> -4.797521103 | K106: =IF(SUMIF(TEJdata!$P:$P,$A106,TEJdata!$M:$M)=0,0,IFERROR((SUMIF(TEJdata!$P:$P,$A106,TEJdata!$M:$M)/SUMIF(TEJdata!$P:$P,$A106,TEJdata!$N:$N)-1)*100,"-")) -> -1.59599169
A107: M23G3C 晶圓材料 | B107: =COUNTIF(TEJdata!$P:$P,$A107) -> 7 | C107: =IF(SUMIF(TEJdata!$P:$P,$A107,TEJdata!$B:$B)=0,"",IF(AND(SUMIF(TEJdata!$P:$P,$A107,TEJdata!$B:$B)>0,SUMIF(TEJdata!$P:$P,$A107,TEJdata!$D:$D)<0),(SUMIF(TEJdata!$P:$P,$A107,TEJdata!$B:$B)/ABS(SUMIF(TEJdata!$P:$P,$A107,TEJdata!$D:$D)-1))*100,(SUMIF(TEJdata!$P:$P,$A107,TEJdata!$B:$B)/SUMIF(TEJdata!$P:$P,$A107,TEJdata!$D:$D)-1)*100)) -> -18.42505944 | D107: =IF(SUMIF(TEJdata!$P:$P,$A107,TEJdata!$B:$B)=0,"",(SUMIF(TEJdata!$P:$P,$A107,TEJdata!$B:$B)/SUMIF(TEJdata!$P:$P,$A107,TEJdata!$C:$C)-1)*100) -> -15.21296342 | E107: =IF(SUMIF(TEJdata!$P:$P,$A107,TEJdata!$E:$E)=0,"",(SUMIF(TEJdata!$P:$P,$A107,TEJdata!$E:$E)/SUMIF(TEJdata!$P:$P,$A107,TEJdata!$F:$F)-1)*100) -> -3.27372956 | F107: =SUMIF(TEJdata!$P:$P,$A107,TEJdata!$B:$B)/1000 -> 14380.48 | G107: =SUMIF(TEJdata!$P:$P,$A107,TEJdata!$G:$G)/$B107 -> -0.9075285714 | H107: =SUMIF(TEJdata!$P:$P,$A107,TEJdata!$H:$H)/$B107 -> 3.964828571 | I107: =IF(SUMIF(TEJdata!$P:$P,$A107,TEJdata!$I:$I)=0,0,IFERROR((SUMIF(TEJdata!$P:$P,$A107,TEJdata!$I:$I)/SUMIF(TEJdata!$P:$P,$A107,TEJdata!$J:$J)-1)*100,"-")) -> 0.7518618521 | J107: =IF(SUMIF(TEJdata!$P:$P,$A107,TEJdata!$K:$K)=0,0,IFERROR((SUMIF(TEJdata!$P:$P,$A107,TEJdata!$K:$K)/SUMIF(TEJdata!$P:$P,$A107,TEJdata!$L:$L)-1)*100,"-")) -> 3.402469294 | K107: =IF(SUMIF(TEJdata!$P:$P,$A107,TEJdata!$M:$M)=0,0,IFERROR((SUMIF(TEJdata!$P:$P,$A107,TEJdata!$M:$M)/SUMIF(TEJdata!$P:$P,$A107,TEJdata!$N:$N)-1)*100,"-")) -> -6.587077006
A108: M23C8B 背光模組 | B108: =COUNTIF(TEJdata!$P:$P,$A108) -> 6 | C108: =IF(SUMIF(TEJdata!$P:$P,$A108,TEJdata!$B:$B)=0,"",IF(AND(SUMIF(TEJdata!$P:$P,$A108,TEJdata!$B:$B)>0,SUMIF(TEJdata!$P:$P,$A108,TEJdata!$D:$D)<0),(SUMIF(TEJdata!$P:$P,$A108,TEJdata!$B:$B)/ABS(SUMIF(TEJdata!$P:$P,$A108,TEJdata!$D:$D)-1))*100,(SUMIF(TEJdata!$P:$P,$A108,TEJdata!$B:$B)/SUMIF(TEJdata!$P:$P,$A108,TEJdata!$D:$D)-1)*100)) -> -21.17570021 | D108: =IF(SUMIF(TEJdata!$P:$P,$A108,TEJdata!$B:$B)=0,"",(SUMIF(TEJdata!$P:$P,$A108,TEJdata!$B:$B)/SUMIF(TEJdata!$P:$P,$A108,TEJdata!$C:$C)-1)*100) -> -3.438227397 | E108: =IF(SUMIF(TEJdata!$P:$P,$A108,TEJdata!$E:$E)=0,"",(SUMIF(TEJdata!$P:$P,$A108,TEJdata!$E:$E)/SUMIF(TEJdata!$P:$P,$A108,TEJdata!$F:$F)-1)*100) -> -19.69003449 | F108: =SUMIF(TEJdata!$P:$P,$A108,TEJdata!$B:$B)/1000 -> 9075.111 | G108: =SUMIF(TEJdata!$P:$P,$A108,TEJdata!$G:$G)/$B108 -> -1.259966667 | H108: =SUMIF(TEJdata!$P:$P,$A108,TEJdata!$H:$H)/$B108 -> -4.764033333 | I108: =IF(SUMIF(TEJdata!$P:$P,$A108,TEJdata!$I:$I)=0,0,IFERROR((SUMIF(TEJdata!$P:$P,$A108,TEJdata!$I:$I)/SUMIF(TEJdata!$P:$P,$A108,TEJdata!$J:$J)-1)*100,"-")) -> -0.2466388326 | J108: =IF(SUMIF(TEJdata!$P:$P,$A108,TEJdata!$K:$K)=0,0,IFERROR((SUMIF(TEJdata!$P:$P,$A108,TEJdata!$K:$K)/SUMIF(TEJdata!$P:$P,$A108,TEJdata!$L:$L)-1)*100,"-")) -> 0.4111060796 | K108: =IF(SUMIF(TEJdata!$P:$P,$A108,TEJdata!$M:$M)=0,0,IFERROR((SUMIF(TEJdata!$P:$P,$A108,TEJdata!$M:$M)/SUMIF(TEJdata!$P:$P,$A108,TEJdata!$N:$N)-1)*100,"-")) -> -2.373497344
A109: M99ZC 其他製造業 | B109: =COUNTIF(TEJdata!$P:$P,$A109) -> 9 | C109: =IF(SUMIF(TEJdata!$P:$P,$A109,TEJdata!$B:$B)=0,"",IF(AND(SUMIF(TEJdata!$P:$P,$A109,TEJdata!$B:$B)>0,SUMIF(TEJdata!$P:$P,$A109,TEJdata!$D:$D)<0),(SUMIF(TEJdata!$P:$P,$A109,TEJdata!$B:$B)/ABS(SUMIF(TEJdata!$P:$P,$A109,TEJdata!$D:$D)-1))*100,(SUMIF(TEJdata!$P:$P,$A109,TEJdata!$B:$B)/SUMIF(TEJdata!$P:$P,$A109,TEJdata!$D:$D)-1)*100)) -> -21.52628376 | D109: =IF(SUMIF(TEJdata!$P:$P,$A109,TEJdata!$B:$B)=0,"",(SUMIF(TEJdata!$P:$P,$A109,TEJdata!$B:$B)/SUMIF(TEJdata!$P:$P,$A109,TEJdata!$C:$C)-1)*100) -> -5.171539356 | E109: =IF(SUMIF(TEJdata!$P:$P,$A109,TEJdata!$E:$E)=0,"",(SUMIF(TEJdata!$P:$P,$A109,TEJdata!$E:$E)/SUMIF(TEJdata!$P:$P,$A109,TEJdata!$F:$F)-1)*100) -> -12.86809274 | F109: =SUMIF(TEJdata!$P:$P,$A109,TEJdata!$B:$B)/1000 -> 1454.661 | G109: =SUMIF(TEJdata!$P:$P,$A109,TEJdata!$G:$G)/$B109 -> 0.3584333333 | H109: =SUMIF(TEJdata!$P:$P,$A109,TEJdata!$H:$H)/$B109 -> -1.989888889 | I109: =IF(SUMIF(TEJdata!$P:$P,$A109,TEJdata!$I:$I)=0,0,IFERROR((SUMIF(TEJdata!$P:$P,$A109,TEJdata!$I:$I)/SUMIF(TEJdata!$P:$P,$A109,TEJdata!$J:$J)-1)*100,"-")) -> -0.08152949329 | J109: =IF(SUMIF(TEJdata!$P:$P,$A109,TEJdata!$K:$K)=0,0,IFERROR((SUMIF(TEJdata!$P:$P,$A109,TEJdata!$K:$K)/SUMIF(TEJdata!$P:$P,$A109,TEJdata!$L:$L)-1)*100,"-")) -> 0 | K109: =IF(SUMIF(TEJdata!$P:$P,$A109,TEJdata!$M:$M)=0,0,IFERROR((SUMIF(TEJdata!$P:$P,$A109,TEJdata!$M:$M)/SUMIF(TEJdata!$P:$P,$A109,TEJdata!$N:$N)-1)*100,"-")) -> 1.522267206
A110: M14A2 加工絲 | B110: =COUNTIF(TEJdata!$P:$P,$A110) -> 7 | C110: =IF(SUMIF(TEJdata!$P:$P,$A110,TEJdata!$B:$B)=0,"",IF(AND(SUMIF(TEJdata!$P:$P,$A110,TEJdata!$B:$B)>0,SUMIF(TEJdata!$P:$P,$A110,TEJdata!$D:$D)<0),(SUMIF(TEJdata!$P:$P,$A110,TEJdata!$B:$B)/ABS(SUMIF(TEJdata!$P:$P,$A110,TEJdata!$D:$D)-1))*100,(SUMIF(TEJdata!$P:$P,$A110,TEJdata!$B:$B)/SUMIF(TEJdata!$P:$P,$A110,TEJdata!$D:$D)-1)*100)) -> -22.93574059 | D110: =IF(SUMIF(TEJdata!$P:$P,$A110,TEJdata!$B:$B)=0,"",(SUMIF(TEJdata!$P:$P,$A110,TEJdata!$B:$B)/SUMIF(TEJdata!$P:$P,$A110,TEJdata!$C:$C)-1)*100) -> -5.192576175 | E110: =IF(SUMIF(TEJdata!$P:$P,$A110,TEJdata!$E:$E)=0,"",(SUMIF(TEJdata!$P:$P,$A110,TEJdata!$E:$E)/SUMIF(TEJdata!$P:$P,$A110,TEJdata!$F:$F)-1)*100) -> -35.59177336 | F110: =SUMIF(TEJdata!$P:$P,$A110,TEJdata!$B:$B)/1000 -> 1424.035 | G110: =SUMIF(TEJdata!$P:$P,$A110,TEJdata!$G:$G)/$B110 -> 0.6465571429 | H110: =SUMIF(TEJdata!$P:$P,$A110,TEJdata!$H:$H)/$B110 -> 0.2882142857 | I110: =IF(SUMIF(TEJdata!$P:$P,$A110,TEJdata!$I:$I)=0,0,IFERROR((SUMIF(TEJdata!$P:$P,$A110,TEJdata!$I:$I)/SUMIF(TEJdata!$P:$P,$A110,TEJdata!$J:$J)-1)*100,"-")) -> 0.2831157401 | J110: =IF(SUMIF(TEJdata!$P:$P,$A110,TEJdata!$K:$K)=0,0,IFERROR((SUMIF(TEJdata!$P:$P,$A110,TEJdata!$K:$K)/SUMIF(TEJdata!$P:$P,$A110,TEJdata!$L:$L)-1)*100,"-")) -> 0 | K110: =IF(SUMIF(TEJdata!$P:$P,$A110,TEJdata!$M:$M)=0,0,IFERROR((SUMIF(TEJdata!$P:$P,$A110,TEJdata!$M:$M)/SUMIF(TEJdata!$P:$P,$A110,TEJdata!$N:$N)-1)*100,"-")) -> -1.354451928
A111: M23C8D LCD-其他 | B111: =COUNTIF(TEJdata!$P:$P,$A111) -> 6 | C111: =IF(SUMIF(TEJdata!$P:$P,$A111,TEJdata!$B:$B)=0,"",IF(AND(SUMIF(TEJdata!$P:$P,$A111,TEJdata!$B:$B)>0,SUMIF(TEJdata!$P:$P,$A111,TEJdata!$D:$D)<0),(SUMIF(TEJdata!$P:$P,$A111,TEJdata!$B:$B)/ABS(SUMIF(TEJdata!$P:$P,$A111,TEJdata!$D:$D)-1))*100,(SUMIF(TEJdata!$P:$P,$A111,TEJdata!$B:$B)/SUMIF(TEJdata!$P:$P,$A111,TEJdata!$D:$D)-1)*100)) -> -23.32482105 | D111: =IF(SUMIF(TEJdata!$P:$P,$A111,TEJdata!$B:$B)=0,"",(SUMIF(TEJdata!$P:$P,$A111,TEJdata!$B:$B)/SUMIF(TEJdata!$P:$P,$A111,TEJdata!$C:$C)-1)*100) -> -3.893272724 | E111: =IF(SUMIF(TEJdata!$P:$P,$A111,TEJdata!$E:$E)=0,"",(SUMIF(TEJdata!$P:$P,$A111,TEJdata!$E:$E)/SUMIF(TEJdata!$P:$P,$A111,TEJdata!$F:$F)-1)*100) -> -10.35678129 | F111: =SUMIF(TEJdata!$P:$P,$A111,TEJdata!$B:$B)/1000 -> 1438.513 | G111: =SUMIF(TEJdata!$P:$P,$A111,TEJdata!$G:$G)/$B111 -> -1.00565 | H111: =SUMIF(TEJdata!$P:$P,$A111,TEJdata!$H:$H)/$B111 -> -3.583183333 | I111: =IF(SUMIF(TEJdata!$P:$P,$A111,TEJdata!$I:$I)=0,0,IFERROR((SUMIF(TEJdata!$P:$P,$A111,TEJdata!$I:$I)/SUMIF(TEJdata!$P:$P,$A111,TEJdata!$J:$J)-1)*100,"-")) -> -0.01545452752 | J111: =IF(SUMIF(TEJdata!$P:$P,$A111,TEJdata!$K:$K)=0,0,IFERROR((SUMIF(TEJdata!$P:$P,$A111,TEJdata!$K:$K)/SUMIF(TEJdata!$P:$P,$A111,TEJdata!$L:$L)-1)*100,"-")) -> 0 | K111: =IF(SUMIF(TEJdata!$P:$P,$A111,TEJdata!$M:$M)=0,0,IFERROR((SUMIF(TEJdata!$P:$P,$A111,TEJdata!$M:$M)/SUMIF(TEJdata!$P:$P,$A111,TEJdata!$N:$N)-1)*100,"-")) -> 1.301366872
A112: M23H2 電機設備 | B112: =COUNTIF(TEJdata!$P:$P,$A112) -> 49 | C112: =IF(SUMIF(TEJdata!$P:$P,$A112,TEJdata!$B:$B)=0,"",IF(AND(SUMIF(TEJdata!$P:$P,$A112,TEJdata!$B:$B)>0,SUMIF(TEJdata!$P:$P,$A112,TEJdata!$D:$D)<0),(SUMIF(TEJdata!$P:$P,$A112,TEJdata!$B:$B)/ABS(SUMIF(TEJdata!$P:$P,$A112,TEJdata!$D:$D)-1))*100,(SUMIF(TEJdata!$P:$P,$A112,TEJdata!$B:$B)/SUMIF(TEJdata!$P:$P,$A112,TEJdata!$D:$D)-1)*100)) -> -24.92801153 | D112: =IF(SUMIF(TEJdata!$P:$P,$A112,TEJdata!$B:$B)=0,"",(SUMIF(TEJdata!$P:$P,$A112,TEJdata!$B:$B)/SUMIF(TEJdata!$P:$P,$A112,TEJdata!$C:$C)-1)*100) -> -5.232466775 | E112: =IF(SUMIF(TEJdata!$P:$P,$A112,TEJdata!$E:$E)=0,"",(SUMIF(TEJdata!$P:$P,$A112,TEJdata!$E:$E)/SUMIF(TEJdata!$P:$P,$A112,TEJdata!$F:$F)-1)*100) -> -18.23327516 | F112: =SUMIF(TEJdata!$P:$P,$A112,TEJdata!$B:$B)/1000 -> 9841.741 | G112: =SUMIF(TEJdata!$P:$P,$A112,TEJdata!$G:$G)/$B112 -> -0.1942367347 | H112: =SUMIF(TEJdata!$P:$P,$A112,TEJdata!$H:$H)/$B112 -> -3.1679 | I112: =IF(SUMIF(TEJdata!$P:$P,$A112,TEJdata!$I:$I)=0,0,IFERROR((SUMIF(TEJdata!$P:$P,$A112,TEJdata!$I:$I)/SUMIF(TEJdata!$P:$P,$A112,TEJdata!$J:$J)-1)*100,"-")) -> -0.6585554457 | J112: =IF(SUMIF(TEJdata!$P:$P,$A112,TEJdata!$K:$K)=0,0,IFERROR((SUMIF(TEJdata!$P:$P,$A112,TEJdata!$K:$K)/SUMIF(TEJdata!$P:$P,$A112,TEJdata!$L:$L)-1)*100,"-")) -> -3.856716418 | K112: =IF(SUMIF(TEJdata!$P:$P,$A112,TEJdata!$M:$M)=0,0,IFERROR((SUMIF(TEJdata!$P:$P,$A112,TEJdata!$M:$M)/SUMIF(TEJdata!$P:$P,$A112,TEJdata!$N:$N)-1)*100,"-")) -> 0.2892914276
A113: M23C8E 觸控面板 | B113: =COUNTIF(TEJdata!$P:$P,$A113) -> 9 | C113: =IF(SUMIF(TEJdata!$P:$P,$A113,TEJdata!$B:$B)=0,"",IF(AND(SUMIF(TEJdata!$P:$P,$A113,TEJdata!$B:$B)>0,SUMIF(TEJdata!$P:$P,$A113,TEJdata!$D:$D)<0),(SUMIF(TEJdata!$P:$P,$A113,TEJdata!$B:$B)/ABS(SUMIF(TEJdata!$P:$P,$A113,TEJdata!$D:$D)-1))*100,(SUMIF(TEJdata!$P:$P,$A113,TEJdata!$B:$B)/SUMIF(TEJdata!$P:$P,$A113,TEJdata!$D:$D)-1)*100)) -> -31.50571558 | D113: =IF(SUMIF(TEJdata!$P:$P,$A113,TEJdata!$B:$B)=0,"",(SUMIF(TEJdata!$P:$P,$A113,TEJdata!$B:$B)/SUMIF(TEJdata!$P:$P,$A113,TEJdata!$C:$C)-1)*100) -> 14.47049742 | E113: =IF(SUMIF(TEJdata!$P:$P,$A113,TEJdata!$E:$E)=0,"",(SUMIF(TEJdata!$P:$P,$A113,TEJdata!$E:$E)/SUMIF(TEJdata!$P:$P,$A113,TEJdata!$F:$F)-1)*100) -> -36.66800954 | F113: =SUMIF(TEJdata!$P:$P,$A113,TEJdata!$B:$B)/1000 -> 14146.928 | G113: =SUMIF(TEJdata!$P:$P,$A113,TEJdata!$G:$G)/$B113 -> 1.563744444 | H113: =SUMIF(TEJdata!$P:$P,$A113,TEJdata!$H:$H)/$B113 -> -1.068333333 | I113: =IF(SUMIF(TEJdata!$P:$P,$A113,TEJdata!$I:$I)=0,0,IFERROR((SUMIF(TEJdata!$P:$P,$A113,TEJdata!$I:$I)/SUMIF(TEJdata!$P:$P,$A113,TEJdata!$J:$J)-1)*100,"-")) -> -0.9535064566 | J113: =IF(SUMIF(TEJdata!$P:$P,$A113,TEJdata!$K:$K)=0,0,IFERROR((SUMIF(TEJdata!$P:$P,$A113,TEJdata!$K:$K)/SUMIF(TEJdata!$P:$P,$A113,TEJdata!$L:$L)-1)*100,"-")) -> 0 | K113: =IF(SUMIF(TEJdata!$P:$P,$A113,TEJdata!$M:$M)=0,0,IFERROR((SUMIF(TEJdata!$P:$P,$A113,TEJdata!$M:$M)/SUMIF(TEJdata!$P:$P,$A113,TEJdata!$N:$N)-1)*100,"-")) -> -1.353179973
A114: M23C9 安全監控 | B114: =COUNTIF(TEJdata!$P:$P,$A114) -> 11 | C114: =IF(SUMIF(TEJdata!$P:$P,$A114,TEJdata!$B:$B)=0,"",IF(AND(SUMIF(TEJdata!$P:$P,$A114,TEJdata!$B:$B)>0,SUMIF(TEJdata!$P:$P,$A114,TEJdata!$D:$D)<0),(SUMIF(TEJdata!$P:$P,$A114,TEJdata!$B:$B)/ABS(SUMIF(TEJdata!$P:$P,$A114,TEJdata!$D:$D)-1))*100,(SUMIF(TEJdata!$P:$P,$A114,TEJdata!$B:$B)/SUMIF(TEJdata!$P:$P,$A114,TEJdata!$D:$D)-1)*100)) -> -31.54792992 | D114: =IF(SUMIF(TEJdata!$P:$P,$A114,TEJdata!$B:$B)=0,"",(SUMIF(TEJdata!$P:$P,$A114,TEJdata!$B:$B)/SUMIF(TEJdata!$P:$P,$A114,TEJdata!$C:$C)-1)*100) -> 1.758890623 | E114: =IF(SUMIF(TEJdata!$P:$P,$A114,TEJdata!$E:$E)=0,"",(SUMIF(TEJdata!$P:$P,$A114,TEJdata!$E:$E)/SUMIF(TEJdata!$P:$P,$A114,TEJdata!$F:$F)-1)*100) -> -3.115735101 | F114: =SUMIF(TEJdata!$P:$P,$A114,TEJdata!$B:$B)/1000 -> 1301.484 | G114: =SUMIF(TEJdata!$P:$P,$A114,TEJdata!$G:$G)/$B114 -> -2.136881818 | H114: =SUMIF(TEJdata!$P:$P,$A114,TEJdata!$H:$H)/$B114 -> 1.714927273 | I114: =IF(SUMIF(TEJdata!$P:$P,$A114,TEJdata!$I:$I)=0,0,IFERROR((SUMIF(TEJdata!$P:$P,$A114,TEJdata!$I:$I)/SUMIF(TEJdata!$P:$P,$A114,TEJdata!$J:$J)-1)*100,"-")) -> -6.295708703 | J114: =IF(SUMIF(TEJdata!$P:$P,$A114,TEJdata!$K:$K)=0,0,IFERROR((SUMIF(TEJdata!$P:$P,$A114,TEJdata!$K:$K)/SUMIF(TEJdata!$P:$P,$A114,TEJdata!$L:$L)-1)*100,"-")) -> 195.4773869 | K114: =IF(SUMIF(TEJdata!$P:$P,$A114,TEJdata!$M:$M)=0,0,IFERROR((SUMIF(TEJdata!$P:$P,$A114,TEJdata!$M:$M)/SUMIF(TEJdata!$P:$P,$A114,TEJdata!$N:$N)-1)*100,"-")) -> -0.1347238162
A115: M23C7C 太陽能電池 | B115: =COUNTIF(TEJdata!$P:$P,$A115) -> 4 | C115: =IF(SUMIF(TEJdata!$P:$P,$A115,TEJdata!$B:$B)=0,"",IF(AND(SUMIF(TEJdata!$P:$P,$A115,TEJdata!$B:$B)>0,SUMIF(TEJdata!$P:$P,$A115,TEJdata!$D:$D)<0),(SUMIF(TEJdata!$P:$P,$A115,TEJdata!$B:$B)/ABS(SUMIF(TEJdata!$P:$P,$A115,TEJdata!$D:$D)-1))*100,(SUMIF(TEJdata!$P:$P,$A115,TEJdata!$B:$B)/SUMIF(TEJdata!$P:$P,$A115,TEJdata!$D:$D)-1)*100)) -> -49.0161909 | D115: =IF(SUMIF(TEJdata!$P:$P,$A115,TEJdata!$B:$B)=0,"",(SUMIF(TEJdata!$P:$P,$A115,TEJdata!$B:$B)/SUMIF(TEJdata!$P:$P,$A115,TEJdata!$C:$C)-1)*100) -> -10.38373307 | E115: =IF(SUMIF(TEJdata!$P:$P,$A115,TEJdata!$E:$E)=0,"",(SUMIF(TEJdata!$P:$P,$A115,TEJdata!$E:$E)/SUMIF(TEJdata!$P:$P,$A115,TEJdata!$F:$F)-1)*100) -> -16.01691602 | F115: =SUMIF(TEJdata!$P:$P,$A115,TEJdata!$B:$B)/1000 -> 1691.913 | G115: =SUMIF(TEJdata!$P:$P,$A115,TEJdata!$G:$G)/$B115 -> -3.644875 | H115: =SUMIF(TEJdata!$P:$P,$A115,TEJdata!$H:$H)/$B115 -> -6.6257 | I115: =IF(SUMIF(TEJdata!$P:$P,$A115,TEJdata!$I:$I)=0,0,IFERROR((SUMIF(TEJdata!$P:$P,$A115,TEJdata!$I:$I)/SUMIF(TEJdata!$P:$P,$A115,TEJdata!$J:$J)-1)*100,"-")) -> -2.360695739 | J115: =IF(SUMIF(TEJdata!$P:$P,$A115,TEJdata!$K:$K)=0,0,IFERROR((SUMIF(TEJdata!$P:$P,$A115,TEJdata!$K:$K)/SUMIF(TEJdata!$P:$P,$A115,TEJdata!$L:$L)-1)*100,"-")) -> 0 | K115: =IF(SUMIF(TEJdata!$P:$P,$A115,TEJdata!$M:$M)=0,0,IFERROR((SUMIF(TEJdata!$P:$P,$A115,TEJdata!$M:$M)/SUMIF(TEJdata!$P:$P,$A115,TEJdata!$N:$N)-1)*100,"-")) -> -0.1271676301

Sheet TEJdata
B1: 單月營收 | C1: 單月營收 | D1: 去年單月營收 | E1: 累計營收 | F1: 去年累計營收 | G1: 週報酬率 % | H1: 月報酬率 % | I1: 外資持股數 | J1: 外資持股數-1w | K1: 投信持股數(千股) | L1: 投信持股數-1w | M1: 融資餘額(張) | N1: 融資餘額-1w | O1: 上市別 | P1: TEJ子產業 | Q1: =$AD$2 -> 統一編號
A2: 公司 | B2: 2023-10-31 | C2: 2023-09-28 | D2: 2023-10-31 | E2: 2023-10-31 | F2: 2023-10-31 | G2: 2023-11-10 | H2: 2023-11-10 | I2: 2023-11-10 | J2: 2023-11-06 | K2: 2023-11-10 | L2: 2023-11-06 | M2: 2023-11-10 | N2: 2023-11-06 | O2: 1900-01-02 | P2: 1900-01-03 | Q2: 1900-01-04 | AA2: 公司簡稱 | AB2: 上市別 | AC2: TEJ子產業名 | AD2: 統一編號
A3: 1101 台泥 | B3: 9371746 | C3: 8735157 | D3: 11368096 | E3: 90313749 | F3: 90710057 | G3: -0.152 | H3: 0.1525 | I3: 1433665 | J3: 1536869 | K3: 239405 | L3: 238118 | M3: 18937 | N3: 19155 | O3: =IF(ISERROR(VLOOKUP($A3,XX_TEJ01,O$2,FALSE))=TRUE,"",VLOOKUP($A3,XX_TEJ01,O$2,FALSE)) -> TSE | P3: M11A 水泥製造 | Q3: =RIGHT(IF(ISERROR(VLOOKUP($A3,XX_TEJ01,Q$2,FALSE))=TRUE,"",VLOOKUP($A3,XX_TEJ01,Q$2,FALSE)),8) -> 11913502 | AA3: 1101 台泥 | AB3: TSE | AC3: M11A 水泥製造 | AD3: ID 11913502
A4: 1102 亞泥 | B4: 6706168 | C4: 6691905 | D4: 7601097 | E4: 66945254 | F4: 73697894 | G4: 0.2484 | H4: 1.1278 | I4: 572373 | J4: 570807 | K4: 173031 | L4: 173094 | M4: 1589 | N4: 1584 | O4: TSE | P4: M11A 水泥製造 | Q4: 03244509 | AA4: 1102 亞泥 | AB4: TSE | AC4: M11A 水泥製造 | AD4: ID 03244509
A5: 1103 嘉泥 | B5: 257343 | C5: 232979 | D5: 209429 | E5: 2372574 | F5: 1803252 | G5: 0.8263 | H5: -0.5437 | I5: 42930 | J5: 42867 | K5: 0 | L5: 0 | M5: 1643 | N5: 1639 | O5: TSE | P5: M11A 水泥製造 | Q5: 11892801 | AA5: 1103 嘉泥 | AB5: TSE | AC5: M11A 水泥製造 | AD5: ID 11892801
A6: 1104 環泥 | B6: 654514 | C6: 618592 | D6: 634981 | E6: 6282268 | F6: 5698929 | G6: 2.2945 | H6: 3.6822 | I6: 101553 | J6: 101328 | K6: 0 | L6: 0 | M6: 1514 | N6: 1654 | O6: TSE | P6: M11A 水泥製造 | Q6: 07568009 | AA6: 1104 環泥 | AB6: TSE | AC6: M11A 水泥製造 | AD6: ID 07568009
A7: 1108 幸福 | B7: 451146 | C7: 404171 | D7: 401202 | E7: 4141653 | F7: 3347381 | G7: 2.8777 | H7: 0.3508 | I7: 10869 | J7: 11129 | K7: 0 | L7: 0 | M7: 2062 | N7: 2114 | O7: TSE | P7: M11A 水泥製造 | Q7: 40601248 | AA7: 1108 幸福 | AB7: TSE | AC7: M11A 水泥製造 | AD7: ID 40601248
A8: 1109 信大 | B8: 531941 | C8: 490929 | D8: 527209 | E8: 5157727 | F8: 5202650 | G8: 0 | H8: -0.5618 | I8: 10381 | J8: 10445 | K8: 0 | L8: 0 | M8: 1071 | N8: 1071 | O8: TSE | P8: M11A 水泥製造 | Q8: 03279507 | AA8: 1109 信大 | AB8: TSE | AC8: M11A 水泥製造 | AD8: ID 03279507
A9: 1110 東泥 | B9: 191120 | C9: 169364 | D9: 197515 | E9: 1832642 | F9: 1428523 | G9: 0.2724 | H9: -2.1277 | I9: 35678 | J9: 35664 | K9: 0 | L9: 0 | M9: 4263 | N9: 4254 | O9: TSE | P9: M11A 水泥製造 | Q9: 83078600 | AA9: 1110 東泥 | AB9: TSE | AC9: M11A 水泥製造 | AD9: ID 83078600
A10: 1201 味全 | B10: 1894929 | C10: 1944806 | D10: 1719108 | E10: 17885259 | F10: 16933521 | G10: 0.5375 | H10: 0.8083 | I10: 45422 | J10: 45359 | K10: 0 | L10: 0 | M10: 922 | N10: 942 | O10: TSE | P10: M12C 飲料乳品 | Q10: 11347802 | AA10: 1201 味全 | AB10: TSE | AC10: M12C 飲料乳品 | AD10: ID 11347802
A11: 1203 味王 | B11: 504360 | C11: 544257 | D11: 534997 | E11: 5223257 | F11: 5231391 | G11: 2.6129 | H11: 4.6008 | I11: 4886 | J11: 4879 | K11: 0 | L11: 0 | M11: 49 | N11: 49 | O11: TSE | P11: M12Z 其他食品 | Q11: 07067309 | AA11: 1203 味王 | AB11: TSE | AC11: M12Z 其他食品 | AD11: ID 07067309
A12: 1210 大成 | B12: 8992288 | C12: 9291296 | D12: 10031178 | E12: 92145772 | F12: 92807833 | G12: 2.0952 | H12: 1.5154 | I12: 102569 | J12: 102455 | K12: 1492 | L12: 1827 | M12: 3198 | N12: 3219 | O12: TSE | P12: M12B 油脂飼料 | Q12: 73008303 | AA12: 1210 大成 | AB12: TSE | AC12: M12B 油脂飼料 | AD12: ID 73008303
A13: 1213 大飲 | B13: 403 | C13: 636 | D13: 30818 | E13: 116889 | F13: 328870 | G13: -1.8005 | H13: -2.8766 | I13: 10 | J13: 10 | K13: 0 | L13: 0 | M13: 0 | N13: 0 | O13: TSE | P13: M12C 飲料乳品 | Q13: 35012903 | AA13: 1213 大飲 | AB13: TSE | AC13: M12C 飲料乳品 | AD13: ID 35012903
A14: 1215 卜蜂 | B14: 2382360 | C14: 2437231 | D14: 2364883 | E14: 24332804 | F14: 23615890 | G14: 0.0001 | H14: -1.909 | I14: 120168 | J14: 120215 | K14: 8641 | L14: 8751 | M14: 775 | N14: 779 | O14: TSE | P14: M12B 油脂飼料 | Q14: 36514783 | AA14: 1215 卜蜂 | AB14: TSE | AC14: M12B 油脂飼料 | AD14: ID 36514783
A15: 1216 統一 | B15: 49801476 | C15: 53366181 | D15: 42927337 | E15: 483652868 | F15: 439427488 | G15: -0.2858 | H15: 1.6012 | I15: 2188119 | J15: 2189059 | K15: 149602 | L15: 149134 | M15: 355 | N15: 368 | O15: TSE | P15: M12C 飲料乳品 | Q15: 73251209 | AA15: 1216 統一 | AB15: TSE | AC15: M12C 飲料乳品 | AD15: ID 73251209
A16: 1217 愛之味 | B16: 323973 | C16: 485332 | D16: 316358 | E16: 4280118 | F16: 4160219 | G16: -3.7038 | H16: -4.8781 | I16: 38542 | J16: 40021 | K16: 30 | L16: 30 | M16: 8611 | N16: 8630 | O16: TSE | P16: M12A 罐頭加工 | Q16: 65534366 | AA16: 1217 愛之味 | AB16: TSE | AC16: M12A 罐頭加工 | AD16: ID 65534366
A17: 1218 泰山 | B17: 893674 | C17: 1070356 | D17: 845561 | E17: 9479640 | F17: 9329439 | G17: -1.2077 | H17: -6.8337 | I17: 11214 | J17: 11954 | K17: 0 | L17: 0 | M17: 5634 | N17: 5516 | O17: TSE | P17: M12B 油脂飼料 | Q17: 59661701 | AA17: 1218 泰山 | AB17: TSE | AC17: M12B 油脂飼料 | AD17: ID 59661701
A18: 1219 福壽 | B18: 1280865 | C18: 1310734 | D18: 1443910 | E18: 13680823 | F18: 14087578 | G18: 0.5278 | H18: -3.7878 | I18: 20609 | J18: 20621 | K18: 0 | L18: 0 | M18: 1939 | N18: 1954 | O18: TSE | P18: M12B 油脂飼料 | Q18: 56192402 | AA18: 1219 福壽 | AB18: TSE | AC18: M12B 油脂飼料 | AD18: ID 56192402
A19: 1220 台榮 | B19: 289053 | C19: 295646 | D19: 334007 | E19: 2643847 | F19: 2888952 | G19: -1.4651 | H19: -3.2374 | I19: 12682 | J19: 12680 | K19: 0 | L19: 0 | M19: 1384 | N19: 1406 | O19: TSE | P19: M12B 油脂飼料 | Q19: 03543210 | AA19: 1220 台榮 | AB19: TSE | AC19: M12B 油脂飼料 | AD19: ID 03543210
A20: 1225 福懋油 | B20: 1212955 | C20: 1184327 | D20: 1291928 | E20: 12125626 | F20: 12536537 | G20: -0.7491 | H20: -1.8521 | I20: 1304 | J20: 1316 | K20: 0 | L20: 0 | M20: 9626 | N20: 9625 | O20: TSE | P20: M12B 油脂飼料 | Q20: 22102298 | AA20: 1225 福懋油 | AB20: TSE | AC20: M12B 油脂飼料 | AD20: ID 22102298
A21: 1227 佳格 | B21: 2027434 | C21: 3116707 | D21: 2182437 | E21: 22157069 | F21: 22581976 | G21: -0.1314 | H21: 2.564 | I21: 57290 | J21: 57252 | K21: 133 | L21: 133 | M21: 1263 | N21: 1261 | O21: TSE | P21: M12Z 其他食品 | Q21: 22102473 | AA21: 1227 佳格 | AB21: TSE | AC21: M12Z 其他食品 | AD21: ID 22102473
A22: 1229 聯華 | B22: 1200893 | C22: 861221 | D22: 908917 | E22: 10487622 | F22: 10155633 | G22: 0.4879 | H22: -0.4831 | I22: 181767 | J22: 181674 | K22: 977 | L22: 988 | M22: 842 | N22: 807 | O22: TSE | P22: M12B 油脂飼料 | Q22: 11996904 | AA22: 1229 聯華 | AB22: TSE | AC22: M12B 油脂飼料 | AD22: ID 11996904
A23: 1231 聯華食 | B23: 874442 | C23: 796194 | D23: 866871 | E23: 8863900 | F23: 8629827 | G23: -0.4551 | H23: -0.3418 | I23: 5706 | J23: 5724 | K23: 0 | L23: 0 | M23: 110 | N23: 113 | O23: =IF(ISERROR(VLOOKUP($A23,XX_TEJ01,O$2,FALSE))=TRUE,"",VLOOKUP($A23,XX_TEJ01,O$2,FALSE)) -> TSE | P23: M12Z 其他食品 | Q23: 07569627 | AA23: 1231 聯華食 | AB23: TSE | AC23: M12Z 其他食品 | AD23: ID 07569627
A24: 1232 大統益 | B24: 1922344 | C24: 1874068 | D24: 2198870 | E24: 19630101 | F24: 19886821 | G24: 0.3545 | H24: 0.3544 | I24: 1880 | J24: 1864 | K24: 0 | L24: 0 | M24: 5 | N24: 5 | O24: TSE | P24: M12B 油脂飼料 | Q24: 20927014 | AA24: 1232 大統益 | AB24: TSE | AC24: M12B 油脂飼料 | AD24: ID 20927014
A25: 1233 天仁 | B25: 175783 | C25: 189526 | D25: 149886 | E25: 1746182 | F25: 1477243 | G25: -0.1436 | H25: -2.3876 | I25: 4881 | J25: 4882 | K25: 0 | L25: 0 | M25: 146 | N25: 148 | O25: TSE | P25: M12Z 其他食品 | Q25: 18559415 | AA25: 1233 天仁 | AB25: TSE | AC25: M12Z 其他食品 | AD25: ID 18559415
A26: 1234 黑松 | B26: 960839 | C26: 1017186 | D26: 817431 | E26: 8924963 | F26: 7782622 | G26: 0 | H26: 0.3888 | I26: 23097 | J26: 23094 | K26: 0 | L26: 0 | M26: 42 | N26: 37 | O26: TSE | P26: M12C 飲料乳品 | Q26: 20651901 | AA26: 1234 黑松 | AB26: TSE | AC26: M12C 飲料乳品 | AD26: ID 20651901
A27: 1235 興泰 | B27: 3323 | C27: 6537 | D27: 3211 | E27: 36033 | F27: 52054 | G27: -0.6219 | H27: 0.7567 | I27: 214 | J27: 211 | K27: 0 | L27: 0 | M27: 1254 | N27: 1253 | O27: TSE | P27: M12B 油脂飼料 | Q27: 85617982 | AA27: 1235 興泰 | AB27: TSE | AC27: M12B 油脂飼料 | AD27: ID 85617982
A28: 1236 宏亞 | B28: 125408 | C28: 222123 | D28: 137410 | E28: 1546837 | F28: 1598527 | G28: -0.2004 | H28: 7.2097 | I28: 348 | J28: 354 | K28: 0 | L28: 0 | M28: 241 | N28: 242 | O28: TSE | P28: M12Z 其他食品 | Q28: 34106066 | AA28: 1236 宏亞 | AB28: TSE | AC28: M12Z 其他食品 | AD28: ID 34106066
A29: 1240 茂生農經 | B29: 245925 | C29: 223358 | D29: 312492 | E29: 2371277 | F29: 2774635 | G29: 0.333 | H29: -3.4184 | I29: 2060 | J29: 2057 | K29: 0 | L29: 0 | M29: 154 | N29: 135 | O29: OTC | P29: M12B 油脂飼料 | Q29: 18795706 | AA29: 1240 茂生農經 | AB29: OTC | AC29: M12B 油脂飼料 | AD29: ID 18795706
A30: 1256 鮮活果汁-KY | B30: 222574 | C30: 444032 | D30: 142872 | E30: 4126970 | F30: 3579871 | G30: -0.215 | H30: -14.7058 | I30: 1230 | J30: 1232 | K30: 0 | L30: 0 | M30: 52 | N30: 49 | O30: TSE | P30: M12C 飲料乳品 | Q30: 37759808 | AA30: 1256 鮮活果汁-KY | AB30: TSE | AC30: M12C 飲料乳品 | AD30: ID 37759808
A31: 1259 安心 | B31: 505925 | C31: 517430 | D31: 481302 | E31: 5032272 | F31: 4750492 | G31: 1.068 | H31: 1.6107 | I31: 8499 | J31: 8501 | K31: 0 | L31: 0 | M31: 28 | N31: 28 | O31: OTC | P31: M27A2 餐飲業 | Q31: 23928945 | AA31: 1259 安心 | AB31: OTC | AC31: M27A2 餐飲業 | AD31: ID 23928945
A32: 1264 德麥 | B32: 458599 | C32: 537887 | D32: 437074 | E32: 4666406 | F32: 4203226 | G32: 0.1733 | H32: 0.6969 | I32: 910 | J32: 912 | K32: 0 | L32: 0 | M32: 4 | N32: 4 | O32: OTC | P32: M12Z 其他食品 | Q32: 23420497 | AA32: 1264 德麥 | AB32: OTC | AC32: M12Z 其他食品 | AD32: ID 23420497
A33: 1268 漢來美食 | B33: 402771 | C33: 410264 | D33: 353050 | E33: 4012263 | F33: 2966884 | G33: -1.3652 | H33: -9.6876 | I33: 744 | J33: 787 | K33: 0 | L33: 0 | M33: 658 | N33: 705 | O33: OTC | P33: M27A2 餐飲業 | Q33: 80352343 | AA33: 1268 漢來美食 | AB33: OTC | AC33: M27A2 餐飲業 | AD33: ID 80352343
A34: 1301 台塑 | B34: 16306347 | C34: 16588777 | D34: 17040281 | E34: 167702279 | F34: 217621552 | G34: -0.2567 | H34: -1.3958 | I34: 2006698 | J34: 2009708 | K34: 103616 | L34: 103841 | M34: 2939 | N34: 2955 | O34: TSE | P34: M13A1 泛用塑膠 | Q34: 75708007 | AA34: 1301 台塑 | AB34: TSE | AC34: M13A1 泛用塑膠 | AD34: ID 75708007
A35: 1303 南亞 | B35: 21722488 | C35: 22141297 | D35: 26628431 | E35: 218485874 | F35: 306041011 | G35: 1.4062 | H35: -0.6127 | I35: 2290037 | J35: 2287126 | K35: 227177 | L35: 226408 | M35: 1903 | N35: 1994 | O35: TSE | P35: M13A1 泛用塑膠 | Q35: 75370905 | AA35: 1303 南亞 | AB35: TSE | AC35: M13A1 泛用塑膠 | AD35: ID 75370905
A36: 1304 台聚 | B36: 4296205 | C36: 4506836 | D36: 5068232 | E36: 43733211 | F36: 56359289 | G36: -1.5545 | H36: -6.8628 | I36: 395307 | J36: 396508 | K36: 8760 | L36: 8760 | M36: 5341 | N36: 5173 | O36: TSE | P36: M13A1 泛用塑膠 | Q36: 11917107 | AA36: 1304 台聚 | AB36: TSE | AC36: M13A1 泛用塑膠 | AD36: ID 11917107
A37: 1305 華夏 | B37: 1046806 | C37: 966666 | D37: 1086250 | E37: 11532707 | F37: 15217174 | G37: 0.4495 | H37: -5.8946 | I37: 47394 | J37: 48851 | K37: 3587 | L37: 3719 | M37: 3910 | N37: 3968 | O37: TSE | P37: M13A1 泛用塑膠 | Q37: 11686106 | AA37: 1305 華夏 | AB37: TSE | AC37: M13A1 泛用塑膠 | AD37: ID 11686106
A38: 1307 三芳 | B38: 837011 | C38: 838162 | D38: 816520 | E38: 8508620 | F38: 9199420 | G38: 8.2644 | H38: 0.5756 | I38: 50187 | J38: 49605 | K38: 0 | L38: 0 | M38: 860 | N38: 803 | O38: TSE | P38: M13A6 合成皮 | Q38: 83387850 | AA38: 1307 三芳 | AB38: TSE | AC38: M13A6 合成皮 | AD38: ID 83387850
A39: 1308 亞聚 | B39: 538938 | C39: 572692 | D39: 879815 | E39: 5578499 | F39: 8190718 | G39: -4.4624 | H39: -1.2578 | I39: 42065 | J39: 42192 | K39: 3243 | L39: 3560 | M39: 3089 | N39: 3250 | O39: TSE | P39: M13A1 泛用塑膠 | Q39: 20747385 | AA39: 1308 亞聚 | AB39: TSE | AC39: M13A1 泛用塑膠 | AD39: ID 20747385
A40: 1309 台達化 | B40: 1451953 | C40: 1491814 | D40: 1299689 | E40: 12597827 | F40: 15538125 | G40: -2.3529 | H40: -4.0461 | I40: 7737 | J40: 8028 | K40: 0 | L40: 0 | M40: 2462 | N40: 2499 | O40: TSE | P40: M13A1 泛用塑膠 | Q40: 11893409 | AA40: 1309 台達化 | AB40: TSE | AC40: M13A1 泛用塑膠 | AD40: ID 11893409
A41: 1310 台苯 | B41: 891484 | C41: 806466 | D41: 765461 | E41: 7836675 | F41: 11164151 | G41: -0.9524 | H41: -0.0003 | I41: 32721 | J41: 32431 | K41: 0 | L41: 0 | M41: 3840 | N41: 4160 | O41: TSE | P41: M13A1 泛用塑膠 | Q41: 20844865 | AA41: 1310 台苯 | AB41: TSE | AC41: M13A1 泛用塑膠 | AD41: ID 20844865
A42: 1312 國喬 | B42: 1298379 | C42: 1366098 | D42: 1387943 | E42: 13283370 | F42: 15622619 | G42: -1.5576 | H42: -4.2424 | I42: 110035 | J42: 109893 | K42: 0 | L42: 0 | M42: 19949 | N42: 20833 | O42: TSE | P42: M13A1 泛用塑膠 | Q42: 04212250 | AA42: 1312 國喬 | AB42: TSE | AC42: M13A1 泛用塑膠 | AD42: ID 04212250
A43: 1313 聯成 | B43: 6323633 | C43: 7063372 | D43: 5073138 | E43: 59831110 | F43: 61544093 | G43: 2.3026 | H43: 4.3624 | I43: 150087 | J43: 147017 | K43: 0 | L43: 0 | M43: 5536 | N43: 5689 | O43: =IF(ISERROR(VLOOKUP($A43,XX_TEJ01,O$2,FALSE))=TRUE,"",VLOOKUP($A43,XX_TEJ01,O$2,FALSE)) -> TSE | P43: M13A7 可塑劑 | Q43: 04748660 | AA43: 1313 聯成 | AB43: TSE | AC43: M13A7 可塑劑 | AD43: ID 04748660
A44: 1314 中石化 | B44: 2237466 | C44: 2843927 | D44: 1455340 | E44: 21277065 | F44: 22599178 | G44: -4.8039 | H44: 3.5181 | I44: 451190 | J44: 465406 | K44: 11 | L44: 11 | M44: 68126 | N44: 68430 | O44: TSE | P44: M13A5 化纖 | Q44: 03084741 | AA44: 1314 中石化 | AB44: TSE | AC44: M13A5 化纖 | AD44: ID 03084741
A45: 1315 達新 | B45: 136905 | C45: 134277 | D45: 210962 | E45: 1829938 | F45: 2269366 | G45: 0.0001 | H45: 0.4226 | I45: 1278 | J45: 1279 | K45: 0 | L45: 0 | M45: 96 | N45: 96 | O45: TSE | P45: M13A8 塑膠加工 | Q45: 51059101 | AA45: 1315 達新 | AB45: TSE | AC45: M13A8 塑膠加工 | AD45: ID 51059101
A46: 1316 上曜 | B46: 37856 | C46: 77620 | D46: 185272 | E46: 700292 | F46: 2101066 | G46: 0.9569 | H46: -0.8508 | I46: 8131 | J46: 6859 | K46: 0 | L46: 0 | M46: 12782 | N46: 12993 | O46: TSE | P46: M25A 建設 | Q46: 73654033 | AA46: 1316 上曜 | AB46: TSE | AC46: M25A 建設 | AD46: ID 73654033
A47: 1319 東陽 | B47: 2125831 | C47: 2156228 | D47: 1793527 | E47: 19429360 | F47: 17763605 | G47: 3.5621 | H47: 1.1599 | I47: 146395 | J47: 151561 | K47: 16733 | L47: 13782 | M47: 6676 | N47: 5971 | O47: TSE | P47: M15D 汽車組件 | Q47: 68326665 | AA47: 1319 東陽 | AB47: TSE | AC47: M15D 汽車組件 | AD47: ID 68326665
A48: 1321 大洋 | B48: 321339 | C48: 357833 | D48: 428190 | E48: 3929634 | F48: 5611951 | G48: 0.5571 | H48: 2.1215 | I48: 10684 | J48: 10626 | K48: 0 | L48: 0 | M48: 3215 | N48: 3294 | O48: TSE | P48: M13A8 塑膠加工 | Q48: 15024509 | AA48: 1321 大洋 | AB48: TSE | AC48: M13A8 塑膠加工 | AD48: ID 15024509
A49: 1323 永裕 | B49: 283758 | C49: 278061 | D49: 319037 | E49: 2790179 | F49: 3172771 | G49: 0 | H49: -0.7936 | I49: 2255 | J49: 2285 | K49: 0 | L49: 0 | M49: 14 | N49: 14 | O49: TSE | P49: M13A8 塑膠加工 | Q49: 68192103 | AA49: 1323 永裕 | AB49: TSE | AC49: M13A8 塑膠加工 | AD49: ID 68192103
A50: 1324 地球 | B50: 90322 | C50: 77612 | D50: 72801 | E50: 788562 | F50: 811871 | G50: -5.7535 | H50: 7.1651 | I50: 746 | J50: 1184 | K50: 0 | L50: 0 | M50: 2265 | N50: 2984 | O50: TSE | P50: M13A9 膠帶 | Q50: 07147916 | AA50: 1324 地球 | AB50: TSE | AC50: M13A9 膠帶 | AD50: ID 07147916
A51: 1325 恒大 | B51: 30260 | C51: 31793 | D51: 33874 | E51: 340187 | F51: 471399 | G51: -0.0002 | H51: -1.3277 | I51: 2590 | J51: 2555 | K51: 0 | L51: 0 | M51: 1294 | N51: 1294 | O51: TSE | P51: M14F 不織布 | Q51: 11455800 | AA51: 1325 恒大 | AB51: TSE | AC51: M14F 不織布 | AD51: ID 11455800
A52: 1326 台化 | B52: 30166153 | C52: 30995485 | D52: 30444806 | E52: 275187944 | F52: 324373574 | G52: 0.4815 | H52: 2.2876 | I52: 1961495 | J52: 1958746 | K52: 49812 | L52: 49787 | M52: 1250 | N52: 1274 | O52: TSE | P52: M13A1 泛用塑膠 | Q52: 58650902 | AA52: 1326 台化 | AB52: TSE | AC52: M13A1 泛用塑膠 | AD52: ID 58650902
A53: 1336 台翰 | B53: 190371 | C53: 217748 | D53: 299080 | E53: 1953361 | F53: 2210952 | G53: 1.2376 | H53: -6.1927 | I53: 2405 | J53: 2407 | K53: 0 | L53: 0 | M53: 1954 | N53: 1945 | O53: OTC | P53: M23D9A 沖壓零組件 | Q53: 22589593 | AA53: 1336 台翰 | AB53: OTC | AC53: M23D9A 沖壓零組件 | AD53: ID 22589593
A54: 1337 再生-KY | B54: 75105 | C54: 66442 | D54: 48082 | E54: 615445 | F54: 516971 | G54: 0.4275 | H54: -1.6737 | I54: 70290 | J54: 70367 | K54: 0 | L54: 0 | M54: 15995 | N54: 15954 | O54: TSE | P54: M13B 塑膠製品 | Q54: 26068617 | AA54: 1337 再生-KY | AB54: TSE | AC54: M13B 塑膠製品 | AD54: ID 26068617
A55: 1338 廣華-KY | B55: 467678 | C55: 501571 | D55: 601039 | E55: 4660222 | F55: 6283953 | G55: 0.4081 | H55: -2.2518 | I55: 6028 | J55: 6041 | K55: 0 | L55: 0 | M55: 3476 | N55: 3484 | O55: TSE | P55: M15D 汽車組件 | Q55: 26594386 | AA55: 1338 廣華-KY | AB55: TSE | AC55: M15D 汽車組件 | AD55: ID 26594386
A56: 1339 昭輝 | B56: 190165 | C56: 163839 | D56: 170130 | E56: 1695287 | F56: 1687801 | G56: 1.4778 | H56: -6.7874 | I56: 2894 | J56: 2886 | K56: 82 | L56: 82 | M56: 1875 | N56: 1857 | O56: TSE | P56: M15D 汽車組件 | Q56: 22078327 | AA56: 1339 昭輝 | AB56: TSE | AC56: M15D 汽車組件 | AD56: ID 22078327
A57: 1340 勝悅-KY | B57: 59538 | C57: 48654 | D57: 41769 | E57: 490939 | F57: 402012 | G57: -0.0001 | H57: -2.5425 | I57: 41930 | J57: 41941 | K57: 0 | L57: 0 | M57: 845 | N57: 827 | O57: TSE | P57: M13B 塑膠製品 | Q57: 37722768 | AA57: 1340 勝悅-KY | AB57: TSE | AC57: M13B 塑膠製品 | AD57: ID 37722768
A58: 1341 富林-KY | B58: 227573 | C58: 221362 | D58: 223036 | E58: 2107121 | F58: 2540047 | G58: -1.5504 | H58: -5.9258 | I58: 42169 | J58: 42169 | K58: 0 | L58: 0 | O58: TSE | P58: M13A6 合成皮 | Q58: 82716171 | AA58: 1341 富林-KY | AB58: TSE | AC58: M13A6 合成皮 | AD58: ID 82716171
A59: 1342 八貫 | B59: 202304 | C59: 240631 | D59: 194665 | E59: 2118423 | F59: 2095927 | G59: 0.4425 | H59: 3.1817 | I59: 31470 | J59: 31440 | K59: 0 | L59: 0 | M59: 3066 | N59: 3168 | O59: TSE | P59: M13B 塑膠製品 | Q59: 12386676 | AA59: 1342 八貫 | AB59: TSE | AC59: M13B 塑膠製品 | AD59: ID 12386676
A60: 1402 遠東新 | B60: 22437543 | C60: 23162130 | D60: 22391824 | E60: 212701845 | F60: 222273455 | G60: 1.1706 | H60: 5.9545 | I60: 885326 | J60: 879006 | K60: 297354 | L60: 295878 | M60: 2637 | N60: 2588 | O60: TSE | P60: M14A1 聚酯絲棉 | Q60: 03522600 | AA60: 1402 遠東新 | AB60: TSE | AC60: M14A1 聚酯絲棉 | AD60: ID 03522600
A61: 1409 新纖 | B61: 3253929 | C61: 3829791 | D61: 3487325 | E61: 33011334 | F61: 40230279 | G61: -0.3279 | H61: -1.2988 | I61: 190903 | J61: 191319 | K61: 0 | L61: 0 | M61: 6010 | N61: 6003 | O61: TSE | P61: M14A1 聚酯絲棉 | Q61: 07435515 | AA61: 1409 新纖 | AB61: TSE | AC61: M14A1 聚酯絲棉 | AD61: ID 07435515
A62: 1410 南染 | B62: 18540 | C62: 16372 | D62: 35487 | E62: 184553 | F62: 327988 | G62: -0.401 | H62: -0.6665 | I62: 13533 | J62: 13537 | K62: 0 | L62: 0 | M62: 291 | N62: 287 | O62: TSE | P62: M14E 染整 | Q62: 35286207 | AA62: 1410 南染 | AB62: TSE | AC62: M14E 染整 | AD62: ID 35286207
A63: 1413 宏洲 | B63: 222728 | C63: 202309 | D63: 245129 | E63: 1673038 | F63: 2746187 | G63: -0.9828 | H63: -0.7388 | I63: 282 | J63: 286 | K63: 0 | L63: 0 | M63: 0 | N63: 0 | O63: =IF(ISERROR(VLOOKUP($A63,XX_TEJ01,O$2,FALSE))=TRUE,"",VLOOKUP($A63,XX_TEJ01,O$2,FALSE)) -> TSE | P63: M14A2 加工絲 | Q63: 07220710 | AA63: 1413 宏洲 | AB63: TSE | AC63: M14A2 加工絲 | AD63: ID 07220710
A64: 1414 東和 | B64: 46067 | C64: 48748 | D64: 46849 | E64: 467886 | F64: 594773 | G64: 0.8621 | H64: 0.573 | I64: 1146 | J64: 1172 | K64: 0 | L64: 0 | M64: 2312 | N64: 2308 | O64: TSE | P64: M14B1 聚酯紗棉紗 | Q64: 73141105 | AA64: 1414 東和 | AB64: TSE | AC64: M14B1 聚酯紗棉紗 | AD64: ID 73141105
A65: 1416 廣豐 | B65: 24959 | C65: 25319 | D65: 16958 | E65: 237213 | F65: 214040 | G65: 2.4039 | H65: 2.4038 | I65: 17301 | J65: 17341 | K65: 0 | L65: 0 | M65: 1308 | N65: 1345 | O65: TSE | P65: M23X9 應用軟體 | Q65: 43434316 | AA65: 1416 廣豐 | AB65: TSE | AC65: M23X9 應用軟體 | AD65: ID 43434316
A66: 1417 嘉裕 | B66: 112364 | C66: 94040 | D66: 137357 | E66: 1229425 | F66: 1240940 | G66: 0 | H66: -4.8 | I66: 5853 | J66: 5869 | K66: 0 | L66: 0 | M66: 4562 | N66: 4562 | O66: TSE | P66: M14C1 成衣製造 | Q66: 11825825 | AA66: 1417 嘉裕 | AB66: TSE | AC66: M14C1 成衣製造 | AD66: ID 11825825
A67: 1418 東華 | B67: 258 | C67: 1137 | D67: 1761 | E67: 17255 | F67: 13421 | G67: -2.5001 | H67: -8.3335 | I67: 447 | J67: 451 | K67: 0 | L67: 0 | M67: 437 | N67: 459 | O67: TSE | P67: M14B2 亞克力纖維 | Q67: =RIGHT(IF(ISERROR(VLOOKUP($A67,XX_TEJ01,Q$2,FALSE))=TRUE,"",VLOOKUP($A67,XX_TEJ01,Q$2,FALSE)),8) -> 11083148 | AA67: 1418 東華 | AB67: TSE | AC67: M14B2 亞克力纖維 | AD67: ID 11083148
A68: 1419 新紡 | B68: 327793 | C68: 334093 | D68: 357743 | E68: 2656250 | F68: 2753058 | G68: -1.3544 | H68: 2.5823 | I68: 4971 | J68: 4962 | K68: 0 | L68: 0 | M68: 658 | N68: 656 | O68: TSE | P68: M14C2 織布 | Q68: 07435901 | AA68: 1419 新紡 | AB68: TSE | AC68: M14C2 織布 | AD68: ID 07435901
A69: 1423 利華 | B69: 9973 | C69: 6637 | D69: 9328 | E69: 101248 | F69: 145554 | G69: 4.2088 | H69: 6.1755 | I69: 1418 | J69: 1379 | K69: 0 | L69: 0 | M69: 1782 | N69: 1886 | O69: TSE | P69: M14D2 毛紡 | Q69: 11311608 | AA69: 1423 利華 | AB69: TSE | AC69: M14D2 毛紡 | AD69: ID 11311608
A70: 1432 大魯閣 | B70: 111903 | C70: 107050 | D70: 100705 | E70: 1118157 | F70: 911724 | G70: 0.3096 | H70: -0.9175 | I70: 460 | J70: 460 | K70: 0 | L70: 0 | M70: 0 | N70: 0 | O70: TSE | P70: M29A1 百貨及Mall | Q70: 04690983 | AA70: 1432 大魯閣 | AB70: TSE | AC70: M29A1 百貨及Mall | AD70: ID 04690983
A71: 1434 福懋 | B71: 2217809 | C71: 2407270 | D71: 2626721 | E71: 24242947 | F71: 29572005 | G71: -0.1965 | H71: -0.0001 | I71: 124812 | J71: 125334 | K71: 2208 | L71: 927 | M71: 666 | N71: 726 | O71: TSE | P71: M14C2 織布 | Q71: 14001199 | AA71: 1434 福懋 | AB71: TSE | AC71: M14C2 織布 | AD71: ID 14001199
A72: 1435 中福 | B72: 637 | C72: 676 | D72: 988 | E72: 7250 | F72: 11280 | G72: -5.5555 | H72: -20.9301 | I72: 232 | J72: 232 | K72: 0 | L72: 0 | M72: 0 | N72: 0 | O72: TSE | P72: M23KX 其他網通 | Q72: 03101946 | AA72: 1435 中福 | AB72: TSE | AC72: M23KX 其他網通 | AD72: ID 03101946
A73: 1436 華友聯 | B73: 860396 | C73: 61767 | D73: 413976 | E73: 1157727 | F73: 3656991 | G73: 3.6 | H73: 17.906 | I73: 536 | J73: 515 | K73: 0 | L73: 0 | M73: 260 | N73: 264 | O73: TSE | P73: M25A 建設 | Q73: 07510318 | AA73: 1436 華友聯 | AB73: TSE | AC73: M25A 建設 | AD73: ID 07510318
A74: 1437 勤益控 | B74: 65565 | C74: 126347 | D74: 57437 | E74: 742200 | F74: 663209 | G74: 1.3468 | H74: 5.0608 | I74: 15718 | J74: 15779 | K74: 0 | L74: 0 | M74: 1890 | N74: 1813 | O74: TSE | P74: M25F 物業管理 | Q74: 35535607 | AA74: 1437 勤益控 | AB74: TSE | AC74: M25F 物業管理 | AD74: ID 35535607
A75: 1438 三地開發 | B75: 0 | C75: 0 | D75: 196 | E75: 299747 | F75: 455911 | G75: 0.8475 | H75: 2.4098 | I75: 308 | J75: 299 | K75: 0 | L75: 0 | M75: 331 | N75: 338 | O75: TSE | P75: M25A 建設 | Q75: 03561011 | AA75: 1438 三地開發 | AB75: TSE | AC75: M25A 建設 | AD75: ID 03561011
A76: 1439 雋揚 | B76: 15892 | C76: 4941 | D76: 16811 | E76: 163333 | F76: 472259 | G76: -1.5385 | H76: -1.3217 | I76: 320 | J76: 319 | K76: 0 | L76: 0 | M76: 636 | N76: 637 | O76: TSE | P76: M25A 建設 | Q76: 11113403 | AA76: 1439 雋揚 | AB76: TSE | AC76: M25A 建設 | AD76: ID 11113403
A77: 1440 南紡 | B77: 1749050 | C77: 1477426 | D77: 1870857 | E77: 16766550 | F77: 18363727 | G77: 5.2265 | H77: 2.7212 | I77: 108984 | J77: 107347 | K77: 0 | L77: 0 | M77: 4049 | N77: 3756 | O77: TSE | P77: M14A1 聚酯絲棉 | Q77: 68919301 | AA77: 1440 南紡 | AB77: TSE | AC77: M14A1 聚酯絲棉 | AD77: ID 68919301
A78: 1441 大東 | B78: 133170 | C78: 74396 | D78: 116047 | E78: 1007536 | F78: 1345807 | G78: 1.5267 | H78: -1.4816 | I78: 822 | J78: 821 | K78: 0 | L78: 0 | M78: 0 | N78: 0 | O78: TSE | P78: M14B1 聚酯紗棉紗 | Q78: 51037304 | AA78: 1441 大東 | AB78: TSE | AC78: M14B1 聚酯紗棉紗 | AD78: ID 51037304
A79: 1442 名軒 | B79: 1041924 | C79: 145188 | D79: 27885 | E79: 2072774 | F79: 622204 | G79: -1.6394 | H79: -1.9076 | I79: 16941 | J79: 16867 | K79: 44 | L79: 44 | M79: 6570 | N79: 6813 | O79: TSE | P79: M25A 建設 | Q79: 04615057 | AA79: 1442 名軒 | AB79: TSE | AC79: M25A 建設 | AD79: ID 04615057
A80: 1443 立益物流 | B80: 67996 | C80: 91268 | D80: 63882 | E80: 638370 | F80: 709532 | G80: 0.7092 | H80: -1.3889 | I80: 403 | J80: 404 | K80: 0 | L80: 0 | M80: 212 | N80: 213 | O80: TSE | P80: M26C 貨運倉儲業 | Q80: 04287483 | AA80: 1443 立益物流 | AB80: TSE | AC80: M26C 貨運倉儲業 | AD80: ID 04287483
A81: 1444 力麗 | B81: 535533 | C81: 683136 | D81: 853767 | E81: 7089730 | F81: 10764479 | G81: 0 | H81: -0.9616 | I81: 54338 | J81: 54181 | K81: 0 | L81: 0 | M81: 10131 | N81: 10207 | O81: TSE | P81: M14A2 加工絲 | Q81: 07663290 | AA81: 1444 力麗 | AB81: TSE | AC81: M14A2 加工絲 | AD81: ID 07663290
A82: 1445 大宇 | B82: 105406 | C82: 86848 | D82: 135940 | E82: 1157021 | F82: 1224213 | G82: 1.5748 | H82: -9.5796 | I82: 2679 | J82: 2648 | K82: 0 | L82: 0 | M82: 4735 | N82: 4775 | O82: TSE | P82: M14C2 織布 | Q82: 07015014 | AA82: 1445 大宇 | AB82: TSE | AC82: M14C2 織布 | AD82: ID 07015014
A83: 1446 宏和 | B83: 10093 | C83: 7358 | D83: 16767 | E83: 108581 | F83: 126915 | G83: -0.2624 | H83: 0.5292 | I83: 2022 | J83: 1969 | K83: 0 | L83: 0 | M83: 3189 | N83: 3185 | O83: =IF(ISERROR(VLOOKUP($A83,XX_TEJ01,O$2,FALSE))=TRUE,"",VLOOKUP($A83,XX_TEJ01,O$2,FALSE)) -> TSE | P83: M14C2 織布 | Q83: 73641170 | AA83: 1446 宏和 | AB83: TSE | AC83: M14C2 織布 | AD83: ID 73641170
A84: 1447 力鵬 | B84: 2627957 | C84: 1328742 | D84: 2721596 | E84: 25171281 | F84: 24105312 | G84: -0.5264 | H84: 1.6129 | I84: 48135 | J84: 48264 | K84: 0 | L84: 0 | M84: 11703 | N84: 11803 | O84: TSE | P84: M14A7 尼龍絲 | Q84: 33955322 | AA84: 1447 力鵬 | AB84: TSE | AC84: M14A7 尼龍絲 | AD84: ID 33955322
A85: 1449 佳和 | B85: 239989 | C85: 236451 | D85: 200910 | E85: 2274567 | F85: 2172069 | G85: 12.2857 | H85: 32.7134 | I85: 1670 | J85: 1416 | K85: 2 | L85: 2 | M85: 5072 | N85: 4721 | O85: TSE | P85: M14C2 織布 | Q85: 72055019 | AA85: 1449 佳和 | AB85: TSE | AC85: M14C2 織布 | AD85: ID 72055019
A86: 1451 年興 | B86: 353359 | C86: 461901 | D86: 642537 | E86: 5239641 | F86: 7496243 | G86: -0.2653 | H86: 0.5346 | I86: 10840 | J86: 10825 | K86: 0 | L86: 0 | M86: 639 | N86: 789 | O86: TSE | P86: M14C1 成衣製造 | Q86: 22266307 | AA86: 1451 年興 | AB86: TSE | AC86: M14C1 成衣製造 | AD86: ID 22266307
A87: 1452 宏益 | B87: 117060 | C87: 93126 | D87: 124496 | E87: 951781 | F87: 1553355 | G87: 2.1472 | H87: 2.1472 | I87: 3296 | J87: 3308 | K87: 0 | L87: 0 | M87: 677 | N87: 771 | O87: TSE | P87: M14A2 加工絲 | Q87: 43121481 | AA87: 1452 宏益 | AB87: TSE | AC87: M14A2 加工絲 | AD87: ID 43121481
A88: 1453 大將 | B88: 115 | C88: 57 | D88: 57 | E88: 628 | F88: 248441 | G88: 0.3585 | H88: 3.7039 | I88: 865 | J88: 852 | K88: 0 | L88: 0 | M88: 1464 | N88: 1513 | O88: TSE | P88: M25A 建設 | Q88: 07617901 | AA88: 1453 大將 | AB88: TSE | AC88: M25A 建設 | AD88: ID 07617901
A89: 1454 台富 | B89: 117788 | C89: 138803 | D89: 125290 | E89: 1287000 | F89: 1530988 | G89: 6.1688 | H89: -7.3655 | I89: 1083 | J89: 1087 | K89: 0 | L89: 0 | M89: 2330 | N89: 2324 | O89: TSE | P89: M14C2 織布 | Q89: 04301794 | AA89: 1454 台富 | AB89: TSE | AC89: M14C2 織布 | AD89: ID 04301794
A90: 1455 集盛 | B90: 759281 | C90: 690467 | D90: 624203 | E90: 6222633 | F90: 8149286 | G90: 6.4356 | H90: 10.9391 | I90: 13073 | J90: 11765 | K90: 0 | L90: 0 | M90: 6202 | N90: 6010 | O90: TSE | P90: M14A7 尼龍絲 | Q90: 43295237 | AA90: 1455 集盛 | AB90: TSE | AC90: M14A7 尼龍絲 | AD90: ID 43295237
A91: 1456 怡華 | B91: 101451 | C91: 216090 | D91: 31428 | E91: 1550749 | F91: 513182 | G91: 0.3067 | H91: 4.8078 | I91: 266 | J91: 260 | K91: 0 | L91: 0 | M91: 575 | N91: 606 | O91: TSE | P91: M25A 建設 | Q91: 33144175 | AA91: 1456 怡華 | AB91: TSE | AC91: M25A 建設 | AD91: ID 33144175
A92: 1457 宜進 | B92: 297085 | C92: 313769 | D92: 359933 | E92: 2598080 | F92: 3771412 | G92: -0.5698 | H92: -0.2857 | I92: 4435 | J92: 4391 | K92: 0 | L92: 0 | M92: 979 | N92: 987 | O92: TSE | P92: M14A2 加工絲 | Q92: 07669338 | AA92: 1457 宜進 | AB92: TSE | AC92: M14A2 加工絲 | AD92: ID 07669338
A93: 1459 聯發 | B93: 148718 | C93: 98023 | D93: 97027 | E93: 914254 | F93: 1697278 | G93: 2.0304 | H93: 3.2886 | I93: 5416 | J93: 5419 | K93: 0 | L93: 0 | M93: 289 | N93: 290 | O93: TSE | P93: M14A2 加工絲 | Q93: 33653494 | AA93: 1459 聯發 | AB93: TSE | AC93: M14A2 加工絲 | AD93: ID 33653494
A94: 1460 宏遠 | B94: 750216 | C94: 720391 | D94: 692200 | E94: 6305544 | F94: 8300690 | G94: -1.8742 | H94: -3.4256 | I94: 23693 | J94: 24150 | K94: 0 | L94: 0 | M94: 5502 | N94: 5766 | O94: TSE | P94: M14C2 織布 | Q94: 22817999 | AA94: 1460 宏遠 | AB94: TSE | AC94: M14C2 織布 | AD94: ID 22817999
A95: 1463 強盛 | B95: 30055 | C95: 38000 | D95: 44495 | E95: 290760 | F95: 421359 | G95: 3.1609 | H95: 15.8065 | I95: 6644 | J95: 5777 | K95: 0 | L95: 0 | M95: 1405 | N95: 1866 | O95: TSE | P95: M14E 染整 | Q95: 07715023 | AA95: 1463 強盛 | AB95: TSE | AC95: M14E 染整 | AD95: ID 07715023
A96: 1464 得力 | B96: 857638 | C96: 961770 | D96: 1036980 | E96: 8086563 | F96: 10325934 | G96: -0.0001 | H96: -3.6902 | I96: 5151 | J96: 5142 | K96: 0 | L96: 0 | M96: 704 | N96: 729 | O96: TSE | P96: M14C2 織布 | Q96: 73686632 | AA96: 1464 得力 | AB96: TSE | AC96: M14C2 織布 | AD96: ID 73686632
A97: 1465 偉全 | B97: 31064 | C97: 40641 | D97: 75030 | E97: 467240 | F97: 487397 | G97: -0.0001 | H97: 1.1537 | I97: 402 | J97: 402 | K97: 0 | L97: 0 | M97: 3125 | N97: 3125 | O97: TSE | P97: M14C2 織布 | Q97: 33700601 | AA97: 1465 偉全 | AB97: TSE | AC97: M14C2 織布 | AD97: ID 33700601
A98: 1466 聚隆 | B98: 243687 | C98: 242571 | D98: 161181 | E98: 2004410 | F98: 2355259 | G98: -0.4695 | H98: -2.3042 | I98: 369 | J98: 386 | K98: 0 | L98: 0 | M98: 821 | N98: 822 | O98: TSE | P98: M14A7 尼龍絲 | Q98: 22976047 | AA98: 1466 聚隆 | AB98: TSE | AC98: M14A7 尼龍絲 | AD98: ID 22976047
A99: 1467 南緯 | B99: 336060 | C99: 489276 | D99: 421799 | E99: 3865630 | F99: 5262366 | G99: -1.7857 | H99: -3.9301 | I99: 48370 | J99: 48641 | K99: 0 | L99: 0 | M99: 8658 | N99: 8567 | O99: TSE | P99: M14C1 成衣製造 | Q99: 69559487 | AA99: 1467 南緯 | AB99: TSE | AC99: M14C1 成衣製造 | AD99: ID 69559487
A100: 1468 昶和 | B100: 69010 | C100: 81874 | D100: 96725 | E100: 862529 | F100: 1145488 | G100: -0.7663 | H100: -0.3845 | I100: 2957 | J100: 2953 | K100: 0 | L100: 0 | M100: 0 | N100: 0 | O100: TSE | P100: M14C2 織布 | Q100: 36123364 | AA100: 1468 昶和 | AB100: TSE | AC100: M14C2 織布 | AD100: ID 36123364
A101: 1470 大統新創 | B101: 44711 | C101: 42437 | D101: 47546 | E101: 571733 | F101: 783144 | G101: -1.3157 | H101: 0.8065 | I101: 215 | J101: 214 | K101: 0 | L101: 0 | M101: 87 | N101: 93 | O101: TSE | P101: M14E 染整 | Q101: 22267777 | AA101: 1470 大統新創 | AB101: TSE | AC101: M14E 染整 | AD101: ID 22267777
A102: 1471 首利 | B102: 18841 | C102: 17794 | D102: 17324 | E102: 206654 | F102: 190948 | G102: 0.5587 | H102: -10.2245 | I102: 1468 | J102: 1734 | K102: 0 | L102: 0 | M102: 701 | N102: 701 | O102: TSE | P102: M23D3 電源供應器 | Q102: 07699023 | AA102: 1471 首利 | AB102: TSE | AC102: M23D3 電源供應器 | AD102: ID 07699023
A103: 1472 三洋實業 | B103: 177308 | C103: 173810 | D103: 138536 | E103: 1515563 | F103: 821906 | G103: 5.9881 | H103: 21.6497 | I103: 507 | J103: 576 | K103: 0 | L103: 0 | M103: 688 | N103: 667 | O103: =IF(ISERROR(VLOOKUP($A103,XX_TEJ01,O$2,FALSE))=TRUE,"",VLOOKUP($A103,XX_TEJ01,O$2,FALSE)) -> TSE | P103: M25B 營造 | Q103: 07029919 | AA103: 1472 三洋實業 | AB103: TSE | AC103: M25B 營造 | AD103: ID 07029919
A104: 1473 台南 | B104: 401621 | C104: 404571 | D104: 514145 | E104: 5333141 | F104: 6406368 | G104: -1.1309 | H104: 11.6786 | I104: 16236 | J104: 16647 | K104: 0 | L104: 0 | M104: 1247 | N104: 1469 | O104: TSE | P104: M14C1 成衣製造 | Q104: 68919702 | AA104: 1473 台南 | AB104: TSE | AC104: M14C1 成衣製造 | AD104: ID 68919702
A105: 1474 弘裕 | B105: 223492 | C105: 235637 | D105: 223226 | E105: 2145772 | F105: 2723810 | G105: -0.4367 | H105: 0.0001 | I105: 376 | J105: 389 | K105: 0 | L105: 0 | M105: 2415 | N105: 2422 | O105: TSE | P105: M14C2 織布 | Q105: 58003997 | AA105: 1474 弘裕 | AB105: TSE | AC105: M14C2 織布 | AD105: ID 58003997
A106: 1475 業旺 | B106: 107714 | C106: 112605 | D106: 106418 | E106: 1052060 | F106: 965382 | G106: 1.521 | H106: 4.501 | I106: 177 | J106: 156 | K106: 0 | L106: 0 | M106: 555 | N106: 570 | O106: TSE | P106: M14C2 織布 | Q106: 23912057 | AA106: 1475 業旺 | AB106: TSE | AC106: M14C2 織布 | AD106: ID 23912057
A107: 1476 儒鴻 | B107: 2856878 | C107: 2382299 | D107: 2255613 | E107: 25148406 | F107: 34361481 | G107: 3.7368 | H107: 17.0685 | I107: 109465 | J107: 109276 | K107: 4303 | L107: 3926 | M107: 598 | N107: 201 | O107: TSE | P107: M14C1 成衣製造 | Q107: 35884479 | AA107: 1476 儒鴻 | AB107: TSE | AC107: M14C1 成衣製造 | AD107: ID 35884479
A108: 1477 聚陽 | B108: 2477334 | C108: 2800342 | D108: 2431827 | E108: 26807770 | F108: 27151713 | G108: 4.5932 | H108: 15.8428 | I108: 92462 | J108: 93505 | K108: 30686 | L108: 30294 | M108: 509 | N108: 517 | O108: TSE | P108: M14C1 成衣製造 | Q108: 23609668 | AA108: 1477 聚陽 | AB108: TSE | AC108: M14C1 成衣製造 | AD108: ID 23609668
A109: 1503 士電 | B109: 2343233 | C109: 2388149 | D109: 2581368 | E109: 26694448 | F109: 25350160 | G109: -1.8424 | H109: -16.2446 | I109: 169038 | J109: 169536 | K109: 0 | L109: 0 | M109: 3322 | N109: 3215 | O109: TSE | P109: M15B1 電機 | Q109: 11039306 | AA109: 1503 士電 | AB109: TSE | AC109: M15B1 電機 | AD109: ID 11039306
A110: 1504 東元 | B110: 4664515 | C110: 5300860 | D110: 4733008 | E110: 49695792 | F110: 47995396 | G110: -3.8866 | H110: -8.3167 | I110: 345268 | J110: 350912 | K110: 21294 | L110: 20868 | M110: 24336 | N110: 23289 | O110: TSE | P110: M15B1 電機 | Q110: 11332202 | AA110: 1504 東元 | AB110: TSE | AC110: M15B1 電機 | AD110: ID 11332202
A111: 1506 正道 | B111: 94325 | C111: 93680 | D111: 98107 | E111: 947600 | F111: 956651 | G111: -1.8462 | H111: -0.6232 | I111: 437 | J111: 431 | K111: 0 | L111: 0 | M111: 0 | N111: 0 | O111: TSE | P111: M15D 汽車組件 | Q111: 68193807 | AA111: 1506 正道 | AB111: TSE | AC111: M15D 汽車組件 | AD111: ID 68193807
A112: 1512 瑞利 | B112: 97744 | C112: 89068 | D112: 52786 | E112: 976430 | F112: 523937 | G112: -0.4017 | H112: 1.2244 | I112: 6014 | J112: 6009 | K112: 0 | L112: 0 | M112: 0 | N112: 0 | O112: TSE | P112: M15D 汽車組件 | Q112: 85330636 | AA112: 1512 瑞利 | AB112: TSE | AC112: M15D 汽車組件 | AD112: ID 85330636
A113: 1513 中興電 | B113: 2005685 | C113: 1709458 | D113: 1632622 | E113: 18303903 | F113: 15380444 | G113: 4.2726 | H113: -3.7559 | I113: 58283 | J113: 54974 | K113: 317 | L113: 397 | M113: 23803 | N113: 24022 | O113: TSE | P113: M15B1 電機 | Q113: 33029464 | AA113: 1513 中興電 | AB113: TSE | AC113: M15B1 電機 | AD113: ID 33029464
A114: 1514 亞力 | B114: 938539 | C114: 777195 | D114: 800822 | E114: 7035734 | F114: 6026507 | G114: 6.1304 | H114: -2.4645 | I114: 22801 | J114: 19235 | K114: 0 | L114: 0 | M114: 10541 | N114: 11940 | O114: TSE | P114: M15B1 電機 | Q114: 03213392 | AA114: 1514 亞力 | AB114: TSE | AC114: M15B1 電機 | AD114: ID 03213392
A115: 1515 力山 | B115: 876716 | C115: 796888 | D115: 221008 | E115: 4823540 | F115: 3873343 | G115: 17.6923 | H115: 4.5559 | I115: 14929 | J115: 13664 | K115: 1526 | L115: 326 | M115: 4194 | N115: 3790 | O115: TSE | P115: M15C3 健身器材 | Q115: 55759180 | AA115: 1515 力山 | AB115: TSE | AC115: M15C3 健身器材 | AD115: ID 55759180
A116: 1516 川飛 | B116: 96389 | C116: 95771 | D116: 110791 | E116: 729553 | F116: 1282110 | G116: 5.2146 | H116: 2.3879 | I116: 422 | J116: 413 | K116: 0 | L116: 0 | M116: 1066 | N116: 1057 | O116: TSE | P116: M99ZC 其他製造業 | Q116: 22071751 | AA116: 1516 川飛 | AB116: TSE | AC116: M99ZC 其他製造業 | AD116: ID 22071751
A117: 1517 利奇 | B117: 118924 | C117: 121960 | D117: 322574 | E117: 1600041 | F117: 4460832 | G117: 2.0618 | H117: -1.329 | I117: 3602 | J117: 3445 | K117: 0 | L117: 0 | M117: 2067 | N117: 2075 | O117: TSE | P117: M15E 自行車組件 | Q117: 59008318 | AA117: 1517 利奇 | AB117: TSE | AC117: M15E 自行車組件 | AD117: ID 59008318
A118: 1519 華城 | B118: 1345186 | C118: 1441440 | D118: 558201 | E118: 9632917 | F118: 5643439 | G118: 5.5555 | H118: -20.9651 | I118: 31487 | J118: 35402 | K118: 11739 | L118: 10924 | M118: 5617 | N118: 5630 | O118: TSE | P118: M15B1 電機 | Q118: 33284077 | AA118: 1519 華城 | AB118: TSE | AC118: M15B1 電機 | AD118: ID 33284077
A119: 1521 大億 | B119: 361508 | C119: 494626 | D119: 371904 | E119: 3942215 | F119: 3946959 | G119: 1.2694 | H119: -2.4455 | I119: 25443 | J119: 25426 | K119: 0 | L119: 0 | M119: 244 | N119: 245 | O119: TSE | P119: M15D 汽車組件 | Q119: 69408876 | AA119: 1521 大億 | AB119: TSE | AC119: M15D 汽車組件 | AD119: ID 69408876
A120: 1522 堤維西 | B120: 1658614 | C120: 1647751 | D120: 1704887 | E120: 16110424 | F120: 15981788 | G120: -3.6506 | H120: -14.3684 | I120: 32597 | J120: 40365 | K120: 393 | L120: 393 | M120: 7811 | N120: 6426 | O120: TSE | P120: M15D 汽車組件 | Q120: 22269487 | AA120: 1522 堤維西 | AB120: TSE | AC120: M15D 汽車組件 | AD120: ID 22269487
A121: 1524 耿鼎 | B121: 230564 | C121: 246511 | D121: 210646 | E121: 2168734 | F121: 2010995 | G121: -9.1504 | H121: 4.7081 | I121: 5692 | J121: 3448 | K121: 256 | L121: 256 | M121: 10993 | N121: 11917 | O121: TSE | P121: M15D 汽車組件 | Q121: 22081250 | AA121: 1524 耿鼎 | AB121: TSE | AC121: M15D 汽車組件 | AD121: ID 22081250
A122: 1525 江申 | B122: 112462 | C122: 124629 | D122: 137069 | E122: 1352203 | F122: 1221256 | G122: 0.4064 | H122: -3.7664 | I122: 927 | J122: 975 | K122: 0 | L122: 0 | M122: 1464 | N122: 1454 | O122: TSE | P122: M15D 汽車組件 | Q122: 35129100 | AA122: 1525 江申 | AB122: TSE | AC122: M15D 汽車組件 | AD122: ID 35129100
A123: 1526 日馳 | B123: 56934 | C123: 55961 | D123: 153303 | E123: 909259 | F123: 1871736 | G123: 4.0519 | H123: -7.4927 | I123: 1133 | J123: 1268 | K123: 0 | L123: 0 | M123: 2968 | N123: 2969 | O123: =IF(ISERROR(VLOOKUP($A123,XX_TEJ01,O$2,FALSE))=TRUE,"",VLOOKUP($A123,XX_TEJ01,O$2,FALSE)) -> TSE | P123: M15E 自行車組件 | Q123: 11099726 | AA123: 1526 日馳 | AB123: TSE | AC123: M15E 自行車組件 | AD123: ID 11099726
A124: 1527 鑽全 | B124: 200496 | C124: 233099 | D124: 209171 | E124: 2321706 | F124: 3420944 | G124: 1.7902 | H124: 0.8872 | I124: 11526 | J124: 11523 | K124: 0 | L124: 0 | M124: 685 | N124: 649 | O124: TSE | P124: M15A1 工具機 | Q124: 20982120 | AA124: 1527 鑽全 | AB124: TSE | AC124: M15A1 工具機 | AD124: ID 20982120
A125: 1528 恩德 | B125: 365141 | C125: 290165 | D125: 326923 | E125: 3169177 | F125: 3044402 | G125: -1.3636 | H125: -10.3306 | I125: 7295 | J125: 7342 | K125: 0 | L125: 0 | M125: 7074 | N125: 7062 | O125: TSE | P125: M15A1 工具機 | Q125: 11551634 | AA125: 1528 恩德 | AB125: TSE | AC125: M15A1 工具機 | AD125: ID 11551634
A126: 1529 樂事綠能 | B126: 76617 | C126: 114243 | D126: 18858 | E126: 608079 | F126: 220969 | G126: -3.5117 | H126: -10.8193 | I126: 625 | J126: 1038 | K126: 0 | L126: 0 | M126: 5925 | N126: 5842 | O126: TSE | P126: M15B1 電機 | Q126: 34211074 | AA126: 1529 樂事綠能 | AB126: TSE | AC126: M15B1 電機 | AD126: ID 34211074
A127: 1530 亞崴 | B127: 129164 | C127: 271990 | D127: 232272 | E127: 1987823 | F127: 2665129 | G127: 0 | H127: 0 | I127: 772 | J127: 775 | K127: 0 | L127: 0 | M127: 204 | N127: 206 | O127: TSE | P127: M15A1 工具機 | Q127: 22224692 | AA127: 1530 亞崴 | AB127: TSE | AC127: M15A1 工具機 | AD127: ID 22224692
A128: 1531 高林股 | B128: 110562 | C128: 117776 | D128: 87704 | E128: 1219728 | F128: 2118977 | G128: -0.3817 | H128: -0.7605 | I128: 3317 | J128: 3317 | K128: 0 | L128: 0 | M128: 618 | N128: 620 | O128: TSE | P128: M15A3 紡織工具機 | Q128: 29538509 | AA128: 1531 高林股 | AB128: TSE | AC128: M15A3 紡織工具機 | AD128: ID 29538509
A129: 1532 勤美 | B129: 1018575 | C129: 1201528 | D129: 1086761 | E129: 13986698 | F129: 12241823 | G129: 0.8392 | H129: -2.0382 | I129: 49955 | J129: 49694 | K129: 50 | L129: 50 | M129: 5031 | N129: 5096 | O129: TSE | P129: M15A2 模具零件 | Q129: 03474311 | AA129: 1532 勤美 | AB129: TSE | AC129: M15A2 模具零件 | AD129: ID 03474311
A130: 1533 車王電 | B130: 425390 | C130: 332544 | D130: 260060 | E130: 3498653 | F130: 2693573 | G130: 1.518 | H130: -4.1219 | I130: 5440 | J130: 5504 | K130: 0 | L130: 0 | M130: 2693 | N130: 2711 | O130: TSE | P130: M15D 汽車組件 | Q130: 04827138 | AA130: 1533 車王電 | AB130: TSE | AC130: M15D 汽車組件 | AD130: ID 04827138
A131: 1535 中宇 | B131: 845468 | C131: 749850 | D131: 726818 | E131: 7546394 | F131: 7090847 | G131: 4.4487 | H131: 3.2505 | I131: 1603 | J131: 1525 | K131: 0 | L131: 0 | M131: 108 | N131: 92 | O131: TSE | P131: M15B2 機電工程 | Q131: =RIGHT(IF(ISERROR(VLOOKUP($A131,XX_TEJ01,Q$2,FALSE))=TRUE,"",VLOOKUP($A131,XX_TEJ01,Q$2,FALSE)),8) -> 84252401 | AA131: 1535 中宇 | AB131: TSE | AC131: M15B2 機電工程 | AD131: ID 84252401
A132: 1536 和大 | B132: 518613 | C132: 503175 | D132: 575987 | E132: 5578526 | F132: 6109857 | G132: -0.9523 | H132: -4.1475 | I132: 30393 | J132: 29930 | K132: 561 | L132: 561 | M132: 3707 | N132: 3727 | O132: TSE | P132: M15D 汽車組件 | Q132: 52264848 | AA132: 1536 和大 | AB132: TSE | AC132: M15D 汽車組件 | AD132: ID 52264848
A133: 1537 廣隆 | B133: 636835 | C133: 534044 | D133: 604352 | E133: 5300157 | F133: 6339176 | G133: 0.3817 | H133: 0 | I133: 14276 | J133: 14181 | K133: 0 | L133: 0 | M133: 42 | N133: 41 | O133: TSE | P133: M23D7 二次電池 | Q133: 23556563 | AA133: 1537 廣隆 | AB133: TSE | AC133: M23D7 二次電池 | AD133: ID 23556563
A134: 1538 正峰 | B134: 13566 | C134: 14900 | D134: 34794 | E134: 172641 | F134: 238021 | G134: -0.7519 | H134: 14.7824 | I134: 13 | J134: 13 | K134: 0 | L134: 0 | M134: 0 | N134: 0 | O134: TSE | P134: M15A1 工具機 | Q134: 44947686 | AA134: 1538 正峰 | AB134: TSE | AC134: M15A1 工具機 | AD134: ID 44947686
A135: 1539 巨庭 | B135: 157494 | C135: 150541 | D135: 112048 | E135: 1259037 | F135: 2321017 | G135: 7.306 | H135: -0.6342 | I135: 425 | J135: 423 | K135: 0 | L135: 0 | M135: 2326 | N135: 2481 | O135: TSE | P135: M15A1 工具機 | Q135: 52646207 | AA135: 1539 巨庭 | AB135: TSE | AC135: M15A1 工具機 | AD135: ID 52646207
A136: 1540 喬福 | B136: 81030 | C136: 26831 | D136: 61604 | E136: 458071 | F136: 414146 | G136: 4.518 | H136: 0.5797 | I136: 1978 | J136: 2149 | K136: 0 | L136: 0 | M136: 1669 | N136: 1529 | O136: TSE | P136: M15A1 工具機 | Q136: 52903090 | AA136: 1540 喬福 | AB136: TSE | AC136: M15A1 工具機 | AD136: ID 52903090
A137: 1541 錩泰 | B137: 395570 | C137: 245401 | D137: 236321 | E137: 2683682 | F137: 3636090 | G137: 13.2551 | H137: 8.6958 | I137: 7641 | J137: 7658 | K137: 0 | L137: 0 | M137: 211 | N137: 212 | O137: TSE | P137: M15A1 工具機 | Q137: 23248433 | AA137: 1541 錩泰 | AB137: TSE | AC137: M15A1 工具機 | AD137: ID 23248433
A138: 1558 伸興 | B138: 572850 | C138: 735363 | D138: 672141 | E138: 6255452 | F138: 5978626 | G138: -3.2558 | H138: -3.2557 | I138: 5172 | J138: 5206 | K138: 0 | L138: 0 | M138: 392 | N138: 390 | O138: TSE | P138: M15A3 紡織工具機 | Q138: 55754185 | AA138: 1558 伸興 | AB138: TSE | AC138: M15A3 紡織工具機 | AD138: ID 55754185
A139: 1560 中砂 | B139: 553579 | C139: 569539 | D139: 537502 | E139: 5340042 | F139: 5855813 | G139: -4.9999 | H139: 8.9173 | I139: 25236 | J139: 21935 | K139: 3861 | L139: 3441 | M139: 7845 | N139: 10654 | O139: TSE | P139: M23G3C 晶圓材料 | Q139: 03089008 | AA139: 1560 中砂 | AB139: TSE | AC139: M23G3C 晶圓材料 | AD139: ID 03089008
A140: 1565 精華 | B140: 371738 | C140: 342909 | D140: 402730 | E140: 3631234 | F140: 4260400 | G140: 0.8174 | H140: -3.1415 | I140: 6764 | J140: 6736 | K140: 0 | L140: 0 | M140: 1256 | N140: 1272 | O140: OTC | P140: M17G 醫療耗材 | Q140: 22195654 | AA140: 1565 精華 | AB140: OTC | AC140: M17G 醫療耗材 | AD140: ID 22195654
A141: 1568 倉佑 | B141: 121718 | C141: 114056 | D141: 124308 | E141: 1208936 | F141: 1525142 | G141: -6.2306 | H141: 1.3469 | I141: 2189 | J141: 2792 | K141: 134 | L141: 134 | M141: 4418 | N141: 3690 | O141: TSE | P141: M15D 汽車組件 | Q141: 66654986 | AA141: 1568 倉佑 | AB141: TSE | AC141: M15D 汽車組件 | AD141: ID 66654986
A142: 1569 濱川 | B142: 284785 | C142: 318996 | D142: 342223 | E142: 3063275 | F142: 4305507 | G142: 0.6726 | H142: -3.0239 | I142: 2632 | J142: 2613 | K142: 0 | L142: 0 | M142: 3899 | N142: 3891 | O142: OTC | P142: M23D4 機殼 | Q142: 76404919 | AA142: 1569 濱川 | AB142: OTC | AC142: M23D4 機殼 | AD142: ID 76404919
A143: 1570 力肯 | B143: 24795 | C143: 20095 | D143: 55065 | E143: 331119 | F143: 526862 | G143: 0 | H143: 1.2531 | I143: 1491 | J143: 1504 | K143: 0 | L143: 0 | M143: 5613 | N143: 5590 | O143: =IF(ISERROR(VLOOKUP($A143,XX_TEJ01,O$2,FALSE))=TRUE,"",VLOOKUP($A143,XX_TEJ01,O$2,FALSE)) -> OTC | P143: M15A1 工具機 | Q143: 36253534 | AA143: 1570 力肯 | AB143: OTC | AC143: M15A1 工具機 | AD143: ID 36253534
A144: 1580 新麥 | B144: 375983 | C144: 449843 | D144: 320649 | E144: 3681992 | F144: 3230134 | G144: 1.6949 | H144: 16.2791 | I144: 4521 | J144: 4488 | K144: 0 | L144: 0 | M144: 1230 | N144: 1208 | O144: OTC | P144: M15H 儀器設備 | Q144: 12461082 | AA144: 1580 新麥 | AB144: OTC | AC144: M15H 儀器設備 | AD144: ID 12461082
A145: 1582 信錦 | B145: 807820 | C145: 886702 | D145: 602727 | E145: 7316358 | F145: 8628076 | G145: 6.9016 | H145: 13.75 | I145: 11827 | J145: 11541 | K145: 4 | L145: 4 | M145: 2546 | N145: 2013 | O145: TSE | P145: M23D9A 沖壓零組件 | Q145: 35966577 | AA145: 1582 信錦 | AB145: TSE | AC145: M23D9A 沖壓零組件 | AD145: ID 35966577
A146: 1583 程泰 | B146: 453815 | C146: 486883 | D146: 493728 | E146: 4340622 | F146: 5357439 | G146: 1.7601 | H146: 1.1131 | I146: 210 | J146: 208 | K146: 0 | L146: 0 | M146: 38 | N146: 38 | O146: TSE | P146: M15A1 工具機 | Q146: 52353530 | AA146: 1583 程泰 | AB146: TSE | AC146: M15A1 工具機 | AD146: ID 52353530
A147: 1584 精剛 | B147: 273357 | C147: 210465 | D147: 147012 | E147: 2236355 | F147: 1330279 | G147: 3.8402 | H147: -5.322 | I147: 2623 | J147: 4448 | K147: 0 | L147: 0 | M147: 14939 | N147: 13831 | O147: OTC | P147: M20A6 不鏽鋼 | Q147: 80334042 | AA147: 1584 精剛 | AB147: OTC | AC147: M20A6 不鏽鋼 | AD147: ID 80334042
A148: 1586 和勤 | B148: 226050 | C148: 216274 | D148: 183921 | E148: 1839694 | F148: 2133367 | G148: -0.627 | H148: -6.4897 | I148: 1595 | J148: 1563 | K148: 0 | L148: 0 | M148: 13676 | N148: 13882 | O148: OTC | P148: M23D9A 沖壓零組件 | Q148: 86985605 | AA148: 1586 和勤 | AB148: OTC | AC148: M23D9A 沖壓零組件 | AD148: ID 86985605
A149: 1587 吉茂 | B149: 165038 | C149: 145650 | D149: 217706 | E149: 1781323 | F149: 2182429 | G149: -1.0941 | H149: -5.6368 | I149: 15035 | J149: 15040 | K149: 0 | L149: 0 | M149: 1075 | N149: 1074 | O149: TSE | P149: M15D 汽車組件 | Q149: 24157564 | AA149: 1587 吉茂 | AB149: TSE | AC149: M15D 汽車組件 | AD149: ID 24157564
A150: 1589 永冠-KY | B150: 678255 | C150: 663609 | D150: 883902 | E150: 7176863 | F150: 7508195 | G150: 1.3645 | H150: -0.1921 | I150: 7400 | J150: 7338 | K150: 0 | L150: 0 | M150: 5866 | N150: 5902 | O150: TSE | P150: M15A2 模具零件 | Q150: 41048746 | AA150: 1589 永冠-KY | AB150: TSE | AC150: M15A2 模具零件 | AD150: ID 41048746
A151: 1590 亞德客-KY | B151: 2395758 | C151: 2591877 | D151: 1974139 | E151: 24867320 | F151: 21782660 | G151: 3.3654 | H151: 9.9182 | I151: 151926 | J151: 151728 | K151: 2783 | L151: 3007 | M151: 176 | N151: 160 | O151: TSE | P151: M15A2 模具零件 | Q151: 53666460 | AA151: 1590 亞德客-KY | AB151: TSE | AC151: M15A2 模具零件 | AD151: ID 53666460
A152: 1591 駿吉-KY | B152: 6338 | C152: 8575 | D152: 75367 | E152: 59326 | F152: 638451 | G152: -1.8404 | H152: -3.4982 | I152: 4997 | J152: 5404 | K152: 0 | L152: 0 | M152: 5347 | N152: 5742 | O152: OTC | P152: M20B 金屬製品 | Q152: 53650116 | AA152: 1591 駿吉-KY | AB152: OTC | AC152: M20B 金屬製品 | AD152: ID 53650116
A153: 1593 祺驊 | B153: 87937 | C153: 88537 | D153: 109029 | E153: 870075 | F153: 630342 | G153: -3.0664 | H153: -9.6825 | I153: 2403 | J153: 2403 | K153: 0 | L153: 0 | M153: 308 | N153: 310 | O153: OTC | P153: M15C3 健身器材 | Q153: 97432341 | AA153: 1593 祺驊 | AB153: OTC | AC153: M15C3 健身器材 | AD153: ID 97432341
A154: 1595 川寶 | B154: 128317 | C154: 149944 | D154: 120022 | E154: 1278448 | F154: 1538661 | G154: 0.2634 | H154: -3.1806 | I154: 612 | J154: 613 | K154: 0 | L154: 0 | M154: 247 | N154: 248 | O154: OTC | P154: M23H2 電機設備 | Q154: 16860440 | AA154: 1595 川寶 | AB154: OTC | AC154: M23H2 電機設備 | AD154: ID 16860440
A155: 1597 直得 | B155: 80316 | C155: 82550 | D155: 131796 | E155: 918713 | F155: 1398177 | G155: 0.161 | H155: -2.9641 | I155: 2918 | J155: 2927 | K155: 0 | L155: 0 | M155: 630 | N155: 629 | O155: TSE | P155: M15A2 模具零件 | Q155: 16755427 | AA155: 1597 直得 | AB155: TSE | AC155: M15A2 模具零件 | AD155: ID 16755427
A156: 1598 岱宇 | B156: 695978 | C156: 585465 | D156: 517819 | E156: 6111658 | F156: 5544173 | G156: -0.1548 | H156: -7.0607 | I156: 8013 | J156: 8105 | K156: 0 | L156: 0 | M156: 4217 | N156: 4165 | O156: TSE | P156: M15C3 健身器材 | Q156: 23751545 | AA156: 1598 岱宇 | AB156: TSE | AC156: M15C3 健身器材 | AD156: ID 23751545
A157: 1599 宏佳騰 | B157: 170654 | C157: 315732 | D157: 269781 | E157: 1838582 | F157: 2914367 | G157: -0.4191 | H157: -0.558 | I157: 7032 | J157: 7039 | K157: 0 | L157: 0 | M157: 1138 | N157: 1186 | O157: OTC | P157: M22A 汽車製造 | Q157: 80621419 | AA157: 1599 宏佳騰 | AB157: OTC | AC157: M22A 汽車製造 | AD157: ID 80621419
A158: 1603 華電 | B158: 360165 | C158: 621451 | D158: 254260 | E158: 3408365 | F158: 2710710 | G158: 0 | H158: -10.1281 | I158: 11572 | J158: 12073 | K158: 39 | L158: 39 | M158: 5576 | N158: 5422 | O158: TSE | P158: M16 電線 | Q158: 35882520 | AA158: 1603 華電 | AB158: TSE | AC158: M16 電線 | AD158: ID 35882520
A159: 1604 聲寶 | B159: 676472 | C159: 601230 | D159: 625304 | E159: 7590762 | F159: 7595489 | G159: -0.7005 | H159: -1.9031 | I159: 37623 | J159: 37735 | K159: 50 | L159: 50 | M159: 1048 | N159: 1058 | O159: TSE | P159: M15C1 家電 | Q159: 03607500 | AA159: 1604 聲寶 | AB159: TSE | AC159: M15C1 家電 | AD159: ID 03607500
A160: 1605 華新 | B160: 15224362 | C160: 16771119 | D160: 14051332 | E160: 161744038 | F160: 150483527 | G160: 0.4249 | H160: -4.1892 | I160: 814325 | J160: 810775 | K160: 13471 | L160: 12062 | M160: 57478 | N160: 57570 | O160: TSE | P160: M16 電線 | Q160: 35412204 | AA160: 1605 華新 | AB160: TSE | AC160: M16 電線 | AD160: ID 35412204
A161: 1608 華榮 | B161: 747916 | C161: 905462 | D161: 764354 | E161: 7935224 | F161: 9085426 | G161: -3.0692 | H161: -7.108 | I161: 9300 | J161: 9528 | K161: 0 | L161: 0 | M161: 7045 | N161: 7335 | O161: TSE | P161: M16 電線 | Q161: 79460007 | AA161: 1608 華榮 | AB161: TSE | AC161: M16 電線 | AD161: ID 79460007
A162: 1609 大亞 | B162: 2129003 | C162: 2174547 | D162: 2111691 | E162: 21428575 | F162: 22414941 | G162: -1.6769 | H162: -11.4011 | I162: 77977 | J162: 80257 | K162: 2 | L162: 2 | M162: 29391 | N162: 29011 | O162: TSE | P162: M16 電線 | Q162: 68035907 | AA162: 1609 大亞 | AB162: TSE | AC162: M16 電線 | AD162: ID 68035907
A163: 1611 中電 | B163: 113349 | C163: 106450 | D163: 127974 | E163: 1093338 | F163: 1306298 | G163: -0.9404 | H163: -4.2423 | I163: 34403 | J163: 34498 | K163: 0 | L163: 0 | M163: 7212 | N163: 7269 | O163: =IF(ISERROR(VLOOKUP($A163,XX_TEJ01,O$2,FALSE))=TRUE,"",VLOOKUP($A163,XX_TEJ01,O$2,FALSE)) -> TSE | P163: M15C4 照明 | Q163: 03086001 | AA163: 1611 中電 | AB163: TSE | AC163: M15C4 照明 | AD163: ID 03086001
A164: 1612 宏泰 | B164: 473115 | C164: 459278 | D164: 532834 | E164: 4921673 | F164: 5110272 | G164: -1.0182 | H164: -10.9888 | I164: 43617 | J164: 43983 | K164: 0 | L164: 0 | M164: 3078 | N164: 3286 | O164: TSE | P164: M16 電線 | Q164: 43125162 | AA164: 1612 宏泰 | AB164: TSE | AC164: M16 電線 | AD164: ID 43125162
A165: 1614 三洋電 | B165: 351880 | C165: 429345 | D165: 420437 | E165: 4921721 | F165: 5351443 | G165: -0.527 | H165: -0.0001 | I165: 5492 | J165: 5498 | K165: 0 | L165: 0 | M165: 301 | N165: 314 | O165: TSE | P165: M15C1 家電 | Q165: 03564501 | AA165: 1614 三洋電 | AB165: TSE | AC165: M15C1 家電 | AD165: ID 03564501
A166: 1615 大山 | B166: 429707 | C166: 469649 | D166: 408602 | E166: 3930370 | F166: 3500028 | G166: 0.5341 | H166: -2.5874 | I166: 1002 | J166: 1011 | K166: 0 | L166: 0 | M166: 474 | N166: 486 | O166: TSE | P166: M16 電線 | Q166: 64829434 | AA166: 1615 大山 | AB166: TSE | AC166: M16 電線 | AD166: ID 64829434
A167: 1616 億泰 | B167: 365063 | C167: 307904 | D167: 308583 | E167: 3266706 | F167: 3076395 | G167: 1.4562 | H167: 1.9511 | I167: 4055 | J167: 4320 | K167: 0 | L167: 0 | M167: 0 | N167: 0 | O167: TSE | P167: M16 電線 | Q167: 22819700 | AA167: 1616 億泰 | AB167: TSE | AC167: M16 電線 | AD167: ID 22819700
A168: 1617 榮星 | B168: 231335 | C168: 256351 | D168: 278798 | E168: 2347508 | F168: 3023109 | G168: -0.3106 | H168: -1.5338 | I168: 32003 | J168: 32006 | K168: 0 | L168: 0 | M168: 209 | N168: 201 | O168: TSE | P168: M16 電線 | Q168: 73341336 | AA168: 1617 榮星 | AB168: TSE | AC168: M16 電線 | AD168: ID 73341336
A169: 1618 合機 | B169: 190276 | C169: 478542 | D169: 335164 | E169: 3370820 | F169: 2380687 | G169: -3.4416 | H169: -10.4609 | I169: 3690 | J169: 4803 | K169: 304 | L169: 304 | M169: 5368 | N169: 5388 | O169: TSE | P169: M16 電線 | Q169: 23206102 | AA169: 1618 合機 | AB169: TSE | AC169: M16 電線 | AD169: ID 23206102
A170: 1626 艾美特-KY | B170: 410611 | C170: 524592 | D170: 488480 | E170: 7325109 | F170: 8280989 | G170: -1.4882 | H170: -0.8982 | I170: 66780 | J170: 66788 | K170: 0 | L170: 0 | M170: 1816 | N170: 1818 | O170: TSE | P170: M15C1 家電 | Q170: 34995738 | AA170: 1626 艾美特-KY | AB170: TSE | AC170: M15C1 家電 | AD170: ID 34995738
A171: 1701 中化 | B171: 723712 | C171: 713176 | D171: 694895 | E171: 7071341 | F171: 6797641 | G171: 0 | H171: 0.0001 | I171: 30280 | J171: 30126 | K171: 0 | L171: 0 | M171: 4906 | N171: 4827 | O171: TSE | P171: M17C1 製藥 | Q171: 03088802 | AA171: 1701 中化 | AB171: TSE | AC171: M17C1 製藥 | AD171: ID 03088802
A172: 1702 南僑 | B172: 1808824 | C172: 2046638 | D172: 1720526 | E172: 18617545 | F172: 16682359 | G172: -0.2026 | H172: -0.9046 | I172: 34399 | J172: 34515 | K172: 0 | L172: 0 | M172: 1339 | N172: 1303 | O172: TSE | P172: M12B 油脂飼料 | Q172: 07305506 | AA172: 1702 南僑 | AB172: TSE | AC172: M12B 油脂飼料 | AD172: ID 07305506
A173: 1707 葡萄王 | B173: 821431 | C173: 765446 | D173: 851454 | E173: 8256477 | F173: 8118377 | G173: 0.6689 | H173: -3.8339 | I173: 24088 | J173: 24255 | K173: 455 | L173: 456 | M173: 703 | N173: 691 | O173: TSE | P173: M17C2 機能性食品 | Q173: 11880517 | AA173: 1707 葡萄王 | AB173: TSE | AC173: M17C2 機能性食品 | AD173: ID 11880517
A174: 1708 東鹼 | B174: 452530 | C174: 449308 | D174: 722290 | E174: 4858433 | F174: 6851957 | G174: -1.634 | H174: -3.9873 | I174: 15584 | J174: 15987 | K174: 47 | L174: 47 | M174: 6151 | N174: 6175 | O174: TSE | P174: M17Z 其他化學 | Q174: 11384405 | AA174: 1708 東鹼 | AB174: TSE | AC174: M17Z 其他化學 | AD174: ID 11384405
A175: 1709 和益 | B175: 667840 | C175: 845980 | D175: 1098776 | E175: 7870083 | F175: 9183244 | G175: -0.9685 | H175: -3.9907 | I175: 16514 | J175: 16545 | K175: 0 | L175: 0 | M175: 2214 | N175: 2236 | O175: TSE | P175: M17E1 清潔劑原料 | Q175: 04312878 | AA175: 1709 和益 | AB175: TSE | AC175: M17E1 清潔劑原料 | AD175: ID 04312878
A176: 1710 東聯 | B176: 1524085 | C176: 1764907 | D176: 1770525 | E176: 17255201 | F176: 18731077 | G176: 1.3404 | H176: 0.5319 | I176: 80781 | J176: 81065 | K176: 106 | L176: 106 | M176: 3619 | N176: 3865 | O176: TSE | P176: M13A5 化纖 | Q176: 14057995 | AA176: 1710 東聯 | AB176: TSE | AC176: M13A5 化纖 | AD176: ID 14057995
A177: 1711 永光 | B177: 678070 | C177: 734490 | D177: 635608 | E177: 6596543 | F177: 7601707 | G177: -2.2728 | H177: 0.0002 | I177: 39179 | J177: 39108 | K177: 0 | L177: 0 | M177: 7191 | N177: 7407 | O177: TSE | P177: M17B 染料及顏料 | Q177: 15458455 | AA177: 1711 永光 | AB177: TSE | AC177: M17B 染料及顏料 | AD177: ID 15458455
A178: 1712 興農 | B178: 1508347 | C178: 1860207 | D178: 2068709 | E178: 16102905 | F178: 20081577 | G178: -0.4075 | H178: -0.0001 | I178: 56159 | J178: 56860 | K178: 2330 | L178: 1274 | M178: 1868 | N178: 1885 | O178: TSE | P178: M17C3 農藥肥料 | Q178: 51911712 | AA178: 1712 興農 | AB178: TSE | AC178: M17C3 農藥肥料 | AD178: ID 51911712
A179: 1713 國化 | B179: 41127 | C179: 40844 | D179: 34035 | E179: 387746 | F179: 503743 | G179: 4.9618 | H179: 16.197 | I179: 5713 | J179: 5659 | K179: 0 | L179: 0 | M179: 3498 | N179: 3429 | O179: TSE | P179: M17B 染料及顏料 | Q179: 03375001 | AA179: 1713 國化 | AB179: TSE | AC179: M17B 染料及顏料 | AD179: ID 03375001
A180: 1714 和桐 | B180: 1800851 | C180: 1941684 | D180: 1821733 | E180: 16780316 | F180: 18897286 | G180: 2.9655 | H180: 4.9577 | I180: 167884 | J180: 166639 | K180: 0 | L180: 0 | M180: 8917 | N180: 8842 | O180: TSE | P180: M17E1 清潔劑原料 | Q180: 12526607 | AA180: 1714 和桐 | AB180: TSE | AC180: M17E1 清潔劑原料 | AD180: ID 12526607
A181: 1717 長興 | B181: 3497006 | C181: 3916160 | D181: 4109743 | E181: 35189732 | F181: 41352848 | G181: -0.5301 | H181: -1.2282 | I181: 161961 | J181: 162200 | K181: 632 | L181: 629 | M181: 4119 | N181: 4114 | O181: TSE | P181: M17F 樹脂 | Q181: 75339004 | AA181: 1717 長興 | AB181: TSE | AC181: M17F 樹脂 | AD181: ID 75339004
A182: 1718 中纖 | B182: 3324602 | C182: 3420387 | D182: 3152222 | E182: 32702566 | F182: 28284080 | G182: -0.8673 | H182: 2.0408 | I182: 153910 | J182: 154164 | K182: 0 | L182: 0 | M182: 21293 | N182: 20937 | O182: TSE | P182: M13A5 化纖 | Q182: 07066907 | AA182: 1718 中纖 | AB182: TSE | AC182: M13A5 化纖 | AD182: ID 07066907
A183: 1720 生達 | B183: 509599 | C183: 495586 | D183: 523622 | E183: 5156990 | F183: 4791387 | G183: -1.1381 | H183: -8.5713 | I183: 9621 | J183: 9813 | K183: 52 | L183: 52 | M183: 1275 | N183: 1309 | O183: =IF(ISERROR(VLOOKUP($A183,XX_TEJ01,O$2,FALSE))=TRUE,"",VLOOKUP($A183,XX_TEJ01,O$2,FALSE)) -> TSE | P183: M17C1 製藥 | Q183: 71122503 | AA183: 1720 生達 | AB183: TSE | AC183: M17C1 製藥 | AD183: ID 71122503
A184: 1721 三晃 | B184: 163755 | C184: 206090 | D184: 197109 | E184: 1761446 | F184: 2500911 | G184: -7.3972 | H184: 26.5918 | I184: 3017 | J184: 3407 | K184: 0 | L184: 0 | M184: 7876 | N184: 8183 | O184: TSE | P184: M17F 樹脂 | Q184: 55738290 | AA184: 1721 三晃 | AB184: TSE | AC184: M17F 樹脂 | AD184: ID 55738290
A185: 1722 台肥 | B185: 886740 | C185: 966873 | D185: 990785 | E185: 13269158 | F185: 12533846 | G185: 0.6623 | H185: -0.0001 | I185: 125748 | J185: 125699 | K185: 1677 | L185: 1681 | M185: 1883 | N185: 1893 | O185: TSE | P185: M17C3 農藥肥料 | Q185: 03795101 | AA185: 1722 台肥 | AB185: TSE | AC185: M17C3 農藥肥料 | AD185: ID 03795101
A186: 1723 中碳 | B186: 744172 | C186: 530119 | D186: 977671 | E186: 7147849 | F186: 9201374 | G186: -4.1668 | H186: 2.2222 | I186: 23814 | J186: 24031 | K186: 4083 | L186: 4040 | M186: 425 | N186: 490 | O186: TSE | P186: M17Z 其他化學 | Q186: 23221384 | AA186: 1723 中碳 | AB186: TSE | AC186: M17Z 其他化學 | AD186: ID 23221384
A187: 1725 元禎 | B187: 636786 | C187: 604467 | D187: 650328 | E187: 6281674 | F187: 7829727 | G187: 0 | H187: 0 | I187: 310 | J187: 312 | K187: 0 | L187: 0 | M187: 127 | N187: 128 | O187: TSE | P187: M17Z 其他化學 | Q187: 12132033 | AA187: 1725 元禎 | AB187: TSE | AC187: M17Z 其他化學 | AD187: ID 12132033
A188: 1726 永記 | B188: 814687 | C188: 708441 | D188: 817312 | E188: 7642724 | F188: 7910099 | G188: 0.5464 | H188: 0.5466 | I188: 21269 | J188: 21269 | K188: 0 | L188: 0 | M188: 4 | N188: 4 | O188: TSE | P188: M17B 染料及顏料 | Q188: 75137605 | AA188: 1726 永記 | AB188: TSE | AC188: M17B 染料及顏料 | AD188: ID 75137605
A189: 1727 中華化 | B189: 133839 | C189: 151735 | D189: 179392 | E189: 1432908 | F189: 1919799 | G189: -2.0798 | H189: -2.2493 | I189: 2366 | J189: 2583 | K189: 0 | L189: 0 | M189: 4825 | N189: 4759 | O189: TSE | P189: M17Z 其他化學 | Q189: 03558206 | AA189: 1727 中華化 | AB189: TSE | AC189: M17Z 其他化學 | AD189: ID 03558206
A190: 1730 花仙子 | B190: 237155 | C190: 218065 | D190: 231622 | E190: 2195182 | F190: 2352726 | G190: 0.1776 | H190: -1.226 | I190: 4182 | J190: 4181 | K190: 0 | L190: 0 | M190: 6 | N190: 6 | O190: TSE | P190: M17E2 清潔用品 | Q190: 07708830 | AA190: 1730 花仙子 | AB190: TSE | AC190: M17E2 清潔用品 | AD190: ID 07708830
A191: 1731 美吾華 | B191: 104520 | C191: 105364 | D191: 104459 | E191: 1068443 | F191: 1040919 | G191: -1.5982 | H191: 3.8555 | I191: 2883 | J191: 2973 | K191: 0 | L191: 0 | M191: 961 | N191: 1421 | O191: TSE | P191: M17C1 製藥 | Q191: 14089976 | AA191: 1731 美吾華 | AB191: TSE | AC191: M17C1 製藥 | AD191: ID 14089976
A192: 1732 毛寶 | B192: 41821 | C192: 44484 | D192: 42815 | E192: 459784 | F192: 490002 | G192: 1.7506 | H192: -6.0606 | I192: 418 | J192: 439 | K192: 0 | L192: 0 | M192: 828 | N192: 867 | O192: TSE | P192: M17E2 清潔用品 | Q192: 34245356 | AA192: 1732 毛寶 | AB192: TSE | AC192: M17E2 清潔用品 | AD192: ID 34245356
A193: 1733 五鼎 | B193: 134140 | C193: 115344 | D193: 162460 | E193: 1400449 | F193: 1897997 | G193: -0.1859 | H193: -0.5555 | I193: 4674 | J193: 4681 | K193: 0 | L193: 0 | M193: 737 | N193: 676 | O193: TSE | P193: M17G 醫療耗材 | Q193: 16130182 | AA193: 1733 五鼎 | AB193: TSE | AC193: M17G 醫療耗材 | AD193: ID 16130182
A194: 1734 杏輝 | B194: 238270 | C194: 265696 | D194: 254765 | E194: 2454187 | F194: 2349053 | G194: 1.5361 | H194: 3.6052 | I194: 8833 | J194: 9425 | K194: 0 | L194: 0 | M194: 3885 | N194: 3790 | O194: TSE | P194: M17C1 製藥 | Q194: 42042734 | AA194: 1734 杏輝 | AB194: TSE | AC194: M17C1 製藥 | AD194: ID 42042734
A195: 1735 日勝化 | B195: 201721 | C195: 208998 | D195: 226971 | E195: 1951747 | F195: 2554726 | G195: -0.3003 | H195: -1.1903 | I195: 50050 | J195: 50050 | K195: 0 | L195: 0 | M195: 81 | N195: 81 | O195: TSE | P195: M17F 樹脂 | Q195: =RIGHT(IF(ISERROR(VLOOKUP($A195,XX_TEJ01,Q$2,FALSE))=TRUE,"",VLOOKUP($A195,XX_TEJ01,Q$2,FALSE)),8) -> 23263551 | AA195: 1735 日勝化 | AB195: TSE | AC195: M17F 樹脂 | AD195: ID 23263551
A196: 1736 喬山 | B196: 3378169 | C196: 3587203 | D196: 3230005 | E196: 28725754 | F196: 25352524 | G196: -0.4406 | H196: -13.0769 | I196: 21501 | J196: 21676 | K196: 0 | L196: 147 | M196: 3317 | N196: 3370 | O196: TSE | P196: M15C3 健身器材 | Q196: 52347361 | AA196: 1736 喬山 | AB196: TSE | AC196: M15C3 健身器材 | AD196: ID 52347361
A197: 1737 臺鹽 | B197: 264995 | C197: 332827 | D197: 300649 | E197: 2910245 | F197: 3069872 | G197: 1.3433 | H197: 2.259 | I197: 15603 | J197: 15585 | K197: 0 | L197: 0 | M197: 362 | N197: 354 | O197: TSE | P197: M12Z 其他食品 | Q197: 89397503 | AA197: 1737 臺鹽 | AB197: TSE | AC197: M12Z 其他食品 | AD197: ID 89397503
A198: 1742 台蠟 | B198: 27277 | C198: 23139 | D198: 12914 | E198: 318662 | F198: 438125 | G198: 1.5197 | H198: 0.6026 | I198: 428 | J198: 414 | K198: 0 | L198: 0 | M198: 1849 | N198: 1876 | O198: OTC | P198: M17Z 其他化學 | Q198: 22625269 | AA198: 1742 台蠟 | AB198: OTC | AC198: M17Z 其他化學 | AD198: ID 22625269
A199: 1752 南光 | B199: 200252 | C199: 167453 | D199: 208581 | E199: 1834170 | F199: 1548023 | G199: 1.172 | H199: -8.3186 | I199: 2160 | J199: 2270 | K199: 0 | L199: 0 | M199: 2822 | N199: 2837 | O199: TSE | P199: M17C1 製藥 | Q199: 69275313 | AA199: 1752 南光 | AB199: TSE | AC199: M17C1 製藥 | AD199: ID 69275313
A200: 1760 寶齡富錦 | B200: 141151 | C200: 115669 | D200: 111677 | E200: 1494360 | F200: 2042598 | G200: 4.6082 | H200: 10.7316 | I200: 10220 | J200: 10462 | K200: 0 | L200: 0 | M200: 7175 | N200: 6878 | O200: TSE | P200: M17C1 製藥 | Q200: 04742997 | AA200: 1760 寶齡富錦 | AB200: TSE | AC200: M17C1 製藥 | AD200: ID 04742997
... 1638 more rows
